Workbook

Sheet Title
A6: Worst Served Feeder Program
A7: Combined Program
A24: Legend - Tabs:
B25: Title tab
B26: Source information
B27: Analysis
B28: Output
B29: NPV model input tabs
B30: NPV model tabs
A43: End of Sheet

Sheet Feeder Improvement Options
A7: Feeder Improvement Options
A9: Preferred option
A11: BM8B31
A13: Option 1: Installation of two remote controlled gas switches
A15: Remotely Controlled Switches
A16: Equipment | B16: Unit Rate | C16: Unit | D16: Quantity | E16: Unit | F16: Build Period
A17: Remotely controlled switches | C17: $ per switch | D17: 2 | E17: count of switches | F17: 1
A18: Additional construction cost for remote sites | C18: $ per switch | D18: 2 | E18: count of switches | F18: 1
A20: Total cost | B20: Years | C20: Switch replacement cost
A21: 160302.64 | B21: 1 | C21: 160302.64
A23: Option 2: New feeder tie to BM8B32
A25: Feeder Tie To BM8B32
A26: Equipment | B26: Unit Rate | C26: Unit | D26: Quantity | E26: Unit | F26: Build Period
A27: Feeder tie | C27: $ per km | D27: 18 | E27: km | F27: 2
A28: Remotely controlled switches | C28: $ per switch | D28: 4 | E28: count of switches | F28: 2
A29: Additional construction cost for remote sites | C29: $ per switch | D29: 4 | E29: count of switches | F29: 2
A31: Total cost | B31: Years | C31: Switch replacement cost
A32: 8289667.16 | B32: 2 | C32: 320605.28
A35: CNR1, 2 and 3
A37: Option 1: CNR Augmentation
A39: Extend NLA31-CNR3 Tie
A40: Equipment | B40: Unit Rate | C40: Unit | D40: Quantity | E40: Unit | F40: Build Period
A41: Project cost estimate | B41: 2515501.643 | C41: $ per project | D41: 1 | E41: $ per project | F41: 1
A43: Cost Estimate: Extend NLA31-CNR3 Tie
A44: Site Services/ Property and planning requirements
A45: Primary works
A46: Secondary works
A47: Lines works
A48: Traffic management, weather allowance, data system updates
A49: Sub-total construction
A50: Design, CHMP, permits
A51: Sub-total design and contruction
A52: Site Establishment, Construction Management and Generation Support
A53: Sub-total Construction management, design and contruction
A54: Community engagement
A55: Project management
A56: Project direct expenditure
A57: Risk
A58: Project direct expenditure + Risk
A61: Total cost | B61: Years | C61: Switch replacement cost
A62: 2515501.643 | B62: 1 | C62: 429084.52
A65: Option 2: New BESS for Cann River
A67: New Microgrid
A68: Equipment | B68: Unit Rate | C68: Unit | D68: Quantity | E68: Unit | F68: Build Period
A69: BESS | C69: $ per MWh storage | D69: 6.5 | E69: MWh | F69: 1
A70: Automatic circuit recloser | C70: $ per recloser | D70: 1 | E70: reclosers | F70: 1
A71: Step up transformer (2MVA 415V/22kV) | C71: $ per transformer | D71: 1 | E71: transformers | F71: 1
A72: Additional factors | C72: $ per upgrade | D72: 1 | E72: unit | F72: 1
A75: Additional factors | B75: Cost
A76: Additional site work
A77: Allowance in minor plant and equipment
A78: Land costs
A79: Sub total construction costs
A81: Design costs
A82: Subcontractor indirect costs
A83: Project management
A84: Risk
A86: Total additional | B86: 2425885.815
A88: Total cost | B88: Years | C88: Switch replacement cost
A89: 6607156.945 | B89: 1 | C89: 107271.13
A93: KLK11
A95: Option 1: Additional supply to the end of the Kinglake township and Feeder tie to an MDI feeder.
A97: Additional supply to the end of the Kinglake township and Feeder tie to an MDI feeder
A98: Equipment | B98: Unit Rate | C98: Unit | D98: Quantity | E98: Unit | F98: Build Period | G98: Comments
A99: New feeder to extend to other end of Kinglake | C99: $ per km | D99: 3 | E99: km | F99: 2
A100: New CB protection | C100: $ per unit | D100: 1 | E100: unit | F100: 2
A101: New remote controlled gas switches with REFCL remote fault indicators | C101: $ per unit | D101: 6 | E101: unit | F101: 2 | G101: 3 for north section, 3 for Kinglake township
A102: Feeder tie to MDI | C102: $ per km | D102: 10 | E102: km | F102: 2
A104: Total cost | B104: Years | C104: Switch replacement cost
A105: 7736563.2 | B105: 2 | C105: 450907.92
A109: Option 2: Additional supply to the end of the Kinglake township and remote controlled gas switches on the north leg of KLK11.
A111: Additional supply to the end of the Kinglake township and remote controlled gas switches on the north leg of KLK11
A112: Equipment | B112: Unit Rate | C112: Unit | D112: Quantity | E112: Unit | F112: Build Period | G112: Comments
A113: New feeder to extend to other end of Kinglake | C113: $ per km | D113: 3 | E113: km | F113: 2
A114: New CB protection | C114: $ per unit | D114: 1 | E114: unit | F114: 2
A115: New remote controlled gas switches with REFCL remote fault indicators | C115: $ per unit | D115: 6 | E115: unit | F115: 2 | G115: 3 for north section, 3 for Kinglake township
A117: Total cost | B117: Years | C117: Switch replacement cost
A118: 1979084.9 | B118: 2 | C118: 450907.92
A122: MDI1
A124: Option 1: Installation of SWER Automatic Circuit Reclosers (ACR's)
A126: SWER ACR
A127: Equipment | B127: Unit Rate | C127: Unit | D127: Quantity | E127: Unit | F127: Build Period
A128: SWER ACR's | E128: Units | F128: 1
A131: Total cost | B131: Years | C131: Switch replacement cost
A132: 213000 | B132: 1 | C132: 213000
A135: Option 2: Installation of 59 Stand Alone Power Systems (SAPs)
A137: SAPs
A138: Equipment | B138: Unit Rate | C138: Unit | D138: Quantity | E138: Unit | F138: Build Period
A139: SAPs | F139: 2
A141: Total cost | B141: Years | C141: Switch replacement cost
A142: 2360000 | B142: 2 | C142: 0
A146: MOE13
A148: Option 1: 2 ACRs and 2 RCSs
A150: 2 x ACRs and 2 x RCSs
A151: Equipment | B151: Unit Rate | C151: Unit | D151: Quantity | E151: Unit | F151: Build Period
A152: Automatic circuit reclosers | C152: $ per recloser | D152: 2 | E152: count of reclosers | F152: 2
A153: Remotely controlled switches | C153: $ per switch | D153: 2 | E153: count of switches | F153: 2
A155: Total cost | B155: Years | C155: Switch replacement cost
A156: 344844.9 | B156: 2 | C156: 344844.9
A159: Option 2: 5 ACRs and 10 RCSs
A161: 5 x ACRs and 10 x RCSs
A162: Equipment | B162: Unit Rate | C162: Unit | D162: Quantity | E162: Unit | F162: Build Period
A163: Automatic circuit reclosers | C163: $ per recloser | D163: 5 | E163: count of reclosers | F163: 2
A164: Remotely controlled switches | C164: $ per switch | D164: 10 | E164: count of switches | F164: 2
A166: Total cost | B166: Years | C166: Switch replacement cost
A167: 1187868.85 | B167: 2 | C167: 1187868.85
A170: Option 3: Feeder Tie to MOE21
A172: Feeder tie to MOE21
A173: Equipment | B173: Unit Rate | C173: Unit | D173: Quantity | E173: Unit | F173: Build Period
A174: Overhead line | C174: $ per km | D174: 5 | E174: km | F174: 1
A175: Remotely controlled switches | C175: $ per switch | D175: 2 | E175: count of switches | F175: 1
A177: Total cost | B177: Years | C177: Switch replacement cost
A178: 2343930.94 | B178: 1 | C178: 130302.64
A183: MSD1
A185: Option 1: Targeted undergrounding between Howqua Inlet and Kevington
A187: Targeted undergrounding
A188: Equipment | B188: Unit Rate | C188: Unit | D188: Quantity | E188: Unit | F188: Build Period
A189: Underground conductor | F189: 2
A191: Total cost | B191: Years | C191: Switch replacement cost
A192: 8013015.9 | B192: 2 | C192: 0
A196: Option 2: Targeted express overhead sections between Howqua Inlet and Kevington
A198: Targeted express sections
A199: Equipment | B199: Unit Rate | C199: Unit | D199: Quantity | E199: Unit | F199: Build Period
A200: Overhead conductor | C200: $ per km | D200: 6 | E200: km | F200: 2
A201: Underground conductor | C201: $ per km | D201: 4 | E201: km | F201: 2
A202: Easements | C202: $ per km | D202: 7 | E202: km | F202: 2
A203: Remotely controlled switches | C203: $ per switch | D203: 6 | E203: switches | F203: 2
A205: Total cost | B205: Years | C205: Switch replacement cost
A206: 6952468.24 | B206: 2 | C206: 390907.92
A210: NLA31
A212: Option 1: New overhead express feeder section from the Orbost area to Marlo
A214: Express Feeder from LE031 to LE014
A215: Equipment | B215: Unit Rate | C215: Unit | D215: Quantity | E215: Unit | F215: Build Period
A216: OHL line | C216: $ per km | D216: 15 | E216: km | F216: 2
A217: Remotely controlled switches | C217: $ per switch | D217: 3 | E217: count of switches | F217: 2
A219: Total cost | B219: Years | C219: Switch replacement cost
A220: 6836338.86 | B220: 2 | C220: 195453.96
A224: Option 2: New feeder tie from the NLA31-CNR3 northern leg from Brodribb River to Marlo
A226: Express Feeder from 906 to 908
A227: Equipment | B227: Unit Rate | C227: Unit | D227: Quantity | E227: Unit | F227: Build Period
A228: OHL line | C228: $ per km | D228: 2 | E228: km | F228: 1
A229: Underground line | C229: $ per km | D229: 1.5 | E229: km | F229: 1
A230: Voltage regulator | C230: $ per unit | D230: 1 | E230: unit | F230: 1
A231: Remotely controlled switches | C231: $ per switch | D231: 5 | E231: count of switches | F231: 1
A233: Total cost | B233: Years | C233: Switch replacement cost
A234: 3065165.684 | B234: 1 | C234: 325756.6
A238: WYK13
A240: Option 1: Extend the WYK23 feeder to East Warburton
A242: Extend WYK23 to East Warburton and Sectionalise Front Section
A243: Equipment | B243: Unit Rate | C243: Unit | D243: Quantity | E243: Unit | F243: Build Period | G243: Comments
A244: Extend the WYK23 feeder to East Warburton (OHL) | C244: $ per km | D244: 5 | E244: km | F244: 1
A245: Extend the WYK23 feeder to East Warburton (covered) | C245: $ per km | D245: 5 | E245: km | F245: 1
A246: New remote controlled gas switch | C246: $ per unit | D246: 7 | E246: unit | F246: 1
A247: REFCL remote fault indicators | C247: $ per unit | D247: 6 | E247: unit | F247: 1
A249: Total cost | B249: Years | C249: Switch replacement cost
A250: 6263542.54 | B250: 1 | C250: 386059.24
A253: Option 2: Targeted undergrounding
A255: Alternative underground route through heavily vegetated areas
A256: Equipment | B256: Unit Rate | C256: Unit | D256: Quantity | E256: Unit | F256: Build Period
A257: Underground conductor | C257: $ per km | D257: 10 | E257: km | F257: 2
A258: New remote controlled gas switch | C258: $ per unit | D258: 7 | E258: unit | F258: 2
A259: REFCL remote fault indicators | C259: $ per unit | D259: 6 | E259: unit | F259: 2
A261: Total cost | B261: Years | C261: Switch replacement cost
A262: 8519075.14 | B262: 2 | C262: 386059.24
A267: Full Program | B267: Preferred Options
A269: CAPEX
A270: Feeder | B270: Cost Year 1 | C270: Cost Year 2 | D270: Cost Year 3 | E270: Total Check | F270: Switch Replacement Cost Year 30
A271: BM8B31 | B271: 160302.64 | E271: =SUM(B271:D271)=A21 -> TRUE | F271: 160302.64
A272: CNR1, 2 and 3 | B272: 2515501.643 | E272: =SUM(B272:D272)=A62 -> TRUE | F272: 429084.52
A273: KLK11 | B273: 989542.45 | C273: 989542.45 | E273: =SUM(B273:D273)=A118 -> TRUE | F273: 450907.92
A274: MDI1 | B274: 213000 | E274: =SUM(B274:D274)=A132 -> TRUE | F274: 213000
A275: MOE13 | B275: 2343930.94 | E275: =SUM(B275:D275)=A178 -> TRUE | F275: 130302.64
A276: MSD1 | B276: 3476234.12 | C276: 3476234.12 | E276: =SUM(B276:D276)=A206 -> TRUE | F276: 390907.92
A277: NLA31 | B277: 3065165.684 | E277: =SUM(B277:D277)=$A234 -> TRUE | F277: 325756.6
A278: WYK13 | B278: 6263542.54 | E278: =SUM(B278:D278)=A250 -> TRUE | F278: 386059.24
A279: Total | B279: =SUM(B271:B278) -> 19027220.02 | C279: =SUM(C271:C278) -> 4465776.57 | E279: =SUM(B279:C279) -> 23492996.59 | F279: =SUM(F271:F278) -> 2486321.48
A281: OPEX
A282: Feeder | B282: Cost Year 1 | C282: Cost Year 2 | D282: Cost Year 3 | E282: Cost Ongoing
A283: BM8B31 | B283: 0 | C283: =0.005*SUM($B$271) -> 801.5132 | D283: =0.005*SUM($B$271) -> 801.5132
A284: CNR1, 2 and 3 | B284: 0 | D284: =0.005*SUM(B272) -> 12577.50822
A285: KLK11 | B285: 0 | D285: =0.005*SUM(B273:C273) -> 9895.4245
A286: MDI1 | B286: 0 | C286: =0.005*SUM($B$274) -> 1065 | D286: =0.005*SUM($B$274) -> 1065
A287: MOE13 | B287: 0 | C287: =0.005*SUM($B$275) -> 11719.6547 | D287: =0.005*SUM($B$275) -> 11719.6547
A288: MSD1 | B288: 0 | D288: =0.005*SUM(B276:C276) -> 34762.3412
A289: NLA31 | B289: 0 | C289: =0.005*SUM(B277) -> 15325.82842 | D289: =0.005*SUM(B277) -> 15325.82842
A290: WYK13 | B290: 0 | C290: =0.005*SUM(B278) -> 31317.7127 | D290: =0.005*SUM(B278) -> 31317.7127
A291: Total | B291: =SUM(B283:B290) -> 0 | C291: =SUM(C283:C290) -> 60229.70902 | D291: =SUM(D283:D290) -> 117464.9829 | E291: =0.005*SUM(B279:C279) -> 117464.9829
A293: Reactive Work
A294: Feeder | B294: Cost Year 1 | C294: Cost Year 2 | D294: Cost Year 3 | E294: Cost Ongoing
A295: BM8B31 | B295: =Forecasts!I26 -> 8603.472 | C295: =0.005*SUM(B284) -> 0
A296: CNR1, 2 and 3 | B296: =Forecasts!I46 -> 31370.59 | C296: =Forecasts!J46 -> 31370.59
A297: KLK11 | B297: =Forecasts!I67 -> 55087.374 | C297: =Forecasts!J67 -> 55087.374
A298: MDI1 | B298: =Forecasts!I88 -> 2112.91
A299: MOE13 | B299: =Forecasts!I109 -> 45100.106
A300: MSD1 | B300: =Forecasts!I132 -> 45784.872 | C300: =Forecasts!J132 -> 45784.872
A301: NLA31 | B301: =Forecasts!I152 -> 33650.694
A302: WYK13 | B302: =Forecasts!I172 -> 98198.506 | D302: 0
A303: Total | B303: =SUM(B295:B302) -> 319908.524 | C303: =SUM(C295:C302) -> 132242.836 | D303: =SUM(D295:D302) -> 0 | E303: =0.005*SUM(B292:C292) -> 0
A305: End of Sheet

Sheet Forecasts
A7: Forecasts
A9: NPV Model Input Guide
B10: Used as inputs to NPV model
B11: Years analysed in NPV model
A13: NPV Model Key Parameters
A14: Model start date | C14: ='1_KMA'!I22 -> 2026-07-01
A15: Assessment period | C15: ='1_KMA'!I23 -> 30
A16: Start year | C16: =SUM(YEAR(C14),1) -> 2027
A17: End year | C17: =C16+C15 -> 2057
A19: Preferred option | G19: CY to FY Conversation
G20: 2024-01-01 | H20: 2025-07-01
G21: 2024-12-01 | H21: 2026-06-01
A22: BM8B31
A24: Cost - AER VCRs | B24: 2019 | C24: =B24+1 -> 2020 | D24: =C24+1 -> 2021 | E24: 2022 | F24: 2023 | G24: 2024 | H24: =G24+2 -> 2026 | I24: 2027 | J24: 2028 | K24: 2029 | L24: 2030 | M24: 2031 | N24: 2032 | O24: 2033 | P24: 2034 | Q24: 2035 | R24: 2036 | S24: 2037 | T24: 2038 | U24: 2039 | V24: 2040 | W24: 2041 | X24: 2042 | Y24: =X24+1 -> 2043 | Z24: 2044 | AA24: 2045 | AB24: 2046 | AC24: 2047 | AD24: 2048 | AE24: 2049 | AF24: 2050 | AG24: 2051 | AH24: 2052 | AI24: 2053 | AJ24: 2054 | AK24: 2055 | AL24: 2056
A25: Total Economic Cost (Unserved Energy) | B25: 0 | C25: 0 | D25: 0 | E25: 0 | F25: 146674.5213 | G25: 913.3036759 | H25: 99017.03196 | I25: 100007.2023 | J25: 101007.2743 | K25: 102017.347 | L25: 103037.5205 | M25: 104067.8957 | N25: 105108.5747 | O25: 106159.6604 | P25: 107221.257 | Q25: 108293.4696 | R25: 109376.4043 | S25: 110470.1683 | T25: 111574.87 | U25: 112690.6187 | V25: 113817.5249 | W25: 114955.7002 | X25: 116105.2572 | Y25: 117266.3097 | Z25: 118438.9728 | AA25: 119623.3626 | AB25: 120819.5962 | AC25: 122027.7921 | AD25: 123248.0701 | AE25: 124480.5508 | AF25: 125725.3563 | AG25: 126982.6098 | AH25: 128252.4359 | AI25: 129534.9603 | AJ25: 130830.3099 | AK25: 132138.613 | AL25: 133459.9991
A26: Operational Cost (Reactive Work) | B26: 3389.29 | C26: 30436.72 | D26: 751.3 | E26: 6968.73 | F26: 1471.32 | G26: 0 | H26: 8603.472 | I26: 8603.472 | J26: 8603.472 | K26: 8603.472 | L26: 8603.472 | M26: 8603.472 | N26: 8603.472 | O26: 8603.472 | P26: 8603.472 | Q26: 8603.472 | R26: 8603.472 | S26: 8603.472 | T26: 8603.472 | U26: 8603.472 | V26: 8603.472 | W26: 8603.472 | X26: 8603.472 | Y26: 8603.472 | Z26: 8603.472 | AA26: 8603.472 | AB26: 8603.472 | AC26: 8603.472 | AD26: 8603.472 | AE26: 8603.472 | AF26: 8603.472 | AG26: 8603.472 | AH26: 8603.472 | AI26: 8603.472 | AJ26: 8603.472 | AK26: 8603.472 | AL26: 8603.472
A27: Option 1 Value of EUE | H27: 99017.03196 | I27: 100007.2023 | J27: 96860.67779 | K27: 97829.28456 | L27: 98807.57741 | M27: 99795.65318 | N27: 100793.6097 | O27: 101801.5458 | P27: 102819.5613 | Q27: 103847.7569 | R27: 104886.2345 | S27: 105935.0968 | T27: 106994.4478 | U27: 108064.3922 | V27: 109145.0362 | W27: 110236.4865 | X27: 111338.8514 | Y27: 112452.2399 | Z27: 113576.7623 | AA27: 114712.5299 | AB27: 115859.6552 | AC27: 117018.2518 | AD27: 118188.4343 | AE27: 119370.3186 | AF27: 120564.0218 | AG27: 121769.662 | AH27: 122987.3587 | AI27: 124217.2323 | AJ27: 125459.4046 | AK27: 126713.9986 | AL27: 127981.1386
A28: Option 2 Value of EUE | H28: 99017.03196 | I28: 100007.2023 | J28: 101007.2743 | K28: 53028.82289 | L28: 53559.11112 | M28: 54094.70223 | N28: 54635.64926 | O28: 55182.00575 | P28: 55733.82581 | Q28: 56291.16406 | R28: 56854.07571 | S28: 57422.61646 | T28: 57996.84263 | U28: 58576.81105 | V28: 59162.57916 | W28: 59754.20496 | X28: 60351.747 | Y28: 60955.26447 | Z28: 61564.81712 | AA28: 62180.46529 | AB28: 62802.26994 | AC28: 63430.29264 | AD28: 64064.59557 | AE28: 64705.24153 | AF28: 65352.29394 | AG28: 66005.81688 | AH28: 66665.87505 | AI28: 67332.5338 | AJ28: 68005.85914 | AK28: 68685.91773 | AL28: 69372.77691
A30: Cost - AusNet VCRs | B30: 2019 | C30: =B30+1 -> 2020 | D30: =C30+1 -> 2021 | E30: =D30+1 -> 2022 | F30: =E30+1 -> 2023 | G30: =F30+1 -> 2024 | H30: =G30+2 -> 2026 | I30: =H30+1 -> 2027 | J30: =I30+1 -> 2028 | K30: =J30+1 -> 2029 | L30: =K30+1 -> 2030 | M30: =L30+1 -> 2031 | N30: =M30+1 -> 2032 | O30: =N30+1 -> 2033 | P30: =O30+1 -> 2034 | Q30: =P30+1 -> 2035 | R30: =Q30+1 -> 2036 | S30: =R30+1 -> 2037 | T30: =S30+1 -> 2038 | U30: =T30+1 -> 2039 | V30: =U30+1 -> 2040 | W30: =V30+1 -> 2041 | X30: =W30+1 -> 2042 | Y30: =X30+1 -> 2043 | Z30: =Y30+1 -> 2044 | AA30: =Z30+1 -> 2045 | AB30: =AA30+1 -> 2046 | AC30: =AB30+1 -> 2047 | AD30: =AC30+1 -> 2048 | AE30: =AD30+1 -> 2049 | AF30: =AE30+1 -> 2050 | AG30: =AF30+1 -> 2051 | AH30: =AG30+1 -> 2052 | AI30: =AH30+1 -> 2053 | AJ30: =AI30+1 -> 2054 | AK30: =AJ30+1 -> 2055 | AL30: =AK30+1 -> 2056
A31: Total Economic Cost (Unserved Energy) | B31: 0 | C31: 0 | D31: 0 | E31: 0 | F31: 161321.5555 | G31: 1004.506906 | H31: 108904.9514 | I31: 109994.0009 | J31: 111093.9409 | K31: 112204.8803 | L31: 113326.9291 | M31: 114460.1984 | N31: 115604.8004 | O31: 116760.8484 | P31: 117928.4569 | Q31: 119107.7415 | R31: 120298.8189 | S31: 121501.8071 | T31: 122716.8251 | U31: 123943.9934 | V31: 125183.4333 | W31: 126435.2677 | X31: 127699.6203 | Y31: 128976.6165 | Z31: 130266.3827 | AA31: 131569.0465 | AB31: 132884.737 | AC31: 134213.5844 | AD31: 135555.7202 | AE31: 136911.2774 | AF31: 138280.3902 | AG31: 139663.1941 | AH31: 141059.826 | AI31: 142470.4243 | AJ31: 143895.1285 | AK31: 145334.0798 | AL31: 146787.4206
A32: Operational Cost (Reactive Work) | B32: 3389.29 | C32: 30436.72 | D32: 751.3 | E32: 6968.73 | F32: 1471.32 | G32: 0 | H32: 8603.472 | I32: 8603.472 | J32: 8603.472 | K32: 8603.472 | L32: 8603.472 | M32: 8603.472 | N32: 8603.472 | O32: 8603.472 | P32: 8603.472 | Q32: 8603.472 | R32: 8603.472 | S32: 8603.472 | T32: 8603.472 | U32: 8603.472 | V32: 8603.472 | W32: 8603.472 | X32: 8603.472 | Y32: 8603.472 | Z32: 8603.472 | AA32: 8603.472 | AB32: 8603.472 | AC32: 8603.472 | AD32: 8603.472 | AE32: 8603.472 | AF32: 8603.472 | AG32: 8603.472 | AH32: 8603.472 | AI32: 8603.472 | AJ32: 8603.472 | AK32: 8603.472 | AL32: 8603.472
A33: Option 1 Value of EUE | H33: 108904.9514 | I33: 109994.0009 | J33: 106533.262 | K33: 107598.5946 | L33: 108674.5806 | M33: 109761.3264 | N33: 110858.9396 | O33: 111967.529 | P33: 113087.2043 | Q33: 114218.0764 | R33: 115360.2571 | S33: 116513.8597 | T33: 117678.9983 | U33: 118855.7883 | V33: 120044.3462 | W33: 121244.7896 | X33: 122457.2375 | Y33: 123681.8099 | Z33: 124918.628 | AA33: 126167.8143 | AB33: 127429.4924 | AC33: 128703.7873 | AD33: 129990.8252 | AE33: 131290.7335 | AF33: 132603.6408 | AG33: 133929.6772 | AH33: 135268.974 | AI33: 136621.6637 | AJ33: 137987.8804 | AK33: 139367.7592 | AL33: 140761.4367
A34: Option 2 Value of EUE | H34: 108904.9514 | I34: 109994.0009 | J34: 111093.9409 | K34: 58324.32326 | L34: 58907.5665 | M34: 59496.64216 | N34: 60091.60858 | O34: 60692.52467 | P34: 61299.44991 | Q34: 61912.44441 | R34: 62531.56886 | S34: 63156.88455 | T34: 63788.45339 | U34: 64426.33793 | V34: 65070.6013 | W34: 65721.30732 | X34: 66378.52039 | Y34: 67042.30559 | Z34: 67712.72865 | AA34: 68389.85594 | AB34: 69073.7545 | AC34: 69764.49204 | AD34: 70462.13696 | AE34: 71166.75833 | AF34: 71878.42592 | AG34: 72597.21017 | AH34: 73323.18228 | AI34: 74056.4141 | AJ34: 74796.97824 | AK34: 75544.94802 | AL34: 76300.3975
A36: GSLs | B36: 2019 | C36: =B36+1 -> 2020 | D36: =C36+1 -> 2021 | E36: =D36+1 -> 2022 | F36: =E36+1 -> 2023 | G36: =F36+1 -> 2024 | H36: =G36+2 -> 2026 | I36: =H36+1 -> 2027 | J36: =I36+1 -> 2028 | K36: =J36+1 -> 2029 | L36: =K36+1 -> 2030 | M36: =L36+1 -> 2031 | N36: =M36+1 -> 2032 | O36: =N36+1 -> 2033 | P36: =O36+1 -> 2034 | Q36: =P36+1 -> 2035 | R36: =Q36+1 -> 2036 | S36: =R36+1 -> 2037 | T36: =S36+1 -> 2038 | U36: =T36+1 -> 2039 | V36: =U36+1 -> 2040 | W36: =V36+1 -> 2041 | X36: =W36+1 -> 2042 | Y36: =X36+1 -> 2043 | Z36: =Y36+1 -> 2044 | AA36: =Z36+1 -> 2045 | AB36: =AA36+1 -> 2046 | AC36: =AB36+1 -> 2047 | AD36: =AC36+1 -> 2048 | AE36: =AD36+1 -> 2049 | AF36: =AE36+1 -> 2050 | AG36: =AF36+1 -> 2051 | AH36: =AG36+1 -> 2052 | AI36: =AH36+1 -> 2053 | AJ36: =AI36+1 -> 2054 | AK36: =AJ36+1 -> 2055 | AL36: =AK36+1 -> 2056
A37: BAU | I37: 18129.23077 | J37: 18129.23077 | K37: 18129.23077 | L37: 18129.23077 | M37: 18129.23077 | N37: 18129.23077 | O37: 18129.23077 | P37: 18129.23077 | Q37: 18129.23077 | R37: 18129.23077 | S37: 18129.23077 | T37: 18129.23077 | U37: 18129.23077 | V37: 18129.23077 | W37: 18129.23077 | X37: 18129.23077 | Y37: 18129.23077 | Z37: 18129.23077 | AA37: 18129.23077 | AB37: 18129.23077 | AC37: 18129.23077 | AD37: 18129.23077 | AE37: 18129.23077 | AF37: 18129.23077 | AG37: 18129.23077 | AH37: 18129.23077 | AI37: 18129.23077 | AJ37: 18129.23077 | AK37: 18129.23077 | AL37: 18129.23077 | AM37: 18129.23077 | AN37: 18129.23077 | AO37: 18129.23077 | AP37: 18129.23077 | AQ37: 18129.23077 | AR37: 18129.23077 | AS37: 18129.23077 | AT37: 18129.23077 | AU37: 18129.23077 | AV37: 18129.23077 | AW37: 18129.23077 | AX37: 18129.23077 | AY37: 18129.23077 | AZ37: 18129.23077 | BA37: 18129.23077 | BB37: 18129.23077 | BC37: 18129.23077 | BD37: 18129.23077 | BE37: 18129.23077 | BF37: 18129.23077
A38: Option 1 | I38: 18129.23077 | J38: 17384.98135 | K38: 17384.98135 | L38: 17384.98135 | M38: 17384.98135 | N38: 17384.98135 | O38: 17384.98135 | P38: 17384.98135 | Q38: 17384.98135 | R38: 17384.98135 | S38: 17384.98135 | T38: 17384.98135 | U38: 17384.98135 | V38: 17384.98135 | W38: 17384.98135 | X38: 17384.98135 | Y38: 17384.98135 | Z38: 17384.98135 | AA38: 17384.98135 | AB38: 17384.98135 | AC38: 17384.98135 | AD38: 17384.98135 | AE38: 17384.98135 | AF38: 17384.98135 | AG38: 17384.98135 | AH38: 17384.98135 | AI38: 17384.98135 | AJ38: 17384.98135 | AK38: 17384.98135 | AL38: 17384.98135 | AM38: 17384.98135 | AN38: 17384.98135 | AO38: 17384.98135 | AP38: 17384.98135 | AQ38: 17384.98135 | AR38: 17384.98135 | AS38: 17384.98135 | AT38: 17384.98135 | AU38: 17384.98135 | AV38: 17384.98135 | AW38: 17384.98135 | AX38: 17384.98135 | AY38: 17384.98135 | AZ38: 17384.98135 | BA38: 17384.98135 | BB38: 17384.98135 | BC38: 17384.98135 | BD38: 17384.98135 | BE38: 17384.98135 | BF38: 17384.98135
A39: Option 2 | I39: 18129.23077 | J39: 18129.23077 | K39: 9423.610744 | L39: 9423.610744 | M39: 9423.610744 | N39: 9423.610744 | O39: 9423.610744 | P39: 9423.610744 | Q39: 9423.610744 | R39: 9423.610744 | S39: 9423.610744 | T39: 9423.610744 | U39: 9423.610744 | V39: 9423.610744 | W39: 9423.610744 | X39: 9423.610744 | Y39: 9423.610744 | Z39: 9423.610744 | AA39: 9423.610744 | AB39: 9423.610744 | AC39: 9423.610744 | AD39: 9423.610744 | AE39: 9423.610744 | AF39: 9423.610744 | AG39: 9423.610744 | AH39: 9423.610744 | AI39: 9423.610744 | AJ39: 9423.610744 | AK39: 9423.610744 | AL39: 9423.610744 | AM39: 9423.610744 | AN39: 9423.610744 | AO39: 9423.610744 | AP39: 9423.610744 | AQ39: 9423.610744 | AR39: 9423.610744 | AS39: 9423.610744 | AT39: 9423.610744 | AU39: 9423.610744 | AV39: 9423.610744 | AW39: 9423.610744 | AX39: 9423.610744 | AY39: 9423.610744 | AZ39: 9423.610744 | BA39: 9423.610744 | BB39: 9423.610744 | BC39: 9423.610744 | BD39: 9423.610744 | BE39: 9423.610744 | BF39: 9423.610744
A42: CNR1, 2 and 3
A44: Cost - AER VCRs | B44: 2019 | C44: =B44+1 -> 2020 | D44: =C44+1 -> 2021 | E44: =D44+1 -> 2022 | F44: =E44+1 -> 2023 | G44: =F44+1 -> 2024 | H44: =G44+2 -> 2026 | I44: =H44+1 -> 2027 | J44: =I44+1 -> 2028 | K44: =J44+1 -> 2029 | L44: =K44+1 -> 2030 | M44: =L44+1 -> 2031 | N44: =M44+1 -> 2032 | O44: =N44+1 -> 2033 | P44: =O44+1 -> 2034 | Q44: =P44+1 -> 2035 | R44: =Q44+1 -> 2036 | S44: =R44+1 -> 2037 | T44: =S44+1 -> 2038 | U44: =T44+1 -> 2039 | V44: =U44+1 -> 2040 | W44: =V44+1 -> 2041 | X44: =W44+1 -> 2042 | Y44: =X44+1 -> 2043 | Z44: =Y44+1 -> 2044 | AA44: =Z44+1 -> 2045 | AB44: =AA44+1 -> 2046 | AC44: =AB44+1 -> 2047 | AD44: =AC44+1 -> 2048 | AE44: =AD44+1 -> 2049 | AF44: =AE44+1 -> 2050 | AG44: =AF44+1 -> 2051 | AH44: =AG44+1 -> 2052 | AI44: =AH44+1 -> 2053 | AJ44: =AI44+1 -> 2054 | AK44: =AJ44+1 -> 2055 | AL44: =AK44+1 -> 2056
A45: Total Economic Cost (Unserved Energy) | B45: 0 | C45: 0 | D45: 0 | E45: 0 | F45: 973015.0302 | G45: 1173608.729 | H45: 2213112.01 | I45: 2235243.13 | J45: 2257595.562 | K45: 2280171.517 | L45: 2302973.232 | M45: 2326002.965 | N45: 2349262.994 | O45: 2372755.624 | P45: 2396483.18 | Q45: 2420448.012 | R45: 2444652.492 | S45: 2469099.017 | T45: 2493790.008 | U45: 2518727.908 | V45: 2543915.187 | W45: 2569354.339 | X45: 2595047.882 | Y45: 2620998.361 | Z45: 2647208.344 | AA45: 2673680.428 | AB45: 2700417.232 | AC45: 2727421.404 | AD45: 2754695.618 | AE45: 2782242.575 | AF45: 2810065 | AG45: 2838165.65 | AH45: 2866547.307 | AI45: 2895212.78 | AJ45: 2924164.908 | AK45: 2953406.557 | AL45: 2982940.622
A46: Operational Cost (Reactive Work) | B46: 19515.81 | C46: 7699.92 | D46: 40166.42 | E46: 77145.32 | F46: 12325.48 | G46: 0 | H46: 31370.59 | I46: 31370.59 | J46: 31370.59 | K46: 31370.59 | L46: 31370.59 | M46: 31370.59 | N46: 31370.59 | O46: 31370.59 | P46: 31370.59 | Q46: 31370.59 | R46: 31370.59 | S46: 31370.59 | T46: 31370.59 | U46: 31370.59 | V46: 31370.59 | W46: 31370.59 | X46: 31370.59 | Y46: 31370.59 | Z46: 31370.59 | AA46: 31370.59 | AB46: 31370.59 | AC46: 31370.59 | AD46: 31370.59 | AE46: 31370.59 | AF46: 31370.59 | AG46: 31370.59 | AH46: 31370.59 | AI46: 31370.59 | AJ46: 31370.59 | AK46: 31370.59 | AL46: 31370.59
A47: Option 1 Value of EUE | H47: 2213112.01 | I47: 2235243.13 | J47: 2012193.079 | K47: 2032315.01 | L47: 2052638.16 | M47: 2073164.542 | N47: 2093896.187 | O47: 2114835.149 | P47: 2135983.501 | Q47: 2157343.336 | R47: 2178916.769 | S47: 2200705.937 | T47: 2222712.996 | U47: 2244940.126 | V47: 2267389.527 | W47: 2290063.423 | X47: 2312964.057 | Y47: 2336093.697 | Z47: 2359454.634 | AA47: 2383049.181 | AB47: 2406879.673 | AC47: 2430948.469 | AD47: 2455257.954 | AE47: 2479810.534 | AF47: 2504608.639 | AG47: 2529654.725 | AH47: 2554951.272 | AI47: 2580500.785 | AJ47: 2606305.793 | AK47: 2632368.851 | AL47: 2658692.54
A48: Option 2 Value of EUE | H48: 1961075.457 | I48: 1980686.212 | J48: 1601982.852 | K48: 1618002.681 | L48: 1634182.707 | M48: 1650524.535 | N48: 1667029.78 | O48: 1683700.078 | P48: 1700537.078 | Q48: 1717542.449 | R48: 1734717.874 | S48: 1752065.052 | T48: 1769585.703 | U48: 1787281.56 | V48: 1805154.376 | W48: 1823205.919 | X48: 1841437.979 | Y48: 1859852.358 | Z48: 1878450.882 | AA48: 1897235.391 | AB48: 1916207.745 | AC48: 1935369.822 | AD48: 1954723.52 | AE48: 1974270.756 | AF48: 1994013.463 | AG48: 2013953.598 | AH48: 2034093.134 | AI48: 2054434.065 | AJ48: 2074978.406 | AK48: 2095728.19 | AL48: 2116685.472
A50: Cost - AusNet VCRs | B50: 2019 | C50: =B50+1 -> 2020 | D50: =C50+1 -> 2021 | E50: =D50+1 -> 2022 | F50: =E50+1 -> 2023 | G50: =F50+1 -> 2024 | H50: =G50+2 -> 2026 | I50: =H50+1 -> 2027 | J50: =I50+1 -> 2028 | K50: =J50+1 -> 2029 | L50: =K50+1 -> 2030 | M50: =L50+1 -> 2031 | N50: =M50+1 -> 2032 | O50: =N50+1 -> 2033 | P50: =O50+1 -> 2034 | Q50: =P50+1 -> 2035 | R50: =Q50+1 -> 2036 | S50: =R50+1 -> 2037 | T50: =S50+1 -> 2038 | U50: =T50+1 -> 2039 | V50: =U50+1 -> 2040 | W50: =V50+1 -> 2041 | X50: =W50+1 -> 2042 | Y50: =X50+1 -> 2043 | Z50: =Y50+1 -> 2044 | AA50: =Z50+1 -> 2045 | AB50: =AA50+1 -> 2046 | AC50: =AB50+1 -> 2047 | AD50: =AC50+1 -> 2048 | AE50: =AD50+1 -> 2049 | AF50: =AE50+1 -> 2050 | AG50: =AF50+1 -> 2051 | AH50: =AG50+1 -> 2052 | AI50: =AH50+1 -> 2053 | AJ50: =AI50+1 -> 2054 | AK50: =AJ50+1 -> 2055 | AL50: =AK50+1 -> 2056
A51: Total Economic Cost (Unserved Energy) | B51: 0 | C51: 0 | D51: 0 | E51: 0 | F51: 1285547.959 | G51: 1550572.457 | H51: 2923964.728 | I51: 2953204.375 | J51: 2982736.419 | K51: 3012563.783 | L51: 3042689.421 | M51: 3073116.315 | N51: 3103847.478 | O51: 3134885.953 | P51: 3166234.813 | Q51: 3197897.161 | R51: 3229876.132 | S51: 3262174.894 | T51: 3294796.643 | U51: 3327744.609 | V51: 3361022.055 | W51: 3394632.276 | X51: 3428578.599 | Y51: 3462864.385 | Z51: 3497493.028 | AA51: 3532467.959 | AB51: 3567792.638 | AC51: 3603470.565 | AD51: 3639505.27 | AE51: 3675900.323 | AF51: 3712659.326 | AG51: 3749785.919 | AH51: 3787283.779 | AI51: 3825156.616 | AJ51: 3863408.183 | AK51: 3902042.264 | AL51: 3941062.687
A52: Operational Cost (Reactive Work) | B52: 19515.81 | C52: 7699.92 | D52: 40166.42 | E52: 77145.32 | F52: 12325.48 | G52: 0 | H52: 31370.59 | I52: 31370.59 | J52: 31370.59 | K52: 31370.59 | L52: 31370.59 | M52: 31370.59 | N52: 31370.59 | O52: 31370.59 | P52: 31370.59 | Q52: 31370.59 | R52: 31370.59 | S52: 31370.59 | T52: 31370.59 | U52: 31370.59 | V52: 31370.59 | W52: 31370.59 | X52: 31370.59 | Y52: 31370.59 | Z52: 31370.59 | AA52: 31370.59 | AB52: 31370.59 | AC52: 31370.59 | AD52: 31370.59 | AE52: 31370.59 | AF52: 31370.59 | AG52: 31370.59 | AH52: 31370.59 | AI52: 31370.59 | AJ52: 31370.59 | AK52: 31370.59 | AL52: 31370.59
A53: Option 1 Value of EUE | H53: 2923964.728 | I53: 2953204.375 | J53: 2658510.533 | K53: 2685095.639 | L53: 2711946.595 | M53: 2739066.061 | N53: 2766456.721 | O53: 2794121.289 | P53: 2822062.502 | Q53: 2850283.127 | R53: 2878785.958 | S53: 2907573.817 | T53: 2936649.556 | U53: 2966016.051 | V53: 2995676.212 | W53: 3025632.974 | X53: 3055889.304 | Y53: 3086448.197 | Z53: 3117312.679 | AA53: 3148485.805 | AB53: 3179970.663 | AC53: 3211770.37 | AD53: 3243888.074 | AE53: 3276326.954 | AF53: 3309090.224 | AG53: 3342181.126 | AH53: 3375602.937 | AI53: 3409358.967 | AJ53: 3443452.557 | AK53: 3477887.082 | AL53: 3512665.953
A54: Option 2 Value of EUE | H54: 2590973.905 | I54: 2616883.644 | J54: 2116540.57 | K54: 2137705.975 | L54: 2159083.035 | M54: 2180673.865 | N54: 2202480.604 | O54: 2224505.41 | P54: 2246750.464 | Q54: 2269217.969 | R54: 2291910.148 | S54: 2314829.25 | T54: 2337977.542 | U54: 2361357.318 | V54: 2384970.891 | W54: 2408820.6 | X54: 2432908.806 | Y54: 2457237.894 | Z54: 2481810.273 | AA54: 2506628.376 | AB54: 2531694.659 | AC54: 2557011.606 | AD54: 2582581.722 | AE54: 2608407.539 | AF54: 2634491.615 | AG54: 2660836.531 | AH54: 2687444.896 | AI54: 2714319.345 | AJ54: 2741462.539 | AK54: 2768877.164 | AL54: 2796565.936
A57: GSLs | B57: 2019 | C57: =B57+1 -> 2020 | D57: =C57+1 -> 2021 | E57: =D57+1 -> 2022 | F57: =E57+1 -> 2023 | G57: =F57+1 -> 2024 | H57: =G57+2 -> 2026 | I57: =H57+1 -> 2027 | J57: =I57+1 -> 2028 | K57: =J57+1 -> 2029 | L57: =K57+1 -> 2030 | M57: =L57+1 -> 2031 | N57: =M57+1 -> 2032 | O57: =N57+1 -> 2033 | P57: =O57+1 -> 2034 | Q57: =P57+1 -> 2035 | R57: =Q57+1 -> 2036 | S57: =R57+1 -> 2037 | T57: =S57+1 -> 2038 | U57: =T57+1 -> 2039 | V57: =U57+1 -> 2040 | W57: =V57+1 -> 2041 | X57: =W57+1 -> 2042 | Y57: =X57+1 -> 2043 | Z57: =Y57+1 -> 2044 | AA57: =Z57+1 -> 2045 | AB57: =AA57+1 -> 2046 | AC57: =AB57+1 -> 2047 | AD57: =AC57+1 -> 2048 | AE57: =AD57+1 -> 2049 | AF57: =AE57+1 -> 2050 | AG57: =AF57+1 -> 2051 | AH57: =AG57+1 -> 2052 | AI57: =AH57+1 -> 2053 | AJ57: =AI57+1 -> 2054 | AK57: =AJ57+1 -> 2055 | AL57: =AK57+1 -> 2056
A58: BAU | I58: 322804.6154 | J58: 322804.6154 | K58: 322804.6154 | L58: 322804.6154 | M58: 322804.6154 | N58: 322804.6154 | O58: 322804.6154 | P58: 322804.6154 | Q58: 322804.6154 | R58: 322804.6154 | S58: 322804.6154 | T58: 322804.6154 | U58: 322804.6154 | V58: 322804.6154 | W58: 322804.6154 | X58: 322804.6154 | Y58: 322804.6154 | Z58: 322804.6154 | AA58: 322804.6154 | AB58: 322804.6154 | AC58: 322804.6154 | AD58: 322804.6154 | AE58: 322804.6154 | AF58: 322804.6154 | AG58: 322804.6154 | AH58: 322804.6154 | AI58: 322804.6154 | AJ58: 322804.6154 | AK58: 322804.6154 | AL58: 322804.6154 | AM58: 322804.6154 | AN58: 322804.6154 | AO58: 322804.6154 | AP58: 322804.6154 | AQ58: 322804.6154 | AR58: 322804.6154 | AS58: 322804.6154 | AT58: 322804.6154 | AU58: 322804.6154 | AV58: 322804.6154 | AW58: 322804.6154 | AX58: 322804.6154 | AY58: 322804.6154 | AZ58: 322804.6154 | BA58: 322804.6154 | BB58: 322804.6154 | BC58: 322804.6154 | BD58: 322804.6154 | BE58: 322804.6154 | BF58: 322804.6154
A59: Option 1 | I59: 322804.6154 | J59: 322804.6154 | K59: 287715.4899 | L59: 287715.4899 | M59: 287715.4899 | N59: 287715.4899 | O59: 287715.4899 | P59: 287715.4899 | Q59: 287715.4899 | R59: 287715.4899 | S59: 287715.4899 | T59: 287715.4899 | U59: 287715.4899 | V59: 287715.4899 | W59: 287715.4899 | X59: 287715.4899 | Y59: 287715.4899 | Z59: 287715.4899 | AA59: 287715.4899 | AB59: 287715.4899 | AC59: 287715.4899 | AD59: 287715.4899 | AE59: 287715.4899 | AF59: 287715.4899 | AG59: 287715.4899 | AH59: 287715.4899 | AI59: 287715.4899 | AJ59: 287715.4899 | AK59: 287715.4899 | AL59: 287715.4899 | AM59: 287715.4899 | AN59: 287715.4899 | AO59: 287715.4899 | AP59: 287715.4899 | AQ59: 287715.4899 | AR59: 287715.4899 | AS59: 287715.4899 | AT59: 287715.4899 | AU59: 287715.4899 | AV59: 287715.4899 | AW59: 287715.4899 | AX59: 287715.4899 | AY59: 287715.4899 | AZ59: 287715.4899 | BA59: 287715.4899 | BB59: 287715.4899 | BC59: 287715.4899 | BD59: 287715.4899 | BE59: 287715.4899 | BF59: 287715.4899
A60: Option 2 | I60: 322804.6154 | J60: 258499.9994 | K60: 258499.9994 | L60: 258499.9994 | M60: 258499.9994 | N60: 258499.9994 | O60: 258499.9994 | P60: 258499.9994 | Q60: 258499.9994 | R60: 258499.9994 | S60: 258499.9994 | T60: 258499.9994 | U60: 258499.9994 | V60: 258499.9994 | W60: 258499.9994 | X60: 258499.9994 | Y60: 258499.9994 | Z60: 258499.9994 | AA60: 258499.9994 | AB60: 258499.9994 | AC60: 258499.9994 | AD60: 258499.9994 | AE60: 258499.9994 | AF60: 258499.9994 | AG60: 258499.9994 | AH60: 258499.9994 | AI60: 258499.9994 | AJ60: 258499.9994 | AK60: 258499.9994 | AL60: 258499.9994 | AM60: 258499.9994 | AN60: 258499.9994 | AO60: 258499.9994 | AP60: 258499.9994 | AQ60: 258499.9994 | AR60: 258499.9994 | AS60: 258499.9994 | AT60: 258499.9994 | AU60: 258499.9994 | AV60: 258499.9994 | AW60: 258499.9994 | AX60: 258499.9994 | AY60: 258499.9994 | AZ60: 258499.9994 | BA60: 258499.9994 | BB60: 258499.9994 | BC60: 258499.9994 | BD60: 258499.9994 | BE60: 258499.9994 | BF60: 258499.9994
A63: KLK11
A65: Cost - AER VCRs | B65: 2019 | C65: =B65+1 -> 2020 | D65: =C65+1 -> 2021 | E65: =D65+1 -> 2022 | F65: =E65+1 -> 2023 | G65: =F65+1 -> 2024 | H65: =G65+2 -> 2026 | I65: =H65+1 -> 2027 | J65: =I65+1 -> 2028 | K65: =J65+1 -> 2029 | L65: =K65+1 -> 2030 | M65: =L65+1 -> 2031 | N65: =M65+1 -> 2032 | O65: =N65+1 -> 2033 | P65: =O65+1 -> 2034 | Q65: =P65+1 -> 2035 | R65: =Q65+1 -> 2036 | S65: =R65+1 -> 2037 | T65: =S65+1 -> 2038 | U65: =T65+1 -> 2039 | V65: =U65+1 -> 2040 | W65: =V65+1 -> 2041 | X65: =W65+1 -> 2042 | Y65: =X65+1 -> 2043 | Z65: =Y65+1 -> 2044 | AA65: =Z65+1 -> 2045 | AB65: =AA65+1 -> 2046 | AC65: =AB65+1 -> 2047 | AD65: =AC65+1 -> 2048 | AE65: =AD65+1 -> 2049 | AF65: =AE65+1 -> 2050 | AG65: =AF65+1 -> 2051 | AH65: =AG65+1 -> 2052 | AI65: =AH65+1 -> 2053 | AJ65: =AI65+1 -> 2054 | AK65: =AJ65+1 -> 2055 | AL65: =AK65+1 -> 2056
A66: Total Economic Cost (Unserved Energy) | B66: 0 | C66: 0 | D66: 0 | E66: 0 | F66: 180260.1801 | G66: 114829.3244 | H66: 403050.1707 | I66: 407080.6724 | J66: 411151.4791 | K66: 415262.9939 | L66: 419415.6239 | M66: 423609.7801 | N66: 427845.8779 | O66: 432124.3367 | P66: 436445.58 | Q66: 440810.0358 | R66: 445218.1362 | S66: 449670.3176 | T66: 454167.0207 | U66: 458708.6909 | V66: 463295.7779 | W66: 467928.7356 | X66: 472608.023 | Y66: 477334.1032 | Z66: 482107.4442 | AA66: 486928.5187 | AB66: 491797.8039 | AC66: 496715.7819 | AD66: 501682.9397 | AE66: 506699.7691 | AF66: 511766.7668 | AG66: 516884.4345 | AH66: 522053.2788 | AI66: 527273.8116 | AJ66: 532546.5497 | AK66: 537872.0152 | AL66: 543250.7354
A67: Operational Cost (Reactive Work) | B67: 61498.89 | C67: 68214.09 | D67: 35275.3 | E67: 87495.21 | F67: 22953.38 | G67: 0 | H67: 55087.374 | I67: 55087.374 | J67: 55087.374 | K67: 55087.374 | L67: 55087.374 | M67: 55087.374 | N67: 55087.374 | O67: 55087.374 | P67: 55087.374 | Q67: 55087.374 | R67: 55087.374 | S67: 55087.374 | T67: 55087.374 | U67: 55087.374 | V67: 55087.374 | W67: 55087.374 | X67: 55087.374 | Y67: 55087.374 | Z67: 55087.374 | AA67: 55087.374 | AB67: 55087.374 | AC67: 55087.374 | AD67: 55087.374 | AE67: 55087.374 | AF67: 55087.374 | AG67: 55087.374 | AH67: 55087.374 | AI67: 55087.374 | AJ67: 55087.374 | AK67: 55087.374 | AL67: 55087.374
A68: Option 1 Value of EUE | H68: 403050.1707 | I68: 407080.6724 | J68: 411151.4791 | K68: 249649.2604 | L68: 252145.753 | M68: 254667.2106 | N68: 257213.8827 | O68: 259786.0215 | P68: 262383.8817 | Q68: 265007.7205 | R68: 267657.7977 | S68: 270334.3757 | T68: 273037.7195 | U68: 275768.0967 | V68: 278525.7776 | W68: 281311.0354 | X68: 284124.1458 | Y68: 286965.3872 | Z68: 289835.0411 | AA68: 292733.3915 | AB68: 295660.7254 | AC68: 298617.3327 | AD68: 301603.506 | AE68: 304619.5411 | AF68: 307665.7365 | AG68: 310742.3938 | AH68: 313849.8178 | AI68: 316988.316 | AJ68: 320158.1991 | AK68: 323359.7811 | AL68: 326593.3789
A69: Option 2 Value of EUE | H69: 403050.1707 | I69: 407080.6724 | J69: 278098.245 | K69: 280879.2275 | L69: 283688.0198 | M69: 286524.8999 | N69: 289390.1489 | O69: 292284.0504 | P69: 295206.8909 | Q69: 298158.9599 | R69: 301140.5495 | S69: 304151.9549 | T69: 307193.4745 | U69: 310265.4092 | V69: 313368.0633 | W69: 316501.744 | X69: 319666.7614 | Y69: 322863.429 | Z69: 326092.0633 | AA69: 329352.9839 | AB69: 332646.5138 | AC69: 335972.9789 | AD69: 339332.7087 | AE69: 342726.0358 | AF69: 346153.2962 | AG69: 349614.8291 | AH69: 353110.9774 | AI69: 356642.0872 | AJ69: 360208.5081 | AK69: 363810.5931 | AL69: 367448.6991
A71: Cost - AusNet VCRs | B71: 2019 | C71: =B71+1 -> 2020 | D71: =C71+1 -> 2021 | E71: =D71+1 -> 2022 | F71: =E71+1 -> 2023 | G71: =F71+1 -> 2024 | H71: =G71+2 -> 2026 | I71: =H71+1 -> 2027 | J71: =I71+1 -> 2028 | K71: =J71+1 -> 2029 | L71: =K71+1 -> 2030 | M71: =L71+1 -> 2031 | N71: =M71+1 -> 2032 | O71: =N71+1 -> 2033 | P71: =O71+1 -> 2034 | Q71: =P71+1 -> 2035 | R71: =Q71+1 -> 2036 | S71: =R71+1 -> 2037 | T71: =S71+1 -> 2038 | U71: =T71+1 -> 2039 | V71: =U71+1 -> 2040 | W71: =V71+1 -> 2041 | X71: =W71+1 -> 2042 | Y71: =X71+1 -> 2043 | Z71: =Y71+1 -> 2044 | AA71: =Z71+1 -> 2045 | AB71: =AA71+1 -> 2046 | AC71: =AB71+1 -> 2047 | AD71: =AC71+1 -> 2048 | AE71: =AD71+1 -> 2049 | AF71: =AE71+1 -> 2050 | AG71: =AF71+1 -> 2051 | AH71: =AG71+1 -> 2052 | AI71: =AH71+1 -> 2053 | AJ71: =AI71+1 -> 2054 | AK71: =AJ71+1 -> 2055 | AL71: =AK71+1 -> 2056
A72: Total Economic Cost (Unserved Energy) | B72: 0 | C72: 0 | D72: 0 | E72: 0 | F72: 310789.7248 | G72: 197979.2438 | H72: 694905.8388 | I72: 701854.8972 | J72: 708873.4462 | K72: 715962.1806 | L72: 723121.8024 | M72: 730353.0205 | N72: 737656.5507 | O72: 745033.1162 | P72: 752483.4473 | Q72: 760008.2818 | R72: 767608.3646 | S72: 775284.4483 | T72: 783037.2928 | U72: 790867.6657 | V72: 798776.3423 | W72: 806764.1058 | X72: 814831.7468 | Y72: 822980.0643 | Z72: 831209.8649 | AA72: 839521.9636 | AB72: 847917.1832 | AC72: 856396.3551 | AD72: 864960.3186 | AE72: 873609.9218 | AF72: 882346.021 | AG72: 891169.4812 | AH72: 900081.176 | AI72: 909081.9878 | AJ72: 918172.8077 | AK72: 927354.5358 | AL72: 936628.0811
A73: Operational Cost (Reactive Work) | B73: 61498.89 | C73: 68214.09 | D73: 35275.3 | E73: 87495.21 | F73: 22953.38 | G73: 0 | H73: 55087.374 | I73: 55087.374 | J73: 55087.374 | K73: 55087.374 | L73: 55087.374 | M73: 55087.374 | N73: 55087.374 | O73: 55087.374 | P73: 55087.374 | Q73: 55087.374 | R73: 55087.374 | S73: 55087.374 | T73: 55087.374 | U73: 55087.374 | V73: 55087.374 | W73: 55087.374 | X73: 55087.374 | Y73: 55087.374 | Z73: 55087.374 | AA73: 55087.374 | AB73: 55087.374 | AC73: 55087.374 | AD73: 55087.374 | AE73: 55087.374 | AF73: 55087.374 | AG73: 55087.374 | AH73: 55087.374 | AI73: 55087.374 | AJ73: 55087.374 | AK73: 55087.374 | AL73: 55087.374
A74: Option 1 Value of EUE | H74: 694905.8388 | I74: 701854.8972 | J74: 708873.4462 | K74: 430424.6502 | L74: 434728.8967 | M74: 439076.1857 | N74: 443466.9475 | O74: 447901.617 | P74: 452380.6332 | Q74: 456904.4395 | R74: 461473.4839 | S74: 466088.2187 | T74: 470749.1009 | U74: 475456.5919 | V74: 480211.1579 | W74: 485013.2694 | X74: 489863.4021 | Y74: 494762.0362 | Z74: 499709.6565 | AA74: 504706.7531 | AB74: 509753.8206 | AC74: 514851.3588 | AD74: 519999.8724 | AE74: 525199.8711 | AF74: 530451.8698 | AG74: 535756.3885 | AH74: 541113.9524 | AI74: 546525.092 | AJ74: 551990.3429 | AK74: 557510.2463 | AL74: 563085.3488
A75: Option 2 Value of EUE | H75: 694905.8388 | I75: 701854.8972 | J75: 479474.0414 | K75: 484268.7818 | L75: 489111.4696 | M75: 494002.5843 | N75: 498942.6102 | O75: 503932.0363 | P75: 508971.3567 | Q75: 514061.0702 | R75: 519201.6809 | S75: 524393.6977 | T75: 529637.6347 | U75: 534934.0111 | V75: 540283.3512 | W75: 545686.1847 | X75: 551143.0465 | Y75: 556654.477 | Z75: 562221.0218 | AA75: 567843.232 | AB75: 573521.6643 | AC75: 579256.8809 | AD75: 585049.4497 | AE75: 590899.9442 | AF75: 596808.9437 | AG75: 602777.0331 | AH75: 608804.8035 | AI75: 614892.8515 | AJ75: 621041.78 | AK75: 627252.1978 | AL75: 633524.7198
A78: GSLs | B78: 2019 | C78: =B78+1 -> 2020 | D78: =C78+1 -> 2021 | E78: =D78+1 -> 2022 | F78: =E78+1 -> 2023 | G78: =F78+1 -> 2024 | H78: =G78+2 -> 2026 | I78: =H78+1 -> 2027 | J78: =I78+1 -> 2028 | K78: =J78+1 -> 2029 | L78: =K78+1 -> 2030 | M78: =L78+1 -> 2031 | N78: =M78+1 -> 2032 | O78: =N78+1 -> 2033 | P78: =O78+1 -> 2034 | Q78: =P78+1 -> 2035 | R78: =Q78+1 -> 2036 | S78: =R78+1 -> 2037 | T78: =S78+1 -> 2038 | U78: =T78+1 -> 2039 | V78: =U78+1 -> 2040 | W78: =V78+1 -> 2041 | X78: =W78+1 -> 2042 | Y78: =X78+1 -> 2043 | Z78: =Y78+1 -> 2044 | AA78: =Z78+1 -> 2045 | AB78: =AA78+1 -> 2046 | AC78: =AB78+1 -> 2047 | AD78: =AC78+1 -> 2048 | AE78: =AD78+1 -> 2049 | AF78: =AE78+1 -> 2050 | AG78: =AF78+1 -> 2051 | AH78: =AG78+1 -> 2052 | AI78: =AH78+1 -> 2053 | AJ78: =AI78+1 -> 2054 | AK78: =AJ78+1 -> 2055 | AL78: =AK78+1 -> 2056
A79: BAU | I79: 151409.2308 | J79: 151409.2308 | K79: 151409.2308 | L79: 151409.2308 | M79: 151409.2308 | N79: 151409.2308 | O79: 151409.2308 | P79: 151409.2308 | Q79: 151409.2308 | R79: 151409.2308 | S79: 151409.2308 | T79: 151409.2308 | U79: 151409.2308 | V79: 151409.2308 | W79: 151409.2308 | X79: 151409.2308 | Y79: 151409.2308 | Z79: 151409.2308 | AA79: 151409.2308 | AB79: 151409.2308 | AC79: 151409.2308 | AD79: 151409.2308 | AE79: 151409.2308 | AF79: 151409.2308 | AG79: 151409.2308 | AH79: 151409.2308 | AI79: 151409.2308 | AJ79: 151409.2308 | AK79: 151409.2308 | AL79: 151409.2308 | AM79: 151409.2308 | AN79: 151409.2308 | AO79: 151409.2308 | AP79: 151409.2308 | AQ79: 151409.2308 | AR79: 151409.2308 | AS79: 151409.2308 | AT79: 151409.2308 | AU79: 151409.2308 | AV79: 151409.2308 | AW79: 151409.2308 | AX79: 151409.2308 | AY79: 151409.2308 | AZ79: 151409.2308 | BA79: 151409.2308 | BB79: 151409.2308 | BC79: 151409.2308 | BD79: 151409.2308 | BE79: 151409.2308 | BF79: 151409.2308
A80: Option 1 | I80: 151409.2308 | J80: 151409.2308 | K80: 91024.73141 | L80: 91024.73141 | M80: 91024.73141 | N80: 91024.73141 | O80: 91024.73141 | P80: 91024.73141 | Q80: 91024.73141 | R80: 91024.73141 | S80: 91024.73141 | T80: 91024.73141 | U80: 91024.73141 | V80: 91024.73141 | W80: 91024.73141 | X80: 91024.73141 | Y80: 91024.73141 | Z80: 91024.73141 | AA80: 91024.73141 | AB80: 91024.73141 | AC80: 91024.73141 | AD80: 91024.73141 | AE80: 91024.73141 | AF80: 91024.73141 | AG80: 91024.73141 | AH80: 91024.73141 | AI80: 91024.73141 | AJ80: 91024.73141 | AK80: 91024.73141 | AL80: 91024.73141 | AM80: 91024.73141 | AN80: 91024.73141 | AO80: 91024.73141 | AP80: 91024.73141 | AQ80: 91024.73141 | AR80: 91024.73141 | AS80: 91024.73141 | AT80: 91024.73141 | AU80: 91024.73141 | AV80: 91024.73141 | AW80: 91024.73141 | AX80: 91024.73141 | AY80: 91024.73141 | AZ80: 91024.73141 | BA80: 91024.73141 | BB80: 91024.73141 | BC80: 91024.73141 | BD80: 91024.73141 | BE80: 91024.73141 | BF80: 91024.73141
A81: Option 2 | I81: 151409.2308 | J81: 102411.504 | K81: 102411.504 | L81: 102411.504 | M81: 102411.504 | N81: 102411.504 | O81: 102411.504 | P81: 102411.504 | Q81: 102411.504 | R81: 102411.504 | S81: 102411.504 | T81: 102411.504 | U81: 102411.504 | V81: 102411.504 | W81: 102411.504 | X81: 102411.504 | Y81: 102411.504 | Z81: 102411.504 | AA81: 102411.504 | AB81: 102411.504 | AC81: 102411.504 | AD81: 102411.504 | AE81: 102411.504 | AF81: 102411.504 | AG81: 102411.504 | AH81: 102411.504 | AI81: 102411.504 | AJ81: 102411.504 | AK81: 102411.504 | AL81: 102411.504 | AM81: 102411.504 | AN81: 102411.504 | AO81: 102411.504 | AP81: 102411.504 | AQ81: 102411.504 | AR81: 102411.504 | AS81: 102411.504 | AT81: 102411.504 | AU81: 102411.504 | AV81: 102411.504 | AW81: 102411.504 | AX81: 102411.504 | AY81: 102411.504 | AZ81: 102411.504 | BA81: 102411.504 | BB81: 102411.504 | BC81: 102411.504 | BD81: 102411.504 | BE81: 102411.504 | BF81: 102411.504
A84: MDI1
A86: Cost - AER VCRs | B86: 2019 | C86: =B86+1 -> 2020 | D86: =C86+1 -> 2021 | E86: =D86+1 -> 2022 | F86: =E86+1 -> 2023 | G86: =F86+1 -> 2024 | H86: =G86+2 -> 2026 | I86: =H86+1 -> 2027 | J86: =I86+1 -> 2028 | K86: =J86+1 -> 2029 | L86: =K86+1 -> 2030 | M86: =L86+1 -> 2031 | N86: =M86+1 -> 2032 | O86: =N86+1 -> 2033 | P86: =O86+1 -> 2034 | Q86: =P86+1 -> 2035 | R86: =Q86+1 -> 2036 | S86: =R86+1 -> 2037 | T86: =S86+1 -> 2038 | U86: =T86+1 -> 2039 | V86: =U86+1 -> 2040 | W86: =V86+1 -> 2041 | X86: =W86+1 -> 2042 | Y86: =X86+1 -> 2043 | Z86: =Y86+1 -> 2044 | AA86: =Z86+1 -> 2045 | AB86: =AA86+1 -> 2046 | AC86: =AB86+1 -> 2047 | AD86: =AC86+1 -> 2048 | AE86: =AD86+1 -> 2049 | AF86: =AE86+1 -> 2050 | AG86: =AF86+1 -> 2051 | AH86: =AG86+1 -> 2052 | AI86: =AH86+1 -> 2053 | AJ86: =AI86+1 -> 2054 | AK86: =AJ86+1 -> 2055 | AL86: =AK86+1 -> 2056
A87: Total Economic Cost (Unserved Energy) | B87: 0 | C87: 0 | D87: 0 | E87: 0 | F87: 8625.513355 | G87: 9257.562461 | H87: 8288.456664 | I87: 8371.341231 | J87: 8455.054643 | K87: 8539.60519 | L87: 8625.001242 | M87: 8711.251254 | N87: 8798.363767 | O87: 8886.347404 | P87: 8975.210878 | Q87: 9064.962987 | R87: 9155.612617 | S87: 9247.168743 | T87: 9339.640431 | U87: 9433.036835 | V87: 9527.367203 | W87: 9622.640875 | X87: 9718.867284 | Y87: 9816.055957 | Z87: 9914.216516 | AA87: 10013.35868 | AB87: 10113.49227 | AC87: 10214.62719 | AD87: 10316.77346 | AE87: 10419.9412 | AF87: 10524.14061 | AG87: 10629.38202 | AH87: 10735.67584 | AI87: 10843.03259 | AJ87: 10951.46292 | AK87: 11060.97755 | AL87: 11171.58732
A88: Operational Cost (Reactive Work) | B88: 0 | C88: 704.3 | D88: 3629.3 | E88: 0 | F88: 4118.04 | G88: 0 | H88: 2112.91 | I88: 2112.91 | J88: 2112.91 | K88: 2112.91 | L88: 2112.91 | M88: 2112.91 | N88: 2112.91 | O88: 2112.91 | P88: 2112.91 | Q88: 2112.91 | R88: 2112.91 | S88: 2112.91 | T88: 2112.91 | U88: 2112.91 | V88: 2112.91 | W88: 2112.91 | X88: 2112.91 | Y88: 2112.91 | Z88: 2112.91 | AA88: 2112.91 | AB88: 2112.91 | AC88: 2112.91 | AD88: 2112.91 | AE88: 2112.91 | AF88: 2112.91 | AG88: 2112.91 | AH88: 2112.91 | AI88: 2112.91 | AJ88: 2112.91 | AK88: 2112.91 | AL88: 2112.91
A89: Option 1 Value of EUE | H89: 8079.453795 | I89: 8160.248333 | J89: 2974.714833 | K89: 3004.461981 | L89: 3034.506601 | M89: 3064.851667 | N89: 3095.500184 | O89: 3126.455186 | P89: 3157.719738 | Q89: 3189.296935 | R89: 3221.189904 | S89: 3253.401803 | T89: 3285.935821 | U89: 3318.79518 | V89: 3351.983131 | W89: 3385.502963 | X89: 3419.357992 | Y89: 3453.551572 | Z89: 3488.087088 | AA89: 3522.967959 | AB89: 3558.197638 | AC89: 3593.779615 | AD89: 3629.717411 | AE89: 3666.014585 | AF89: 3702.674731 | AG89: 3739.701478 | AH89: 3777.098493 | AI89: 3814.869478 | AJ89: 3853.018173 | AK89: 3891.548354 | AL89: 3930.463838
A90: Option 2 Value of EUE | H90: 8288.456664 | I90: 8371.341231 | J90: 8455.054643 | K90: 0 | L90: 0 | M90: 0 | N90: 0 | O90: 0 | P90: 0 | Q90: 0 | R90: 0 | S90: 0 | T90: 0 | U90: 0 | V90: 0 | W90: 0 | X90: 0 | Y90: 0 | Z90: 0 | AA90: 0 | AB90: 0 | AC90: 0 | AD90: 0 | AE90: 0 | AF90: 0 | AG90: 0 | AH90: 0 | AI90: 0 | AJ90: 0 | AK90: 0 | AL90: 0
A92: Cost - AusNet VCRs | B92: 2019 | C92: =B92+1 -> 2020 | D92: =C92+1 -> 2021 | E92: =D92+1 -> 2022 | F92: =E92+1 -> 2023 | G92: =F92+1 -> 2024 | H92: =G92+2 -> 2026 | I92: =H92+1 -> 2027 | J92: =I92+1 -> 2028 | K92: =J92+1 -> 2029 | L92: =K92+1 -> 2030 | M92: =L92+1 -> 2031 | N92: =M92+1 -> 2032 | O92: =N92+1 -> 2033 | P92: =O92+1 -> 2034 | Q92: =P92+1 -> 2035 | R92: =Q92+1 -> 2036 | S92: =R92+1 -> 2037 | T92: =S92+1 -> 2038 | U92: =T92+1 -> 2039 | V92: =U92+1 -> 2040 | W92: =V92+1 -> 2041 | X92: =W92+1 -> 2042 | Y92: =X92+1 -> 2043 | Z92: =Y92+1 -> 2044 | AA92: =Z92+1 -> 2045 | AB92: =AA92+1 -> 2046 | AC92: =AB92+1 -> 2047 | AD92: =AC92+1 -> 2048 | AE92: =AD92+1 -> 2049 | AF92: =AE92+1 -> 2050 | AG92: =AF92+1 -> 2051 | AH92: =AG92+1 -> 2052 | AI92: =AH92+1 -> 2053 | AJ92: =AI92+1 -> 2054 | AK92: =AJ92+1 -> 2055 | AL92: =AK92+1 -> 2056
A93: Total Economic Cost (Unserved Energy) | B93: 0 | C93: 0 | D93: 0 | E93: 0 | F93: 11011.55415 | G93: 11818.44443 | H93: 10581.25883 | I93: 10687.07142 | J93: 10793.94213 | K93: 10901.88155 | L93: 11010.90037 | M93: 11121.00937 | N93: 11232.21947 | O93: 11344.54166 | P93: 11457.98708 | Q93: 11572.56695 | R93: 11688.29262 | S93: 11805.17555 | T93: 11923.2273 | U93: 12042.45957 | V93: 12162.88417 | W93: 12284.51301 | X93: 12407.35814 | Y93: 12531.43172 | Z93: 12656.74604 | AA93: 12783.3135 | AB93: 12911.14664 | AC93: 13040.2581 | AD93: 13170.66068 | AE93: 13302.36729 | AF93: 13435.39096 | AG93: 13569.74487 | AH93: 13705.44232 | AI93: 13842.49674 | AJ93: 13980.92171 | AK93: 14120.73093 | AL93: 14261.93824
A94: Operational Cost (Reactive Work) | B94: 0 | C94: 704.3 | D94: 3629.3 | E94: 0 | F94: 4118.04 | G94: 0 | H94: 2112.91 | I94: 2112.91 | J94: 2112.91 | K94: 2112.91 | L94: 2112.91 | M94: 2112.91 | N94: 2112.91 | O94: 2112.91 | P94: 2112.91 | Q94: 2112.91 | R94: 2112.91 | S94: 2112.91 | T94: 2112.91 | U94: 2112.91 | V94: 2112.91 | W94: 2112.91 | X94: 2112.91 | Y94: 2112.91 | Z94: 2112.91 | AA94: 2112.91 | AB94: 2112.91 | AC94: 2112.91 | AD94: 2112.91 | AE94: 2112.91 | AF94: 2112.91 | AG94: 2112.91 | AH94: 2112.91 | AI94: 2112.91 | AJ94: 2112.91 | AK94: 2112.91 | AL94: 2112.91
A95: Option 1 Value of EUE | H95: 10314.44034 | I95: 10417.58475 | J95: 3797.598138 | K95: 3835.574119 | L95: 3873.929861 | M95: 3912.669159 | N95: 3951.795851 | O95: 3991.313809 | P95: 4031.226947 | Q95: 4071.539217 | R95: 4112.254609 | S95: 4153.377155 | T95: 4194.910927 | U95: 4236.860036 | V95: 4279.228636 | W95: 4322.020923 | X95: 4365.241132 | Y95: 4408.893543 | Z95: 4452.982479 | AA95: 4497.512303 | AB95: 4542.487426 | AC95: 4587.912301 | AD95: 4633.791424 | AE95: 4680.129338 | AF95: 4726.930631 | AG95: 4774.199938 | AH95: 4821.941937 | AI95: 4870.161356 | AJ95: 4918.86297 | AK95: 4968.0516 | AL95: 5017.732116
A96: Option 2 Value of EUE | H96: 10581.25883 | I96: 10687.07142 | J96: 10793.94213 | K96: 0 | L96: 0 | M96: 0 | N96: 0 | O96: 0 | P96: 0 | Q96: 0 | R96: 0 | S96: 0 | T96: 0 | U96: 0 | V96: 0 | W96: 0 | X96: 0 | Y96: 0 | Z96: 0 | AA96: 0 | AB96: 0 | AC96: 0 | AD96: 0 | AE96: 0 | AF96: 0 | AG96: 0 | AH96: 0 | AI96: 0 | AJ96: 0 | AK96: 0 | AL96: 0
A99: GSLs | B99: 2019 | C99: =B99+1 -> 2020 | D99: =C99+1 -> 2021 | E99: =D99+1 -> 2022 | F99: =E99+1 -> 2023 | G99: =F99+1 -> 2024 | H99: =G99+2 -> 2026 | I99: =H99+1 -> 2027 | J99: =I99+1 -> 2028 | K99: =J99+1 -> 2029 | L99: =K99+1 -> 2030 | M99: =L99+1 -> 2031 | N99: =M99+1 -> 2032 | O99: =N99+1 -> 2033 | P99: =O99+1 -> 2034 | Q99: =P99+1 -> 2035 | R99: =Q99+1 -> 2036 | S99: =R99+1 -> 2037 | T99: =S99+1 -> 2038 | U99: =T99+1 -> 2039 | V99: =U99+1 -> 2040 | W99: =V99+1 -> 2041 | X99: =W99+1 -> 2042 | Y99: =X99+1 -> 2043 | Z99: =Y99+1 -> 2044 | AA99: =Z99+1 -> 2045 | AB99: =AA99+1 -> 2046 | AC99: =AB99+1 -> 2047 | AD99: =AC99+1 -> 2048 | AE99: =AD99+1 -> 2049 | AF99: =AE99+1 -> 2050 | AG99: =AF99+1 -> 2051 | AH99: =AG99+1 -> 2052 | AI99: =AH99+1 -> 2053 | AJ99: =AI99+1 -> 2054 | AK99: =AJ99+1 -> 2055 | AL99: =AK99+1 -> 2056
A100: BAU | I100: 1875.384615 | J100: 1875.384615 | K100: 1875.384615 | L100: 1875.384615 | M100: 1875.384615 | N100: 1875.384615 | O100: 1875.384615 | P100: 1875.384615 | Q100: 1875.384615 | R100: 1875.384615 | S100: 1875.384615 | T100: 1875.384615 | U100: 1875.384615 | V100: 1875.384615 | W100: 1875.384615 | X100: 1875.384615 | Y100: 1875.384615 | Z100: 1875.384615 | AA100: 1875.384615 | AB100: 1875.384615 | AC100: 1875.384615 | AD100: 1875.384615 | AE100: 1875.384615 | AF100: 1875.384615 | AG100: 1875.384615 | AH100: 1875.384615 | AI100: 1875.384615 | AJ100: 1875.384615 | AK100: 1875.384615 | AL100: 1875.384615 | AM100: 1875.384615 | AN100: 1875.384615 | AO100: 1875.384615 | AP100: 1875.384615 | AQ100: 1875.384615 | AR100: 1875.384615 | AS100: 1875.384615 | AT100: 1875.384615 | AU100: 1875.384615 | AV100: 1875.384615 | AW100: 1875.384615 | AX100: 1875.384615 | AY100: 1875.384615 | AZ100: 1875.384615 | BA100: 1875.384615 | BB100: 1875.384615 | BC100: 1875.384615 | BD100: 1875.384615 | BE100: 1875.384615 | BF100: 1875.384615
A101: Option 1 | I101: 1875.384615 | J101: 676.8788416 | K101: 676.8788416 | L101: 676.8788416 | M101: 676.8788416 | N101: 676.8788416 | O101: 676.8788416 | P101: 676.8788416 | Q101: 676.8788416 | R101: 676.8788416 | S101: 676.8788416 | T101: 676.8788416 | U101: 676.8788416 | V101: 676.8788416 | W101: 676.8788416 | X101: 676.8788416 | Y101: 676.8788416 | Z101: 676.8788416 | AA101: 676.8788416 | AB101: 676.8788416 | AC101: 676.8788416 | AD101: 676.8788416 | AE101: 676.8788416 | AF101: 676.8788416 | AG101: 676.8788416 | AH101: 676.8788416 | AI101: 676.8788416 | AJ101: 676.8788416 | AK101: 676.8788416 | AL101: 676.8788416 | AM101: 676.8788416 | AN101: 676.8788416 | AO101: 676.8788416 | AP101: 676.8788416 | AQ101: 676.8788416 | AR101: 676.8788416 | AS101: 676.8788416 | AT101: 676.8788416 | AU101: 676.8788416 | AV101: 676.8788416 | AW101: 676.8788416 | AX101: 676.8788416 | AY101: 676.8788416 | AZ101: 676.8788416 | BA101: 676.8788416 | BB101: 676.8788416 | BC101: 676.8788416 | BD101: 676.8788416 | BE101: 676.8788416 | BF101: 676.8788416
A102: Option 2 | I102: 1875.384615 | J102: 1875.384615 | K102: 0 | L102: 0 | M102: 0 | N102: 0 | O102: 0 | P102: 0 | Q102: 0 | R102: 0 | S102: 0 | T102: 0 | U102: 0 | V102: 0 | W102: 0 | X102: 0 | Y102: 0 | Z102: 0 | AA102: 0 | AB102: 0 | AC102: 0 | AD102: 0 | AE102: 0 | AF102: 0 | AG102: 0 | AH102: 0 | AI102: 0 | AJ102: 0 | AK102: 0 | AL102: 0 | AM102: 0 | AN102: 0 | AO102: 0 | AP102: 0 | AQ102: 0 | AR102: 0 | AS102: 0 | AT102: 0 | AU102: 0 | AV102: 0 | AW102: 0 | AX102: 0 | AY102: 0 | AZ102: 0 | BA102: 0 | BB102: 0 | BC102: 0 | BD102: 0 | BE102: 0 | BF102: 0
A105: MOE13
A107: Cost - AER VCRs | B107: 2019 | C107: =B107+1 -> 2020 | D107: =C107+1 -> 2021 | E107: =D107+1 -> 2022 | F107: =E107+1 -> 2023 | G107: =F107+1 -> 2024 | H107: =G107+2 -> 2026 | I107: =H107+1 -> 2027 | J107: =I107+1 -> 2028 | K107: =J107+1 -> 2029 | L107: =K107+1 -> 2030 | M107: =L107+1 -> 2031 | N107: =M107+1 -> 2032 | O107: =N107+1 -> 2033 | P107: =O107+1 -> 2034 | Q107: =P107+1 -> 2035 | R107: =Q107+1 -> 2036 | S107: =R107+1 -> 2037 | T107: =S107+1 -> 2038 | U107: =T107+1 -> 2039 | V107: =U107+1 -> 2040 | W107: =V107+1 -> 2041 | X107: =W107+1 -> 2042 | Y107: =X107+1 -> 2043 | Z107: =Y107+1 -> 2044 | AA107: =Z107+1 -> 2045 | AB107: =AA107+1 -> 2046 | AC107: =AB107+1 -> 2047 | AD107: =AC107+1 -> 2048 | AE107: =AD107+1 -> 2049 | AF107: =AE107+1 -> 2050 | AG107: =AF107+1 -> 2051 | AH107: =AG107+1 -> 2052 | AI107: =AH107+1 -> 2053 | AJ107: =AI107+1 -> 2054 | AK107: =AJ107+1 -> 2055 | AL107: =AK107+1 -> 2056
A108: Total Economic Cost (Unserved Energy) | B108: 0 | C108: 0 | D108: 0 | E108: 0 | F108: 555399.3041 | G108: 648959.9333 | H108: 1005835.544 | I108: 1015893.899 | J108: 1026052.838 | K108: 1036313.367 | L108: 1046676.5 | M108: 1057143.265 | N108: 1067714.698 | O108: 1078391.845 | P108: 1089175.764 | Q108: 1100067.521 | R108: 1111068.196 | S108: 1122178.878 | T108: 1133400.667 | U108: 1144734.674 | V108: 1156182.021 | W108: 1167743.841 | X108: 1179421.279 | Y108: 1191215.492 | Z108: 1203127.647 | AA108: 1215158.923 | AB108: 1227310.513 | AC108: 1239583.618 | AD108: 1251979.454 | AE108: 1264499.248 | AF108: 1277144.241 | AG108: 1289915.683 | AH108: 1302814.84 | AI108: 1315842.989 | AJ108: 1329001.418 | AK108: 1342291.433 | AL108: 1355714.347
A109: Operational Cost (Reactive Work) | B109: 3089.49 | C109: 89505.09 | D109: 41053.51 | E109: 52862.95 | F109: 38989.49 | G109: 0 | H109: 45100.106 | I109: 45100.106 | J109: 45100.106 | K109: 45100.106 | L109: 45100.106 | M109: 45100.106 | N109: 45100.106 | O109: 45100.106 | P109: 45100.106 | Q109: 45100.106 | R109: 45100.106 | S109: 45100.106 | T109: 45100.106 | U109: 45100.106 | V109: 45100.106 | W109: 45100.106 | X109: 45100.106 | Y109: 45100.106 | Z109: 45100.106 | AA109: 45100.106 | AB109: 45100.106 | AC109: 45100.106 | AD109: 45100.106 | AE109: 45100.106 | AF109: 45100.106 | AG109: 45100.106 | AH109: 45100.106 | AI109: 45100.106 | AJ109: 45100.106 | AK109: 45100.106 | AL109: 45100.106
A110: Option 1 Value of EUE | H110: 1005835.544 | I110: 1015893.899 | J110: 1026052.838 | K110: 789854.7116 | L110: 797753.2588 | M110: 805730.7913 | N110: 813788.0993 | O110: 821925.9803 | P110: 830145.2401 | Q110: 838446.6925 | R110: 846831.1594 | S110: 855299.471 | T110: 863852.4657 | U110: 872490.9903 | V110: 881215.9002 | W110: 890028.0592 | X110: 898928.3398 | Y110: 907917.6232 | Z110: 916996.7995 | AA110: 926166.7675 | AB110: 935428.4351 | AC110: 944782.7195 | AD110: 954230.5467 | AE110: 963772.8522 | AF110: 973410.5807 | AG110: 983144.6865 | AH110: 992976.1333 | AI110: 1002905.895 | AJ110: 1012934.954 | AK110: 1023064.303 | AL110: 1033294.946
A111: Option 2 Value of EUE | H111: 1005835.544 | I111: 1015893.899 | J111: 1026052.838 | K111: 735515.232 | L111: 742870.3844 | M111: 750299.0882 | N111: 757802.0791 | O111: 765380.0999 | P111: 773033.9009 | Q111: 780764.2399 | R111: 788571.8823 | S111: 796457.6011 | T111: 804422.1771 | U111: 812466.3989 | V111: 820591.0629 | W111: 828796.9735 | X111: 837084.9432 | Y111: 845455.7927 | Z111: 853910.3506 | AA111: 862449.4541 | AB111: 871073.9487 | AC111: 879784.6881 | AD111: 888582.535 | AE111: 897468.3604 | AF111: 906443.044 | AG111: 915507.4744 | AH111: 924662.5492 | AI111: 933909.1747 | AJ111: 943248.2664 | AK111: 952680.7491 | AL111: 962207.5566
A112: Option 3 Value of EUE | H112: 1005835.544 | I112: 1015893.899 | J112: 688479.5244 | K112: 695364.3197 | L112: 702317.9628 | M112: 709341.1425 | N112: 716434.5539 | O112: 723598.8994 | P112: 730834.8884 | Q112: 738143.2373 | R112: 745524.6697 | S112: 752979.9164 | T112: 760509.7156 | U112: 768114.8127 | V112: 775795.9608 | W112: 783553.9204 | X112: 791389.4596 | Y112: 799303.3542 | Z112: 807296.3878 | AA112: 815369.3517 | AB112: 823523.0452 | AC112: 831758.2756 | AD112: 840075.8584 | AE112: 848476.617 | AF112: 856961.3831 | AG112: 865530.997 | AH112: 874186.3069 | AI112: 882928.17 | AJ112: 891757.4517 | AK112: 900675.0262 | AL112: 909681.7765
A114: Cost - AusNet VCRs | B114: 2019 | C114: =B114+1 -> 2020 | D114: =C114+1 -> 2021 | E114: =D114+1 -> 2022 | F114: =E114+1 -> 2023 | G114: =F114+1 -> 2024 | H114: =G114+2 -> 2026 | I114: =H114+1 -> 2027 | J114: =I114+1 -> 2028 | K114: =J114+1 -> 2029 | L114: =K114+1 -> 2030 | M114: =L114+1 -> 2031 | N114: =M114+1 -> 2032 | O114: =N114+1 -> 2033 | P114: =O114+1 -> 2034 | Q114: =P114+1 -> 2035 | R114: =Q114+1 -> 2036 | S114: =R114+1 -> 2037 | T114: =S114+1 -> 2038 | U114: =T114+1 -> 2039 | V114: =U114+1 -> 2040 | W114: =V114+1 -> 2041 | X114: =W114+1 -> 2042 | Y114: =X114+1 -> 2043 | Z114: =Y114+1 -> 2044 | AA114: =Z114+1 -> 2045 | AB114: =AA114+1 -> 2046 | AC114: =AB114+1 -> 2047 | AD114: =AC114+1 -> 2048 | AE114: =AD114+1 -> 2049 | AF114: =AE114+1 -> 2050 | AG114: =AF114+1 -> 2051 | AH114: =AG114+1 -> 2052 | AI114: =AH114+1 -> 2053 | AJ114: =AI114+1 -> 2054 | AK114: =AJ114+1 -> 2055 | AL114: =AK114+1 -> 2056
A115: Total Economic Cost (Unserved Energy) | B115: 0 | C115: 0 | D115: 0 | E115: 0 | F115: 600124.3625 | G115: 701219.2191 | H115: 1086833.221 | I115: 1097701.553 | J115: 1108678.569 | K115: 1119765.354 | L115: 1130963.008 | M115: 1142272.638 | N115: 1153695.364 | O115: 1165232.318 | P115: 1176884.641 | Q115: 1188653.488 | R115: 1200540.023 | S115: 1212545.423 | T115: 1224670.877 | U115: 1236917.586 | V115: 1249286.762 | W115: 1261779.629 | X115: 1274397.426 | Y115: 1287141.4 | Z115: 1300012.814 | AA115: 1313012.942 | AB115: 1326143.071 | AC115: 1339404.502 | AD115: 1352798.547 | AE115: 1366326.533 | AF115: 1379989.798 | AG115: 1393789.696 | AH115: 1407727.593 | AI115: 1421804.869 | AJ115: 1436022.918 | AK115: 1450383.147 | AL115: 1464886.978
A116: Operational Cost (Reactive Work) | B116: 3089.49 | C116: 89505.09 | D116: 41053.51 | E116: 52862.95 | F116: 38989.49 | G116: 0 | H116: 45100.106 | I116: 45100.106 | J116: 45100.106 | K116: 45100.106 | L116: 45100.106 | M116: 45100.106 | N116: 45100.106 | O116: 45100.106 | P116: 45100.106 | Q116: 45100.106 | R116: 45100.106 | S116: 45100.106 | T116: 45100.106 | U116: 45100.106 | V116: 45100.106 | W116: 45100.106 | X116: 45100.106 | Y116: 45100.106 | Z116: 45100.106 | AA116: 45100.106 | AB116: 45100.106 | AC116: 45100.106 | AD116: 45100.106 | AE116: 45100.106 | AF116: 45100.106 | AG116: 45100.106 | AH116: 45100.106 | AI116: 45100.106 | AJ116: 45100.106 | AK116: 45100.106 | AL116: 45100.106
A117: Option 1 Value of EUE | H117: 1086833.221 | I117: 1097701.553 | J117: 1108678.569 | K117: 853459.9374 | L117: 861994.5368 | M117: 870614.4822 | N117: 879320.627 | O117: 888113.8333 | P117: 896994.9716 | Q117: 905964.9213 | R117: 915024.5705 | S117: 924174.8162 | T117: 933416.5644 | U117: 942750.7301 | V117: 952178.2374 | W117: 961700.0197 | X117: 971317.0199 | Y117: 981030.1901 | Z117: 990840.492 | AA117: 1000748.897 | AB117: 1010756.386 | AC117: 1020863.95 | AD117: 1031072.589 | AE117: 1041383.315 | AF117: 1051797.148 | AG117: 1062315.12 | AH117: 1072938.271 | AI117: 1083667.654 | AJ117: 1094504.33 | AK117: 1105449.374 | AL117: 1116503.867
A118: Option 2 Value of EUE | H118: 1086833.221 | I118: 1097701.553 | J118: 1108678.569 | K118: 794744.6216 | L118: 802692.0678 | M118: 810718.9885 | N118: 818826.1784 | O118: 827014.4402 | P118: 835284.5846 | Q118: 843637.4304 | R118: 852073.8047 | S118: 860594.5428 | T118: 869200.4882 | U118: 877892.4931 | V118: 886671.418 | W118: 895538.1322 | X118: 904493.5135 | Y118: 913538.4487 | Z118: 922673.8331 | AA118: 931900.5715 | AB118: 941219.5772 | AC118: 950631.773 | AD118: 960138.0907 | AE118: 969739.4716 | AF118: 979436.8663 | AG118: 989231.235 | AH118: 999123.5473 | AI118: 1009114.783 | AJ118: 1019205.931 | AK118: 1029397.99 | AL118: 1039691.97
A119: Option 3 Value of EUE | H119: 1086833.221 | I119: 1097701.553 | J119: 743921.2341 | K119: 751360.4464 | L119: 758874.0509 | M119: 766462.7914 | N119: 774127.4193 | O119: 781868.6935 | P119: 789687.3804 | Q119: 797584.2542 | R119: 805560.0968 | S119: 813615.6978 | T119: 821751.8547 | U119: 829969.3733 | V119: 838269.067 | W119: 846651.7577 | X119: 855118.2753 | Y119: 863669.458 | Z119: 872306.1526 | AA119: 881029.2141 | AB119: 889839.5063 | AC119: 898737.9013 | AD119: 907725.2803 | AE119: 916802.5331 | AF119: 925970.5585 | AG119: 935230.2641 | AH119: 944582.5667 | AI119: 954028.3924 | AJ119: 963568.6763 | AK119: 973204.3631 | AL119: 982936.4067
A121: GSLs | B121: 2019 | C121: =B121+1 -> 2020 | D121: =C121+1 -> 2021 | E121: =D121+1 -> 2022 | F121: =E121+1 -> 2023 | G121: =F121+1 -> 2024 | H121: =G121+2 -> 2026 | I121: =H121+1 -> 2027 | J121: =I121+1 -> 2028 | K121: =J121+1 -> 2029 | L121: =K121+1 -> 2030 | M121: =L121+1 -> 2031 | N121: =M121+1 -> 2032 | O121: =N121+1 -> 2033 | P121: =O121+1 -> 2034 | Q121: =P121+1 -> 2035 | R121: =Q121+1 -> 2036 | S121: =R121+1 -> 2037 | T121: =S121+1 -> 2038 | U121: =T121+1 -> 2039 | V121: =U121+1 -> 2040 | W121: =V121+1 -> 2041 | X121: =W121+1 -> 2042 | Y121: =X121+1 -> 2043 | Z121: =Y121+1 -> 2044 | AA121: =Z121+1 -> 2045 | AB121: =AA121+1 -> 2046 | AC121: =AB121+1 -> 2047 | AD121: =AC121+1 -> 2048 | AE121: =AD121+1 -> 2049 | AF121: =AE121+1 -> 2050 | AG121: =AF121+1 -> 2051 | AH121: =AG121+1 -> 2052 | AI121: =AH121+1 -> 2053 | AJ121: =AI121+1 -> 2054 | AK121: =AJ121+1 -> 2055 | AL121: =AK121+1 -> 2056
A122: BAU | I122: 84255.38462 | J122: 84255.38462 | K122: 84255.38462 | L122: 84255.38462 | M122: 84255.38462 | N122: 84255.38462 | O122: 84255.38462 | P122: 84255.38462 | Q122: 84255.38462 | R122: 84255.38462 | S122: 84255.38462 | T122: 84255.38462 | U122: 84255.38462 | V122: 84255.38462 | W122: 84255.38462 | X122: 84255.38462 | Y122: 84255.38462 | Z122: 84255.38462 | AA122: 84255.38462 | AB122: 84255.38462 | AC122: 84255.38462 | AD122: 84255.38462 | AE122: 84255.38462 | AF122: 84255.38462 | AG122: 84255.38462 | AH122: 84255.38462 | AI122: 84255.38462 | AJ122: 84255.38462 | AK122: 84255.38462 | AL122: 84255.38462 | AM122: 84255.38462 | AN122: 84255.38462 | AO122: 84255.38462 | AP122: 84255.38462 | AQ122: 84255.38462 | AR122: 84255.38462 | AS122: 84255.38462 | AT122: 84255.38462 | AU122: 84255.38462 | AV122: 84255.38462 | AW122: 84255.38462 | AX122: 84255.38462 | AY122: 84255.38462 | AZ122: 84255.38462 | BA122: 84255.38462 | BB122: 84255.38462 | BC122: 84255.38462 | BD122: 84255.38462 | BE122: 84255.38462 | BF122: 84255.38462
A123: Option 1 | I123: 84255.38462 | J123: 84255.38462 | K123: 64217.55683 | L123: 64217.55683 | M123: 64217.55683 | N123: 64217.55683 | O123: 64217.55683 | P123: 64217.55683 | Q123: 64217.55683 | R123: 64217.55683 | S123: 64217.55683 | T123: 64217.55683 | U123: 64217.55683 | V123: 64217.55683 | W123: 64217.55683 | X123: 64217.55683 | Y123: 64217.55683 | Z123: 64217.55683 | AA123: 64217.55683 | AB123: 64217.55683 | AC123: 64217.55683 | AD123: 64217.55683 | AE123: 64217.55683 | AF123: 64217.55683 | AG123: 64217.55683 | AH123: 64217.55683 | AI123: 64217.55683 | AJ123: 64217.55683 | AK123: 64217.55683 | AL123: 64217.55683 | AM123: 64217.55683 | AN123: 64217.55683 | AO123: 64217.55683 | AP123: 64217.55683 | AQ123: 64217.55683 | AR123: 64217.55683 | AS123: 64217.55683 | AT123: 64217.55683 | AU123: 64217.55683 | AV123: 64217.55683 | AW123: 64217.55683 | AX123: 64217.55683 | AY123: 64217.55683 | AZ123: 64217.55683 | BA123: 64217.55683 | BB123: 64217.55683 | BC123: 64217.55683 | BD123: 64217.55683 | BE123: 64217.55683 | BF123: 64217.55683
A124: Option 2 | I124: 84255.38462 | J124: 84255.38462 | K124: 59799.59417 | L124: 59799.59417 | M124: 59799.59417 | N124: 59799.59417 | O124: 59799.59417 | P124: 59799.59417 | Q124: 59799.59417 | R124: 59799.59417 | S124: 59799.59417 | T124: 59799.59417 | U124: 59799.59417 | V124: 59799.59417 | W124: 59799.59417 | X124: 59799.59417 | Y124: 59799.59417 | Z124: 59799.59417 | AA124: 59799.59417 | AB124: 59799.59417 | AC124: 59799.59417 | AD124: 59799.59417 | AE124: 59799.59417 | AF124: 59799.59417 | AG124: 59799.59417 | AH124: 59799.59417 | AI124: 59799.59417 | AJ124: 59799.59417 | AK124: 59799.59417 | AL124: 59799.59417 | AM124: 59799.59417 | AN124: 59799.59417 | AO124: 59799.59417 | AP124: 59799.59417 | AQ124: 59799.59417 | AR124: 59799.59417 | AS124: 59799.59417 | AT124: 59799.59417 | AU124: 59799.59417 | AV124: 59799.59417 | AW124: 59799.59417 | AX124: 59799.59417 | AY124: 59799.59417 | AZ124: 59799.59417 | BA124: 59799.59417 | BB124: 59799.59417 | BC124: 59799.59417 | BD124: 59799.59417 | BE124: 59799.59417 | BF124: 59799.59417
A125: Option 3 | I125: 84255.38462 | J125: 56535.20458 | K125: 56535.20458 | L125: 56535.20458 | M125: 56535.20458 | N125: 56535.20458 | O125: 56535.20458 | P125: 56535.20458 | Q125: 56535.20458 | R125: 56535.20458 | S125: 56535.20458 | T125: 56535.20458 | U125: 56535.20458 | V125: 56535.20458 | W125: 56535.20458 | X125: 56535.20458 | Y125: 56535.20458 | Z125: 56535.20458 | AA125: 56535.20458 | AB125: 56535.20458 | AC125: 56535.20458 | AD125: 56535.20458 | AE125: 56535.20458 | AF125: 56535.20458 | AG125: 56535.20458 | AH125: 56535.20458 | AI125: 56535.20458 | AJ125: 56535.20458 | AK125: 56535.20458 | AL125: 56535.20458 | AM125: 56535.20458 | AN125: 56535.20458 | AO125: 56535.20458 | AP125: 56535.20458 | AQ125: 56535.20458 | AR125: 56535.20458 | AS125: 56535.20458 | AT125: 56535.20458 | AU125: 56535.20458 | AV125: 56535.20458 | AW125: 56535.20458 | AX125: 56535.20458 | AY125: 56535.20458 | AZ125: 56535.20458 | BA125: 56535.20458 | BB125: 56535.20458 | BC125: 56535.20458 | BD125: 56535.20458 | BE125: 56535.20458 | BF125: 56535.20458
A128: MSD1
A130: Cost - AER VCRs | B130: 2019 | C130: =B130+1 -> 2020 | D130: =C130+1 -> 2021 | E130: =D130+1 -> 2022 | F130: =E130+1 -> 2023 | G130: =F130+1 -> 2024 | H130: =G130+2 -> 2026 | I130: =H130+1 -> 2027 | J130: =I130+1 -> 2028 | K130: =J130+1 -> 2029 | L130: =K130+1 -> 2030 | M130: =L130+1 -> 2031 | N130: =M130+1 -> 2032 | O130: =N130+1 -> 2033 | P130: =O130+1 -> 2034 | Q130: =P130+1 -> 2035 | R130: =Q130+1 -> 2036 | S130: =R130+1 -> 2037 | T130: =S130+1 -> 2038 | U130: =T130+1 -> 2039 | V130: =U130+1 -> 2040 | W130: =V130+1 -> 2041 | X130: =W130+1 -> 2042 | Y130: =X130+1 -> 2043 | Z130: =Y130+1 -> 2044 | AA130: =Z130+1 -> 2045 | AB130: =AA130+1 -> 2046 | AC130: =AB130+1 -> 2047 | AD130: =AC130+1 -> 2048 | AE130: =AD130+1 -> 2049 | AF130: =AE130+1 -> 2050 | AG130: =AF130+1 -> 2051 | AH130: =AG130+1 -> 2052 | AI130: =AH130+1 -> 2053 | AJ130: =AI130+1 -> 2054 | AK130: =AJ130+1 -> 2055 | AL130: =AK130+1 -> 2056
A131: Total Economic Cost (Unserved Energy) | H131: 675663.544 | I131: 682420.1795 | J131: 689244.3813 | K131: 696136.8251 | L131: 703098.1933 | M131: 710129.1753 | N131: 717230.467 | O131: 724402.7717 | P131: 731646.7994 | Q131: 738963.2674 | R131: 746352.9001 | S131: 753816.4291 | T131: 761354.5934 | U131: 768968.1393 | V131: 776657.8207 | W131: 784424.3989 | X131: 792268.6429 | Y131: 800191.3293 | Z131: 808193.2426 | AA131: 816275.175 | AB131: 824437.9268 | AC131: 832682.3061 | AD131: 841009.1291 | AE131: 849419.2204 | AF131: 857913.4126 | AG131: 866492.5467 | AH131: 875157.4722 | AI131: 883909.0469 | AJ131: 892748.1374 | AK131: 901675.6188 | AL131: 910692.375
A132: Operational Cost (Reactive Work) | B132: 44219.54 | C132: 62576.77 | D132: 21544.11 | E132: 52105.12 | F132: 48478.82 | G132: 2921.88 | H132: 45784.872 | I132: 45784.872 | J132: 45784.872 | K132: 45784.872 | L132: 45784.872 | M132: 45784.872 | N132: 45784.872 | O132: 45784.872 | P132: 45784.872 | Q132: 45784.872 | R132: 45784.872 | S132: 45784.872 | T132: 45784.872 | U132: 45784.872 | V132: 45784.872 | W132: 45784.872 | X132: 45784.872 | Y132: 45784.872 | Z132: 45784.872 | AA132: 45784.872 | AB132: 45784.872 | AC132: 45784.872 | AD132: 45784.872 | AE132: 45784.872 | AF132: 45784.872 | AG132: 45784.872 | AH132: 45784.872 | AI132: 45784.872 | AJ132: 45784.872 | AK132: 45784.872 | AL132: 45784.872
A133: Option 1 Value of EUE | H133: 675663.544 | I133: 682420.1795 | J133: 689244.3813 | K133: 655963.7689 | L133: 662523.4066 | M133: 669148.6406 | N133: 675840.1271 | O133: 682598.5283 | P133: 689424.5136 | Q133: 696318.7587 | R133: 703281.9463 | S133: 710314.7658 | T133: 717417.9135 | U133: 724592.0926 | V133: 731838.0135 | W133: 739156.3936 | X133: 746547.9576 | Y133: 754013.4372 | Z133: 761553.5715 | AA133: 769169.1072 | AB133: 776860.7983 | AC133: 784629.4063 | AD133: 792475.7004 | AE133: 800400.4574 | AF133: 808404.4619 | AG133: 816488.5066 | AH133: 824653.3916 | AI133: 832899.9255 | AJ133: 841228.9248 | AK133: 849641.214 | AL133: 858137.6262
A134: Option 2 Value of EUE | H134: 675663.544 | I134: 682420.1795 | J134: 689244.3813 | K134: 656010.3606 | L134: 662570.4642 | M134: 669196.1688 | N134: 675888.1305 | O134: 682647.0118 | P134: 689473.4819 | Q134: 696368.2168 | R134: 703331.8989 | S134: 710365.2179 | T134: 717468.8701 | U134: 724643.5588 | V134: 731889.9944 | W134: 739208.8943 | X134: 746600.9833 | Y134: 754066.9931 | Z134: 761607.663 | AA134: 769223.7397 | AB134: 776915.9771 | AC134: 784685.1368 | AD134: 792531.9882 | AE134: 800457.3081 | AF134: 808461.8812 | AG134: 816546.5 | AH134: 824711.965 | AI134: 832959.0846 | AJ134: 841288.6755 | AK134: 849701.5622 | AL134: 858198.5778
A136: Cost - AusNet VCRs | B136: 2019 | C136: =B136+1 -> 2020 | D136: =C136+1 -> 2021 | E136: =D136+1 -> 2022 | F136: =E136+1 -> 2023 | G136: =F136+1 -> 2024 | H136: =G136+2 -> 2026 | I136: =H136+1 -> 2027 | J136: =I136+1 -> 2028 | K136: =J136+1 -> 2029 | L136: =K136+1 -> 2030 | M136: =L136+1 -> 2031 | N136: =M136+1 -> 2032 | O136: =N136+1 -> 2033 | P136: =O136+1 -> 2034 | Q136: =P136+1 -> 2035 | R136: =Q136+1 -> 2036 | S136: =R136+1 -> 2037 | T136: =S136+1 -> 2038 | U136: =T136+1 -> 2039 | V136: =U136+1 -> 2040 | W136: =V136+1 -> 2041 | X136: =W136+1 -> 2042 | Y136: =X136+1 -> 2043 | Z136: =Y136+1 -> 2044 | AA136: =Z136+1 -> 2045 | AB136: =AA136+1 -> 2046 | AC136: =AB136+1 -> 2047 | AD136: =AC136+1 -> 2048 | AE136: =AD136+1 -> 2049 | AF136: =AE136+1 -> 2050 | AG136: =AF136+1 -> 2051 | AH136: =AG136+1 -> 2052 | AI136: =AH136+1 -> 2053 | AJ136: =AI136+1 -> 2054 | AK136: =AJ136+1 -> 2055 | AL136: =AK136+1 -> 2056
A137: Total Economic Cost (Unserved Energy) | H137: 1005451.893 | I137: 1015506.412 | J137: 1025661.476 | K137: 1035918.091 | L137: 1046277.272 | M137: 1056740.044 | N137: 1067307.445 | O137: 1077980.519 | P137: 1088760.324 | Q137: 1099647.928 | R137: 1110644.407 | S137: 1121750.851 | T137: 1132968.36 | U137: 1144298.043 | V137: 1155741.024 | W137: 1167298.434 | X137: 1178971.418 | Y137: 1190761.132 | Z137: 1202668.744 | AA137: 1214695.431 | AB137: 1226842.385 | AC137: 1239110.809 | AD137: 1251501.917 | AE137: 1264016.937 | AF137: 1276657.106 | AG137: 1289423.677 | AH137: 1302317.914 | AI137: 1315341.093 | AJ137: 1328494.504 | AK137: 1341779.449 | AL137: 1355197.243
A138: Operational Cost (Reactive Work) | B138: 44219.54 | C138: 62576.77 | D138: 21544.11 | E138: 52105.12 | F138: 48478.82 | G138: 2921.88 | H138: 45784.872 | I138: 45784.872 | J138: 45784.872 | K138: 45784.872 | L138: 45784.872 | M138: 45784.872 | N138: 45784.872 | O138: 45784.872 | P138: 45784.872 | Q138: 45784.872 | R138: 45784.872 | S138: 45784.872 | T138: 45784.872 | U138: 45784.872 | V138: 45784.872 | W138: 45784.872 | X138: 45784.872 | Y138: 45784.872 | Z138: 45784.872 | AA138: 45784.872 | AB138: 45784.872 | AC138: 45784.872 | AD138: 45784.872 | AE138: 45784.872 | AF138: 45784.872 | AG138: 45784.872 | AH138: 45784.872 | AI138: 45784.872 | AJ138: 45784.872 | AK138: 45784.872 | AL138: 45784.872
A139: Option 1 Value of EUE | H139: 1005451.893 | I139: 1015506.412 | J139: 1025661.476 | K139: 976136.7458 | L139: 985898.1132 | M139: 995757.0944 | N139: 1005714.665 | O139: 1015771.812 | P139: 1025929.53 | Q139: 1036188.825 | R139: 1046550.714 | S139: 1057016.221 | T139: 1067586.383 | U139: 1078262.247 | V139: 1089044.869 | W139: 1099935.318 | X139: 1110934.671 | Y139: 1122044.018 | Z139: 1133264.458 | AA139: 1144597.103 | AB139: 1156043.074 | AC139: 1167603.504 | AD139: 1179279.539 | AE139: 1191072.335 | AF139: 1202983.058 | AG139: 1215012.889 | AH139: 1227163.018 | AI139: 1239434.648 | AJ139: 1251828.994 | AK139: 1264347.284 | AL139: 1276990.757
A140: Option 2 Value of EUE | H140: 1005451.893 | I140: 1015506.412 | J140: 1025661.476 | K140: 976206.0787 | L140: 985968.1394 | M140: 995827.8208 | N140: 1005786.099 | O140: 1015843.96 | P140: 1026002.4 | Q140: 1036262.424 | R140: 1046625.048 | S140: 1057091.298 | T140: 1067662.211 | U140: 1078338.833 | V140: 1089122.222 | W140: 1100013.444 | X140: 1111013.578 | Y140: 1122123.714 | Z140: 1133344.951 | AA140: 1144678.401 | AB140: 1156125.185 | AC140: 1167686.437 | AD140: 1179363.301 | AE140: 1191156.934 | AF140: 1203068.503 | AG140: 1215099.188 | AH140: 1227250.18 | AI140: 1239522.682 | AJ140: 1251917.909 | AK140: 1264437.088 | AL140: 1277081.459
A142: GSLs | B142: 2019 | C142: =B142+1 -> 2020 | D142: =C142+1 -> 2021 | E142: =D142+1 -> 2022 | F142: =E142+1 -> 2023 | G142: =F142+1 -> 2024 | H142: =G142+2 -> 2026 | I142: =H142+1 -> 2027 | J142: =I142+1 -> 2028 | K142: =J142+1 -> 2029 | L142: =K142+1 -> 2030 | M142: =L142+1 -> 2031 | N142: =M142+1 -> 2032 | O142: =N142+1 -> 2033 | P142: =O142+1 -> 2034 | Q142: =P142+1 -> 2035 | R142: =Q142+1 -> 2036 | S142: =R142+1 -> 2037 | T142: =S142+1 -> 2038 | U142: =T142+1 -> 2039 | V142: =U142+1 -> 2040 | W142: =V142+1 -> 2041 | X142: =W142+1 -> 2042 | Y142: =X142+1 -> 2043 | Z142: =Y142+1 -> 2044 | AA142: =Z142+1 -> 2045 | AB142: =AA142+1 -> 2046 | AC142: =AB142+1 -> 2047 | AD142: =AC142+1 -> 2048 | AE142: =AD142+1 -> 2049 | AF142: =AE142+1 -> 2050 | AG142: =AF142+1 -> 2051 | AH142: =AG142+1 -> 2052 | AI142: =AH142+1 -> 2053 | AJ142: =AI142+1 -> 2054 | AK142: =AJ142+1 -> 2055 | AL142: =AK142+1 -> 2056
A143: BAU | I143: 192627.6923 | J143: 192627.6923 | K143: 192627.6923 | L143: 192627.6923 | M143: 192627.6923 | N143: 192627.6923 | O143: 192627.6923 | P143: 192627.6923 | Q143: 192627.6923 | R143: 192627.6923 | S143: 192627.6923 | T143: 192627.6923 | U143: 192627.6923 | V143: 192627.6923 | W143: 192627.6923 | X143: 192627.6923 | Y143: 192627.6923 | Z143: 192627.6923 | AA143: 192627.6923 | AB143: 192627.6923 | AC143: 192627.6923 | AD143: 192627.6923 | AE143: 192627.6923 | AF143: 192627.6923 | AG143: 192627.6923 | AH143: 192627.6923 | AI143: 192627.6923 | AJ143: 192627.6923 | AK143: 192627.6923 | AL143: 192627.6923 | AM143: 192627.6923 | AN143: 192627.6923 | AO143: 192627.6923 | AP143: 192627.6923 | AQ143: 192627.6923 | AR143: 192627.6923 | AS143: 192627.6923 | AT143: 192627.6923 | AU143: 192627.6923 | AV143: 192627.6923 | AW143: 192627.6923 | AX143: 192627.6923 | AY143: 192627.6923 | AZ143: 192627.6923 | BA143: 192627.6923 | BB143: 192627.6923 | BC143: 192627.6923 | BD143: 192627.6923 | BE143: 192627.6923 | BF143: 192627.6923
A144: Option 1 | I144: 192627.6923 | J144: 181511.4249 | K144: 181511.4249 | L144: 181511.4249 | M144: 181511.4249 | N144: 181511.4249 | O144: 181511.4249 | P144: 181511.4249 | Q144: 181511.4249 | R144: 181511.4249 | S144: 181511.4249 | T144: 181511.4249 | U144: 181511.4249 | V144: 181511.4249 | W144: 181511.4249 | X144: 181511.4249 | Y144: 181511.4249 | Z144: 181511.4249 | AA144: 181511.4249 | AB144: 181511.4249 | AC144: 181511.4249 | AD144: 181511.4249 | AE144: 181511.4249 | AF144: 181511.4249 | AG144: 181511.4249 | AH144: 181511.4249 | AI144: 181511.4249 | AJ144: 181511.4249 | AK144: 181511.4249 | AL144: 181511.4249 | AM144: 181511.4249 | AN144: 181511.4249 | AO144: 181511.4249 | AP144: 181511.4249 | AQ144: 181511.4249 | AR144: 181511.4249 | AS144: 181511.4249 | AT144: 181511.4249 | AU144: 181511.4249 | AV144: 181511.4249 | AW144: 181511.4249 | AX144: 181511.4249 | AY144: 181511.4249 | AZ144: 181511.4249 | BA144: 181511.4249 | BB144: 181511.4249 | BC144: 181511.4249 | BD144: 181511.4249 | BE144: 181511.4249 | BF144: 181511.4249
A145: Option 2 | I145: 192627.6923 | J145: 192627.6923 | K145: 181524.3173 | L145: 181524.3173 | M145: 181524.3173 | N145: 181524.3173 | O145: 181524.3173 | P145: 181524.3173 | Q145: 181524.3173 | R145: 181524.3173 | S145: 181524.3173 | T145: 181524.3173 | U145: 181524.3173 | V145: 181524.3173 | W145: 181524.3173 | X145: 181524.3173 | Y145: 181524.3173 | Z145: 181524.3173 | AA145: 181524.3173 | AB145: 181524.3173 | AC145: 181524.3173 | AD145: 181524.3173 | AE145: 181524.3173 | AF145: 181524.3173 | AG145: 181524.3173 | AH145: 181524.3173 | AI145: 181524.3173 | AJ145: 181524.3173 | AK145: 181524.3173 | AL145: 181524.3173 | AM145: 181524.3173 | AN145: 181524.3173 | AO145: 181524.3173 | AP145: 181524.3173 | AQ145: 181524.3173 | AR145: 181524.3173 | AS145: 181524.3173 | AT145: 181524.3173 | AU145: 181524.3173 | AV145: 181524.3173 | AW145: 181524.3173 | AX145: 181524.3173 | AY145: 181524.3173 | AZ145: 181524.3173 | BA145: 181524.3173 | BB145: 181524.3173 | BC145: 181524.3173 | BD145: 181524.3173 | BE145: 181524.3173 | BF145: 181524.3173
A148: NLA31
A150: Cost - AER VCRs | B150: 2019 | C150: =B150+1 -> 2020 | D150: =C150+1 -> 2021 | E150: =D150+1 -> 2022 | F150: =E150+1 -> 2023 | G150: =F150+1 -> 2024 | H150: =G150+2 -> 2026 | I150: =H150+1 -> 2027 | J150: =I150+1 -> 2028 | K150: =J150+1 -> 2029 | L150: =K150+1 -> 2030 | M150: =L150+1 -> 2031 | N150: =M150+1 -> 2032 | O150: =N150+1 -> 2033 | P150: =O150+1 -> 2034 | Q150: =P150+1 -> 2035 | R150: =Q150+1 -> 2036 | S150: =R150+1 -> 2037 | T150: =S150+1 -> 2038 | U150: =T150+1 -> 2039 | V150: =U150+1 -> 2040 | W150: =V150+1 -> 2041 | X150: =W150+1 -> 2042 | Y150: =X150+1 -> 2043 | Z150: =Y150+1 -> 2044 | AA150: =Z150+1 -> 2045 | AB150: =AA150+1 -> 2046 | AC150: =AB150+1 -> 2047 | AD150: =AC150+1 -> 2048 | AE150: =AD150+1 -> 2049 | AF150: =AE150+1 -> 2050 | AG150: =AF150+1 -> 2051 | AH150: =AG150+1 -> 2052 | AI150: =AH150+1 -> 2053 | AJ150: =AI150+1 -> 2054 | AK150: =AJ150+1 -> 2055 | AL150: =AK150+1 -> 2056
A151: Total Economic Cost (Unserved Energy) | B151: 0 | C151: 0 | D151: 0 | E151: 0 | F151: 193998.3431 | G151: 243316.9914 | H151: 445790.8044 | I151: 450248.7124 | J151: 454751.1996 | K151: 459298.7116 | L151: 463891.6987 | M151: 468530.6157 | N151: 473215.9218 | O151: 477948.081 | P151: 482727.5619 | Q151: 487554.8375 | R151: 492430.3858 | S151: 497354.6897 | T151: 502328.2366 | U151: 507351.519 | V151: 512425.0342 | W151: 517549.2845 | X151: 522724.7773 | Y151: 527952.0251 | Z151: 533231.5454 | AA151: 538563.8608 | AB151: 543949.4994 | AC151: 549388.9944 | AD151: 554882.8844 | AE151: 560431.7132 | AF151: 566036.0303 | AG151: 571696.3906 | AH151: 577413.3546 | AI151: 583187.4881 | AJ151: 589019.363 | AK151: 594909.5566 | AL151: 600858.6522
A152: Operational Cost (Reactive Work) | B152: 24311.87 | C152: 17046.85 | D152: 37060.84 | E152: 52681.64 | F152: 37152.27 | G152: 0 | H152: 33650.694 | I152: 33650.694 | J152: 33650.694 | K152: 33650.694 | L152: 33650.694 | M152: 33650.694 | N152: 33650.694 | O152: 33650.694 | P152: 33650.694 | Q152: 33650.694 | R152: 33650.694 | S152: 33650.694 | T152: 33650.694 | U152: 33650.694 | V152: 33650.694 | W152: 33650.694 | X152: 33650.694 | Y152: 33650.694 | Z152: 33650.694 | AA152: 33650.694 | AB152: 33650.694 | AC152: 33650.694 | AD152: 33650.694 | AE152: 33650.694 | AF152: 33650.694 | AG152: 33650.694 | AH152: 33650.694 | AI152: 33650.694 | AJ152: 33650.694 | AK152: 33650.694 | AL152: 33650.694
A153: Option 1 Value of EUE | H153: 445790.8044 | I153: 450248.7124 | J153: 454751.1996 | K153: 329044.4973 | L153: 332334.9423 | M153: 335658.2917 | N153: 339014.8746 | O153: 342405.0233 | P153: 345829.0736 | Q153: 349287.3643 | R153: 352780.238 | S153: 356308.0403 | T153: 359871.1207 | U153: 363469.8319 | V153: 367104.5303 | W153: 370775.5756 | X153: 374483.3313 | Y153: 378228.1646 | Z153: 382010.4463 | AA153: 385830.5507 | AB153: 389688.8562 | AC153: 393585.7448 | AD153: 397521.6023 | AE153: 401496.8183 | AF153: 405511.7865 | AG153: 409566.9043 | AH153: 413662.5734 | AI153: 417799.1991 | AJ153: 421977.1911 | AK153: 426196.963 | AL153: 430458.9326
A154: Option 2 Value of EUE | H154: 445790.8044 | I154: 450248.7124 | J154: 243157.9445 | K154: 245589.5239 | L154: 248045.4191 | M154: 250525.8733 | N154: 253031.1321 | O154: 255561.4434 | P154: 258117.0578 | Q154: 260698.2284 | R154: 263305.2107 | S154: 265938.2628 | T154: 268597.6454 | U154: 271283.6219 | V154: 273996.4581 | W154: 276736.4227 | X154: 279503.7869 | Y154: 282298.8248 | Z154: 285121.813 | AA154: 287973.0311 | AB154: 290852.7615 | AC154: 293761.2891 | AD154: 296698.902 | AE154: 299665.891 | AF154: 302662.5499 | AG154: 305689.1754 | AH154: 308746.0671 | AI154: 311833.5278 | AJ154: 314951.8631 | AK154: 318101.3817 | AL154: 321282.3955
A156: Cost - AusNet VCRs | B156: 2019 | C156: =B156+1 -> 2020 | D156: =C156+1 -> 2021 | E156: =D156+1 -> 2022 | F156: =E156+1 -> 2023 | G156: =F156+1 -> 2024 | H156: =G156+2 -> 2026 | I156: =H156+1 -> 2027 | J156: =I156+1 -> 2028 | K156: =J156+1 -> 2029 | L156: =K156+1 -> 2030 | M156: =L156+1 -> 2031 | N156: =M156+1 -> 2032 | O156: =N156+1 -> 2033 | P156: =O156+1 -> 2034 | Q156: =P156+1 -> 2035 | R156: =Q156+1 -> 2036 | S156: =R156+1 -> 2037 | T156: =S156+1 -> 2038 | U156: =T156+1 -> 2039 | V156: =U156+1 -> 2040 | W156: =V156+1 -> 2041 | X156: =W156+1 -> 2042 | Y156: =X156+1 -> 2043 | Z156: =Y156+1 -> 2044 | AA156: =Z156+1 -> 2045 | AB156: =AA156+1 -> 2046 | AC156: =AB156+1 -> 2047 | AD156: =AC156+1 -> 2048 | AE156: =AD156+1 -> 2049 | AF156: =AE156+1 -> 2050 | AG156: =AF156+1 -> 2051 | AH156: =AG156+1 -> 2052 | AI156: =AH156+1 -> 2053 | AJ156: =AI156+1 -> 2054 | AK156: =AJ156+1 -> 2055 | AL156: =AK156+1 -> 2056
A157: Total Economic Cost (Unserved Energy) | B157: 0 | C157: 0 | D157: 0 | E157: 0 | F157: 258652.2299 | G157: 324407.3192 | H157: 594359.6415 | I157: 600303.238 | J157: 606306.2703 | K157: 612369.333 | L157: 618493.0264 | M157: 624677.9566 | N157: 630924.7362 | O157: 637233.9836 | P157: 643606.3234 | Q157: 650042.3866 | R157: 656542.8105 | S157: 663108.2386 | T157: 669739.321 | U157: 676436.7142 | V157: 683201.0813 | W157: 690033.0922 | X157: 696933.4231 | Y157: 703902.7573 | Z157: 710941.7849 | AA157: 718051.2027 | AB157: 725231.7148 | AC157: 732484.0319 | AD157: 739808.8722 | AE157: 747206.9609 | AF157: 754679.0306 | AG157: 762225.8209 | AH157: 769848.0791 | AI157: 777546.5599 | AJ157: 785322.0255 | AK157: 793175.2457 | AL157: 801106.9982
A158: Operational Cost (Reactive Work) | B158: 24311.87 | C158: 17046.85 | D158: 37060.84 | E158: 52681.64 | F158: 37152.27 | G158: 0 | H158: 33650.694 | I158: 33650.694 | J158: 33650.694 | K158: 33650.694 | L158: 33650.694 | M158: 33650.694 | N158: 33650.694 | O158: 33650.694 | P158: 33650.694 | Q158: 33650.694 | R158: 33650.694 | S158: 33650.694 | T158: 33650.694 | U158: 33650.694 | V158: 33650.694 | W158: 33650.694 | X158: 33650.694 | Y158: 33650.694 | Z158: 33650.694 | AA158: 33650.694 | AB158: 33650.694 | AC158: 33650.694 | AD158: 33650.694 | AE158: 33650.694 | AF158: 33650.694 | AG158: 33650.694 | AH158: 33650.694 | AI158: 33650.694 | AJ158: 33650.694 | AK158: 33650.694 | AL158: 33650.694
A159: Option 1 Value of EUE | H159: 594359.6415 | I159: 600303.238 | J159: 606306.2703 | K159: 438705.2571 | L159: 443092.3097 | M159: 447523.2328 | N159: 451998.4651 | O159: 456518.4497 | P159: 461083.6342 | Q159: 465694.4706 | R159: 470351.4153 | S159: 475054.9294 | T159: 479805.4787 | U159: 484603.5335 | V159: 489449.5689 | W159: 494344.0645 | X159: 499287.5052 | Y159: 504280.3802 | Z159: 509323.184 | AA159: 514416.4159 | AB159: 519560.58 | AC159: 524756.1858 | AD159: 530003.7477 | AE159: 535303.7852 | AF159: 540656.823 | AG159: 546063.3913 | AH159: 551524.0252 | AI159: 557039.2654 | AJ159: 562609.6581 | AK159: 568235.7547 | AL159: 573918.1122
A160: Option 2 Value of EUE | H160: 594359.6415 | I160: 600303.238 | J160: 324195.2666 | K160: 327437.2193 | L160: 330711.5915 | M160: 334018.7074 | N160: 337358.8945 | O160: 340732.4834 | P160: 344139.8083 | Q160: 347581.2064 | R160: 351057.0184 | S160: 354567.5886 | T160: 358113.2645 | U160: 361694.3971 | V160: 365311.3411 | W160: 368964.4545 | X160: 372654.0991 | Y160: 376380.6401 | Z160: 380144.4465 | AA160: 383945.8909 | AB160: 387785.3498 | AC160: 391663.2033 | AD160: 395579.8354 | AE160: 399535.6337 | AF160: 403530.9901 | AG160: 407566.3 | AH160: 411641.963 | AI160: 415758.3826 | AJ160: 419915.9664 | AK160: 424115.1261 | AL160: 428356.2773
A162: GSLs | B162: 2019 | C162: =B162+1 -> 2020 | D162: =C162+1 -> 2021 | E162: =D162+1 -> 2022 | F162: =E162+1 -> 2023 | G162: =F162+1 -> 2024 | H162: =G162+2 -> 2026 | I162: =H162+1 -> 2027 | J162: =I162+1 -> 2028 | K162: =J162+1 -> 2029 | L162: =K162+1 -> 2030 | M162: =L162+1 -> 2031 | N162: =M162+1 -> 2032 | O162: =N162+1 -> 2033 | P162: =O162+1 -> 2034 | Q162: =P162+1 -> 2035 | R162: =Q162+1 -> 2036 | S162: =R162+1 -> 2037 | T162: =S162+1 -> 2038 | U162: =T162+1 -> 2039 | V162: =U162+1 -> 2040 | W162: =V162+1 -> 2041 | X162: =W162+1 -> 2042 | Y162: =X162+1 -> 2043 | Z162: =Y162+1 -> 2044 | AA162: =Z162+1 -> 2045 | AB162: =AA162+1 -> 2046 | AC162: =AB162+1 -> 2047 | AD162: =AC162+1 -> 2048 | AE162: =AD162+1 -> 2049 | AF162: =AE162+1 -> 2050 | AG162: =AF162+1 -> 2051 | AH162: =AG162+1 -> 2052 | AI162: =AH162+1 -> 2053 | AJ162: =AI162+1 -> 2054 | AK162: =AJ162+1 -> 2055 | AL162: =AK162+1 -> 2056
A163: BAU | I163: 74309.23077 | J163: 74309.23077 | K163: 74309.23077 | L163: 74309.23077 | M163: 74309.23077 | N163: 74309.23077 | O163: 74309.23077 | P163: 74309.23077 | Q163: 74309.23077 | R163: 74309.23077 | S163: 74309.23077 | T163: 74309.23077 | U163: 74309.23077 | V163: 74309.23077 | W163: 74309.23077 | X163: 74309.23077 | Y163: 74309.23077 | Z163: 74309.23077 | AA163: 74309.23077 | AB163: 74309.23077 | AC163: 74309.23077 | AD163: 74309.23077 | AE163: 74309.23077 | AF163: 74309.23077 | AG163: 74309.23077 | AH163: 74309.23077 | AI163: 74309.23077 | AJ163: 74309.23077 | AK163: 74309.23077 | AL163: 74309.23077 | AM163: 74309.23077 | AN163: 74309.23077 | AO163: 74309.23077 | AP163: 74309.23077 | AQ163: 74309.23077 | AR163: 74309.23077 | AS163: 74309.23077 | AT163: 74309.23077 | AU163: 74309.23077 | AV163: 74309.23077 | AW163: 74309.23077 | AX163: 74309.23077 | AY163: 74309.23077 | AZ163: 74309.23077 | BA163: 74309.23077 | BB163: 74309.23077 | BC163: 74309.23077 | BD163: 74309.23077 | BE163: 74309.23077 | BF163: 74309.23077
A164: Option 1 | I164: 74309.23077 | J164: 74309.23077 | K164: 53235.60216 | L164: 53235.60216 | M164: 53235.60216 | N164: 53235.60216 | O164: 53235.60216 | P164: 53235.60216 | Q164: 53235.60216 | R164: 53235.60216 | S164: 53235.60216 | T164: 53235.60216 | U164: 53235.60216 | V164: 53235.60216 | W164: 53235.60216 | X164: 53235.60216 | Y164: 53235.60216 | Z164: 53235.60216 | AA164: 53235.60216 | AB164: 53235.60216 | AC164: 53235.60216 | AD164: 53235.60216 | AE164: 53235.60216 | AF164: 53235.60216 | AG164: 53235.60216 | AH164: 53235.60216 | AI164: 53235.60216 | AJ164: 53235.60216 | AK164: 53235.60216 | AL164: 53235.60216 | AM164: 53235.60216 | AN164: 53235.60216 | AO164: 53235.60216 | AP164: 53235.60216 | AQ164: 53235.60216 | AR164: 53235.60216 | AS164: 53235.60216 | AT164: 53235.60216 | AU164: 53235.60216 | AV164: 53235.60216 | AW164: 53235.60216 | AX164: 53235.60216 | AY164: 53235.60216 | AZ164: 53235.60216 | BA164: 53235.60216 | BB164: 53235.60216 | BC164: 53235.60216 | BD164: 53235.60216 | BE164: 53235.60216 | BF164: 53235.60216
A165: Option 2 | I165: 74309.23077 | J165: 39733.55062 | K165: 39733.55062 | L165: 39733.55062 | M165: 39733.55062 | N165: 39733.55062 | O165: 39733.55062 | P165: 39733.55062 | Q165: 39733.55062 | R165: 39733.55062 | S165: 39733.55062 | T165: 39733.55062 | U165: 39733.55062 | V165: 39733.55062 | W165: 39733.55062 | X165: 39733.55062 | Y165: 39733.55062 | Z165: 39733.55062 | AA165: 39733.55062 | AB165: 39733.55062 | AC165: 39733.55062 | AD165: 39733.55062 | AE165: 39733.55062 | AF165: 39733.55062 | AG165: 39733.55062 | AH165: 39733.55062 | AI165: 39733.55062 | AJ165: 39733.55062 | AK165: 39733.55062 | AL165: 39733.55062 | AM165: 39733.55062 | AN165: 39733.55062 | AO165: 39733.55062 | AP165: 39733.55062 | AQ165: 39733.55062 | AR165: 39733.55062 | AS165: 39733.55062 | AT165: 39733.55062 | AU165: 39733.55062 | AV165: 39733.55062 | AW165: 39733.55062 | AX165: 39733.55062 | AY165: 39733.55062 | AZ165: 39733.55062 | BA165: 39733.55062 | BB165: 39733.55062 | BC165: 39733.55062 | BD165: 39733.55062 | BE165: 39733.55062 | BF165: 39733.55062
A168: WYK13
A170: Cost - AER VCRs | B170: 2019 | C170: =B170+1 -> 2020 | D170: =C170+1 -> 2021 | E170: =D170+1 -> 2022 | F170: =E170+1 -> 2023 | G170: =F170+1 -> 2024 | H170: =G170+2 -> 2026 | I170: =H170+1 -> 2027 | J170: =I170+1 -> 2028 | K170: =J170+1 -> 2029 | L170: =K170+1 -> 2030 | M170: =L170+1 -> 2031 | N170: =M170+1 -> 2032 | O170: =N170+1 -> 2033 | P170: =O170+1 -> 2034 | Q170: =P170+1 -> 2035 | R170: =Q170+1 -> 2036 | S170: =R170+1 -> 2037 | T170: =S170+1 -> 2038 | U170: =T170+1 -> 2039 | V170: =U170+1 -> 2040 | W170: =V170+1 -> 2041 | X170: =W170+1 -> 2042 | Y170: =X170+1 -> 2043 | Z170: =Y170+1 -> 2044 | AA170: =Z170+1 -> 2045 | AB170: =AA170+1 -> 2046 | AC170: =AB170+1 -> 2047 | AD170: =AC170+1 -> 2048 | AE170: =AD170+1 -> 2049 | AF170: =AE170+1 -> 2050 | AG170: =AF170+1 -> 2051 | AH170: =AG170+1 -> 2052 | AI170: =AH170+1 -> 2053 | AJ170: =AI170+1 -> 2054 | AK170: =AJ170+1 -> 2055 | AL170: =AK170+1 -> 2056
A171: Economic Cost (Unserved Energy) | B171: 0 | C171: 0 | D171: 0 | E171: 0 | F171: 550646.4834 | G171: 31626.23279 | H171: 1242284.81 | I171: 1254707.658 | J171: 1267254.735 | K171: 1279927.282 | L171: 1292726.555 | M171: 1305653.82 | N171: 1318710.358 | O171: 1331897.462 | P171: 1345216.437 | Q171: 1358668.601 | R171: 1372255.287 | S171: 1385977.84 | T171: 1399837.618 | U171: 1413835.995 | V171: 1427974.354 | W171: 1442254.098 | X171: 1456676.639 | Y171: 1471243.405 | Z171: 1485955.839 | AA171: 1500815.398 | AB171: 1515823.552 | AC171: 1530981.787 | AD171: 1546291.605 | AE171: 1561754.521 | AF171: 1577372.066 | AG171: 1593145.787 | AH171: 1609077.245 | AI171: 1625168.017 | AJ171: 1641419.698 | AK171: 1657833.895 | AL171: 1674412.234
A172: Operational Cost (Reactive Work) | B172: 76720.83 | C172: 122742.76 | D172: 96368.43 | E172: 119771.97 | F172: 75388.54 | G172: 0 | H172: 98198.506 | I172: 98198.506 | J172: 98198.506 | K172: 98198.506 | L172: 98198.506 | M172: 98198.506 | N172: 98198.506 | O172: 98198.506 | P172: 98198.506 | Q172: 98198.506 | R172: 98198.506 | S172: 98198.506 | T172: 98198.506 | U172: 98198.506 | V172: 98198.506 | W172: 98198.506 | X172: 98198.506 | Y172: 98198.506 | Z172: 98198.506 | AA172: 98198.506 | AB172: 98198.506 | AC172: 98198.506 | AD172: 98198.506 | AE172: 98198.506 | AF172: 98198.506 | AG172: 98198.506 | AH172: 98198.506 | AI172: 98198.506 | AJ172: 98198.506 | AK172: 98198.506 | AL172: 98198.506
A173: Option 1 Value of EUE | H173: 1242284.81 | I173: 1254707.658 | J173: 939754.3755 | K173: 949151.9192 | L173: 958643.4384 | M173: 968229.8728 | N173: 977912.1715 | O173: 987691.2933 | P173: 997568.2062 | Q173: 1007543.888 | R173: 1017619.327 | S173: 1027795.52 | T173: 1038073.476 | U173: 1048454.21 | V173: 1058938.752 | W173: 1069528.14 | X173: 1080223.421 | Y173: 1091025.656 | Z173: 1101935.912 | AA173: 1112955.271 | AB173: 1124084.824 | AC173: 1135325.672 | AD173: 1146678.929 | AE173: 1158145.718 | AF173: 1169727.175 | AG173: 1181424.447 | AH173: 1193238.692 | AI173: 1205171.079 | AJ173: 1217222.789 | AK173: 1229395.017 | AL173: 1241688.967
A174: Option 2 Value of EUE | H174: 1242284.81 | I174: 1254707.658 | J174: 1267254.735 | K174: 1114293.619 | L174: 1125436.556 | M174: 1136690.921 | N174: 1148057.83 | O174: 1159538.409 | P174: 1171133.793 | Q174: 1182845.131 | R174: 1194673.582 | S174: 1206620.318 | T174: 1218686.521 | U174: 1230873.386 | V174: 1243182.12 | W174: 1255613.941 | X174: 1268170.081 | Y174: 1280851.781 | Z174: 1293660.299 | AA174: 1306596.902 | AB174: 1319662.871 | AC174: 1332859.5 | AD174: 1346188.095 | AE174: 1359649.976 | AF174: 1373246.476 | AG174: 1386978.94 | AH174: 1400848.73 | AI174: 1414857.217 | AJ174: 1429005.789 | AK174: 1443295.847 | AL174: 1457728.806
A176: Cost - AusNet VCRs | B176: 2019 | C176: =B176+1 -> 2020 | D176: =C176+1 -> 2021 | E176: =D176+1 -> 2022 | F176: =E176+1 -> 2023 | G176: =F176+1 -> 2024 | H176: =G176+2 -> 2026 | I176: =H176+1 -> 2027 | J176: =I176+1 -> 2028 | K176: =J176+1 -> 2029 | L176: =K176+1 -> 2030 | M176: =L176+1 -> 2031 | N176: =M176+1 -> 2032 | O176: =N176+1 -> 2033 | P176: =O176+1 -> 2034 | Q176: =P176+1 -> 2035 | R176: =Q176+1 -> 2036 | S176: =R176+1 -> 2037 | T176: =S176+1 -> 2038 | U176: =T176+1 -> 2039 | V176: =U176+1 -> 2040 | W176: =V176+1 -> 2041 | X176: =W176+1 -> 2042 | Y176: =X176+1 -> 2043 | Z176: =Y176+1 -> 2044 | AA176: =Z176+1 -> 2045 | AB176: =AA176+1 -> 2046 | AC176: =AB176+1 -> 2047 | AD176: =AC176+1 -> 2048 | AE176: =AD176+1 -> 2049 | AF176: =AE176+1 -> 2050 | AG176: =AF176+1 -> 2051 | AH176: =AG176+1 -> 2052 | AI176: =AH176+1 -> 2053 | AJ176: =AI176+1 -> 2054 | AK176: =AJ176+1 -> 2055 | AL176: =AK176+1 -> 2056
A177: Economic Cost (Unserved Energy) | B177: 0 | C177: 0 | D177: 0 | E177: 0 | F177: 920914.5829 | G177: 52892.48157 | H177: 2077627.356 | I177: 2098403.63 | J177: 2119387.666 | K177: 2140581.543 | L177: 2161987.358 | M177: 2183607.232 | N177: 2205443.304 | O177: 2227497.737 | P177: 2249772.715 | Q177: 2272270.442 | R177: 2294993.146 | S177: 2317943.078 | T177: 2341122.508 | U177: 2364533.733 | V177: 2388179.071 | W177: 2412060.861 | X177: 2436181.47 | Y177: 2460543.285 | Z177: 2485148.718 | AA177: 2510000.205 | AB177: 2535100.207 | AC177: 2560451.209 | AD177: 2586055.721 | AE177: 2611916.278 | AF177: 2638035.441 | AG177: 2664415.795 | AH177: 2691059.953 | AI177: 2717970.553 | AJ177: 2745150.258 | AK177: 2772601.761 | AL177: 2800327.779
A178: Operational Cost (Reactive Work) | B178: 76720.83 | C178: 122742.76 | D178: 96368.43 | E178: 119771.97 | F178: 75388.54 | G178: 0 | H178: 98198.506 | I178: 98198.506 | J178: 98198.506 | K178: 98198.506 | L178: 98198.506 | M178: 98198.506 | N178: 98198.506 | O178: 98198.506 | P178: 98198.506 | Q178: 98198.506 | R178: 98198.506 | S178: 98198.506 | T178: 98198.506 | U178: 98198.506 | V178: 98198.506 | W178: 98198.506 | X178: 98198.506 | Y178: 98198.506 | Z178: 98198.506 | AA178: 98198.506 | AB178: 98198.506 | AC178: 98198.506 | AD178: 98198.506 | AE178: 98198.506 | AF178: 98198.506 | AG178: 98198.506 | AH178: 98198.506 | AI178: 98198.506 | AJ178: 98198.506 | AK178: 98198.506 | AL178: 98198.506
A179: Option 1 Value of EUE | H179: 2077627.356 | I179: 2098403.63 | J179: 1571668.093 | K179: 1587384.774 | L179: 1603258.622 | M179: 1619291.208 | N179: 1635484.12 | O179: 1651838.962 | P179: 1668357.351 | Q179: 1685040.925 | R179: 1701891.334 | S179: 1718910.247 | T179: 1736099.35 | U179: 1753460.343 | V179: 1770994.947 | W179: 1788704.896 | X179: 1806591.945 | Y179: 1824657.865 | Z179: 1842904.443 | AA179: 1861333.488 | AB179: 1879946.823 | AC179: 1898746.291 | AD179: 1917733.754 | AE179: 1936911.091 | AF179: 1956280.202 | AG179: 1975843.004 | AH179: 1995601.434 | AI179: 2015557.449 | AJ179: 2035713.023 | AK179: 2056070.153 | AL179: 2076630.855
A180: Option 2 Value of EUE | H180: 2077627.356 | I180: 2098403.63 | J180: 2119387.666 | K180: 1863571.774 | L180: 1882207.491 | M180: 1901029.566 | N180: 1920039.862 | O180: 1939240.261 | P180: 1958632.663 | Q180: 1978218.99 | R180: 1998001.18 | S180: 2017981.192 | T180: 2038161.003 | U180: 2058542.613 | V180: 2079128.04 | W180: 2099919.32 | X180: 2120918.513 | Y180: 2142127.698 | Z180: 2163548.975 | AA180: 2185184.465 | AB180: 2207036.31 | AC180: 2229106.673 | AD180: 2251397.74 | AE180: 2273911.717 | AF180: 2296650.834 | AG180: 2319617.342 | AH180: 2342813.516 | AI180: 2366241.651 | AJ180: 2389904.068 | AK180: 2413803.108 | AL180: 2437941.139
A182: GSLs | B182: 2019 | C182: =B182+1 -> 2020 | D182: =C182+1 -> 2021 | E182: =D182+1 -> 2022 | F182: =E182+1 -> 2023 | G182: =F182+1 -> 2024 | H182: =G182+2 -> 2026 | I182: =H182+1 -> 2027 | J182: =I182+1 -> 2028 | K182: =J182+1 -> 2029 | L182: =K182+1 -> 2030 | M182: =L182+1 -> 2031 | N182: =M182+1 -> 2032 | O182: =N182+1 -> 2033 | P182: =O182+1 -> 2034 | Q182: =P182+1 -> 2035 | R182: =Q182+1 -> 2036 | S182: =R182+1 -> 2037 | T182: =S182+1 -> 2038 | U182: =T182+1 -> 2039 | V182: =U182+1 -> 2040 | W182: =V182+1 -> 2041 | X182: =W182+1 -> 2042 | Y182: =X182+1 -> 2043 | Z182: =Y182+1 -> 2044 | AA182: =Z182+1 -> 2045 | AB182: =AA182+1 -> 2046 | AC182: =AB182+1 -> 2047 | AD182: =AC182+1 -> 2048 | AE182: =AD182+1 -> 2049 | AF182: =AE182+1 -> 2050 | AG182: =AF182+1 -> 2051 | AH182: =AG182+1 -> 2052 | AI182: =AH182+1 -> 2053 | AJ182: =AI182+1 -> 2054 | AK182: =AJ182+1 -> 2055 | AL182: =AK182+1 -> 2056
A183: BAU | I183: 507323.0769 | J183: 507323.0769 | K183: 507323.0769 | L183: 507323.0769 | M183: 507323.0769 | N183: 507323.0769 | O183: 507323.0769 | P183: 507323.0769 | Q183: 507323.0769 | R183: 507323.0769 | S183: 507323.0769 | T183: 507323.0769 | U183: 507323.0769 | V183: 507323.0769 | W183: 507323.0769 | X183: 507323.0769 | Y183: 507323.0769 | Z183: 507323.0769 | AA183: 507323.0769 | AB183: 507323.0769 | AC183: 507323.0769 | AD183: 507323.0769 | AE183: 507323.0769 | AF183: 507323.0769 | AG183: 507323.0769 | AH183: 507323.0769 | AI183: 507323.0769 | AJ183: 507323.0769 | AK183: 507323.0769 | AL183: 507323.0769 | AM183: 507323.0769 | AN183: 507323.0769 | AO183: 507323.0769 | AP183: 507323.0769 | AQ183: 507323.0769 | AR183: 507323.0769 | AS183: 507323.0769 | AT183: 507323.0769 | AU183: 507323.0769 | AV183: 507323.0769 | AW183: 507323.0769 | AX183: 507323.0769 | AY183: 507323.0769 | AZ183: 507323.0769 | BA183: 507323.0769 | BB183: 507323.0769 | BC183: 507323.0769 | BD183: 507323.0769 | BE183: 507323.0769 | BF183: 507323.0769
A184: Option 1 | I184: 507323.0769 | J184: 376214.0857 | K184: 376214.0857 | L184: 376214.0857 | M184: 376214.0857 | N184: 376214.0857 | O184: 376214.0857 | P184: 376214.0857 | Q184: 376214.0857 | R184: 376214.0857 | S184: 376214.0857 | T184: 376214.0857 | U184: 376214.0857 | V184: 376214.0857 | W184: 376214.0857 | X184: 376214.0857 | Y184: 376214.0857 | Z184: 376214.0857 | AA184: 376214.0857 | AB184: 376214.0857 | AC184: 376214.0857 | AD184: 376214.0857 | AE184: 376214.0857 | AF184: 376214.0857 | AG184: 376214.0857 | AH184: 376214.0857 | AI184: 376214.0857 | AJ184: 376214.0857 | AK184: 376214.0857 | AL184: 376214.0857 | AM184: 376214.0857 | AN184: 376214.0857 | AO184: 376214.0857 | AP184: 376214.0857 | AQ184: 376214.0857 | AR184: 376214.0857 | AS184: 376214.0857 | AT184: 376214.0857 | AU184: 376214.0857 | AV184: 376214.0857 | AW184: 376214.0857 | AX184: 376214.0857 | AY184: 376214.0857 | AZ184: 376214.0857 | BA184: 376214.0857 | BB184: 376214.0857 | BC184: 376214.0857 | BD184: 376214.0857 | BE184: 376214.0857 | BF184: 376214.0857
A185: Option 2 | I185: 507323.0769 | J185: 507323.0769 | K185: 441671.0821 | L185: 441671.0821 | M185: 441671.0821 | N185: 441671.0821 | O185: 441671.0821 | P185: 441671.0821 | Q185: 441671.0821 | R185: 441671.0821 | S185: 441671.0821 | T185: 441671.0821 | U185: 441671.0821 | V185: 441671.0821 | W185: 441671.0821 | X185: 441671.0821 | Y185: 441671.0821 | Z185: 441671.0821 | AA185: 441671.0821 | AB185: 441671.0821 | AC185: 441671.0821 | AD185: 441671.0821 | AE185: 441671.0821 | AF185: 441671.0821 | AG185: 441671.0821 | AH185: 441671.0821 | AI185: 441671.0821 | AJ185: 441671.0821 | AK185: 441671.0821 | AL185: 441671.0821 | AM185: 441671.0821 | AN185: 441671.0821 | AO185: 441671.0821 | AP185: 441671.0821 | AQ185: 441671.0821 | AR185: 441671.0821 | AS185: 441671.0821 | AT185: 441671.0821 | AU185: 441671.0821 | AV185: 441671.0821 | AW185: 441671.0821 | AX185: 441671.0821 | AY185: 441671.0821 | AZ185: 441671.0821 | BA185: 441671.0821 | BB185: 441671.0821 | BC185: 441671.0821 | BD185: 441671.0821 | BE185: 441671.0821 | BF185: 441671.0821
A188: Full Program
A190: Cost | B190: 2019 | C190: =B190+1 -> 2020 | D190: =C190+1 -> 2021 | E190: =D190+1 -> 2022 | F190: =E190+1 -> 2023 | G190: =F190+1 -> 2024 | H190: =G190+2 -> 2026 | I190: =H190+1 -> 2027 | J190: =I190+1 -> 2028 | K190: =J190+1 -> 2029 | L190: =K190+1 -> 2030 | M190: =L190+1 -> 2031 | N190: =M190+1 -> 2032 | O190: =N190+1 -> 2033 | P190: =O190+1 -> 2034 | Q190: =P190+1 -> 2035 | R190: =Q190+1 -> 2036 | S190: =R190+1 -> 2037 | T190: =S190+1 -> 2038 | U190: =T190+1 -> 2039 | V190: =U190+1 -> 2040 | W190: =V190+1 -> 2041 | X190: =W190+1 -> 2042 | Y190: =X190+1 -> 2043 | Z190: =Y190+1 -> 2044 | AA190: =Z190+1 -> 2045 | AB190: =AA190+1 -> 2046 | AC190: =AB190+1 -> 2047 | AD190: =AC190+1 -> 2048 | AE190: =AD190+1 -> 2049 | AF190: =AE190+1 -> 2050 | AG190: =AF190+1 -> 2051 | AH190: =AG190+1 -> 2052 | AI190: =AH190+1 -> 2053 | AJ190: =AI190+1 -> 2054 | AK190: =AJ190+1 -> 2055 | AL190: =AK190+1 -> 2056
A191: Economic Cost (Unserved Energy) | H191: =SUM(H25,H45,H66,H87,H108,H131,H151,H171) -> 6093042.372 | I191: 6153972.795 | J191: 6215512.523 | K191: 6277667.649 | L191: 6340444.325 | M191: 6403848.768 | N191: 6467887.256 | O191: 6532566.129 | P191: 6597891.79 | Q191: 6663870.708 | R191: 6730509.415 | S191: 6797814.509 | T191: 6865792.654 | U191: 6934450.581 | V191: 7003795.086 | W191: 7073833.037 | X191: 7144571.368 | Y191: 7216017.081 | Z191: 7288177.252 | AA191: 7361059.025 | AB191: 7434669.615 | AC191: 7509016.311 | AD191: 7584106.474 | AE191: 7659947.539 | AF191: 7736547.014 | AG191: 7813912.485 | AH191: 7892051.609 | AI191: 7970972.125 | AJ191: 8050681.847 | AK191: 8131188.665 | AL191: 8212500.552
A192: Operational Cost (Reactive Work) | H192: =SUM(H26,H46,H67,H88,H109,H132,H152,H172) -> 319908.524 | I192: 319908.524 | J192: 319908.524 | K192: 319908.524 | L192: 319908.524 | M192: 319908.524 | N192: 319908.524 | O192: 319908.524 | P192: 319908.524 | Q192: 319908.524 | R192: 319908.524 | S192: 319908.524 | T192: 319908.524 | U192: 319908.524 | V192: 319908.524 | W192: 319908.524 | X192: 319908.524 | Y192: 319908.524 | Z192: 319908.524 | AA192: 319908.524 | AB192: 319908.524 | AC192: 319908.524 | AD192: 319908.524 | AE192: 319908.524 | AF192: 319908.524 | AG192: 319908.524 | AH192: 319908.524 | AI192: 319908.524 | AJ192: 319908.524 | AK192: 319908.524 | AL192: 319908.524
A193: Preferred Options (AER VCRs) Value of EUE | H193: =SUM(H27,H47,H69,H89,H112,H134,H154,H173) -> 6092833.369 | I193: =SUM(I27,I47,I69,I89,I112,I134,I154,I173) -> 6153761.703 | J193: 4950762.943 | K193: 4960144.108 | L193: 5009745.549 | M193: 5059843.004 | N193: 5110441.434 | O193: 5161545.849 | P193: 5213161.307 | Q193: 5265292.92 | R193: 5317945.849 | S193: 5371125.308 | T193: 5424836.561 | U193: 5479084.926 | V193: 5533875.776 | W193: 5589214.534 | X193: 5645106.679 | Y193: 5701557.746 | Z193: 5758573.323 | AA193: 5816159.056 | AB193: 5874320.647 | AC193: 5933063.853 | AD193: 5992394.492 | AE193: 6052318.437 | AF193: 6112841.621 | AG193: 6173970.037 | AH193: 6235709.738 | AI193: 6298066.835 | AJ193: 6361047.504 | AK193: 6424657.979 | AL193: 6488904.558
A196: GSLs | B196: 2019 | C196: =B196+1 -> 2020 | D196: =C196+1 -> 2021 | E196: =D196+1 -> 2022 | F196: =E196+1 -> 2023 | G196: =F196+1 -> 2024 | H196: =G196+2 -> 2026 | I196: =H196+1 -> 2027 | J196: =I196+1 -> 2028 | K196: =J196+1 -> 2029 | L196: =K196+1 -> 2030 | M196: =L196+1 -> 2031 | N196: =M196+1 -> 2032 | O196: =N196+1 -> 2033 | P196: =O196+1 -> 2034 | Q196: =P196+1 -> 2035 | R196: =Q196+1 -> 2036 | S196: =R196+1 -> 2037 | T196: =S196+1 -> 2038 | U196: =T196+1 -> 2039 | V196: =U196+1 -> 2040 | W196: =V196+1 -> 2041 | X196: =W196+1 -> 2042 | Y196: =X196+1 -> 2043 | Z196: =Y196+1 -> 2044 | AA196: =Z196+1 -> 2045 | AB196: =AA196+1 -> 2046 | AC196: =AB196+1 -> 2047 | AD196: =AC196+1 -> 2048 | AE196: =AD196+1 -> 2049 | AF196: =AE196+1 -> 2050 | AG196: =AF196+1 -> 2051 | AH196: =AG196+1 -> 2052 | AI196: =AH196+1 -> 2053 | AJ196: =AI196+1 -> 2054 | AK196: =AJ196+1 -> 2055 | AL196: =AK196+1 -> 2056
A197: BAU | I197: =SUM(I37,I58,I79,I100,I122,I143,I163,I183) -> 1352733.846 | J197: 1352733.846 | K197: 1352733.846 | L197: 1352733.846 | M197: 1352733.846 | N197: 1352733.846 | O197: 1352733.846 | P197: 1352733.846 | Q197: 1352733.846 | R197: 1352733.846 | S197: 1352733.846 | T197: 1352733.846 | U197: 1352733.846 | V197: 1352733.846 | W197: 1352733.846 | X197: 1352733.846 | Y197: 1352733.846 | Z197: 1352733.846 | AA197: 1352733.846 | AB197: 1352733.846 | AC197: 1352733.846 | AD197: 1352733.846 | AE197: 1352733.846 | AF197: 1352733.846 | AG197: 1352733.846 | AH197: 1352733.846 | AI197: 1352733.846 | AJ197: 1352733.846 | AK197: 1352733.846 | AL197: 1352733.846 | AM197: 1352733.846 | AN197: 1352733.846 | AO197: =SUM(AO37,AO58,AO79,AO100,AO122,AO143,AO163,AO183) -> 1352733.846 | AP197: 1352733.846 | AQ197: 1352733.846 | AR197: 1352733.846 | AS197: 1352733.846 | AT197: 1352733.846 | AU197: 1352733.846 | AV197: 1352733.846 | AW197: 1352733.846 | AX197: 1352733.846 | AY197: 1352733.846 | AZ197: 1352733.846 | BA197: 1352733.846 | BB197: 1352733.846 | BC197: 1352733.846 | BD197: 1352733.846 | BE197: 1352733.846 | BF197: 1352733.846
A198: Preferred Options (AER VCRs) | I198: =SUM(I38,I59,I81,I101,I125,I145,I165,I184) -> 1352733.846 | J198: 1108388.513 | K198: 1062196.012 | L198: 1062196.012 | M198: 1062196.012 | N198: 1062196.012 | O198: 1062196.012 | P198: 1062196.012 | Q198: 1062196.012 | R198: 1062196.012 | S198: 1062196.012 | T198: 1062196.012 | U198: 1062196.012 | V198: 1062196.012 | W198: 1062196.012 | X198: 1062196.012 | Y198: 1062196.012 | Z198: 1062196.012 | AA198: 1062196.012 | AB198: 1062196.012 | AC198: 1062196.012 | AD198: 1062196.012 | AE198: 1062196.012 | AF198: 1062196.012 | AG198: 1062196.012 | AH198: 1062196.012 | AI198: 1062196.012 | AJ198: 1062196.012 | AK198: 1062196.012 | AL198: 1062196.012 | AM198: 1062196.012 | AN198: 1062196.012 | AO198: =SUM(AO38,AO59,AO81,AO101,AO125,AO145,AO165,AO184) -> 1062196.012 | AP198: 1062196.012 | AQ198: 1062196.012 | AR198: 1062196.012 | AS198: 1062196.012 | AT198: 1062196.012 | AU198: 1062196.012 | AV198: 1062196.012 | AW198: 1062196.012 | AX198: 1062196.012 | AY198: 1062196.012 | AZ198: 1062196.012 | BA198: 1062196.012 | BB198: 1062196.012 | BC198: 1062196.012 | BD198: 1062196.012 | BE198: 1062196.012 | BF198: 1062196.012
A202: End of Sheet

Sheet NPV Model Outputs
A7: NPV Output Summary
A9: Base Case: Do Nothing
B10: Central Assumptions | C10: Higher Discount Rate | D10: Lower Discount Rate | E10: Higher Costs | F10: Lower Costs | G10: Average
A11: Base Case | B11: ='4_Summary'!C22/1000000 -> 0 | C11: ='4_Summary'!D22/1000000 -> 0 | D11: ='4_Summary'!E22/1000000 -> 0 | E11: ='4_Summary'!F22/1000000 -> 0 | F11: ='4_Summary'!G22/1000000 -> 0 | G11: ='4_Summary'!H22/1000000 -> 0
A12: Option 1 | B12: ='4_Summary'!C23/1000000 -> 4.268410754 | C12: ='4_Summary'!D23/1000000 -> 0.3646734843 | D12: ='4_Summary'!E23/1000000 -> 9.331617743 | E12: ='4_Summary'!F23/1000000 -> 1.815580645 | F12: ='4_Summary'!G23/1000000 -> 6.721240864 | G12: ='4_Summary'!H23/1000000 -> 4.500304698
A13: Option 2 | B13: ='4_Summary'!C24/1000000 ->  | C13: ='4_Summary'!D24/1000000 ->  | D13: ='4_Summary'!E24/1000000 ->  | E13: ='4_Summary'!F24/1000000 ->  | F13: ='4_Summary'!G24/1000000 ->  | G13: ='4_Summary'!H24/1000000 -> 
A14: Option 3 | B14: ='4_Summary'!C25/1000000 ->  | C14: ='4_Summary'!D25/1000000 ->  | D14: ='4_Summary'!E25/1000000 ->  | E14: ='4_Summary'!F25/1000000 ->  | F14: ='4_Summary'!G25/1000000 ->  | G14: ='4_Summary'!H25/1000000 -> 
A15: Option 4 | B15: ='4_Summary'!C26/1000000 ->  | C15: ='4_Summary'!D26/1000000 ->  | D15: ='4_Summary'!E26/1000000 ->  | E15: ='4_Summary'!F26/1000000 ->  | F15: ='4_Summary'!G26/1000000 ->  | G15: ='4_Summary'!H26/1000000 -> 
A16: Option 5 | B16: ='4_Summary'!C27/1000000 ->  | C16: ='4_Summary'!D27/1000000 ->  | D16: ='4_Summary'!E27/1000000 ->  | E16: ='4_Summary'!F27/1000000 ->  | F16: ='4_Summary'!G27/1000000 ->  | G16: ='4_Summary'!H27/1000000 -> 
A19: NPV Model Outputs
A21: Base Case: Do Nothing
B22: FY27 | C22: FY28 | D22: FY29 | E22: FY30 | F22: FY31 | G22: Total FY27-31 | H22: Full assessment period
A23: Cost | B23: ='4_BC'!C11/1000000 -> 1.67264237 | C23: ='4_BC'!D11/1000000 -> 1.584541844 | D23: ='4_BC'!E11/1000000 -> 1.501081701 | E23: ='4_BC'!F11/1000000 -> 1.422017527 | F23: ='4_BC'!G11/1000000 -> 1.347117778 | G23: ='4_BC'!H11/1000000 -> 7.52740122 | H23: ='4_BC'!I11/1000000 -> 25.49221773
A24: Energy at risk | B24: ='4_BC'!C12/1000000 -> -6.153972795 | C24: ='4_BC'!D12/1000000 -> -5.888132364 | D24: ='4_BC'!E12/1000000 -> -5.633775756 | E24: ='4_BC'!F12/1000000 -> -5.39040689 | F24: ='4_BC'!G12/1000000 -> -5.157551117 | G24: ='4_BC'!H12/1000000 -> -28.22383892 | H24: ='4_BC'!I12/1000000 -> -104.584313
A25: NPV | B25: ='4_BC'!C13/1000000 -> -130.0765307
A28: Option 1 (Relative to Base Case) | C28: ='1_KMA'!E11 -> Preferred Options (AER VCRs)
B29: FY27 | C29: FY28 | D29: FY29 | E29: FY30 | F29: FY31 | G29: Total FY27-31 | H29: Full assessment period
A30: Cost | B30: ='4_Op1'!C15/1000000 -> 19.02722002 | C30: ='4_Op1'!D15/1000000 -> 3.878358524 | D30: ='4_Op1'!E15/1000000 -> -0.442416941 | E30: ='4_Op1'!F15/1000000 -> -0.4191141919 | F30: ='4_Op1'!G15/1000000 -> -0.3970388328 | G30: ='4_Op1'!H15/1000000 -> 21.64700858 | H30: ='4_Op1'!I15/1000000 -> 16.35220073
A31: Energy at risk | B31: ='4_Op1'!C16/1000000 -> 0.0002110928985 | C31: ='4_Op1'!D16/1000000 -> 1.198133366 | D31: ='4_Op1'!E16/1000000 -> 1.182386931 | E31: ='4_Op1'!F16/1000000 -> 1.131309966 | F31: ='4_Op1'!G16/1000000 -> 1.082439433 | G31: ='4_Op1'!H16/1000000 -> 4.594480788 | H31: ='4_Op1'!I16/1000000 -> 20.62061148
A32: NPV | B32: ='4_Op1'!C17/1000000 -> 4.268410754
A37: Option 1 Capex and Benefits
B38: FY27 | C38: FY28 | D38: FY29 | E38: FY30 | F38: FY31 | G38: Total FY27-31 | H38: Full assessment period
A39: Capex | B39: ='4_Op1'!C27/1000000 -> 19.02722002 | C39: ='4_Op1'!D27/1000000 -> 4.230557569 | D39: ='4_Op1'!E27/1000000 -> 0 | E39: ='4_Op1'!F27/1000000 -> 0 | F39: ='4_Op1'!G27/1000000 -> 0 | G39: ='4_Op1'!H27/1000000 -> 23.25777759 | H39: ='4_Op1'!I27/1000000 -> 23.25777759
A40: Opex | B40: ='4_Op1'!C28/1000000 -> 0 | C40: ='4_Op1'!D28/1000000 -> -0.3521990454 | D40: ='4_Op1'!E28/1000000 -> -0.442416941 | E40: ='4_Op1'!F28/1000000 -> -0.4191141919 | F40: ='4_Op1'!G28/1000000 -> -0.3970388328 | G40: ='4_Op1'!H28/1000000 -> -1.610769011 | H40: ='4_Op1'!I28/1000000 -> -6.905576857
A41: Benefits | B41: ='4_Op1'!C16/1000000 -> 0.0002110928985 | C41: ='4_Op1'!D16/1000000 -> 1.198133366 | D41: ='4_Op1'!E16/1000000 -> 1.182386931 | E41: ='4_Op1'!F16/1000000 -> 1.131309966 | F41: ='4_Op1'!G16/1000000 -> 1.082439433 | G41: ='4_Op1'!H16/1000000 -> 4.594480788 | H41: ='4_Op1'!I16/1000000 -> 20.62061148
A48: End of Sheet

Sheet Instructions
A1: Some cells are protected to prevent accidential edits. The password to unprotect the sheet is 1.
A3: Structure:
B4: Section 1: Key Modelling Assumptions | F4: User input needed | H4: Please enter assumptions such as denomination ($dollars, $thousands or $millions) and evaluation period (e.g., 30 years).
B5: Section 2: General Inputs | F5: User input needed | H5: Please enter capex, opex and benefits assumptions for the base case and alternative options - there is one worksheet per option.
B6: Section 3: Output Calculations | F6: No inputs needed | H6: Automatic calculations & no inputs needed. This section is hidden.
B7: Section 4: Outputs | F7: No inputs needed | H7: Summary tables have been automatically generated & no inputs needed.
B8: Appendix A: CPI | F8: No inputs needed | H8: This section automatically calculates the escalation factor to convert dollars from one basis to another. No inputs needed.
B9: Appendix B: Modelling Controls | F9: No inputs needed | H9: No inputs needed.
A11: Cell types:
C12: Comment
B13: Blue cells | C13: User to enter inputs, whether it be:
B14: Blue cells | C14: entering data in directly
B15: Blue cells | C15: adjusting the formula to suit your specific needs
B16: White cells | C16: No need for inputs
B17: Black cells | C17: Headings
B18: Grey cells | C18: Headings
B19: Red Text | C19: White cells with red text contains reminders about how the inputs should be entered
B20: 2023-06-30 | C20: For example "30-June-23" is a reminder that the model is expecting the dollar amounts to be in June-23 dollars.
B21: $millions | C21: For example "$millions" is a reminder that the model is expecting the dollar amounts to be in millions.

Sheet Cover
C9: AusNet Services
C10: Business Case Evaluation
C11: HV Feeder Reliability Improvement

Sheet 1_KMA->
C6: Key Modelling Assumptions
C7: Section 1.
C9: =Cover!$C$9 -> AusNet Services
C10: =Cover!$C$10 -> Business Case Evaluation
C11: =Cover!$C$11 -> HV Feeder Reliability Improvement

Sheet 1_KMA
B1: Key Modelling Assumptions | I1: Regulatory Period Indicator | J1: ='1_KMA'!J30 -> 1 | K1: ='1_KMA'!K30 -> 1 | L1: ='1_KMA'!L30 -> 1 | M1: ='1_KMA'!M30 -> 1 | N1: ='1_KMA'!N30 -> 1 | O1: ='1_KMA'!O30 -> 0 | P1: ='1_KMA'!P30 -> 0 | Q1: ='1_KMA'!Q30 -> 0 | R1: ='1_KMA'!R30 -> 0 | S1: ='1_KMA'!S30 -> 0 | T1: ='1_KMA'!T30 -> 0 | U1: ='1_KMA'!U30 -> 0 | V1: ='1_KMA'!V30 -> 0 | W1: ='1_KMA'!W30 -> 0 | X1: ='1_KMA'!X30 -> 0 | Y1: ='1_KMA'!Y30 -> 0 | Z1: ='1_KMA'!Z30 -> 0 | AA1: ='1_KMA'!AA30 -> 0 | AB1: ='1_KMA'!AB30 -> 0 | AC1: ='1_KMA'!AC30 -> 0 | AD1: ='1_KMA'!AD30 -> 0 | AE1: ='1_KMA'!AE30 -> 0 | AF1: ='1_KMA'!AF30 -> 0 | AG1: ='1_KMA'!AG30 -> 0 | AH1: ='1_KMA'!AH30 -> 0 | AI1: ='1_KMA'!AI30 -> 0 | AJ1: ='1_KMA'!AJ30 -> 0 | AK1: ='1_KMA'!AK30 -> 0 | AL1: ='1_KMA'!AL30 -> 0 | AM1: ='1_KMA'!AM30 -> 0 | AN1: ='1_KMA'!AN30 -> 0 | AO1: ='1_KMA'!AO30 -> 0 | AP1: ='1_KMA'!AP30 -> 0 | AQ1: ='1_KMA'!AQ30 -> 0 | AR1: ='1_KMA'!AR30 -> 0 | AS1: ='1_KMA'!AS30 -> 0 | AT1: ='1_KMA'!AT30 -> 0 | AU1: ='1_KMA'!AU30 -> 0 | AV1: ='1_KMA'!AV30 -> 0 | AW1: ='1_KMA'!AW30 -> 0 | AX1: ='1_KMA'!AX30 -> 0 | AY1: ='1_KMA'!AY30 -> 0 | AZ1: ='1_KMA'!AZ30 -> 0 | BA1: ='1_KMA'!BA30 -> 0 | BB1: ='1_KMA'!BB30 -> 0 | BC1: ='1_KMA'!BC30 -> 0 | BD1: ='1_KMA'!BD30 -> 0 | BE1: ='1_KMA'!BE30 -> 0 | BF1: ='1_KMA'!BF30 -> 0 | BG1: ='1_KMA'!BG30 -> 0
B2: =Cover!$C$9 -> AusNet Services | I2: Period Start Date | J2: ='1_KMA'!J31 -> 2026-07-01 | K2: ='1_KMA'!K31 -> 2027-07-01 | L2: ='1_KMA'!L31 -> 2028-07-01 | M2: ='1_KMA'!M31 -> 2029-07-01 | N2: ='1_KMA'!N31 -> 2030-07-01 | O2: ='1_KMA'!O31 -> 2031-07-01 | P2: ='1_KMA'!P31 -> 2032-07-01 | Q2: ='1_KMA'!Q31 -> 2033-07-01 | R2: ='1_KMA'!R31 -> 2034-07-01 | S2: ='1_KMA'!S31 -> 2035-07-01 | T2: ='1_KMA'!T31 -> 2036-07-01 | U2: ='1_KMA'!U31 -> 2037-07-01 | V2: ='1_KMA'!V31 -> 2038-07-01 | W2: ='1_KMA'!W31 -> 2039-07-01 | X2: ='1_KMA'!X31 -> 2040-07-01 | Y2: ='1_KMA'!Y31 -> 2041-07-01 | Z2: ='1_KMA'!Z31 -> 2042-07-01 | AA2: ='1_KMA'!AA31 -> 2043-07-01 | AB2: ='1_KMA'!AB31 -> 2044-07-01 | AC2: ='1_KMA'!AC31 -> 2045-07-01 | AD2: ='1_KMA'!AD31 -> 2046-07-01 | AE2: ='1_KMA'!AE31 -> 2047-07-01 | AF2: ='1_KMA'!AF31 -> 2048-07-01 | AG2: ='1_KMA'!AG31 -> 2049-07-01 | AH2: ='1_KMA'!AH31 -> 2050-07-01 | AI2: ='1_KMA'!AI31 -> 2051-07-01 | AJ2: ='1_KMA'!AJ31 -> 2052-07-01 | AK2: ='1_KMA'!AK31 -> 2053-07-01 | AL2: ='1_KMA'!AL31 -> 2054-07-01 | AM2: ='1_KMA'!AM31 -> 2055-07-01 | AN2: ='1_KMA'!AN31 -> 2056-07-01 | AO2: ='1_KMA'!AO31 -> 2057-07-01 | AP2: ='1_KMA'!AP31 -> 2058-07-01 | AQ2: ='1_KMA'!AQ31 -> 2059-07-01 | AR2: ='1_KMA'!AR31 -> 2060-07-01 | AS2: ='1_KMA'!AS31 -> 2061-07-01 | AT2: ='1_KMA'!AT31 -> 2062-07-01 | AU2: ='1_KMA'!AU31 -> 2063-07-01 | AV2: ='1_KMA'!AV31 -> 2064-07-01 | AW2: ='1_KMA'!AW31 -> 2065-07-01 | AX2: ='1_KMA'!AX31 -> 2066-07-01 | AY2: ='1_KMA'!AY31 -> 2067-07-01 | AZ2: ='1_KMA'!AZ31 -> 2068-07-01 | BA2: ='1_KMA'!BA31 -> 2069-07-01 | BB2: ='1_KMA'!BB31 -> 2070-07-01 | BC2: ='1_KMA'!BC31 -> 2071-07-01 | BD2: ='1_KMA'!BD31 -> 2072-07-01 | BE2: ='1_KMA'!BE31 -> 2073-07-01 | BF2: ='1_KMA'!BF31 -> 2074-07-01 | BG2: ='1_KMA'!BG31 -> 2075-07-01
B3: =Cover!$C$10 -> Business Case Evaluation | I3: Period End Date | J3: ='1_KMA'!J32 -> 2027-06-30 | K3: ='1_KMA'!K32 -> 2028-06-30 | L3: ='1_KMA'!L32 -> 2029-06-30 | M3: ='1_KMA'!M32 -> 2030-06-30 | N3: ='1_KMA'!N32 -> 2031-06-30 | O3: ='1_KMA'!O32 -> 2032-06-30 | P3: ='1_KMA'!P32 -> 2033-06-30 | Q3: ='1_KMA'!Q32 -> 2034-06-30 | R3: ='1_KMA'!R32 -> 2035-06-30 | S3: ='1_KMA'!S32 -> 2036-06-30 | T3: ='1_KMA'!T32 -> 2037-06-30 | U3: ='1_KMA'!U32 -> 2038-06-30 | V3: ='1_KMA'!V32 -> 2039-06-30 | W3: ='1_KMA'!W32 -> 2040-06-30 | X3: ='1_KMA'!X32 -> 2041-06-30 | Y3: ='1_KMA'!Y32 -> 2042-06-30 | Z3: ='1_KMA'!Z32 -> 2043-06-30 | AA3: ='1_KMA'!AA32 -> 2044-06-30 | AB3: ='1_KMA'!AB32 -> 2045-06-30 | AC3: ='1_KMA'!AC32 -> 2046-06-30 | AD3: ='1_KMA'!AD32 -> 2047-06-30 | AE3: ='1_KMA'!AE32 -> 2048-06-30 | AF3: ='1_KMA'!AF32 -> 2049-06-30 | AG3: ='1_KMA'!AG32 -> 2050-06-30 | AH3: ='1_KMA'!AH32 -> 2051-06-30 | AI3: ='1_KMA'!AI32 -> 2052-06-30 | AJ3: ='1_KMA'!AJ32 -> 2053-06-30 | AK3: ='1_KMA'!AK32 -> 2054-06-30 | AL3: ='1_KMA'!AL32 -> 2055-06-30 | AM3: ='1_KMA'!AM32 -> 2056-06-30 | AN3: ='1_KMA'!AN32 -> 2057-06-30 | AO3: ='1_KMA'!AO32 -> 2058-06-30 | AP3: ='1_KMA'!AP32 -> 2059-06-30 | AQ3: ='1_KMA'!AQ32 -> 2060-06-30 | AR3: ='1_KMA'!AR32 -> 2061-06-30 | AS3: ='1_KMA'!AS32 -> 2062-06-30 | AT3: ='1_KMA'!AT32 -> 2063-06-30 | AU3: ='1_KMA'!AU32 -> 2064-06-30 | AV3: ='1_KMA'!AV32 -> 2065-06-30 | AW3: ='1_KMA'!AW32 -> 2066-06-30 | AX3: ='1_KMA'!AX32 -> 2067-06-30 | AY3: ='1_KMA'!AY32 -> 2068-06-30 | AZ3: ='1_KMA'!AZ32 -> 2069-06-30 | BA3: ='1_KMA'!BA32 -> 2070-06-30 | BB3: ='1_KMA'!BB32 -> 2071-06-30 | BC3: ='1_KMA'!BC32 -> 2072-06-30 | BD3: ='1_KMA'!BD32 -> 2073-06-30 | BE3: ='1_KMA'!BE32 -> 2074-06-30 | BF3: ='1_KMA'!BF32 -> 2075-06-30 | BG3: ='1_KMA'!BG32 -> 2076-06-30
B4: =Cover!$C$11 -> HV Feeder Reliability Improvement | I4: Project Year | J4: ='1_KMA'!J33 -> 1 | K4: ='1_KMA'!K33 -> 2 | L4: ='1_KMA'!L33 -> 3 | M4: ='1_KMA'!M33 -> 4 | N4: ='1_KMA'!N33 -> 5 | O4: ='1_KMA'!O33 -> 6 | P4: ='1_KMA'!P33 -> 7 | Q4: ='1_KMA'!Q33 -> 8 | R4: ='1_KMA'!R33 -> 9 | S4: ='1_KMA'!S33 -> 10 | T4: ='1_KMA'!T33 -> 11 | U4: ='1_KMA'!U33 -> 12 | V4: ='1_KMA'!V33 -> 13 | W4: ='1_KMA'!W33 -> 14 | X4: ='1_KMA'!X33 -> 15 | Y4: ='1_KMA'!Y33 -> 16 | Z4: ='1_KMA'!Z33 -> 17 | AA4: ='1_KMA'!AA33 -> 18 | AB4: ='1_KMA'!AB33 -> 19 | AC4: ='1_KMA'!AC33 -> 20 | AD4: ='1_KMA'!AD33 -> 21 | AE4: ='1_KMA'!AE33 -> 22 | AF4: ='1_KMA'!AF33 -> 23 | AG4: ='1_KMA'!AG33 -> 24 | AH4: ='1_KMA'!AH33 -> 25 | AI4: ='1_KMA'!AI33 -> 26 | AJ4: ='1_KMA'!AJ33 -> 27 | AK4: ='1_KMA'!AK33 -> 28 | AL4: ='1_KMA'!AL33 -> 29 | AM4: ='1_KMA'!AM33 -> 30 | AN4: ='1_KMA'!AN33 -> 31 | AO4: ='1_KMA'!AO33 -> 32 | AP4: ='1_KMA'!AP33 -> 33 | AQ4: ='1_KMA'!AQ33 -> 34 | AR4: ='1_KMA'!AR33 -> 35 | AS4: ='1_KMA'!AS33 -> 36 | AT4: ='1_KMA'!AT33 -> 37 | AU4: ='1_KMA'!AU33 -> 38 | AV4: ='1_KMA'!AV33 -> 39 | AW4: ='1_KMA'!AW33 -> 40 | AX4: ='1_KMA'!AX33 -> 41 | AY4: ='1_KMA'!AY33 -> 42 | AZ4: ='1_KMA'!AZ33 -> 43 | BA4: ='1_KMA'!BA33 -> 44 | BB4: ='1_KMA'!BB33 -> 45 | BC4: ='1_KMA'!BC33 -> 46 | BD4: ='1_KMA'!BD33 -> 47 | BE4: ='1_KMA'!BE33 -> 48 | BF4: ='1_KMA'!BF33 -> 49 | BG4: ='1_KMA'!BG33 -> 50
I5: Financial Year | J5: ='1_KMA'!J34 -> 2027 | K5: ='1_KMA'!K34 -> 2028 | L5: ='1_KMA'!L34 -> 2029 | M5: ='1_KMA'!M34 -> 2030 | N5: ='1_KMA'!N34 -> 2031 | O5: ='1_KMA'!O34 -> 2032 | P5: ='1_KMA'!P34 -> 2033 | Q5: ='1_KMA'!Q34 -> 2034 | R5: ='1_KMA'!R34 -> 2035 | S5: ='1_KMA'!S34 -> 2036 | T5: ='1_KMA'!T34 -> 2037 | U5: ='1_KMA'!U34 -> 2038 | V5: ='1_KMA'!V34 -> 2039 | W5: ='1_KMA'!W34 -> 2040 | X5: ='1_KMA'!X34 -> 2041 | Y5: ='1_KMA'!Y34 -> 2042 | Z5: ='1_KMA'!Z34 -> 2043 | AA5: ='1_KMA'!AA34 -> 2044 | AB5: ='1_KMA'!AB34 -> 2045 | AC5: ='1_KMA'!AC34 -> 2046 | AD5: ='1_KMA'!AD34 -> 2047 | AE5: ='1_KMA'!AE34 -> 2048 | AF5: ='1_KMA'!AF34 -> 2049 | AG5: ='1_KMA'!AG34 -> 2050 | AH5: ='1_KMA'!AH34 -> 2051 | AI5: ='1_KMA'!AI34 -> 2052 | AJ5: ='1_KMA'!AJ34 -> 2053 | AK5: ='1_KMA'!AK34 -> 2054 | AL5: ='1_KMA'!AL34 -> 2055 | AM5: ='1_KMA'!AM34 -> 2056 | AN5: ='1_KMA'!AN34 -> 2057 | AO5: ='1_KMA'!AO34 -> 2058 | AP5: ='1_KMA'!AP34 -> 2059 | AQ5: ='1_KMA'!AQ34 -> 2060 | AR5: ='1_KMA'!AR34 -> 2061 | AS5: ='1_KMA'!AS34 -> 2062 | AT5: ='1_KMA'!AT34 -> 2063 | AU5: ='1_KMA'!AU34 -> 2064 | AV5: ='1_KMA'!AV34 -> 2065 | AW5: ='1_KMA'!AW34 -> 2066 | AX5: ='1_KMA'!AX34 -> 2067 | AY5: ='1_KMA'!AY34 -> 2068 | AZ5: ='1_KMA'!AZ34 -> 2069 | BA5: ='1_KMA'!BA34 -> 2070 | BB5: ='1_KMA'!BB34 -> 2071 | BC5: ='1_KMA'!BC34 -> 2072 | BD5: ='1_KMA'!BD34 -> 2073 | BE5: ='1_KMA'!BE34 -> 2074 | BF5: ='1_KMA'!BF34 -> 2075 | BG5: ='1_KMA'!BG34 -> 2076
B7: Project Details
B9: Option Name | E9: Description | L9: Life of the asset for annualised cost calculation (years) | O9: Will this option be used in your assessment?
B10: Base Case | O10: Yes
B11: Option 1 | E11: =Forecasts!A198 -> Preferred Options (AER VCRs) | L11: 30 | O11: Yes | P11: Select "Yes" if this option will be used in your assessment
B12: Option 2 | O12: No | P12: Select "No" if this option will not be used in your assessment
B13: Option 3 | O13: No | P13: Selecting "Yes" when you are in fact not assessing this option will negatively affect how the summary charts are presented
B14: Option 4 | O14: No
B15: Option 5 | O15: No
B17: Modelling Controls
B19: Denomination of Entered Cashflows | I19: $dollars | J19: Select the denomination that you want the NPV analysis to be in. This does not prevent your capex buildup (for example) to be in dollars or thousands. However, the total row must be in the denomination that you select, which means you might need to adjust the formula (for example divide by 10^6).
B20: Dollar Basis of Entered Value for all Parts of the Model | I20: 2024-06-30 | J20: Select the dollar basis that you are entering unit rates, dollar values, and benefit streams in.
B21: Dollar Basis Needed for EDPR | I21: 2024-06-30 | J21: The reg team is working in FY24 dollars for the Jan 2025 submission, so please ensure this is set to "30-Jun-24". However, this may change as the AER's assessment process evolves.
B22: Model Start Date | I22: 2026-07-01
B23: Assessment Period (Years) | I23: 30
B24: Model End Date | I24: =EOMONTH(I22+(I23*365),0) -> 2056-06-30
B25: Regulatory Period Start Date | I25: 2026-07-01 | J25: Do not change as this is the start date of the next regulatory period
B26: Regulatory Period End Date | I26: 2031-06-30 | J26: Do not change as this is the end date of the next regulatory period
B27: CPI p.a. (for future periods withouta RBA forecast) | I27: 0.025 | J27: Do not change as we have adopted 2.5% p.a. for the periods outside of the RBA's forecast. That is, we use the ABS' actuals where available, the RBA's forecast where available, and then 2.5% p.a. for all other future years.
B28: Real discount rate (base case) | I28: 0.0556 | J28: Do not change as this is the reg team's assumption.
B30: Regulatory Period Indicator | J30: =IF(AND(J$31>=$I$25,J$32<=$I$26),1,0) -> 1 | K30: =IF(AND(K$31>=$I$25,K$32<=$I$26),1,0) -> 1 | L30: 1 | M30: 1 | N30: 1 | O30: 0 | P30: 0 | Q30: 0 | R30: 0 | S30: 0 | T30: 0 | U30: 0 | V30: 0 | W30: 0 | X30: 0 | Y30: 0 | Z30: 0 | AA30: 0 | AB30: 0 | AC30: 0 | AD30: 0 | AE30: 0 | AF30: 0 | AG30: 0 | AH30: 0 | AI30: 0 | AJ30: 0 | AK30: 0 | AL30: 0 | AM30: 0 | AN30: 0 | AO30: 0 | AP30: =IF(AND(AP$31>=$I$25,AP$32<=$I$26),1,0) -> 0 | AQ30: 0 | AR30: 0 | AS30: 0 | AT30: 0 | AU30: 0 | AV30: 0 | AW30: 0 | AX30: 0 | AY30: 0 | AZ30: 0 | BA30: 0 | BB30: 0 | BC30: 0 | BD30: 0 | BE30: 0 | BF30: 0 | BG30: 0
B31: Period Start Date | J31: =EDATE($I$22,(J33-1)*12) -> 2026-07-01 | K31: =EDATE($I$22,(K33-1)*12) -> 2027-07-01 | L31: 2028-07-01 | M31: 2029-07-01 | N31: 2030-07-01 | O31: 2031-07-01 | P31: 2032-07-01 | Q31: 2033-07-01 | R31: 2034-07-01 | S31: 2035-07-01 | T31: 2036-07-01 | U31: 2037-07-01 | V31: 2038-07-01 | W31: 2039-07-01 | X31: 2040-07-01 | Y31: 2041-07-01 | Z31: 2042-07-01 | AA31: 2043-07-01 | AB31: 2044-07-01 | AC31: 2045-07-01 | AD31: 2046-07-01 | AE31: 2047-07-01 | AF31: 2048-07-01 | AG31: 2049-07-01 | AH31: 2050-07-01 | AI31: 2051-07-01 | AJ31: 2052-07-01 | AK31: 2053-07-01 | AL31: 2054-07-01 | AM31: 2055-07-01 | AN31: 2056-07-01 | AO31: 2057-07-01 | AP31: =EDATE($I$22,(AP33-1)*12) -> 2058-07-01 | AQ31: 2059-07-01 | AR31: 2060-07-01 | AS31: 2061-07-01 | AT31: 2062-07-01 | AU31: 2063-07-01 | AV31: 2064-07-01 | AW31: 2065-07-01 | AX31: 2066-07-01 | AY31: 2067-07-01 | AZ31: 2068-07-01 | BA31: 2069-07-01 | BB31: 2070-07-01 | BC31: 2071-07-01 | BD31: 2072-07-01 | BE31: 2073-07-01 | BF31: 2074-07-01 | BG31: 2075-07-01
B32: Period End Date | J32: =EDATE(J31,12)-1 -> 2027-06-30 | K32: =EDATE(K31,12)-1 -> 2028-06-30 | L32: 2029-06-30 | M32: =EDATE(M31,12)-1 -> 2030-06-30 | N32: 2031-06-30 | O32: 2032-06-30 | P32: 2033-06-30 | Q32: 2034-06-30 | R32: 2035-06-30 | S32: 2036-06-30 | T32: 2037-06-30 | U32: 2038-06-30 | V32: 2039-06-30 | W32: 2040-06-30 | X32: 2041-06-30 | Y32: 2042-06-30 | Z32: 2043-06-30 | AA32: 2044-06-30 | AB32: 2045-06-30 | AC32: 2046-06-30 | AD32: 2047-06-30 | AE32: 2048-06-30 | AF32: 2049-06-30 | AG32: 2050-06-30 | AH32: 2051-06-30 | AI32: 2052-06-30 | AJ32: 2053-06-30 | AK32: 2054-06-30 | AL32: 2055-06-30 | AM32: 2056-06-30 | AN32: 2057-06-30 | AO32: 2058-06-30 | AP32: 2059-06-30 | AQ32: 2060-06-30 | AR32: 2061-06-30 | AS32: 2062-06-30 | AT32: 2063-06-30 | AU32: 2064-06-30 | AV32: 2065-06-30 | AW32: 2066-06-30 | AX32: 2067-06-30 | AY32: 2068-06-30 | AZ32: 2069-06-30 | BA32: 2070-06-30 | BB32: 2071-06-30 | BC32: 2072-06-30 | BD32: 2073-06-30 | BE32: 2074-06-30 | BF32: 2075-06-30 | BG32: 2076-06-30
B33: ="Project Year" -> Project Year | J33: =COLUMNS($J33:J33) -> 1 | K33: =COLUMNS($J33:K33) -> 2 | L33: =COLUMNS($J33:L33) -> 3 | M33: =COLUMNS($J33:M33) -> 4 | N33: =COLUMNS($J33:N33) -> 5 | O33: =COLUMNS($J33:O33) -> 6 | P33: =COLUMNS($J33:P33) -> 7 | Q33: =COLUMNS($J33:Q33) -> 8 | R33: =COLUMNS($J33:R33) -> 9 | S33: =COLUMNS($J33:S33) -> 10 | T33: =COLUMNS($J33:T33) -> 11 | U33: =COLUMNS($J33:U33) -> 12 | V33: =COLUMNS($J33:V33) -> 13 | W33: =COLUMNS($J33:W33) -> 14 | X33: =COLUMNS($J33:X33) -> 15 | Y33: =COLUMNS($J33:Y33) -> 16 | Z33: =COLUMNS($J33:Z33) -> 17 | AA33: =COLUMNS($J33:AA33) -> 18 | AB33: =COLUMNS($J33:AB33) -> 19 | AC33: =COLUMNS($J33:AC33) -> 20 | AD33: =COLUMNS($J33:AD33) -> 21 | AE33: =COLUMNS($J33:AE33) -> 22 | AF33: =COLUMNS($J33:AF33) -> 23 | AG33: =COLUMNS($J33:AG33) -> 24 | AH33: =COLUMNS($J33:AH33) -> 25 | AI33: =COLUMNS($J33:AI33) -> 26 | AJ33: =COLUMNS($J33:AJ33) -> 27 | AK33: =COLUMNS($J33:AK33) -> 28 | AL33: =COLUMNS($J33:AL33) -> 29 | AM33: =COLUMNS($J33:AM33) -> 30 | AN33: =COLUMNS($J33:AN33) -> 31 | AO33: =COLUMNS($J33:AO33) -> 32 | AP33: =COLUMNS($J33:AP33) -> 33 | AQ33: =COLUMNS($J33:AQ33) -> 34 | AR33: =COLUMNS($J33:AR33) -> 35 | AS33: =COLUMNS($J33:AS33) -> 36 | AT33: =COLUMNS($J33:AT33) -> 37 | AU33: =COLUMNS($J33:AU33) -> 38 | AV33: =COLUMNS($J33:AV33) -> 39 | AW33: =COLUMNS($J33:AW33) -> 40 | AX33: =COLUMNS($J33:AX33) -> 41 | AY33: =COLUMNS($J33:AY33) -> 42 | AZ33: =COLUMNS($J33:AZ33) -> 43 | BA33: =COLUMNS($J33:BA33) -> 44 | BB33: =COLUMNS($J33:BB33) -> 45 | BC33: =COLUMNS($J33:BC33) -> 46 | BD33: =COLUMNS($J33:BD33) -> 47 | BE33: =COLUMNS($J33:BE33) -> 48 | BF33: =COLUMNS($J33:BF33) -> 49 | BG33: =COLUMNS($J33:BG33) -> 50
B34: Financial Year | J34: =YEAR(J32) -> 2027 | K34: =YEAR(K32) -> 2028 | L34: 2029 | M34: 2030 | N34: 2031 | O34: 2032 | P34: 2033 | Q34: 2034 | R34: 2035 | S34: 2036 | T34: 2037 | U34: 2038 | V34: 2039 | W34: 2040 | X34: 2041 | Y34: 2042 | Z34: 2043 | AA34: 2044 | AB34: 2045 | AC34: 2046 | AD34: 2047 | AE34: 2048 | AF34: 2049 | AG34: 2050 | AH34: 2051 | AI34: 2052 | AJ34: 2053 | AK34: 2054 | AL34: 2055 | AM34: 2056 | AN34: 2057 | AO34: 2058 | AP34: 2059 | AQ34: 2060 | AR34: 2061 | AS34: 2062 | AT34: 2063 | AU34: 2064 | AV34: 2065 | AW34: 2066 | AX34: 2067 | AY34: 2068 | AZ34: 2069 | BA34: 2070 | BB34: 2071 | BC34: 2072 | BD34: 2073 | BE34: 2074 | BF34: 2075 | BG34: 2076

Sheet 2.1_Inputs
C6: Inputs
C7: Section 2.1.
C9: =Cover!$C$9 -> AusNet Services
C10: =Cover!$C$10 -> Business Case Evaluation
C11: =Cover!$C$11 -> HV Feeder Reliability Improvement

Sheet 2.1_BC
B1: General Inputs: Base Case | I1: Regulatory Period Indicator | J1: ='1_KMA'!J30 -> 1 | K1: ='1_KMA'!K30 -> 1 | L1: ='1_KMA'!L30 -> 1 | M1: ='1_KMA'!M30 -> 1 | N1: ='1_KMA'!N30 -> 1 | O1: ='1_KMA'!O30 -> 0 | P1: ='1_KMA'!P30 -> 0 | Q1: ='1_KMA'!Q30 -> 0 | R1: ='1_KMA'!R30 -> 0 | S1: ='1_KMA'!S30 -> 0 | T1: ='1_KMA'!T30 -> 0 | U1: ='1_KMA'!U30 -> 0 | V1: ='1_KMA'!V30 -> 0 | W1: ='1_KMA'!W30 -> 0 | X1: ='1_KMA'!X30 -> 0 | Y1: ='1_KMA'!Y30 -> 0 | Z1: ='1_KMA'!Z30 -> 0 | AA1: ='1_KMA'!AA30 -> 0 | AB1: ='1_KMA'!AB30 -> 0 | AC1: ='1_KMA'!AC30 -> 0 | AD1: ='1_KMA'!AD30 -> 0 | AE1: ='1_KMA'!AE30 -> 0 | AF1: ='1_KMA'!AF30 -> 0 | AG1: ='1_KMA'!AG30 -> 0 | AH1: ='1_KMA'!AH30 -> 0 | AI1: ='1_KMA'!AI30 -> 0 | AJ1: ='1_KMA'!AJ30 -> 0 | AK1: ='1_KMA'!AK30 -> 0 | AL1: ='1_KMA'!AL30 -> 0 | AM1: ='1_KMA'!AM30 -> 0 | AN1: ='1_KMA'!AN30 -> 0 | AO1: ='1_KMA'!AO30 -> 0 | AP1: ='1_KMA'!AP30 -> 0 | AQ1: ='1_KMA'!AQ30 -> 0 | AR1: ='1_KMA'!AR30 -> 0 | AS1: ='1_KMA'!AS30 -> 0 | AT1: ='1_KMA'!AT30 -> 0 | AU1: ='1_KMA'!AU30 -> 0 | AV1: ='1_KMA'!AV30 -> 0 | AW1: ='1_KMA'!AW30 -> 0 | AX1: ='1_KMA'!AX30 -> 0 | AY1: ='1_KMA'!AY30 -> 0 | AZ1: ='1_KMA'!AZ30 -> 0 | BA1: ='1_KMA'!BA30 -> 0 | BB1: ='1_KMA'!BB30 -> 0 | BC1: ='1_KMA'!BC30 -> 0 | BD1: ='1_KMA'!BD30 -> 0 | BE1: ='1_KMA'!BE30 -> 0 | BF1: ='1_KMA'!BF30 -> 0 | BG1: ='1_KMA'!BG30 -> 0
B2: =Cover!$C$9 -> AusNet Services | I2: Period Start Date | J2: ='1_KMA'!J31 -> 2026-07-01 | K2: ='1_KMA'!K31 -> 2027-07-01 | L2: ='1_KMA'!L31 -> 2028-07-01 | M2: ='1_KMA'!M31 -> 2029-07-01 | N2: ='1_KMA'!N31 -> 2030-07-01 | O2: ='1_KMA'!O31 -> 2031-07-01 | P2: ='1_KMA'!P31 -> 2032-07-01 | Q2: ='1_KMA'!Q31 -> 2033-07-01 | R2: ='1_KMA'!R31 -> 2034-07-01 | S2: ='1_KMA'!S31 -> 2035-07-01 | T2: ='1_KMA'!T31 -> 2036-07-01 | U2: ='1_KMA'!U31 -> 2037-07-01 | V2: ='1_KMA'!V31 -> 2038-07-01 | W2: ='1_KMA'!W31 -> 2039-07-01 | X2: ='1_KMA'!X31 -> 2040-07-01 | Y2: ='1_KMA'!Y31 -> 2041-07-01 | Z2: ='1_KMA'!Z31 -> 2042-07-01 | AA2: ='1_KMA'!AA31 -> 2043-07-01 | AB2: ='1_KMA'!AB31 -> 2044-07-01 | AC2: ='1_KMA'!AC31 -> 2045-07-01 | AD2: ='1_KMA'!AD31 -> 2046-07-01 | AE2: ='1_KMA'!AE31 -> 2047-07-01 | AF2: ='1_KMA'!AF31 -> 2048-07-01 | AG2: ='1_KMA'!AG31 -> 2049-07-01 | AH2: ='1_KMA'!AH31 -> 2050-07-01 | AI2: ='1_KMA'!AI31 -> 2051-07-01 | AJ2: ='1_KMA'!AJ31 -> 2052-07-01 | AK2: ='1_KMA'!AK31 -> 2053-07-01 | AL2: ='1_KMA'!AL31 -> 2054-07-01 | AM2: ='1_KMA'!AM31 -> 2055-07-01 | AN2: ='1_KMA'!AN31 -> 2056-07-01 | AO2: ='1_KMA'!AO31 -> 2057-07-01 | AP2: ='1_KMA'!AP31 -> 2058-07-01 | AQ2: ='1_KMA'!AQ31 -> 2059-07-01 | AR2: ='1_KMA'!AR31 -> 2060-07-01 | AS2: ='1_KMA'!AS31 -> 2061-07-01 | AT2: ='1_KMA'!AT31 -> 2062-07-01 | AU2: ='1_KMA'!AU31 -> 2063-07-01 | AV2: ='1_KMA'!AV31 -> 2064-07-01 | AW2: ='1_KMA'!AW31 -> 2065-07-01 | AX2: ='1_KMA'!AX31 -> 2066-07-01 | AY2: ='1_KMA'!AY31 -> 2067-07-01 | AZ2: ='1_KMA'!AZ31 -> 2068-07-01 | BA2: ='1_KMA'!BA31 -> 2069-07-01 | BB2: ='1_KMA'!BB31 -> 2070-07-01 | BC2: ='1_KMA'!BC31 -> 2071-07-01 | BD2: ='1_KMA'!BD31 -> 2072-07-01 | BE2: ='1_KMA'!BE31 -> 2073-07-01 | BF2: ='1_KMA'!BF31 -> 2074-07-01 | BG2: ='1_KMA'!BG31 -> 2075-07-01
B3: =Cover!$C$10 -> Business Case Evaluation | I3: Period End Date | J3: ='1_KMA'!J32 -> 2027-06-30 | K3: ='1_KMA'!K32 -> 2028-06-30 | L3: ='1_KMA'!L32 -> 2029-06-30 | M3: ='1_KMA'!M32 -> 2030-06-30 | N3: ='1_KMA'!N32 -> 2031-06-30 | O3: ='1_KMA'!O32 -> 2032-06-30 | P3: ='1_KMA'!P32 -> 2033-06-30 | Q3: ='1_KMA'!Q32 -> 2034-06-30 | R3: ='1_KMA'!R32 -> 2035-06-30 | S3: ='1_KMA'!S32 -> 2036-06-30 | T3: ='1_KMA'!T32 -> 2037-06-30 | U3: ='1_KMA'!U32 -> 2038-06-30 | V3: ='1_KMA'!V32 -> 2039-06-30 | W3: ='1_KMA'!W32 -> 2040-06-30 | X3: ='1_KMA'!X32 -> 2041-06-30 | Y3: ='1_KMA'!Y32 -> 2042-06-30 | Z3: ='1_KMA'!Z32 -> 2043-06-30 | AA3: ='1_KMA'!AA32 -> 2044-06-30 | AB3: ='1_KMA'!AB32 -> 2045-06-30 | AC3: ='1_KMA'!AC32 -> 2046-06-30 | AD3: ='1_KMA'!AD32 -> 2047-06-30 | AE3: ='1_KMA'!AE32 -> 2048-06-30 | AF3: ='1_KMA'!AF32 -> 2049-06-30 | AG3: ='1_KMA'!AG32 -> 2050-06-30 | AH3: ='1_KMA'!AH32 -> 2051-06-30 | AI3: ='1_KMA'!AI32 -> 2052-06-30 | AJ3: ='1_KMA'!AJ32 -> 2053-06-30 | AK3: ='1_KMA'!AK32 -> 2054-06-30 | AL3: ='1_KMA'!AL32 -> 2055-06-30 | AM3: ='1_KMA'!AM32 -> 2056-06-30 | AN3: ='1_KMA'!AN32 -> 2057-06-30 | AO3: ='1_KMA'!AO32 -> 2058-06-30 | AP3: ='1_KMA'!AP32 -> 2059-06-30 | AQ3: ='1_KMA'!AQ32 -> 2060-06-30 | AR3: ='1_KMA'!AR32 -> 2061-06-30 | AS3: ='1_KMA'!AS32 -> 2062-06-30 | AT3: ='1_KMA'!AT32 -> 2063-06-30 | AU3: ='1_KMA'!AU32 -> 2064-06-30 | AV3: ='1_KMA'!AV32 -> 2065-06-30 | AW3: ='1_KMA'!AW32 -> 2066-06-30 | AX3: ='1_KMA'!AX32 -> 2067-06-30 | AY3: ='1_KMA'!AY32 -> 2068-06-30 | AZ3: ='1_KMA'!AZ32 -> 2069-06-30 | BA3: ='1_KMA'!BA32 -> 2070-06-30 | BB3: ='1_KMA'!BB32 -> 2071-06-30 | BC3: ='1_KMA'!BC32 -> 2072-06-30 | BD3: ='1_KMA'!BD32 -> 2073-06-30 | BE3: ='1_KMA'!BE32 -> 2074-06-30 | BF3: ='1_KMA'!BF32 -> 2075-06-30 | BG3: ='1_KMA'!BG32 -> 2076-06-30
B4: =Cover!$C$11 -> HV Feeder Reliability Improvement | I4: Project Year | J4: ='1_KMA'!J33 -> 1 | K4: ='1_KMA'!K33 -> 2 | L4: ='1_KMA'!L33 -> 3 | M4: ='1_KMA'!M33 -> 4 | N4: ='1_KMA'!N33 -> 5 | O4: ='1_KMA'!O33 -> 6 | P4: ='1_KMA'!P33 -> 7 | Q4: ='1_KMA'!Q33 -> 8 | R4: ='1_KMA'!R33 -> 9 | S4: ='1_KMA'!S33 -> 10 | T4: ='1_KMA'!T33 -> 11 | U4: ='1_KMA'!U33 -> 12 | V4: ='1_KMA'!V33 -> 13 | W4: ='1_KMA'!W33 -> 14 | X4: ='1_KMA'!X33 -> 15 | Y4: ='1_KMA'!Y33 -> 16 | Z4: ='1_KMA'!Z33 -> 17 | AA4: ='1_KMA'!AA33 -> 18 | AB4: ='1_KMA'!AB33 -> 19 | AC4: ='1_KMA'!AC33 -> 20 | AD4: ='1_KMA'!AD33 -> 21 | AE4: ='1_KMA'!AE33 -> 22 | AF4: ='1_KMA'!AF33 -> 23 | AG4: ='1_KMA'!AG33 -> 24 | AH4: ='1_KMA'!AH33 -> 25 | AI4: ='1_KMA'!AI33 -> 26 | AJ4: ='1_KMA'!AJ33 -> 27 | AK4: ='1_KMA'!AK33 -> 28 | AL4: ='1_KMA'!AL33 -> 29 | AM4: ='1_KMA'!AM33 -> 30 | AN4: ='1_KMA'!AN33 -> 31 | AO4: ='1_KMA'!AO33 -> 32 | AP4: ='1_KMA'!AP33 -> 33 | AQ4: ='1_KMA'!AQ33 -> 34 | AR4: ='1_KMA'!AR33 -> 35 | AS4: ='1_KMA'!AS33 -> 36 | AT4: ='1_KMA'!AT33 -> 37 | AU4: ='1_KMA'!AU33 -> 38 | AV4: ='1_KMA'!AV33 -> 39 | AW4: ='1_KMA'!AW33 -> 40 | AX4: ='1_KMA'!AX33 -> 41 | AY4: ='1_KMA'!AY33 -> 42 | AZ4: ='1_KMA'!AZ33 -> 43 | BA4: ='1_KMA'!BA33 -> 44 | BB4: ='1_KMA'!BB33 -> 45 | BC4: ='1_KMA'!BC33 -> 46 | BD4: ='1_KMA'!BD33 -> 47 | BE4: ='1_KMA'!BE33 -> 48 | BF4: ='1_KMA'!BF33 -> 49 | BG4: ='1_KMA'!BG33 -> 50
I5: Financial Year | J5: ='1_KMA'!J34 -> 2027 | K5: ='1_KMA'!K34 -> 2028 | L5: ='1_KMA'!L34 -> 2029 | M5: ='1_KMA'!M34 -> 2030 | N5: ='1_KMA'!N34 -> 2031 | O5: ='1_KMA'!O34 -> 2032 | P5: ='1_KMA'!P34 -> 2033 | Q5: ='1_KMA'!Q34 -> 2034 | R5: ='1_KMA'!R34 -> 2035 | S5: ='1_KMA'!S34 -> 2036 | T5: ='1_KMA'!T34 -> 2037 | U5: ='1_KMA'!U34 -> 2038 | V5: ='1_KMA'!V34 -> 2039 | W5: ='1_KMA'!W34 -> 2040 | X5: ='1_KMA'!X34 -> 2041 | Y5: ='1_KMA'!Y34 -> 2042 | Z5: ='1_KMA'!Z34 -> 2043 | AA5: ='1_KMA'!AA34 -> 2044 | AB5: ='1_KMA'!AB34 -> 2045 | AC5: ='1_KMA'!AC34 -> 2046 | AD5: ='1_KMA'!AD34 -> 2047 | AE5: ='1_KMA'!AE34 -> 2048 | AF5: ='1_KMA'!AF34 -> 2049 | AG5: ='1_KMA'!AG34 -> 2050 | AH5: ='1_KMA'!AH34 -> 2051 | AI5: ='1_KMA'!AI34 -> 2052 | AJ5: ='1_KMA'!AJ34 -> 2053 | AK5: ='1_KMA'!AK34 -> 2054 | AL5: ='1_KMA'!AL34 -> 2055 | AM5: ='1_KMA'!AM34 -> 2056 | AN5: ='1_KMA'!AN34 -> 2057 | AO5: ='1_KMA'!AO34 -> 2058 | AP5: ='1_KMA'!AP34 -> 2059 | AQ5: ='1_KMA'!AQ34 -> 2060 | AR5: ='1_KMA'!AR34 -> 2061 | AS5: ='1_KMA'!AS34 -> 2062 | AT5: ='1_KMA'!AT34 -> 2063 | AU5: ='1_KMA'!AU34 -> 2064 | AV5: ='1_KMA'!AV34 -> 2065 | AW5: ='1_KMA'!AW34 -> 2066 | AX5: ='1_KMA'!AX34 -> 2067 | AY5: ='1_KMA'!AY34 -> 2068 | AZ5: ='1_KMA'!AZ34 -> 2069 | BA5: ='1_KMA'!BA34 -> 2070 | BB5: ='1_KMA'!BB34 -> 2071 | BC5: ='1_KMA'!BC34 -> 2072 | BD5: ='1_KMA'!BD34 -> 2073 | BE5: ='1_KMA'!BE34 -> 2074 | BF5: ='1_KMA'!BF34 -> 2075 | BG5: ='1_KMA'!BG34 -> 2076
B7: Summary
B9: Costs | G9: $ Basis Reminder | H9: $ Reminder | J9: ="Ensure this section [Summary] is picking up the relevant rows" -> Ensure this section [Summary] is picking up the relevant rows
B10: Capex | G10: ='1_KMA'!$I$20 -> 2024-06-30 | H10: ='1_KMA'!$I$19 -> $dollars | J10: =J47 -> 0 | K10: =K47 -> 0 | L10: =L47 -> 0 | M10: 0 | N10: 0 | O10: 0 | P10: 0 | Q10: 0 | R10: 0 | S10: 0 | T10: 0 | U10: 0 | V10: 0 | W10: 0 | X10: 0 | Y10: 0 | Z10: 0 | AA10: 0 | AB10: 0 | AC10: 0 | AD10: 0 | AE10: 0 | AF10: 0 | AG10: 0 | AH10: 0 | AI10: 0 | AJ10: 0 | AK10: 0 | AL10: 0 | AM10: 0 | AN10: 0 | AO10: 0 | AP10: 0 | AQ10: 0 | AR10: 0 | AS10: 0 | AT10: 0 | AU10: 0 | AV10: 0 | AW10: 0 | AX10: 0 | AY10: 0 | AZ10: 0 | BA10: 0 | BB10: 0 | BC10: 0 | BD10: 0 | BE10: 0 | BF10: 0 | BG10: 0
B11: Capex offset | G11: ='1_KMA'!$I$20 -> 2024-06-30 | H11: ='1_KMA'!$I$19 -> $dollars | J11: =-J59 -> 0 | K11: =-K59 -> 0 | L11: =-L59 -> 0 | M11: 0 | N11: 0 | O11: 0 | P11: 0 | Q11: 0 | R11: 0 | S11: 0 | T11: 0 | U11: 0 | V11: 0 | W11: 0 | X11: 0 | Y11: 0 | Z11: 0 | AA11: 0 | AB11: 0 | AC11: 0 | AD11: 0 | AE11: 0 | AF11: 0 | AG11: 0 | AH11: 0 | AI11: 0 | AJ11: 0 | AK11: 0 | AL11: 0 | AM11: 0 | AN11: 0 | AO11: 0 | AP11: 0 | AQ11: 0 | AR11: 0 | AS11: 0 | AT11: 0 | AU11: 0 | AV11: 0 | AW11: 0 | AX11: 0 | AY11: 0 | AZ11: 0 | BA11: 0 | BB11: 0 | BC11: 0 | BD11: 0 | BE11: 0 | BF11: 0 | BG11: 0
B12: Opex | G12: ='1_KMA'!$I$20 -> 2024-06-30 | H12: ='1_KMA'!$I$19 -> $dollars | J12: =J82 -> 1672642.37 | K12: =K82 -> 1672642.37 | L12: =L82 -> 1672642.37 | M12: =M82 -> 1672642.37 | N12: =N82 -> 1672642.37 | O12: 1672642.37 | P12: 1672642.37 | Q12: 1672642.37 | R12: 1672642.37 | S12: 1672642.37 | T12: 1672642.37 | U12: 1672642.37 | V12: 1672642.37 | W12: 1672642.37 | X12: 1672642.37 | Y12: 1672642.37 | Z12: 1672642.37 | AA12: 1672642.37 | AB12: 1672642.37 | AC12: 1672642.37 | AD12: 1672642.37 | AE12: 1672642.37 | AF12: 1672642.37 | AG12: 1672642.37 | AH12: 1672642.37 | AI12: 1672642.37 | AJ12: 1672642.37 | AK12: 1672642.37 | AL12: 1672642.37 | AM12: 1672642.37 | AN12: 1352733.846 | AO12: 1352733.846 | AP12: 1352733.846 | AQ12: 1352733.846 | AR12: 1352733.846 | AS12: 1352733.846 | AT12: 1352733.846 | AU12: 1352733.846 | AV12: 1352733.846 | AW12: 1352733.846 | AX12: 1352733.846 | AY12: 1352733.846 | AZ12: 1352733.846 | BA12: 1352733.846 | BB12: 1352733.846 | BC12: 1352733.846 | BD12: 1352733.846 | BE12: 1352733.846 | BF12: 1352733.846 | BG12: 1352733.846
B13: Total | G13: ='1_KMA'!$I$20 -> 2024-06-30 | H13: ='1_KMA'!$I$19 -> $dollars | J13: =SUM(J10:J12) -> 1672642.37 | K13: =SUM(K10:K12) -> 1672642.37 | L13: 1672642.37 | M13: 1672642.37 | N13: 1672642.37 | O13: 1672642.37 | P13: 1672642.37 | Q13: 1672642.37 | R13: 1672642.37 | S13: 1672642.37 | T13: 1672642.37 | U13: 1672642.37 | V13: 1672642.37 | W13: 1672642.37 | X13: 1672642.37 | Y13: 1672642.37 | Z13: 1672642.37 | AA13: 1672642.37 | AB13: 1672642.37 | AC13: 1672642.37 | AD13: 1672642.37 | AE13: 1672642.37 | AF13: 1672642.37 | AG13: 1672642.37 | AH13: 1672642.37 | AI13: 1672642.37 | AJ13: 1672642.37 | AK13: 1672642.37 | AL13: 1672642.37 | AM13: 1672642.37 | AN13: 1352733.846 | AO13: 1352733.846 | AP13: 1352733.846 | AQ13: 1352733.846 | AR13: 1352733.846 | AS13: 1352733.846 | AT13: 1352733.846 | AU13: 1352733.846 | AV13: 1352733.846 | AW13: 1352733.846 | AX13: 1352733.846 | AY13: 1352733.846 | AZ13: 1352733.846 | BA13: 1352733.846 | BB13: 1352733.846 | BC13: 1352733.846 | BD13: 1352733.846 | BE13: 1352733.846 | BF13: 1352733.846 | BG13: 1352733.846
B15: Benefits | G15: $ Basis Reminder | H15: $ Reminder | J15: ="Ensure this section [Summary] is picking up the relevant rows" -> Ensure this section [Summary] is picking up the relevant rows
B16: Value of EUE | G16: ='1_KMA'!$I$20 -> 2024-06-30 | H16: ='1_KMA'!$I$19 -> $dollars | J16: =-J93 -> -6153972.795 | K16: =-K93 -> -6215512.523 | L16: -6277667.649 | M16: -6340444.325 | N16: -6403848.768 | O16: -6467887.256 | P16: -6532566.129 | Q16: -6597891.79 | R16: -6663870.708 | S16: -6730509.415 | T16: -6797814.509 | U16: -6865792.654 | V16: -6934450.581 | W16: -7003795.086 | X16: -7073833.037 | Y16: -7144571.368 | Z16: -7216017.081 | AA16: -7288177.252 | AB16: -7361059.025 | AC16: -7434669.615 | AD16: -7509016.311 | AE16: -7584106.474 | AF16: -7659947.539 | AG16: -7736547.014 | AH16: -7813912.485 | AI16: -7892051.609 | AJ16: -7970972.125 | AK16: -8050681.847 | AL16: -8131188.665 | AM16: -8212500.552 | AN16: 0 | AO16: 0 | AP16: 0 | AQ16: 0 | AR16: 0 | AS16: 0 | AT16: 0 | AU16: 0 | AV16: 0 | AW16: 0 | AX16: 0 | AY16: 0 | AZ16: 0 | BA16: 0 | BB16: 0 | BC16: 0 | BD16: 0 | BE16: 0 | BF16: 0 | BG16: 0
B17: Reliability | G17: ='1_KMA'!$I$20 -> 2024-06-30 | H17: ='1_KMA'!$I$19 -> $dollars | J17: =J111 -> 0 | K17: =K111 -> 0 | L17: 0 | M17: 0 | N17: 0 | O17: 0 | P17: 0 | Q17: 0 | R17: 0 | S17: 0 | T17: 0 | U17: 0 | V17: 0 | W17: 0 | X17: 0 | Y17: 0 | Z17: 0 | AA17: 0 | AB17: 0 | AC17: 0 | AD17: 0 | AE17: 0 | AF17: 0 | AG17: 0 | AH17: 0 | AI17: 0 | AJ17: 0 | AK17: 0 | AL17: 0 | AM17: 0 | AN17: 0 | AO17: 0 | AP17: 0 | AQ17: 0 | AR17: 0 | AS17: 0 | AT17: 0 | AU17: 0 | AV17: 0 | AW17: 0 | AX17: 0 | AY17: 0 | AZ17: 0 | BA17: 0 | BB17: 0 | BC17: 0 | BD17: 0 | BE17: 0 | BF17: 0 | BG17: 0
B18: Resilience | G18: ='1_KMA'!$I$20 -> 2024-06-30 | H18: ='1_KMA'!$I$19 -> $dollars | J18: =J132 -> 0 | K18: =K132 -> 0 | L18: 0 | M18: 0 | N18: 0 | O18: 0 | P18: 0 | Q18: 0 | R18: 0 | S18: 0 | T18: 0 | U18: 0 | V18: 0 | W18: 0 | X18: 0 | Y18: 0 | Z18: 0 | AA18: 0 | AB18: 0 | AC18: 0 | AD18: 0 | AE18: 0 | AF18: 0 | AG18: 0 | AH18: 0 | AI18: 0 | AJ18: 0 | AK18: 0 | AL18: 0 | AM18: 0 | AN18: 0 | AO18: 0 | AP18: 0 | AQ18: 0 | AR18: 0 | AS18: 0 | AT18: 0 | AU18: 0 | AV18: 0 | AW18: 0 | AX18: 0 | AY18: 0 | AZ18: 0 | BA18: 0 | BB18: 0 | BC18: 0 | BD18: 0 | BE18: 0 | BF18: 0 | BG18: 0
B19: Batteries | G19: ='1_KMA'!$I$20 -> 2024-06-30 | H19: ='1_KMA'!$I$19 -> $dollars | J19: =J168 -> 0 | K19: =K168 -> 0 | L19: 0 | M19: 0 | N19: 0 | O19: 0 | P19: 0 | Q19: 0 | R19: 0 | S19: 0 | T19: 0 | U19: 0 | V19: 0 | W19: 0 | X19: 0 | Y19: 0 | Z19: 0 | AA19: 0 | AB19: 0 | AC19: 0 | AD19: 0 | AE19: 0 | AF19: 0 | AG19: 0 | AH19: 0 | AI19: 0 | AJ19: 0 | AK19: 0 | AL19: 0 | AM19: 0 | AN19: 0 | AO19: 0 | AP19: 0 | AQ19: 0 | AR19: 0 | AS19: 0 | AT19: 0 | AU19: 0 | AV19: 0 | AW19: 0 | AX19: 0 | AY19: 0 | AZ19: 0 | BA19: 0 | BB19: 0 | BC19: 0 | BD19: 0 | BE19: 0 | BF19: 0 | BG19: 0
B20: Others | G20: ='1_KMA'!$I$20 -> 2024-06-30 | H20: ='1_KMA'!$I$19 -> $dollars
B21: Total | G21: ='1_KMA'!$I$20 -> 2024-06-30 | H21: ='1_KMA'!$I$19 -> $dollars | J21: =SUM(J16:J20) -> -6153972.795 | K21: =SUM(K16:K20) -> -6215512.523 | L21: -6277667.649 | M21: -6340444.325 | N21: -6403848.768 | O21: -6467887.256 | P21: -6532566.129 | Q21: -6597891.79 | R21: -6663870.708 | S21: -6730509.415 | T21: -6797814.509 | U21: -6865792.654 | V21: -6934450.581 | W21: -7003795.086 | X21: -7073833.037 | Y21: -7144571.368 | Z21: -7216017.081 | AA21: -7288177.252 | AB21: -7361059.025 | AC21: -7434669.615 | AD21: -7509016.311 | AE21: -7584106.474 | AF21: -7659947.539 | AG21: -7736547.014 | AH21: -7813912.485 | AI21: -7892051.609 | AJ21: -7970972.125 | AK21: -8050681.847 | AL21: -8131188.665 | AM21: -8212500.552 | AN21: 0 | AO21: 0 | AP21: 0 | AQ21: 0 | AR21: 0 | AS21: 0 | AT21: 0 | AU21: 0 | AV21: 0 | AW21: 0 | AX21: 0 | AY21: 0 | AZ21: 0 | BA21: 0 | BB21: 0 | BC21: 0 | BD21: 0 | BE21: 0 | BF21: 0 | BG21: 0
B24: Cost Inputs
B26: Capex Build Up
B28: Name | H28: Unit | J28: Unit Rate
B29: [e.g. New feeder] | H29: [e.g., $million per feeder km]
B30: [e.g. New switchboard] | H30: [e.g., $million per switchboard]
B34: Name | H34: Unit | J34: Quantities
B35: =B29 -> [e.g. New feeder] | H35: [e.g., feeder km]
B36: =B30 -> [e.g. New switchboard] | H36: [e.g., count of switchboards]
B40: Name | G40: $ Basis Reminder | H40: $ Reminder | J40: ="Costs - ensure costs have been converted to "&'1_KMA'!$I$19 -> Costs - ensure costs have been converted to $dollars
B41: =B29 -> [e.g. New feeder] | G41: ='1_KMA'!$I$20 -> 2024-06-30 | H41: ='1_KMA'!$I$19 -> $dollars | J41: =$J$29*J35 -> 0 | K41: =$J$29*K35 -> 0 | L41: =$J$29*L35 -> 0 | M41: =$J$29*M35 -> 0 | N41: 0 | O41: 0 | P41: 0 | Q41: 0 | R41: 0 | S41: 0 | T41: 0 | U41: 0 | V41: 0 | W41: 0 | X41: 0 | Y41: 0 | Z41: 0 | AA41: 0 | AB41: 0 | AC41: 0 | AD41: 0 | AE41: 0 | AF41: 0 | AG41: 0 | AH41: 0 | AI41: 0 | AJ41: 0 | AK41: 0 | AL41: 0 | AM41: 0 | AN41: 0 | AO41: 0 | AP41: 0 | AQ41: 0 | AR41: 0 | AS41: 0 | AT41: 0 | AU41: 0 | AV41: 0 | AW41: 0 | AX41: 0 | AY41: 0 | AZ41: 0 | BA41: 0 | BB41: 0 | BC41: 0 | BD41: 0 | BE41: 0 | BF41: 0 | BG41: 0
B42: =B30 -> [e.g. New switchboard] | G42: ='1_KMA'!$I$20 -> 2024-06-30 | H42: ='1_KMA'!$I$19 -> $dollars | J42: =$J$30*J36 -> 0 | K42: =$J$30*K36 -> 0 | L42: =$J$30*L36 -> 0 | M42: =$J$30*M36 -> 0 | N42: 0 | O42: 0 | P42: 0 | Q42: 0 | R42: 0 | S42: 0 | T42: 0 | U42: 0 | V42: 0 | W42: 0 | X42: 0 | Y42: 0 | Z42: 0 | AA42: 0 | AB42: 0 | AC42: 0 | AD42: 0 | AE42: 0 | AF42: 0 | AG42: 0 | AH42: 0 | AI42: 0 | AJ42: 0 | AK42: 0 | AL42: 0 | AM42: 0 | AN42: 0 | AO42: 0 | AP42: 0 | AQ42: 0 | AR42: 0 | AS42: 0 | AT42: 0 | AU42: 0 | AV42: 0 | AW42: 0 | AX42: 0 | AY42: 0 | AZ42: 0 | BA42: 0 | BB42: 0 | BC42: 0 | BD42: 0 | BE42: 0 | BF42: 0 | BG42: 0
G43: ='1_KMA'!$I$20 -> 2024-06-30 | H43: ='1_KMA'!$I$19 -> $dollars | J43: =$J$31*J37 -> 0 | K43: =$J$31*K37 -> 0 | L43: =$J$31*L37 -> 0 | M43: =$J$31*M37 -> 0 | N43: 0 | O43: 0 | P43: 0 | Q43: 0 | R43: 0 | S43: 0 | T43: 0 | U43: 0 | V43: 0 | W43: 0 | X43: 0 | Y43: 0 | Z43: 0 | AA43: 0 | AB43: 0 | AC43: 0 | AD43: 0 | AE43: 0 | AF43: 0 | AG43: 0 | AH43: 0 | AI43: 0 | AJ43: 0 | AK43: 0 | AL43: 0 | AM43: 0 | AN43: 0 | AO43: 0 | AP43: 0 | AQ43: 0 | AR43: 0 | AS43: 0 | AT43: 0 | AU43: 0 | AV43: 0 | AW43: 0 | AX43: 0 | AY43: 0 | AZ43: 0 | BA43: 0 | BB43: 0 | BC43: 0 | BD43: 0 | BE43: 0 | BF43: 0 | BG43: 0
G44: ='1_KMA'!$I$20 -> 2024-06-30 | H44: ='1_KMA'!$I$19 -> $dollars | J44: =$J$32*J38 -> 0 | K44: =$J$32*K38 -> 0 | L44: =$J$32*L38 -> 0 | M44: =$J$32*M38 -> 0 | N44: =$J$32*N38 -> 0 | O44: 0 | P44: 0 | Q44: 0 | R44: 0 | S44: 0 | T44: 0 | U44: 0 | V44: 0 | W44: 0 | X44: 0 | Y44: 0 | Z44: 0 | AA44: 0 | AB44: 0 | AC44: 0 | AD44: 0 | AE44: 0 | AF44: 0 | AG44: 0 | AH44: 0 | AI44: 0 | AJ44: 0 | AK44: 0 | AL44: 0 | AM44: 0 | AN44: 0 | AO44: 0 | AP44: 0 | AQ44: 0 | AR44: 0 | AS44: 0 | AT44: 0 | AU44: 0 | AV44: 0 | AW44: 0 | AX44: 0 | AY44: 0 | AZ44: 0 | BA44: 0 | BB44: 0 | BC44: 0 | BD44: 0 | BE44: 0 | BF44: 0 | BG44: 0
G46: $ Basis Reminder | H46: $ Reminder | J46: Summary table above picks up this total row
B47: Total | G47: ='1_KMA'!$I$20 -> 2024-06-30 | H47: ='1_KMA'!$I$19 -> $dollars | J47: =SUM(J41:J44) -> 0 | K47: =SUM(K41:K44) -> 0 | L47: 0 | M47: =SUM(M41:M44) -> 0 | N47: 0 | O47: 0 | P47: 0 | Q47: 0 | R47: 0 | S47: 0 | T47: 0 | U47: 0 | V47: 0 | W47: 0 | X47: 0 | Y47: 0 | Z47: 0 | AA47: 0 | AB47: 0 | AC47: 0 | AD47: 0 | AE47: 0 | AF47: 0 | AG47: 0 | AH47: 0 | AI47: 0 | AJ47: 0 | AK47: 0 | AL47: 0 | AM47: 0 | AN47: 0 | AO47: 0 | AP47: =SUM(AP41:AP44) -> 0 | AQ47: 0 | AR47: 0 | AS47: 0 | AT47: 0 | AU47: 0 | AV47: 0 | AW47: 0 | AX47: 0 | AY47: 0 | AZ47: 0 | BA47: 0 | BB47: 0 | BC47: 0 | BD47: 0 | BE47: 0 | BF47: 0 | BG47: 0
B49: Capex Offset
J51: ="Capex offsets - ensure capex offsets have been converted to "&'1_KMA'!$I$19 -> Capex offsets - ensure capex offsets have been converted to $dollars
B52: Name | G52: $ Basis Reminder | H52: $ Reminder | J52: Enter capex offsets as positive values as the spreadsheet later nets this off the gross amounts
B53: [e.g. Government subsidy] | G53: ='1_KMA'!$I$20 -> 2024-06-30 | H53: ='1_KMA'!$I$19 -> $dollars
B54: [e.g. Customer contribution] | G54: ='1_KMA'!$I$20 -> 2024-06-30 | H54: ='1_KMA'!$I$19 -> $dollars
G55: ='1_KMA'!$I$20 -> 2024-06-30 | H55: ='1_KMA'!$I$19 -> $dollars
G56: ='1_KMA'!$I$20 -> 2024-06-30 | H56: ='1_KMA'!$I$19 -> $dollars
G58: $ Basis Reminder | H58: $ Reminder | J58: Summary table above picks up this total row
B59: Total | G59: ='1_KMA'!$I$20 -> 2024-06-30 | H59: ='1_KMA'!$I$19 -> $dollars | J59: =SUM(J53:J56) -> 0 | K59: =SUM(K53:K56) -> 0 | L59: =SUM(L53:L56) -> 0 | M59: 0 | N59: 0 | O59: 0 | P59: 0 | Q59: 0 | R59: 0 | S59: 0 | T59: 0 | U59: 0 | V59: 0 | W59: 0 | X59: 0 | Y59: 0 | Z59: 0 | AA59: 0 | AB59: 0 | AC59: 0 | AD59: 0 | AE59: 0 | AF59: 0 | AG59: 0 | AH59: 0 | AI59: 0 | AJ59: 0 | AK59: 0 | AL59: 0 | AM59: 0 | AN59: 0 | AO59: 0 | AP59: 0 | AQ59: 0 | AR59: 0 | AS59: 0 | AT59: 0 | AU59: 0 | AV59: 0 | AW59: 0 | AX59: 0 | AY59: 0 | AZ59: 0 | BA59: 0 | BB59: 0 | BC59: 0 | BD59: 0 | BE59: 0 | BF59: 0 | BG59: =SUM(BG53:BG56) -> 0
B61: Opex Build Up
B63: Name | H63: Unit | J63: Value
B64: Reactive Work | H64: 1 | J64: 1
B65: GSLs | H65: $dollars per annum | J65: 1
B69: Name | H69: Unit | J69: Quantities
B70: =B64 -> Reactive Work | H70: $dollars per annum | J70: =Forecasts!I192 -> 319908.524 | K70: =Forecasts!J192 -> 319908.524 | L70: =Forecasts!K192 -> 319908.524 | M70: =Forecasts!L192 -> 319908.524 | N70: =Forecasts!M192 -> 319908.524 | O70: =Forecasts!N192 -> 319908.524 | P70: =Forecasts!O192 -> 319908.524 | Q70: =Forecasts!P192 -> 319908.524 | R70: =Forecasts!Q192 -> 319908.524 | S70: =Forecasts!R192 -> 319908.524 | T70: =Forecasts!S192 -> 319908.524 | U70: =Forecasts!T192 -> 319908.524 | V70: =Forecasts!U192 -> 319908.524 | W70: =Forecasts!V192 -> 319908.524 | X70: =Forecasts!W192 -> 319908.524 | Y70: =Forecasts!X192 -> 319908.524 | Z70: =Forecasts!Y192 -> 319908.524 | AA70: =Forecasts!Z192 -> 319908.524 | AB70: =Forecasts!AA192 -> 319908.524 | AC70: =Forecasts!AB192 -> 319908.524 | AD70: =Forecasts!AC192 -> 319908.524 | AE70: =Forecasts!AD192 -> 319908.524 | AF70: =Forecasts!AE192 -> 319908.524 | AG70: =Forecasts!AF192 -> 319908.524 | AH70: =Forecasts!AG192 -> 319908.524 | AI70: =Forecasts!AH192 -> 319908.524 | AJ70: =Forecasts!AI192 -> 319908.524 | AK70: =Forecasts!AJ192 -> 319908.524 | AL70: =Forecasts!AK192 -> 319908.524 | AM70: =Forecasts!AL192 -> 319908.524 | AN70: =Forecasts!AM192 -> 0 | AO70: =Forecasts!AN192 -> 0 | AP70: =Forecasts!AO192 -> 0 | AQ70: =Forecasts!AP192 -> 0 | AR70: =Forecasts!AQ192 -> 0 | AS70: =Forecasts!AR192 -> 0 | AT70: =Forecasts!AS192 -> 0 | AU70: =Forecasts!AT192 -> 0 | AV70: =Forecasts!AU192 -> 0 | AW70: =Forecasts!AV192 -> 0 | AX70: =Forecasts!AW192 -> 0 | AY70: =Forecasts!AX192 -> 0 | AZ70: =Forecasts!AY192 -> 0 | BA70: =Forecasts!AZ192 -> 0 | BB70: =Forecasts!BA192 -> 0 | BC70: =Forecasts!BB192 -> 0 | BD70: =Forecasts!BC192 -> 0 | BE70: =Forecasts!BD192 -> 0 | BF70: =Forecasts!BE192 -> 0 | BG70: =Forecasts!BF192 -> 0
B71: =B65 -> GSLs | H71: $dollars per annum | J71: =Forecasts!I197 -> 1352733.846 | K71: =Forecasts!J197 -> 1352733.846 | L71: =Forecasts!K197 -> 1352733.846 | M71: =Forecasts!L197 -> 1352733.846 | N71: =Forecasts!M197 -> 1352733.846 | O71: =Forecasts!N197 -> 1352733.846 | P71: =Forecasts!O197 -> 1352733.846 | Q71: =Forecasts!P197 -> 1352733.846 | R71: =Forecasts!Q197 -> 1352733.846 | S71: =Forecasts!R197 -> 1352733.846 | T71: =Forecasts!S197 -> 1352733.846 | U71: =Forecasts!T197 -> 1352733.846 | V71: =Forecasts!U197 -> 1352733.846 | W71: =Forecasts!V197 -> 1352733.846 | X71: =Forecasts!W197 -> 1352733.846 | Y71: =Forecasts!X197 -> 1352733.846 | Z71: =Forecasts!Y197 -> 1352733.846 | AA71: =Forecasts!Z197 -> 1352733.846 | AB71: =Forecasts!AA197 -> 1352733.846 | AC71: =Forecasts!AB197 -> 1352733.846 | AD71: =Forecasts!AC197 -> 1352733.846 | AE71: =Forecasts!AD197 -> 1352733.846 | AF71: =Forecasts!AE197 -> 1352733.846 | AG71: =Forecasts!AF197 -> 1352733.846 | AH71: =Forecasts!AG197 -> 1352733.846 | AI71: =Forecasts!AH197 -> 1352733.846 | AJ71: =Forecasts!AI197 -> 1352733.846 | AK71: =Forecasts!AJ197 -> 1352733.846 | AL71: =Forecasts!AK197 -> 1352733.846 | AM71: =Forecasts!AL197 -> 1352733.846 | AN71: =Forecasts!AM197 -> 1352733.846 | AO71: =Forecasts!AN197 -> 1352733.846 | AP71: =Forecasts!AO197 -> 1352733.846 | AQ71: =Forecasts!AP197 -> 1352733.846 | AR71: =Forecasts!AQ197 -> 1352733.846 | AS71: =Forecasts!AR197 -> 1352733.846 | AT71: =Forecasts!AS197 -> 1352733.846 | AU71: =Forecasts!AT197 -> 1352733.846 | AV71: =Forecasts!AU197 -> 1352733.846 | AW71: =Forecasts!AV197 -> 1352733.846 | AX71: =Forecasts!AW197 -> 1352733.846 | AY71: =Forecasts!AX197 -> 1352733.846 | AZ71: =Forecasts!AY197 -> 1352733.846 | BA71: =Forecasts!AZ197 -> 1352733.846 | BB71: =Forecasts!BA197 -> 1352733.846 | BC71: =Forecasts!BB197 -> 1352733.846 | BD71: =Forecasts!BC197 -> 1352733.846 | BE71: =Forecasts!BD197 -> 1352733.846 | BF71: =Forecasts!BE197 -> 1352733.846 | BG71: =Forecasts!BF197 -> 1352733.846
B75: Name | G75: $ Basis Reminder | H75: $ Reminder | J75: ="Costs - ensure costs have been converted to "&'1_KMA'!$I$19 -> Costs - ensure costs have been converted to $dollars
B76: =B64 -> Reactive Work | G76: ='1_KMA'!$I$20 -> 2024-06-30 | H76: ='1_KMA'!$I$19 -> $dollars | J76: =$J$64*J70 -> 319908.524 | K76: =$J$64*K70 -> 319908.524 | L76: =$J$64*L70 -> 319908.524 | M76: =$J$64*M70 -> 319908.524 | N76: 319908.524 | O76: 319908.524 | P76: 319908.524 | Q76: 319908.524 | R76: 319908.524 | S76: 319908.524 | T76: 319908.524 | U76: 319908.524 | V76: 319908.524 | W76: 319908.524 | X76: 319908.524 | Y76: 319908.524 | Z76: 319908.524 | AA76: 319908.524 | AB76: 319908.524 | AC76: 319908.524 | AD76: 319908.524 | AE76: 319908.524 | AF76: 319908.524 | AG76: 319908.524 | AH76: 319908.524 | AI76: 319908.524 | AJ76: 319908.524 | AK76: 319908.524 | AL76: 319908.524 | AM76: 319908.524 | AN76: 0 | AO76: 0 | AP76: 0 | AQ76: 0 | AR76: 0 | AS76: 0 | AT76: 0 | AU76: 0 | AV76: 0 | AW76: 0 | AX76: 0 | AY76: 0 | AZ76: 0 | BA76: 0 | BB76: 0 | BC76: 0 | BD76: 0 | BE76: 0 | BF76: 0 | BG76: 0
B77: =B65 -> GSLs | G77: ='1_KMA'!$I$20 -> 2024-06-30 | H77: ='1_KMA'!$I$19 -> $dollars | J77: =$J$65*J71 -> 1352733.846 | K77: =$J$65*K71 -> 1352733.846 | L77: =$J$65*L71 -> 1352733.846 | M77: =$J$65*M71 -> 1352733.846 | N77: =$J$65*N71 -> 1352733.846 | O77: 1352733.846 | P77: 1352733.846 | Q77: 1352733.846 | R77: 1352733.846 | S77: 1352733.846 | T77: 1352733.846 | U77: 1352733.846 | V77: 1352733.846 | W77: 1352733.846 | X77: 1352733.846 | Y77: 1352733.846 | Z77: 1352733.846 | AA77: 1352733.846 | AB77: 1352733.846 | AC77: 1352733.846 | AD77: 1352733.846 | AE77: 1352733.846 | AF77: 1352733.846 | AG77: 1352733.846 | AH77: 1352733.846 | AI77: 1352733.846 | AJ77: 1352733.846 | AK77: 1352733.846 | AL77: 1352733.846 | AM77: 1352733.846 | AN77: 1352733.846 | AO77: 1352733.846 | AP77: 1352733.846 | AQ77: 1352733.846 | AR77: 1352733.846 | AS77: 1352733.846 | AT77: 1352733.846 | AU77: 1352733.846 | AV77: 1352733.846 | AW77: 1352733.846 | AX77: 1352733.846 | AY77: 1352733.846 | AZ77: 1352733.846 | BA77: 1352733.846 | BB77: 1352733.846 | BC77: 1352733.846 | BD77: 1352733.846 | BE77: 1352733.846 | BF77: 1352733.846 | BG77: 1352733.846
G78: ='1_KMA'!$I$20 -> 2024-06-30 | H78: ='1_KMA'!$I$19 -> $dollars | J78: =$J$66*J72 -> 0 | K78: =$J$66*K72 -> 0 | L78: =$J$66*L72 -> 0 | M78: =$J$66*M72 -> 0 | N78: 0 | O78: =$J$66*O72 -> 0 | P78: 0 | Q78: 0 | R78: 0 | S78: 0 | T78: 0 | U78: 0 | V78: 0 | W78: 0 | X78: 0 | Y78: 0 | Z78: 0 | AA78: 0 | AB78: 0 | AC78: 0 | AD78: 0 | AE78: 0 | AF78: 0 | AG78: 0 | AH78: 0 | AI78: 0 | AJ78: 0 | AK78: 0 | AL78: 0 | AM78: 0 | AN78: 0 | AO78: 0 | AP78: 0 | AQ78: 0 | AR78: 0 | AS78: 0 | AT78: 0 | AU78: 0 | AV78: 0 | AW78: 0 | AX78: 0 | AY78: 0 | AZ78: 0 | BA78: 0 | BB78: 0 | BC78: 0 | BD78: 0 | BE78: 0 | BF78: 0 | BG78: 0
G79: ='1_KMA'!$I$20 -> 2024-06-30 | H79: ='1_KMA'!$I$19 -> $dollars | J79: =$J$67*J73 -> 0 | K79: =$J$67*K73 -> 0 | L79: =$J$67*L73 -> 0 | M79: 0 | N79: =$J$67*N73 -> 0 | O79: 0 | P79: =$J$67*P73 -> 0 | Q79: 0 | R79: 0 | S79: 0 | T79: 0 | U79: 0 | V79: 0 | W79: 0 | X79: 0 | Y79: 0 | Z79: 0 | AA79: 0 | AB79: 0 | AC79: 0 | AD79: 0 | AE79: 0 | AF79: 0 | AG79: 0 | AH79: 0 | AI79: 0 | AJ79: 0 | AK79: 0 | AL79: 0 | AM79: 0 | AN79: 0 | AO79: 0 | AP79: 0 | AQ79: 0 | AR79: 0 | AS79: 0 | AT79: 0 | AU79: 0 | AV79: 0 | AW79: 0 | AX79: 0 | AY79: 0 | AZ79: 0 | BA79: 0 | BB79: 0 | BC79: 0 | BD79: 0 | BE79: 0 | BF79: 0 | BG79: 0
G81: $ Basis Reminder | H81: $ Reminder | J81: Summary table above picks up this total row
B82: Total | G82: ='1_KMA'!$I$20 -> 2024-06-30 | H82: ='1_KMA'!$I$19 -> $dollars | J82: =SUM(J76:J79) -> 1672642.37 | K82: =SUM(K76:K79) -> 1672642.37 | L82: =SUM(L76:L79) -> 1672642.37 | M82: =SUM(M76:M79) -> 1672642.37 | N82: =SUM(N76:N79) -> 1672642.37 | O82: 1672642.37 | P82: 1672642.37 | Q82: 1672642.37 | R82: 1672642.37 | S82: 1672642.37 | T82: 1672642.37 | U82: 1672642.37 | V82: 1672642.37 | W82: 1672642.37 | X82: 1672642.37 | Y82: 1672642.37 | Z82: 1672642.37 | AA82: 1672642.37 | AB82: 1672642.37 | AC82: 1672642.37 | AD82: 1672642.37 | AE82: 1672642.37 | AF82: 1672642.37 | AG82: 1672642.37 | AH82: 1672642.37 | AI82: 1672642.37 | AJ82: 1672642.37 | AK82: 1672642.37 | AL82: 1672642.37 | AM82: 1672642.37 | AN82: 1352733.846 | AO82: 1352733.846 | AP82: 1352733.846 | AQ82: 1352733.846 | AR82: 1352733.846 | AS82: 1352733.846 | AT82: 1352733.846 | AU82: 1352733.846 | AV82: 1352733.846 | AW82: 1352733.846 | AX82: 1352733.846 | AY82: 1352733.846 | AZ82: 1352733.846 | BA82: 1352733.846 | BB82: 1352733.846 | BC82: 1352733.846 | BD82: 1352733.846 | BE82: 1352733.846 | BF82: 1352733.846 | BG82: =SUM(BG76:BG79) -> 1352733.846
B84: Benefits Inputs
B86: Value of EUE
J88: ="Values - ensure values have been converted to "&'1_KMA'!$I$19 -> Values - ensure values have been converted to $dollars
G89: $ Basis Reminder | H89: $ Reminder | J89: Enter this as a positive value, as the spreadsheet later converts this to a negative benefit
B90: Value of Expected Unserved Energy (EUE) | G90: ='1_KMA'!$I$20 -> 2024-06-30 | H90: ='1_KMA'!$I$19 -> $dollars | J90: =Forecasts!I191 -> 6153972.795 | K90: =Forecasts!J191 -> 6215512.523 | L90: =Forecasts!K191 -> 6277667.649 | M90: =Forecasts!L191 -> 6340444.325 | N90: =Forecasts!M191 -> 6403848.768 | O90: =Forecasts!N191 -> 6467887.256 | P90: =Forecasts!O191 -> 6532566.129 | Q90: =Forecasts!P191 -> 6597891.79 | R90: =Forecasts!Q191 -> 6663870.708 | S90: =Forecasts!R191 -> 6730509.415 | T90: =Forecasts!S191 -> 6797814.509 | U90: =Forecasts!T191 -> 6865792.654 | V90: =Forecasts!U191 -> 6934450.581 | W90: =Forecasts!V191 -> 7003795.086 | X90: =Forecasts!W191 -> 7073833.037 | Y90: =Forecasts!X191 -> 7144571.368 | Z90: =Forecasts!Y191 -> 7216017.081 | AA90: =Forecasts!Z191 -> 7288177.252 | AB90: =Forecasts!AA191 -> 7361059.025 | AC90: =Forecasts!AB191 -> 7434669.615 | AD90: =Forecasts!AC191 -> 7509016.311 | AE90: =Forecasts!AD191 -> 7584106.474 | AF90: =Forecasts!AE191 -> 7659947.539 | AG90: =Forecasts!AF191 -> 7736547.014 | AH90: =Forecasts!AG191 -> 7813912.485 | AI90: =Forecasts!AH191 -> 7892051.609 | AJ90: =Forecasts!AI191 -> 7970972.125 | AK90: =Forecasts!AJ191 -> 8050681.847 | AL90: =Forecasts!AK191 -> 8131188.665 | AM90: =Forecasts!AL191 -> 8212500.552 | AN90: =Forecasts!AM191 -> 0 | AO90: =Forecasts!AN191 -> 0 | AP90: =Forecasts!AO191 -> 0 | AQ90: =Forecasts!AP191 -> 0 | AR90: =Forecasts!AQ191 -> 0 | AS90: =Forecasts!AR191 -> 0 | AT90: =Forecasts!AS191 -> 0 | AU90: =Forecasts!AT191 -> 0 | AV90: =Forecasts!AU191 -> 0 | AW90: =Forecasts!AV191 -> 0 | AX90: =Forecasts!AW191 -> 0 | AY90: =Forecasts!AX191 -> 0 | AZ90: =Forecasts!AY191 -> 0 | BA90: =Forecasts!AZ191 -> 0 | BB90: =Forecasts!BA191 -> 0 | BC90: =Forecasts!BB191 -> 0 | BD90: =Forecasts!BC191 -> 0 | BE90: =Forecasts!BD191 -> 0 | BF90: =Forecasts!BE191 -> 0 | BG90: =Forecasts!BF191 -> 0
G92: $ Basis Reminder | H92: $ Reminder | J92: Summary table above picks up this total row
B93: Total | G93: ='1_KMA'!$I$20 -> 2024-06-30 | H93: ='1_KMA'!$I$19 -> $dollars | J93: =J90 -> 6153972.795 | K93: =K90 -> 6215512.523 | L93: =L90 -> 6277667.649 | M93: 6340444.325 | N93: 6403848.768 | O93: 6467887.256 | P93: 6532566.129 | Q93: 6597891.79 | R93: 6663870.708 | S93: 6730509.415 | T93: 6797814.509 | U93: 6865792.654 | V93: 6934450.581 | W93: 7003795.086 | X93: 7073833.037 | Y93: 7144571.368 | Z93: 7216017.081 | AA93: 7288177.252 | AB93: 7361059.025 | AC93: 7434669.615 | AD93: 7509016.311 | AE93: 7584106.474 | AF93: 7659947.539 | AG93: 7736547.014 | AH93: 7813912.485 | AI93: 7892051.609 | AJ93: 7970972.125 | AK93: 8050681.847 | AL93: 8131188.665 | AM93: 8212500.552 | AN93: 0 | AO93: 0 | AP93: 0 | AQ93: 0 | AR93: 0 | AS93: 0 | AT93: 0 | AU93: 0 | AV93: 0 | AW93: 0 | AX93: 0 | AY93: 0 | AZ93: 0 | BA93: 0 | BB93: 0 | BC93: 0 | BD93: 0 | BE93: 0 | BF93: 0 | BG93: =BG90 -> 0
B95: Reliability
B97: QCV research | H97: Unit | J97: Unit Rate
B98: Fewer unplanned outages, less than 12 hours
B99: Fewer unplanned outages in the worst served areas
H102: Unit | J102: Quantities
B103: Fewer unplanned outages, less than 12 hours | H103: 1
B104: Fewer unplanned outages in the worst served areas
G106: $ Basis Reminder | H106: $ Reminder | J106: ="Values - ensure values have been converted to "&'1_KMA'!$I$19 -> Values - ensure values have been converted to $dollars
B107: Fewer unplanned outages, less than 12 hours | G107: ='1_KMA'!$I$20 -> 2024-06-30 | H107: ='1_KMA'!$I$19 -> $dollars | J107: =J103*$J$98 -> 0 | K107: =K103*$J$98 -> 0 | L107: =L103*$J$98 -> 0 | M107: =M103*$J$98 -> 0 | N107: =N103*$J$98 -> 0 | O107: =O103*$J$98 -> 0 | P107: 0 | Q107: 0 | R107: 0 | S107: 0 | T107: 0 | U107: 0 | V107: 0 | W107: 0 | X107: 0 | Y107: 0 | Z107: 0 | AA107: 0 | AB107: 0 | AC107: 0 | AD107: 0 | AE107: 0 | AF107: 0 | AG107: 0 | AH107: 0 | AI107: 0 | AJ107: 0 | AK107: 0 | AL107: 0 | AM107: 0 | AN107: 0 | AO107: 0 | AP107: 0 | AQ107: 0 | AR107: 0 | AS107: 0 | AT107: 0 | AU107: 0 | AV107: 0 | AW107: 0 | AX107: 0 | AY107: 0 | AZ107: 0 | BA107: 0 | BB107: 0 | BC107: 0 | BD107: 0 | BE107: 0 | BF107: 0 | BG107: 0
B108: Fewer unplanned outages in the worst served areas | G108: ='1_KMA'!$I$20 -> 2024-06-30 | H108: ='1_KMA'!$I$19 -> $dollars | J108: =J104*$J$99 -> 0 | K108: =K104*$J$99 -> 0 | L108: =L104*$J$99 -> 0 | M108: =M104*$J$99 -> 0 | N108: =N104*$J$99 -> 0 | O108: =O104*$J$99 -> 0 | P108: 0 | Q108: 0 | R108: 0 | S108: 0 | T108: 0 | U108: 0 | V108: 0 | W108: 0 | X108: 0 | Y108: 0 | Z108: 0 | AA108: 0 | AB108: 0 | AC108: 0 | AD108: 0 | AE108: 0 | AF108: 0 | AG108: 0 | AH108: 0 | AI108: 0 | AJ108: 0 | AK108: 0 | AL108: 0 | AM108: 0 | AN108: 0 | AO108: 0 | AP108: 0 | AQ108: 0 | AR108: 0 | AS108: 0 | AT108: 0 | AU108: 0 | AV108: 0 | AW108: 0 | AX108: 0 | AY108: 0 | AZ108: 0 | BA108: 0 | BB108: 0 | BC108: 0 | BD108: 0 | BE108: 0 | BF108: 0 | BG108: 0
G110: $ Basis Reminder | H110: $ Reminder | J110: Summary table above picks up this total row
B111: Total | G111: ='1_KMA'!$I$20 -> 2024-06-30 | H111: ='1_KMA'!$I$19 -> $dollars | J111: =SUM(J107:J108) -> 0 | K111: =SUM(K107:K108) -> 0 | L111: 0 | M111: 0 | N111: =SUM(N107:N108) -> 0 | O111: 0 | P111: 0 | Q111: 0 | R111: 0 | S111: 0 | T111: 0 | U111: 0 | V111: 0 | W111: 0 | X111: 0 | Y111: 0 | Z111: 0 | AA111: 0 | AB111: 0 | AC111: 0 | AD111: 0 | AE111: 0 | AF111: 0 | AG111: 0 | AH111: 0 | AI111: 0 | AJ111: 0 | AK111: 0 | AL111: 0 | AM111: 0 | AN111: 0 | AO111: 0 | AP111: 0 | AQ111: 0 | AR111: 0 | AS111: 0 | AT111: 0 | AU111: 0 | AV111: 0 | AW111: 0 | AX111: 0 | AY111: 0 | AZ111: 0 | BA111: 0 | BB111: 0 | BC111: 0 | BD111: 0 | BE111: 0 | BF111: 0 | BG111: 0
B113: Resilience
B115: QCV research | H115: Unit | J115: Unit Rate
B116: Fewer unplanned outages, longer than 12 hours
B117: Faster restoration of power when an outage has occurred
B118: Community hub offering essential services during long duration outages
H121: Unit | J121: Quantities
B122: Fewer unplanned outages, longer than 12 hours
B123: Faster restoration of power when an outage has occurred
B124: Community hub offering essential services
G126: $ Basis Reminder | H126: $ Reminder | J126: ="Values - ensure values have been converted to "&'1_KMA'!$I$19 -> Values - ensure values have been converted to $dollars
B127: Fewer unplanned outages, longer than 12 hours | G127: ='1_KMA'!$I$20 -> 2024-06-30 | H127: ='1_KMA'!$I$19 -> $dollars | J127: =J122*'2.1_BC'!$J$116 -> 0 | K127: =K122*'2.1_BC'!$J$116 -> 0 | L127: =L122*'2.1_BC'!$J$116 -> 0 | M127: =M122*'2.1_BC'!$J$116 -> 0 | N127: =N122*'2.1_BC'!$J$116 -> 0 | O127: =O122*'2.1_BC'!$J$116 -> 0 | P127: =P122*'2.1_BC'!$J$116 -> 0 | Q127: =Q122*'2.1_BC'!$J$116 -> 0 | R127: =R122*'2.1_BC'!$J$116 -> 0 | S127: =S122*'2.1_BC'!$J$116 -> 0 | T127: =T122*'2.1_BC'!$J$116 -> 0 | U127: =U122*'2.1_BC'!$J$116 -> 0 | V127: =V122*'2.1_BC'!$J$116 -> 0 | W127: =W122*'2.1_BC'!$J$116 -> 0 | X127: =X122*'2.1_BC'!$J$116 -> 0 | Y127: =Y122*'2.1_BC'!$J$116 -> 0 | Z127: =Z122*'2.1_BC'!$J$116 -> 0 | AA127: =AA122*'2.1_BC'!$J$116 -> 0 | AB127: =AB122*'2.1_BC'!$J$116 -> 0 | AC127: =AC122*'2.1_BC'!$J$116 -> 0 | AD127: =AD122*'2.1_BC'!$J$116 -> 0 | AE127: =AE122*'2.1_BC'!$J$116 -> 0 | AF127: =AF122*'2.1_BC'!$J$116 -> 0 | AG127: =AG122*'2.1_BC'!$J$116 -> 0 | AH127: =AH122*'2.1_BC'!$J$116 -> 0 | AI127: =AI122*'2.1_BC'!$J$116 -> 0 | AJ127: =AJ122*'2.1_BC'!$J$116 -> 0 | AK127: =AK122*'2.1_BC'!$J$116 -> 0 | AL127: =AL122*'2.1_BC'!$J$116 -> 0 | AM127: =AM122*'2.1_BC'!$J$116 -> 0 | AN127: =AN122*'2.1_BC'!$J$116 -> 0 | AO127: =AO122*'2.1_BC'!$J$116 -> 0 | AP127: =AP122*'2.1_BC'!$J$116 -> 0 | AQ127: =AQ122*'2.1_BC'!$J$116 -> 0 | AR127: =AR122*'2.1_BC'!$J$116 -> 0 | AS127: =AS122*'2.1_BC'!$J$116 -> 0 | AT127: =AT122*'2.1_BC'!$J$116 -> 0 | AU127: =AU122*'2.1_BC'!$J$116 -> 0 | AV127: =AV122*'2.1_BC'!$J$116 -> 0 | AW127: =AW122*'2.1_BC'!$J$116 -> 0 | AX127: =AX122*'2.1_BC'!$J$116 -> 0 | AY127: =AY122*'2.1_BC'!$J$116 -> 0 | AZ127: =AZ122*'2.1_BC'!$J$116 -> 0 | BA127: =BA122*'2.1_BC'!$J$116 -> 0 | BB127: =BB122*'2.1_BC'!$J$116 -> 0 | BC127: =BC122*'2.1_BC'!$J$116 -> 0 | BD127: =BD122*'2.1_BC'!$J$116 -> 0 | BE127: =BE122*'2.1_BC'!$J$116 -> 0 | BF127: =BF122*'2.1_BC'!$J$116 -> 0 | BG127: =BG122*'2.1_BC'!$J$116 -> 0
B128: Faster restoration of power when an outage has occurred | G128: ='1_KMA'!$I$20 -> 2024-06-30 | H128: ='1_KMA'!$I$19 -> $dollars | J128: =J123*'2.1_BC'!$J$117 -> 0 | K128: =K123*'2.1_BC'!$J$117 -> 0 | L128: =L123*'2.1_BC'!$J$117 -> 0 | M128: =M123*'2.1_BC'!$J$117 -> 0 | N128: =N123*'2.1_BC'!$J$117 -> 0 | O128: =O123*'2.1_BC'!$J$117 -> 0 | P128: =P123*'2.1_BC'!$J$117 -> 0 | Q128: =Q123*'2.1_BC'!$J$117 -> 0 | R128: =R123*'2.1_BC'!$J$117 -> 0 | S128: =S123*'2.1_BC'!$J$117 -> 0 | T128: =T123*'2.1_BC'!$J$117 -> 0 | U128: =U123*'2.1_BC'!$J$117 -> 0 | V128: =V123*'2.1_BC'!$J$117 -> 0 | W128: =W123*'2.1_BC'!$J$117 -> 0 | X128: =X123*'2.1_BC'!$J$117 -> 0 | Y128: =Y123*'2.1_BC'!$J$117 -> 0 | Z128: =Z123*'2.1_BC'!$J$117 -> 0 | AA128: =AA123*'2.1_BC'!$J$117 -> 0 | AB128: =AB123*'2.1_BC'!$J$117 -> 0 | AC128: =AC123*'2.1_BC'!$J$117 -> 0 | AD128: =AD123*'2.1_BC'!$J$117 -> 0 | AE128: =AE123*'2.1_BC'!$J$117 -> 0 | AF128: =AF123*'2.1_BC'!$J$117 -> 0 | AG128: =AG123*'2.1_BC'!$J$117 -> 0 | AH128: =AH123*'2.1_BC'!$J$117 -> 0 | AI128: =AI123*'2.1_BC'!$J$117 -> 0 | AJ128: =AJ123*'2.1_BC'!$J$117 -> 0 | AK128: =AK123*'2.1_BC'!$J$117 -> 0 | AL128: =AL123*'2.1_BC'!$J$117 -> 0 | AM128: =AM123*'2.1_BC'!$J$117 -> 0 | AN128: =AN123*'2.1_BC'!$J$117 -> 0 | AO128: =AO123*'2.1_BC'!$J$117 -> 0 | AP128: =AP123*'2.1_BC'!$J$117 -> 0 | AQ128: =AQ123*'2.1_BC'!$J$117 -> 0 | AR128: =AR123*'2.1_BC'!$J$117 -> 0 | AS128: =AS123*'2.1_BC'!$J$117 -> 0 | AT128: =AT123*'2.1_BC'!$J$117 -> 0 | AU128: =AU123*'2.1_BC'!$J$117 -> 0 | AV128: =AV123*'2.1_BC'!$J$117 -> 0 | AW128: =AW123*'2.1_BC'!$J$117 -> 0 | AX128: =AX123*'2.1_BC'!$J$117 -> 0 | AY128: =AY123*'2.1_BC'!$J$117 -> 0 | AZ128: =AZ123*'2.1_BC'!$J$117 -> 0 | BA128: =BA123*'2.1_BC'!$J$117 -> 0 | BB128: =BB123*'2.1_BC'!$J$117 -> 0 | BC128: =BC123*'2.1_BC'!$J$117 -> 0 | BD128: =BD123*'2.1_BC'!$J$117 -> 0 | BE128: =BE123*'2.1_BC'!$J$117 -> 0 | BF128: =BF123*'2.1_BC'!$J$117 -> 0 | BG128: =BG123*'2.1_BC'!$J$117 -> 0
B129: Community hub offering essential services | G129: ='1_KMA'!$I$20 -> 2024-06-30 | H129: ='1_KMA'!$I$19 -> $dollars | J129: =J124*'2.1_BC'!$J$118 -> 0 | K129: =K124*'2.1_BC'!$J$118 -> 0 | L129: =L124*'2.1_BC'!$J$118 -> 0 | M129: =M124*'2.1_BC'!$J$118 -> 0 | N129: =N124*'2.1_BC'!$J$118 -> 0 | O129: =O124*'2.1_BC'!$J$118 -> 0 | P129: =P124*'2.1_BC'!$J$118 -> 0 | Q129: =Q124*'2.1_BC'!$J$118 -> 0 | R129: =R124*'2.1_BC'!$J$118 -> 0 | S129: =S124*'2.1_BC'!$J$118 -> 0 | T129: =T124*'2.1_BC'!$J$118 -> 0 | U129: =U124*'2.1_BC'!$J$118 -> 0 | V129: =V124*'2.1_BC'!$J$118 -> 0 | W129: =W124*'2.1_BC'!$J$118 -> 0 | X129: =X124*'2.1_BC'!$J$118 -> 0 | Y129: =Y124*'2.1_BC'!$J$118 -> 0 | Z129: =Z124*'2.1_BC'!$J$118 -> 0 | AA129: =AA124*'2.1_BC'!$J$118 -> 0 | AB129: =AB124*'2.1_BC'!$J$118 -> 0 | AC129: =AC124*'2.1_BC'!$J$118 -> 0 | AD129: =AD124*'2.1_BC'!$J$118 -> 0 | AE129: =AE124*'2.1_BC'!$J$118 -> 0 | AF129: =AF124*'2.1_BC'!$J$118 -> 0 | AG129: =AG124*'2.1_BC'!$J$118 -> 0 | AH129: =AH124*'2.1_BC'!$J$118 -> 0 | AI129: =AI124*'2.1_BC'!$J$118 -> 0 | AJ129: =AJ124*'2.1_BC'!$J$118 -> 0 | AK129: =AK124*'2.1_BC'!$J$118 -> 0 | AL129: =AL124*'2.1_BC'!$J$118 -> 0 | AM129: =AM124*'2.1_BC'!$J$118 -> 0 | AN129: =AN124*'2.1_BC'!$J$118 -> 0 | AO129: =AO124*'2.1_BC'!$J$118 -> 0 | AP129: =AP124*'2.1_BC'!$J$118 -> 0 | AQ129: =AQ124*'2.1_BC'!$J$118 -> 0 | AR129: =AR124*'2.1_BC'!$J$118 -> 0 | AS129: =AS124*'2.1_BC'!$J$118 -> 0 | AT129: =AT124*'2.1_BC'!$J$118 -> 0 | AU129: =AU124*'2.1_BC'!$J$118 -> 0 | AV129: =AV124*'2.1_BC'!$J$118 -> 0 | AW129: =AW124*'2.1_BC'!$J$118 -> 0 | AX129: =AX124*'2.1_BC'!$J$118 -> 0 | AY129: =AY124*'2.1_BC'!$J$118 -> 0 | AZ129: =AZ124*'2.1_BC'!$J$118 -> 0 | BA129: =BA124*'2.1_BC'!$J$118 -> 0 | BB129: =BB124*'2.1_BC'!$J$118 -> 0 | BC129: =BC124*'2.1_BC'!$J$118 -> 0 | BD129: =BD124*'2.1_BC'!$J$118 -> 0 | BE129: =BE124*'2.1_BC'!$J$118 -> 0 | BF129: =BF124*'2.1_BC'!$J$118 -> 0 | BG129: =BG124*'2.1_BC'!$J$118 -> 0
G131: $ Basis Reminder | H131: $ Reminder | J131: Summary table above picks up this total row
B132: Total | G132: ='1_KMA'!$I$20 -> 2024-06-30 | H132: ='1_KMA'!$I$19 -> $dollars | J132: =SUM(J127:J129) -> 0 | K132: =SUM(K127:K129) -> 0 | L132: =SUM(L127:L129) -> 0 | M132: 0 | N132: 0 | O132: 0 | P132: 0 | Q132: 0 | R132: 0 | S132: 0 | T132: 0 | U132: 0 | V132: 0 | W132: 0 | X132: 0 | Y132: 0 | Z132: 0 | AA132: 0 | AB132: 0 | AC132: 0 | AD132: 0 | AE132: 0 | AF132: 0 | AG132: 0 | AH132: 0 | AI132: 0 | AJ132: 0 | AK132: 0 | AL132: 0 | AM132: 0 | AN132: 0 | AO132: 0 | AP132: 0 | AQ132: 0 | AR132: 0 | AS132: 0 | AT132: 0 | AU132: 0 | AV132: 0 | AW132: 0 | AX132: 0 | AY132: 0 | AZ132: 0 | BA132: 0 | BB132: 0 | BC132: 0 | BD132: 0 | BE132: 0 | BF132: 0 | BG132: 0
B134: Batteries
B136: AusNet Savings from Wholesale Arbitrage
H137: Unit | J137: Value
B138: Wholesale market price differential | H138: [e.g. $dollars per MWh]
B139: AusNet Share in Wholesale arbitrage | H139: [e.g. %]
B140: Average annual battery derating | H140: [e.g. % p.a.]
H142: Unit | J142: Location 1 | K142: Location 2 | L142: Location 3 | M142: Location 4 | N142: Location 5
B143: Battery Rating (kW) | H143: kW
B144: Battery Rating (hr) | H144: hr
B145: Battery Rating (kWh) | H145: kWh | J145: =J143*J144 -> 0 | K145: =K143*K144 -> 0 | L145: =L143*L144 -> 0 | M145: =M143*M144 -> 0 | N145: =N143*N144 -> 0
B146: Retailer benefit by wholesale arbitrage | H146: [e.g. $millions, $thousands or $dollars per year] | J146: =J145*$J$138*0.8*5*52/1000 -> 0 | K146: =K145*$J$138*0.8*5*52/1000 -> 0 | L146: =L145*$J$138*0.8*5*52/1000 -> 0 | M146: =M145*$J$138*0.8*5*52/1000 -> 0 | N146: =N145*$J$138*0.8*5*52/1000 -> 0
G148: $ Basis Reminder | H148: $ Reminder | J148: ="Values - ensure values have been converted to "&'1_KMA'!$I$19 -> Values - ensure values have been converted to $dollars
B149: AusNet Savings from Wholesale Arbitrage | G149: ='1_KMA'!$I$20 -> 2024-06-30 | H149: ='1_KMA'!$I$19 -> $dollars | J149: =(SUM($J$146:$N$146)*$J$139*(1/(1+$J$140)^(J4-1)))/10^6 -> 0 | K149: =(SUM($J$146:$N$146)*$J$139*(1/(1+$J$140)^(K4-1)))/10^6 -> 0 | L149: =(SUM($J$146:$N$146)*$J$139*(1/(1+$J$140)^(L4-1)))/10^6 -> 0 | M149: 0 | N149: =(SUM($J$146:$N$146)*$J$139*(1/(1+$J$140)^(N4-1)))/10^6 -> 0 | O149: 0 | P149: 0 | Q149: =(SUM($J$146:$N$146)*$J$139*(1/(1+$J$140)^(Q4-1)))/10^6 -> 0 | R149: 0 | S149: 0 | T149: 0 | U149: 0 | V149: 0 | W149: 0 | X149: 0 | Y149: 0 | Z149: 0 | AA149: 0 | AB149: 0 | AC149: 0 | AD149: 0 | AE149: 0 | AF149: 0 | AG149: 0 | AH149: 0 | AI149: 0 | AJ149: 0 | AK149: 0 | AL149: 0 | AM149: 0 | AN149: 0 | AO149: 0 | AP149: 0 | AQ149: 0 | AR149: 0 | AS149: 0 | AT149: 0 | AU149: 0 | AV149: 0 | AW149: 0 | AX149: 0 | AY149: 0 | AZ149: 0 | BA149: 0 | BB149: 0 | BC149: 0 | BD149: 0 | BE149: 0 | BF149: 0 | BG149: 0
B151: AusNet Revenue from FCAS
H152: Unit | J152: Value
B153: FCAS participation price | H153: [e.g. $ollars per MW per hour]
B154: Average annual participation All batteries | H154: [e.g. MW per hour]
G156: $ Basis Reminder | H156: $ Reminder | J156: ="Values - ensure values have been converted to "&'1_KMA'!$I$19 -> Values - ensure values have been converted to $dollars
B157: AusNet Revenue from FCAS | G157: ='1_KMA'!$I$20 -> 2024-06-30 | H157: ='1_KMA'!$I$19 -> $dollars | J157: =$J$153*$J$154/10^6 -> 0 | K157: =$J$153*$J$154/10^6 -> 0 | L157: 0 | M157: 0 | N157: 0 | O157: 0 | P157: 0 | Q157: 0 | R157: 0 | S157: 0 | T157: 0 | U157: 0 | V157: 0 | W157: 0 | X157: 0 | Y157: 0 | Z157: 0 | AA157: 0 | AB157: 0 | AC157: 0 | AD157: 0 | AE157: 0 | AF157: 0 | AG157: 0 | AH157: 0 | AI157: 0 | AJ157: 0 | AK157: 0 | AL157: 0 | AM157: 0 | AN157: 0 | AO157: 0 | AP157: 0 | AQ157: 0 | AR157: 0 | AS157: 0 | AT157: 0 | AU157: 0 | AV157: 0 | AW157: 0 | AX157: 0 | AY157: 0 | AZ157: 0 | BA157: 0 | BB157: 0 | BC157: 0 | BD157: 0 | BE157: 0 | BF157: 0 | BG157: 0
B159: AusNet Savings from Avoided Penalties
H160: Unit | J160: Location 1 | K160: Location 2 | L160: Location 3 | M160: Location 4 | N160: Location 5
B161: Number of average outage events | H161: [e.g. Events per year]
B162: Average Ausnet penalty for outage | H162: [e.g. $dollars per event]
G164: $ Basis Reminder | H164: $ Reminder | J164: ="Values - ensure values have been converted to "&'1_KMA'!$I$19 -> Values - ensure values have been converted to $dollars
B165: Ausnet Savings from Avoided Penalties | G165: ='1_KMA'!$I$20 -> 2024-06-30 | H165: ='1_KMA'!$I$19 -> $dollars | J165: =SUMPRODUCT($J$161:$N$161,$J$162:$N$162)/10^6 -> 0 | K165: =SUMPRODUCT($J$161:$N$161,$J$162:$N$162)/10^6 -> 0 | L165: 0 | M165: 0 | N165: 0 | O165: 0 | P165: 0 | Q165: 0 | R165: 0 | S165: 0 | T165: 0 | U165: 0 | V165: 0 | W165: 0 | X165: 0 | Y165: 0 | Z165: 0 | AA165: 0 | AB165: 0 | AC165: 0 | AD165: 0 | AE165: 0 | AF165: 0 | AG165: 0 | AH165: 0 | AI165: 0 | AJ165: 0 | AK165: 0 | AL165: 0 | AM165: 0 | AN165: 0 | AO165: 0 | AP165: 0 | AQ165: 0 | AR165: 0 | AS165: 0 | AT165: 0 | AU165: 0 | AV165: 0 | AW165: 0 | AX165: 0 | AY165: 0 | AZ165: 0 | BA165: 0 | BB165: 0 | BC165: 0 | BD165: 0 | BE165: 0 | BF165: 0 | BG165: 0
G167: $ Basis Reminder | H167: $ Reminder | J167: Summary table above picks up this total row
B168: Total | G168: ='1_KMA'!$I$20 -> 2024-06-30 | H168: ='1_KMA'!$I$19 -> $dollars | J168: =J149+J157+J165 -> 0 | K168: =K149+K157+K165 -> 0 | L168: 0 | M168: 0 | N168: 0 | O168: 0 | P168: 0 | Q168: 0 | R168: 0 | S168: 0 | T168: 0 | U168: 0 | V168: 0 | W168: 0 | X168: 0 | Y168: 0 | Z168: 0 | AA168: 0 | AB168: 0 | AC168: 0 | AD168: 0 | AE168: 0 | AF168: 0 | AG168: 0 | AH168: 0 | AI168: 0 | AJ168: 0 | AK168: 0 | AL168: 0 | AM168: 0 | AN168: 0 | AO168: 0 | AP168: 0 | AQ168: 0 | AR168: 0 | AS168: 0 | AT168: 0 | AU168: 0 | AV168: 0 | AW168: 0 | AX168: 0 | AY168: 0 | AZ168: 0 | BA168: 0 | BB168: 0 | BC168: 0 | BD168: 0 | BE168: 0 | BF168: 0 | BG168: 0
B170: Others

Sheet 2.1_Op1
B1: General Inputs: Option 1 | I1: Regulatory Period Indicator | J1: ='1_KMA'!J30 -> 1 | K1: ='1_KMA'!K30 -> 1 | L1: ='1_KMA'!L30 -> 1 | M1: ='1_KMA'!M30 -> 1 | N1: ='1_KMA'!N30 -> 1 | O1: ='1_KMA'!O30 -> 0 | P1: ='1_KMA'!P30 -> 0 | Q1: ='1_KMA'!Q30 -> 0 | R1: ='1_KMA'!R30 -> 0 | S1: ='1_KMA'!S30 -> 0 | T1: ='1_KMA'!T30 -> 0 | U1: ='1_KMA'!U30 -> 0 | V1: ='1_KMA'!V30 -> 0 | W1: ='1_KMA'!W30 -> 0 | X1: ='1_KMA'!X30 -> 0 | Y1: ='1_KMA'!Y30 -> 0 | Z1: ='1_KMA'!Z30 -> 0 | AA1: ='1_KMA'!AA30 -> 0 | AB1: ='1_KMA'!AB30 -> 0 | AC1: ='1_KMA'!AC30 -> 0 | AD1: ='1_KMA'!AD30 -> 0 | AE1: ='1_KMA'!AE30 -> 0 | AF1: ='1_KMA'!AF30 -> 0 | AG1: ='1_KMA'!AG30 -> 0 | AH1: ='1_KMA'!AH30 -> 0 | AI1: ='1_KMA'!AI30 -> 0 | AJ1: ='1_KMA'!AJ30 -> 0 | AK1: ='1_KMA'!AK30 -> 0 | AL1: ='1_KMA'!AL30 -> 0 | AM1: ='1_KMA'!AM30 -> 0 | AN1: ='1_KMA'!AN30 -> 0 | AO1: ='1_KMA'!AO30 -> 0 | AP1: ='1_KMA'!AP30 -> 0 | AQ1: ='1_KMA'!AQ30 -> 0 | AR1: ='1_KMA'!AR30 -> 0 | AS1: ='1_KMA'!AS30 -> 0 | AT1: ='1_KMA'!AT30 -> 0 | AU1: ='1_KMA'!AU30 -> 0 | AV1: ='1_KMA'!AV30 -> 0 | AW1: ='1_KMA'!AW30 -> 0 | AX1: ='1_KMA'!AX30 -> 0 | AY1: ='1_KMA'!AY30 -> 0 | AZ1: ='1_KMA'!AZ30 -> 0 | BA1: ='1_KMA'!BA30 -> 0 | BB1: ='1_KMA'!BB30 -> 0 | BC1: ='1_KMA'!BC30 -> 0 | BD1: ='1_KMA'!BD30 -> 0 | BE1: ='1_KMA'!BE30 -> 0 | BF1: ='1_KMA'!BF30 -> 0 | BG1: ='1_KMA'!BG30 -> 0
B2: =Cover!$C$9 -> AusNet Services | I2: Period Start Date | J2: ='1_KMA'!J31 -> 2026-07-01 | K2: ='1_KMA'!K31 -> 2027-07-01 | L2: ='1_KMA'!L31 -> 2028-07-01 | M2: ='1_KMA'!M31 -> 2029-07-01 | N2: ='1_KMA'!N31 -> 2030-07-01 | O2: ='1_KMA'!O31 -> 2031-07-01 | P2: ='1_KMA'!P31 -> 2032-07-01 | Q2: ='1_KMA'!Q31 -> 2033-07-01 | R2: ='1_KMA'!R31 -> 2034-07-01 | S2: ='1_KMA'!S31 -> 2035-07-01 | T2: ='1_KMA'!T31 -> 2036-07-01 | U2: ='1_KMA'!U31 -> 2037-07-01 | V2: ='1_KMA'!V31 -> 2038-07-01 | W2: ='1_KMA'!W31 -> 2039-07-01 | X2: ='1_KMA'!X31 -> 2040-07-01 | Y2: ='1_KMA'!Y31 -> 2041-07-01 | Z2: ='1_KMA'!Z31 -> 2042-07-01 | AA2: ='1_KMA'!AA31 -> 2043-07-01 | AB2: ='1_KMA'!AB31 -> 2044-07-01 | AC2: ='1_KMA'!AC31 -> 2045-07-01 | AD2: ='1_KMA'!AD31 -> 2046-07-01 | AE2: ='1_KMA'!AE31 -> 2047-07-01 | AF2: ='1_KMA'!AF31 -> 2048-07-01 | AG2: ='1_KMA'!AG31 -> 2049-07-01 | AH2: ='1_KMA'!AH31 -> 2050-07-01 | AI2: ='1_KMA'!AI31 -> 2051-07-01 | AJ2: ='1_KMA'!AJ31 -> 2052-07-01 | AK2: ='1_KMA'!AK31 -> 2053-07-01 | AL2: ='1_KMA'!AL31 -> 2054-07-01 | AM2: ='1_KMA'!AM31 -> 2055-07-01 | AN2: ='1_KMA'!AN31 -> 2056-07-01 | AO2: ='1_KMA'!AO31 -> 2057-07-01 | AP2: ='1_KMA'!AP31 -> 2058-07-01 | AQ2: ='1_KMA'!AQ31 -> 2059-07-01 | AR2: ='1_KMA'!AR31 -> 2060-07-01 | AS2: ='1_KMA'!AS31 -> 2061-07-01 | AT2: ='1_KMA'!AT31 -> 2062-07-01 | AU2: ='1_KMA'!AU31 -> 2063-07-01 | AV2: ='1_KMA'!AV31 -> 2064-07-01 | AW2: ='1_KMA'!AW31 -> 2065-07-01 | AX2: ='1_KMA'!AX31 -> 2066-07-01 | AY2: ='1_KMA'!AY31 -> 2067-07-01 | AZ2: ='1_KMA'!AZ31 -> 2068-07-01 | BA2: ='1_KMA'!BA31 -> 2069-07-01 | BB2: ='1_KMA'!BB31 -> 2070-07-01 | BC2: ='1_KMA'!BC31 -> 2071-07-01 | BD2: ='1_KMA'!BD31 -> 2072-07-01 | BE2: ='1_KMA'!BE31 -> 2073-07-01 | BF2: ='1_KMA'!BF31 -> 2074-07-01 | BG2: ='1_KMA'!BG31 -> 2075-07-01
B3: =Cover!$C$10 -> Business Case Evaluation | I3: Period End Date | J3: ='1_KMA'!J32 -> 2027-06-30 | K3: ='1_KMA'!K32 -> 2028-06-30 | L3: ='1_KMA'!L32 -> 2029-06-30 | M3: ='1_KMA'!M32 -> 2030-06-30 | N3: ='1_KMA'!N32 -> 2031-06-30 | O3: ='1_KMA'!O32 -> 2032-06-30 | P3: ='1_KMA'!P32 -> 2033-06-30 | Q3: ='1_KMA'!Q32 -> 2034-06-30 | R3: ='1_KMA'!R32 -> 2035-06-30 | S3: ='1_KMA'!S32 -> 2036-06-30 | T3: ='1_KMA'!T32 -> 2037-06-30 | U3: ='1_KMA'!U32 -> 2038-06-30 | V3: ='1_KMA'!V32 -> 2039-06-30 | W3: ='1_KMA'!W32 -> 2040-06-30 | X3: ='1_KMA'!X32 -> 2041-06-30 | Y3: ='1_KMA'!Y32 -> 2042-06-30 | Z3: ='1_KMA'!Z32 -> 2043-06-30 | AA3: ='1_KMA'!AA32 -> 2044-06-30 | AB3: ='1_KMA'!AB32 -> 2045-06-30 | AC3: ='1_KMA'!AC32 -> 2046-06-30 | AD3: ='1_KMA'!AD32 -> 2047-06-30 | AE3: ='1_KMA'!AE32 -> 2048-06-30 | AF3: ='1_KMA'!AF32 -> 2049-06-30 | AG3: ='1_KMA'!AG32 -> 2050-06-30 | AH3: ='1_KMA'!AH32 -> 2051-06-30 | AI3: ='1_KMA'!AI32 -> 2052-06-30 | AJ3: ='1_KMA'!AJ32 -> 2053-06-30 | AK3: ='1_KMA'!AK32 -> 2054-06-30 | AL3: ='1_KMA'!AL32 -> 2055-06-30 | AM3: ='1_KMA'!AM32 -> 2056-06-30 | AN3: ='1_KMA'!AN32 -> 2057-06-30 | AO3: ='1_KMA'!AO32 -> 2058-06-30 | AP3: ='1_KMA'!AP32 -> 2059-06-30 | AQ3: ='1_KMA'!AQ32 -> 2060-06-30 | AR3: ='1_KMA'!AR32 -> 2061-06-30 | AS3: ='1_KMA'!AS32 -> 2062-06-30 | AT3: ='1_KMA'!AT32 -> 2063-06-30 | AU3: ='1_KMA'!AU32 -> 2064-06-30 | AV3: ='1_KMA'!AV32 -> 2065-06-30 | AW3: ='1_KMA'!AW32 -> 2066-06-30 | AX3: ='1_KMA'!AX32 -> 2067-06-30 | AY3: ='1_KMA'!AY32 -> 2068-06-30 | AZ3: ='1_KMA'!AZ32 -> 2069-06-30 | BA3: ='1_KMA'!BA32 -> 2070-06-30 | BB3: ='1_KMA'!BB32 -> 2071-06-30 | BC3: ='1_KMA'!BC32 -> 2072-06-30 | BD3: ='1_KMA'!BD32 -> 2073-06-30 | BE3: ='1_KMA'!BE32 -> 2074-06-30 | BF3: ='1_KMA'!BF32 -> 2075-06-30 | BG3: ='1_KMA'!BG32 -> 2076-06-30
B4: =Cover!$C$11 -> HV Feeder Reliability Improvement | I4: Project Year | J4: ='1_KMA'!J33 -> 1 | K4: ='1_KMA'!K33 -> 2 | L4: ='1_KMA'!L33 -> 3 | M4: ='1_KMA'!M33 -> 4 | N4: ='1_KMA'!N33 -> 5 | O4: ='1_KMA'!O33 -> 6 | P4: ='1_KMA'!P33 -> 7 | Q4: ='1_KMA'!Q33 -> 8 | R4: ='1_KMA'!R33 -> 9 | S4: ='1_KMA'!S33 -> 10 | T4: ='1_KMA'!T33 -> 11 | U4: ='1_KMA'!U33 -> 12 | V4: ='1_KMA'!V33 -> 13 | W4: ='1_KMA'!W33 -> 14 | X4: ='1_KMA'!X33 -> 15 | Y4: ='1_KMA'!Y33 -> 16 | Z4: ='1_KMA'!Z33 -> 17 | AA4: ='1_KMA'!AA33 -> 18 | AB4: ='1_KMA'!AB33 -> 19 | AC4: ='1_KMA'!AC33 -> 20 | AD4: ='1_KMA'!AD33 -> 21 | AE4: ='1_KMA'!AE33 -> 22 | AF4: ='1_KMA'!AF33 -> 23 | AG4: ='1_KMA'!AG33 -> 24 | AH4: ='1_KMA'!AH33 -> 25 | AI4: ='1_KMA'!AI33 -> 26 | AJ4: ='1_KMA'!AJ33 -> 27 | AK4: ='1_KMA'!AK33 -> 28 | AL4: ='1_KMA'!AL33 -> 29 | AM4: ='1_KMA'!AM33 -> 30 | AN4: ='1_KMA'!AN33 -> 31 | AO4: ='1_KMA'!AO33 -> 32 | AP4: ='1_KMA'!AP33 -> 33 | AQ4: ='1_KMA'!AQ33 -> 34 | AR4: ='1_KMA'!AR33 -> 35 | AS4: ='1_KMA'!AS33 -> 36 | AT4: ='1_KMA'!AT33 -> 37 | AU4: ='1_KMA'!AU33 -> 38 | AV4: ='1_KMA'!AV33 -> 39 | AW4: ='1_KMA'!AW33 -> 40 | AX4: ='1_KMA'!AX33 -> 41 | AY4: ='1_KMA'!AY33 -> 42 | AZ4: ='1_KMA'!AZ33 -> 43 | BA4: ='1_KMA'!BA33 -> 44 | BB4: ='1_KMA'!BB33 -> 45 | BC4: ='1_KMA'!BC33 -> 46 | BD4: ='1_KMA'!BD33 -> 47 | BE4: ='1_KMA'!BE33 -> 48 | BF4: ='1_KMA'!BF33 -> 49 | BG4: ='1_KMA'!BG33 -> 50
I5: Financial Year | J5: ='1_KMA'!J34 -> 2027 | K5: ='1_KMA'!K34 -> 2028 | L5: ='1_KMA'!L34 -> 2029 | M5: ='1_KMA'!M34 -> 2030 | N5: ='1_KMA'!N34 -> 2031 | O5: ='1_KMA'!O34 -> 2032 | P5: ='1_KMA'!P34 -> 2033 | Q5: ='1_KMA'!Q34 -> 2034 | R5: ='1_KMA'!R34 -> 2035 | S5: ='1_KMA'!S34 -> 2036 | T5: ='1_KMA'!T34 -> 2037 | U5: ='1_KMA'!U34 -> 2038 | V5: ='1_KMA'!V34 -> 2039 | W5: ='1_KMA'!W34 -> 2040 | X5: ='1_KMA'!X34 -> 2041 | Y5: ='1_KMA'!Y34 -> 2042 | Z5: ='1_KMA'!Z34 -> 2043 | AA5: ='1_KMA'!AA34 -> 2044 | AB5: ='1_KMA'!AB34 -> 2045 | AC5: ='1_KMA'!AC34 -> 2046 | AD5: ='1_KMA'!AD34 -> 2047 | AE5: ='1_KMA'!AE34 -> 2048 | AF5: ='1_KMA'!AF34 -> 2049 | AG5: ='1_KMA'!AG34 -> 2050 | AH5: ='1_KMA'!AH34 -> 2051 | AI5: ='1_KMA'!AI34 -> 2052 | AJ5: ='1_KMA'!AJ34 -> 2053 | AK5: ='1_KMA'!AK34 -> 2054 | AL5: ='1_KMA'!AL34 -> 2055 | AM5: ='1_KMA'!AM34 -> 2056 | AN5: ='1_KMA'!AN34 -> 2057 | AO5: ='1_KMA'!AO34 -> 2058 | AP5: ='1_KMA'!AP34 -> 2059 | AQ5: ='1_KMA'!AQ34 -> 2060 | AR5: ='1_KMA'!AR34 -> 2061 | AS5: ='1_KMA'!AS34 -> 2062 | AT5: ='1_KMA'!AT34 -> 2063 | AU5: ='1_KMA'!AU34 -> 2064 | AV5: ='1_KMA'!AV34 -> 2065 | AW5: ='1_KMA'!AW34 -> 2066 | AX5: ='1_KMA'!AX34 -> 2067 | AY5: ='1_KMA'!AY34 -> 2068 | AZ5: ='1_KMA'!AZ34 -> 2069 | BA5: ='1_KMA'!BA34 -> 2070 | BB5: ='1_KMA'!BB34 -> 2071 | BC5: ='1_KMA'!BC34 -> 2072 | BD5: ='1_KMA'!BD34 -> 2073 | BE5: ='1_KMA'!BE34 -> 2074 | BF5: ='1_KMA'!BF34 -> 2075 | BG5: ='1_KMA'!BG34 -> 2076
B7: Summary
B9: Costs | G9: $ Basis Reminder | H9: $ Reminder | J9: ="Ensure this section [Summary] is picking up the relevant rows" -> Ensure this section [Summary] is picking up the relevant rows
B10: Capex | G10: ='1_KMA'!$I$20 -> 2024-06-30 | H10: ='1_KMA'!$I$19 -> $dollars | J10: =J47 -> 19027220.02 | K10: =K47 -> 4465776.57 | L10: =L47 -> 0 | M10: 0 | N10: 0 | O10: 0 | P10: 0 | Q10: 0 | R10: 0 | S10: 0 | T10: 0 | U10: 0 | V10: 0 | W10: 0 | X10: 0 | Y10: 0 | Z10: 0 | AA10: 0 | AB10: 0 | AC10: 0 | AD10: 0 | AE10: 0 | AF10: 0 | AG10: 0 | AH10: 0 | AI10: 0 | AJ10: 0 | AK10: 0 | AL10: 0 | AM10: 0 | AN10: 2486321.48 | AO10: 0 | AP10: 0 | AQ10: 0 | AR10: 0 | AS10: 0 | AT10: 0 | AU10: 0 | AV10: 0 | AW10: 0 | AX10: 0 | AY10: 0 | AZ10: 0 | BA10: 0 | BB10: 0 | BC10: 0 | BD10: 0 | BE10: 0 | BF10: 0 | BG10: 0
B11: Capex offset | G11: ='1_KMA'!$I$20 -> 2024-06-30 | H11: ='1_KMA'!$I$19 -> $dollars | J11: =-J59 -> 0 | K11: =-K59 -> 0 | L11: =-L59 -> 0 | M11: 0 | N11: 0 | O11: 0 | P11: 0 | Q11: 0 | R11: 0 | S11: 0 | T11: 0 | U11: 0 | V11: 0 | W11: 0 | X11: 0 | Y11: 0 | Z11: 0 | AA11: 0 | AB11: 0 | AC11: 0 | AD11: 0 | AE11: 0 | AF11: 0 | AG11: 0 | AH11: 0 | AI11: 0 | AJ11: 0 | AK11: 0 | AL11: 0 | AM11: 0 | AN11: 0 | AO11: 0 | AP11: 0 | AQ11: 0 | AR11: 0 | AS11: 0 | AT11: 0 | AU11: 0 | AV11: 0 | AW11: 0 | AX11: 0 | AY11: 0 | AZ11: 0 | BA11: 0 | BB11: 0 | BC11: 0 | BD11: 0 | BE11: 0 | BF11: 0 | BG11: 0
B12: Opex | G12: ='1_KMA'!$I$20 -> 2024-06-30 | H12: ='1_KMA'!$I$19 -> $dollars | J12: =J82 -> 1672642.37 | K12: =K82 -> 1300861.058 | L12: 1179660.995 | M12: =M82 -> 1179660.995 | N12: 1179660.995 | O12: 1179660.995 | P12: 1179660.995 | Q12: 1179660.995 | R12: 1179660.995 | S12: 1179660.995 | T12: 1179660.995 | U12: 1179660.995 | V12: 1179660.995 | W12: 1179660.995 | X12: 1179660.995 | Y12: 1179660.995 | Z12: 1179660.995 | AA12: 1179660.995 | AB12: 1179660.995 | AC12: 1179660.995 | AD12: 1179660.995 | AE12: 1179660.995 | AF12: 1179660.995 | AG12: 1179660.995 | AH12: 1179660.995 | AI12: 1179660.995 | AJ12: 1179660.995 | AK12: 1179660.995 | AL12: 1179660.995 | AM12: 1179660.995 | AN12: 1179660.995 | AO12: 1179660.995 | AP12: 1179660.995 | AQ12: 1179660.995 | AR12: 1179660.995 | AS12: 1179660.995 | AT12: 1179660.995 | AU12: 1179660.995 | AV12: 1179660.995 | AW12: 1179660.995 | AX12: 1179660.995 | AY12: 1179660.995 | AZ12: 1179660.995 | BA12: 1179660.995 | BB12: 1179660.995 | BC12: 1179660.995 | BD12: 1179660.995 | BE12: 1179660.995 | BF12: 1179660.995 | BG12: 1179660.995
B13: Total | G13: ='1_KMA'!$I$20 -> 2024-06-30 | H13: ='1_KMA'!$I$19 -> $dollars | J13: =SUM(J10:J12) -> 20699862.39 | K13: =SUM(K10:K12) -> 5766637.628 | L13: =SUM(L10:L12) -> 1179660.995 | M13: 1179660.995 | N13: 1179660.995 | O13: 1179660.995 | P13: 1179660.995 | Q13: 1179660.995 | R13: 1179660.995 | S13: 1179660.995 | T13: 1179660.995 | U13: 1179660.995 | V13: 1179660.995 | W13: 1179660.995 | X13: 1179660.995 | Y13: 1179660.995 | Z13: 1179660.995 | AA13: 1179660.995 | AB13: 1179660.995 | AC13: 1179660.995 | AD13: 1179660.995 | AE13: 1179660.995 | AF13: 1179660.995 | AG13: 1179660.995 | AH13: 1179660.995 | AI13: 1179660.995 | AJ13: 1179660.995 | AK13: 1179660.995 | AL13: 1179660.995 | AM13: 1179660.995 | AN13: 3665982.475 | AO13: 1179660.995 | AP13: 1179660.995 | AQ13: 1179660.995 | AR13: 1179660.995 | AS13: 1179660.995 | AT13: 1179660.995 | AU13: 1179660.995 | AV13: 1179660.995 | AW13: 1179660.995 | AX13: 1179660.995 | AY13: 1179660.995 | AZ13: 1179660.995 | BA13: 1179660.995 | BB13: 1179660.995 | BC13: 1179660.995 | BD13: 1179660.995 | BE13: 1179660.995 | BF13: 1179660.995 | BG13: 1179660.995
B15: Benefits | G15: $ Basis Reminder | H15: $ Reminder | J15: ="Ensure this section [Summary] is picking up the relevant rows" -> Ensure this section [Summary] is picking up the relevant rows
B16: Value of EUE | G16: ='1_KMA'!$I$20 -> 2024-06-30 | H16: ='1_KMA'!$I$19 -> $dollars | J16: =-J93 -> -6153761.703 | K16: =-K93 -> -4950762.943 | L16: -4960144.108 | M16: -5009745.549 | N16: -5059843.004 | O16: -5110441.434 | P16: -5161545.849 | Q16: -5213161.307 | R16: -5265292.92 | S16: -5317945.849 | T16: -5371125.308 | U16: -5424836.561 | V16: -5479084.926 | W16: -5533875.776 | X16: -5589214.534 | Y16: -5645106.679 | Z16: -5701557.746 | AA16: -5758573.323 | AB16: -5816159.056 | AC16: -5874320.647 | AD16: -5933063.853 | AE16: -5992394.492 | AF16: -6052318.437 | AG16: -6112841.621 | AH16: -6173970.037 | AI16: -6235709.738 | AJ16: -6298066.835 | AK16: -6361047.504 | AL16: -6424657.979 | AM16: -6488904.558 | AN16: 0 | AO16: 0 | AP16: 0 | AQ16: 0 | AR16: 0 | AS16: 0 | AT16: 0 | AU16: 0 | AV16: 0 | AW16: 0 | AX16: 0 | AY16: 0 | AZ16: 0 | BA16: 0 | BB16: 0 | BC16: 0 | BD16: 0 | BE16: 0 | BF16: 0 | BG16: 0
B17: Reliability | G17: ='1_KMA'!$I$20 -> 2024-06-30 | H17: ='1_KMA'!$I$19 -> $dollars | J17: =J111 -> 0 | K17: =K111 -> 0 | L17: 0 | M17: 0 | N17: 0 | O17: 0 | P17: 0 | Q17: 0 | R17: 0 | S17: 0 | T17: 0 | U17: 0 | V17: 0 | W17: 0 | X17: 0 | Y17: 0 | Z17: 0 | AA17: 0 | AB17: 0 | AC17: 0 | AD17: 0 | AE17: 0 | AF17: 0 | AG17: 0 | AH17: 0 | AI17: 0 | AJ17: 0 | AK17: 0 | AL17: 0 | AM17: 0 | AN17: 0 | AO17: 0 | AP17: 0 | AQ17: 0 | AR17: 0 | AS17: 0 | AT17: 0 | AU17: 0 | AV17: 0 | AW17: 0 | AX17: 0 | AY17: 0 | AZ17: 0 | BA17: 0 | BB17: 0 | BC17: 0 | BD17: 0 | BE17: 0 | BF17: 0 | BG17: 0
B18: Resilience | G18: ='1_KMA'!$I$20 -> 2024-06-30 | H18: ='1_KMA'!$I$19 -> $dollars | J18: =J132 -> 0 | K18: =K132 -> 0 | L18: 0 | M18: 0 | N18: 0 | O18: 0 | P18: 0 | Q18: 0 | R18: 0 | S18: 0 | T18: 0 | U18: 0 | V18: 0 | W18: 0 | X18: 0 | Y18: 0 | Z18: 0 | AA18: 0 | AB18: 0 | AC18: 0 | AD18: 0 | AE18: 0 | AF18: 0 | AG18: 0 | AH18: 0 | AI18: 0 | AJ18: 0 | AK18: 0 | AL18: 0 | AM18: 0 | AN18: 0 | AO18: 0 | AP18: 0 | AQ18: 0 | AR18: 0 | AS18: 0 | AT18: 0 | AU18: 0 | AV18: 0 | AW18: 0 | AX18: 0 | AY18: 0 | AZ18: 0 | BA18: 0 | BB18: 0 | BC18: 0 | BD18: 0 | BE18: 0 | BF18: 0 | BG18: 0
B19: Batteries | G19: ='1_KMA'!$I$20 -> 2024-06-30 | H19: ='1_KMA'!$I$19 -> $dollars | J19: =J168 -> 0 | K19: =K168 -> 0 | L19: 0 | M19: 0 | N19: 0 | O19: 0 | P19: 0 | Q19: 0 | R19: 0 | S19: 0 | T19: 0 | U19: 0 | V19: 0 | W19: 0 | X19: 0 | Y19: 0 | Z19: 0 | AA19: 0 | AB19: 0 | AC19: 0 | AD19: 0 | AE19: 0 | AF19: 0 | AG19: 0 | AH19: 0 | AI19: 0 | AJ19: 0 | AK19: 0 | AL19: 0 | AM19: 0 | AN19: 0 | AO19: 0 | AP19: 0 | AQ19: 0 | AR19: 0 | AS19: 0 | AT19: 0 | AU19: 0 | AV19: 0 | AW19: 0 | AX19: 0 | AY19: 0 | AZ19: 0 | BA19: 0 | BB19: 0 | BC19: 0 | BD19: 0 | BE19: 0 | BF19: 0 | BG19: 0
B20: Others | G20: ='1_KMA'!$I$20 -> 2024-06-30 | H20: ='1_KMA'!$I$19 -> $dollars
B21: Total | G21: ='1_KMA'!$I$20 -> 2024-06-30 | H21: ='1_KMA'!$I$19 -> $dollars | J21: =SUM(J16:J20) -> -6153761.703 | K21: =SUM(K16:K20) -> -4950762.943 | L21: -4960144.108 | M21: -5009745.549 | N21: -5059843.004 | O21: -5110441.434 | P21: -5161545.849 | Q21: -5213161.307 | R21: -5265292.92 | S21: -5317945.849 | T21: -5371125.308 | U21: -5424836.561 | V21: -5479084.926 | W21: -5533875.776 | X21: -5589214.534 | Y21: -5645106.679 | Z21: -5701557.746 | AA21: -5758573.323 | AB21: -5816159.056 | AC21: -5874320.647 | AD21: -5933063.853 | AE21: -5992394.492 | AF21: -6052318.437 | AG21: -6112841.621 | AH21: -6173970.037 | AI21: -6235709.738 | AJ21: -6298066.835 | AK21: -6361047.504 | AL21: -6424657.979 | AM21: -6488904.558 | AN21: 0 | AO21: 0 | AP21: 0 | AQ21: 0 | AR21: 0 | AS21: 0 | AT21: 0 | AU21: 0 | AV21: 0 | AW21: 0 | AX21: 0 | AY21: 0 | AZ21: 0 | BA21: 0 | BB21: 0 | BC21: 0 | BD21: 0 | BE21: 0 | BF21: 0 | BG21: 0
B24: Cost Inputs
B26: Capex Build Up
B28: Name | H28: Unit | J28: Unit Rate
B29: Program preferred option improvements | H29: $ per program | J29: 1
B30: Switch replacements | H30: $ per program | J30: 1
B34: Name | H34: Unit | J34: Quantities
B35: =B29 -> Program preferred option improvements | H35: $dollars per annum | J35: 19027220.02 | K35: 4465776.57
B36: =B30 -> Switch replacements | H36: $dollars per annum | AN36: ='Feeder Improvement Options'!F279 -> 2486321.48
B40: Name | G40: $ Basis Reminder | H40: $ Reminder | J40: ="Costs - ensure costs have been converted to "&'1_KMA'!$I$19 -> Costs - ensure costs have been converted to $dollars
B41: =B29 -> Program preferred option improvements | G41: ='1_KMA'!$I$20 -> 2024-06-30 | H41: ='1_KMA'!$I$19 -> $dollars | J41: =$J$29*J35 -> 19027220.02 | K41: =$J$29*K35 -> 4465776.57 | L41: =$J$29*L35 -> 0 | M41: 0 | N41: 0 | O41: 0 | P41: 0 | Q41: 0 | R41: 0 | S41: 0 | T41: 0 | U41: 0 | V41: 0 | W41: 0 | X41: 0 | Y41: 0 | Z41: 0 | AA41: 0 | AB41: 0 | AC41: 0 | AD41: 0 | AE41: 0 | AF41: 0 | AG41: 0 | AH41: 0 | AI41: 0 | AJ41: 0 | AK41: 0 | AL41: 0 | AM41: 0 | AN41: 0 | AO41: 0 | AP41: 0 | AQ41: 0 | AR41: 0 | AS41: 0 | AT41: 0 | AU41: 0 | AV41: 0 | AW41: 0 | AX41: 0 | AY41: 0 | AZ41: 0 | BA41: 0 | BB41: 0 | BC41: 0 | BD41: 0 | BE41: 0 | BF41: 0 | BG41: 0
B42: =B30 -> Switch replacements | G42: ='1_KMA'!$I$20 -> 2024-06-30 | H42: ='1_KMA'!$I$19 -> $dollars | J42: =$J$30*J36 -> 0 | K42: =$J$30*K36 -> 0 | L42: =$J$30*L36 -> 0 | M42: =$J$30*M36 -> 0 | N42: =$J$30*N36 -> 0 | O42: 0 | P42: 0 | Q42: 0 | R42: 0 | S42: 0 | T42: 0 | U42: 0 | V42: 0 | W42: 0 | X42: 0 | Y42: 0 | Z42: 0 | AA42: 0 | AB42: 0 | AC42: 0 | AD42: 0 | AE42: 0 | AF42: 0 | AG42: 0 | AH42: 0 | AI42: 0 | AJ42: 0 | AK42: 0 | AL42: 0 | AM42: 0 | AN42: 2486321.48 | AO42: 0 | AP42: 0 | AQ42: 0 | AR42: 0 | AS42: 0 | AT42: 0 | AU42: 0 | AV42: 0 | AW42: 0 | AX42: 0 | AY42: 0 | AZ42: 0 | BA42: 0 | BB42: 0 | BC42: 0 | BD42: 0 | BE42: 0 | BF42: 0 | BG42: 0
G43: ='1_KMA'!$I$20 -> 2024-06-30 | H43: ='1_KMA'!$I$19 -> $dollars | J43: =$J$31*J37 -> 0 | K43: =$J$31*K37 -> 0 | L43: =$J$31*L37 -> 0 | M43: 0 | N43: =$J$31*N37 -> 0 | O43: 0 | P43: 0 | Q43: 0 | R43: 0 | S43: 0 | T43: 0 | U43: 0 | V43: 0 | W43: 0 | X43: 0 | Y43: 0 | Z43: 0 | AA43: 0 | AB43: 0 | AC43: 0 | AD43: 0 | AE43: 0 | AF43: 0 | AG43: 0 | AH43: 0 | AI43: 0 | AJ43: 0 | AK43: 0 | AL43: 0 | AM43: 0 | AN43: 0 | AO43: 0 | AP43: 0 | AQ43: 0 | AR43: 0 | AS43: 0 | AT43: 0 | AU43: 0 | AV43: 0 | AW43: 0 | AX43: 0 | AY43: 0 | AZ43: 0 | BA43: 0 | BB43: 0 | BC43: 0 | BD43: 0 | BE43: 0 | BF43: 0 | BG43: 0
G44: ='1_KMA'!$I$20 -> 2024-06-30 | H44: ='1_KMA'!$I$19 -> $dollars | J44: =$J$32*J38 -> 0 | K44: =$J$32*K38 -> 0 | L44: =$J$32*L38 -> 0 | M44: 0 | N44: 0 | O44: =$J$32*O38 -> 0 | P44: 0 | Q44: 0 | R44: 0 | S44: 0 | T44: 0 | U44: 0 | V44: 0 | W44: 0 | X44: 0 | Y44: 0 | Z44: 0 | AA44: 0 | AB44: 0 | AC44: 0 | AD44: 0 | AE44: 0 | AF44: 0 | AG44: 0 | AH44: 0 | AI44: 0 | AJ44: 0 | AK44: 0 | AL44: 0 | AM44: 0 | AN44: 0 | AO44: 0 | AP44: 0 | AQ44: 0 | AR44: 0 | AS44: 0 | AT44: 0 | AU44: 0 | AV44: 0 | AW44: 0 | AX44: 0 | AY44: 0 | AZ44: 0 | BA44: 0 | BB44: 0 | BC44: 0 | BD44: 0 | BE44: 0 | BF44: 0 | BG44: 0
G46: $ Basis Reminder | H46: $ Reminder | J46: Summary table above picks up this total row
B47: Total | G47: ='1_KMA'!$I$20 -> 2024-06-30 | H47: ='1_KMA'!$I$19 -> $dollars | J47: =SUM(J41:J44) -> 19027220.02 | K47: =SUM(K41:K44) -> 4465776.57 | L47: 0 | M47: 0 | N47: 0 | O47: 0 | P47: 0 | Q47: 0 | R47: 0 | S47: 0 | T47: 0 | U47: 0 | V47: 0 | W47: 0 | X47: 0 | Y47: 0 | Z47: 0 | AA47: 0 | AB47: 0 | AC47: 0 | AD47: 0 | AE47: 0 | AF47: 0 | AG47: 0 | AH47: 0 | AI47: 0 | AJ47: 0 | AK47: 0 | AL47: 0 | AM47: 0 | AN47: 2486321.48 | AO47: 0 | AP47: 0 | AQ47: 0 | AR47: 0 | AS47: 0 | AT47: 0 | AU47: 0 | AV47: 0 | AW47: 0 | AX47: 0 | AY47: 0 | AZ47: 0 | BA47: 0 | BB47: 0 | BC47: 0 | BD47: 0 | BE47: 0 | BF47: 0 | BG47: 0
B49: Capex Offset
J51: ="Capex offsets - ensure capex offsets have been converted to "&'1_KMA'!$I$19 -> Capex offsets - ensure capex offsets have been converted to $dollars
B52: Name | G52: $ Basis Reminder | H52: $ Reminder | J52: Enter capex offsets as positive values as the spreadsheet later nets this off the gross amounts
B53: [e.g. Government subsidy] | G53: ='1_KMA'!$I$20 -> 2024-06-30 | H53: ='1_KMA'!$I$19 -> $dollars
B54: [e.g. Customer contribution] | G54: ='1_KMA'!$I$20 -> 2024-06-30 | H54: ='1_KMA'!$I$19 -> $dollars
G55: ='1_KMA'!$I$20 -> 2024-06-30 | H55: ='1_KMA'!$I$19 -> $dollars
G56: ='1_KMA'!$I$20 -> 2024-06-30 | H56: ='1_KMA'!$I$19 -> $dollars
G58: $ Basis Reminder | H58: $ Reminder | J58: Summary table above picks up this total row
B59: Total | G59: ='1_KMA'!$I$20 -> 2024-06-30 | H59: ='1_KMA'!$I$19 -> $dollars | J59: =SUM(J53:J56) -> 0 | K59: =SUM(K53:K56) -> 0 | L59: =SUM(L53:L56) -> 0 | M59: 0 | N59: 0 | O59: 0 | P59: 0 | Q59: 0 | R59: 0 | S59: 0 | T59: 0 | U59: 0 | V59: 0 | W59: 0 | X59: 0 | Y59: 0 | Z59: 0 | AA59: 0 | AB59: 0 | AC59: 0 | AD59: 0 | AE59: 0 | AF59: 0 | AG59: 0 | AH59: 0 | AI59: 0 | AJ59: 0 | AK59: 0 | AL59: 0 | AM59: 0 | AN59: 0 | AO59: 0 | AP59: 0 | AQ59: 0 | AR59: 0 | AS59: 0 | AT59: 0 | AU59: 0 | AV59: 0 | AW59: 0 | AX59: 0 | AY59: 0 | AZ59: 0 | BA59: 0 | BB59: 0 | BC59: 0 | BD59: 0 | BE59: 0 | BF59: 0 | BG59: 0
B61: Opex Build Up
B63: Name | H63: Unit | J63: Value
B64: O&M | H64: 1 | J64: 1
B65: Reactive Work | H65: 1 | J65: 1
B66: GSLs | H66: 1 | J66: 1
B69: Name | H69: Unit | J69: Quantities
B70: =B64 -> O&M | H70: $dollars per annum | J70: 0 | K70: ='Feeder Improvement Options'!C291 -> 60229.70902 | L70: ='Feeder Improvement Options'!D291 -> 117464.9829 | M70: ='Feeder Improvement Options'!$E$291 -> 117464.9829 | N70: ='Feeder Improvement Options'!$E$291 -> 117464.9829 | O70: ='Feeder Improvement Options'!$E$291 -> 117464.9829 | P70: ='Feeder Improvement Options'!$E$291 -> 117464.9829 | Q70: ='Feeder Improvement Options'!$E$291 -> 117464.9829 | R70: ='Feeder Improvement Options'!$E$291 -> 117464.9829 | S70: ='Feeder Improvement Options'!$E$291 -> 117464.9829 | T70: ='Feeder Improvement Options'!$E$291 -> 117464.9829 | U70: ='Feeder Improvement Options'!$E$291 -> 117464.9829 | V70: ='Feeder Improvement Options'!$E$291 -> 117464.9829 | W70: ='Feeder Improvement Options'!$E$291 -> 117464.9829 | X70: ='Feeder Improvement Options'!$E$291 -> 117464.9829 | Y70: ='Feeder Improvement Options'!$E$291 -> 117464.9829 | Z70: ='Feeder Improvement Options'!$E$291 -> 117464.9829 | AA70: ='Feeder Improvement Options'!$E$291 -> 117464.9829 | AB70: ='Feeder Improvement Options'!$E$291 -> 117464.9829 | AC70: ='Feeder Improvement Options'!$E$291 -> 117464.9829 | AD70: ='Feeder Improvement Options'!$E$291 -> 117464.9829 | AE70: ='Feeder Improvement Options'!$E$291 -> 117464.9829 | AF70: ='Feeder Improvement Options'!$E$291 -> 117464.9829 | AG70: ='Feeder Improvement Options'!$E$291 -> 117464.9829 | AH70: ='Feeder Improvement Options'!$E$291 -> 117464.9829 | AI70: ='Feeder Improvement Options'!$E$291 -> 117464.9829 | AJ70: ='Feeder Improvement Options'!$E$291 -> 117464.9829 | AK70: ='Feeder Improvement Options'!$E$291 -> 117464.9829 | AL70: ='Feeder Improvement Options'!$E$291 -> 117464.9829 | AM70: ='Feeder Improvement Options'!$E$291 -> 117464.9829 | AN70: ='Feeder Improvement Options'!$E$291 -> 117464.9829 | AO70: ='Feeder Improvement Options'!$E$291 -> 117464.9829 | AP70: ='Feeder Improvement Options'!$E$291 -> 117464.9829 | AQ70: ='Feeder Improvement Options'!$E$291 -> 117464.9829 | AR70: ='Feeder Improvement Options'!$E$291 -> 117464.9829 | AS70: ='Feeder Improvement Options'!$E$291 -> 117464.9829 | AT70: ='Feeder Improvement Options'!$E$291 -> 117464.9829 | AU70: ='Feeder Improvement Options'!$E$291 -> 117464.9829 | AV70: ='Feeder Improvement Options'!$E$291 -> 117464.9829 | AW70: ='Feeder Improvement Options'!$E$291 -> 117464.9829 | AX70: ='Feeder Improvement Options'!$E$291 -> 117464.9829 | AY70: ='Feeder Improvement Options'!$E$291 -> 117464.9829 | AZ70: ='Feeder Improvement Options'!$E$291 -> 117464.9829 | BA70: ='Feeder Improvement Options'!$E$291 -> 117464.9829 | BB70: ='Feeder Improvement Options'!$E$291 -> 117464.9829 | BC70: ='Feeder Improvement Options'!$E$291 -> 117464.9829 | BD70: ='Feeder Improvement Options'!$E$291 -> 117464.9829 | BE70: ='Feeder Improvement Options'!$E$291 -> 117464.9829 | BF70: ='Feeder Improvement Options'!$E$291 -> 117464.9829 | BG70: ='Feeder Improvement Options'!$E$291 -> 117464.9829
B71: =B65 -> Reactive Work | H71: $dollars per annum | J71: ='Feeder Improvement Options'!B303 -> 319908.524 | K71: ='Feeder Improvement Options'!C303 -> 132242.836 | L71: ='Feeder Improvement Options'!$E$303 -> 0 | M71: ='Feeder Improvement Options'!$E$303 -> 0 | N71: ='Feeder Improvement Options'!$E$303 -> 0 | O71: ='Feeder Improvement Options'!$E$303 -> 0 | P71: ='Feeder Improvement Options'!$E$303 -> 0 | Q71: ='Feeder Improvement Options'!$E$303 -> 0 | R71: ='Feeder Improvement Options'!$E$303 -> 0 | S71: ='Feeder Improvement Options'!$E$303 -> 0 | T71: ='Feeder Improvement Options'!$E$303 -> 0 | U71: ='Feeder Improvement Options'!$E$303 -> 0 | V71: ='Feeder Improvement Options'!$E$303 -> 0 | W71: ='Feeder Improvement Options'!$E$303 -> 0 | X71: ='Feeder Improvement Options'!$E$303 -> 0 | Y71: ='Feeder Improvement Options'!$E$303 -> 0 | Z71: ='Feeder Improvement Options'!$E$303 -> 0 | AA71: ='Feeder Improvement Options'!$E$303 -> 0 | AB71: ='Feeder Improvement Options'!$E$303 -> 0 | AC71: ='Feeder Improvement Options'!$E$303 -> 0 | AD71: ='Feeder Improvement Options'!$E$303 -> 0 | AE71: ='Feeder Improvement Options'!$E$303 -> 0 | AF71: ='Feeder Improvement Options'!$E$303 -> 0 | AG71: ='Feeder Improvement Options'!$E$303 -> 0 | AH71: ='Feeder Improvement Options'!$E$303 -> 0 | AI71: ='Feeder Improvement Options'!$E$303 -> 0 | AJ71: ='Feeder Improvement Options'!$E$303 -> 0 | AK71: ='Feeder Improvement Options'!$E$303 -> 0 | AL71: ='Feeder Improvement Options'!$E$303 -> 0 | AM71: ='Feeder Improvement Options'!$E$303 -> 0 | AN71: ='Feeder Improvement Options'!$E$303 -> 0 | AO71: ='Feeder Improvement Options'!$E$303 -> 0 | AP71: ='Feeder Improvement Options'!$E$303 -> 0 | AQ71: ='Feeder Improvement Options'!$E$303 -> 0 | AR71: ='Feeder Improvement Options'!$E$303 -> 0 | AS71: ='Feeder Improvement Options'!$E$303 -> 0 | AT71: ='Feeder Improvement Options'!$E$303 -> 0 | AU71: ='Feeder Improvement Options'!$E$303 -> 0 | AV71: ='Feeder Improvement Options'!$E$303 -> 0 | AW71: ='Feeder Improvement Options'!$E$303 -> 0 | AX71: ='Feeder Improvement Options'!$E$303 -> 0 | AY71: ='Feeder Improvement Options'!$E$303 -> 0 | AZ71: ='Feeder Improvement Options'!$E$303 -> 0 | BA71: ='Feeder Improvement Options'!$E$303 -> 0 | BB71: ='Feeder Improvement Options'!$E$303 -> 0 | BC71: ='Feeder Improvement Options'!$E$303 -> 0 | BD71: ='Feeder Improvement Options'!$E$303 -> 0 | BE71: ='Feeder Improvement Options'!$E$303 -> 0 | BF71: ='Feeder Improvement Options'!$E$303 -> 0 | BG71: ='Feeder Improvement Options'!$E$303 -> 0
B72: =B66 -> GSLs | H72: $dollars per annum | J72: =Forecasts!I198 -> 1352733.846 | K72: =Forecasts!J198 -> 1108388.513 | L72: =Forecasts!K198 -> 1062196.012 | M72: =Forecasts!L198 -> 1062196.012 | N72: =Forecasts!M198 -> 1062196.012 | O72: =Forecasts!N198 -> 1062196.012 | P72: =Forecasts!O198 -> 1062196.012 | Q72: =Forecasts!P198 -> 1062196.012 | R72: =Forecasts!Q198 -> 1062196.012 | S72: =Forecasts!R198 -> 1062196.012 | T72: =Forecasts!S198 -> 1062196.012 | U72: =Forecasts!T198 -> 1062196.012 | V72: =Forecasts!U198 -> 1062196.012 | W72: =Forecasts!V198 -> 1062196.012 | X72: =Forecasts!W198 -> 1062196.012 | Y72: =Forecasts!X198 -> 1062196.012 | Z72: =Forecasts!Y198 -> 1062196.012 | AA72: =Forecasts!Z198 -> 1062196.012 | AB72: =Forecasts!AA198 -> 1062196.012 | AC72: =Forecasts!AB198 -> 1062196.012 | AD72: =Forecasts!AC198 -> 1062196.012 | AE72: =Forecasts!AD198 -> 1062196.012 | AF72: =Forecasts!AE198 -> 1062196.012 | AG72: =Forecasts!AF198 -> 1062196.012 | AH72: =Forecasts!AG198 -> 1062196.012 | AI72: =Forecasts!AH198 -> 1062196.012 | AJ72: =Forecasts!AI198 -> 1062196.012 | AK72: =Forecasts!AJ198 -> 1062196.012 | AL72: =Forecasts!AK198 -> 1062196.012 | AM72: =Forecasts!AL198 -> 1062196.012 | AN72: =Forecasts!AM198 -> 1062196.012 | AO72: =Forecasts!AN198 -> 1062196.012 | AP72: =Forecasts!AO198 -> 1062196.012 | AQ72: =Forecasts!AP198 -> 1062196.012 | AR72: =Forecasts!AQ198 -> 1062196.012 | AS72: =Forecasts!AR198 -> 1062196.012 | AT72: =Forecasts!AS198 -> 1062196.012 | AU72: =Forecasts!AT198 -> 1062196.012 | AV72: =Forecasts!AU198 -> 1062196.012 | AW72: =Forecasts!AV198 -> 1062196.012 | AX72: =Forecasts!AW198 -> 1062196.012 | AY72: =Forecasts!AX198 -> 1062196.012 | AZ72: =Forecasts!AY198 -> 1062196.012 | BA72: =Forecasts!AZ198 -> 1062196.012 | BB72: =Forecasts!BA198 -> 1062196.012 | BC72: =Forecasts!BB198 -> 1062196.012 | BD72: =Forecasts!BC198 -> 1062196.012 | BE72: =Forecasts!BD198 -> 1062196.012 | BF72: =Forecasts!BE198 -> 1062196.012 | BG72: =Forecasts!BF198 -> 1062196.012
B75: Name | G75: $ Basis Reminder | H75: $ Reminder | J75: ="Costs - ensure costs have been converted to "&'1_KMA'!$I$19 -> Costs - ensure costs have been converted to $dollars
B76: =B64 -> O&M | G76: ='1_KMA'!$I$20 -> 2024-06-30 | H76: ='1_KMA'!$I$19 -> $dollars | J76: =$J$64*J70 -> 0 | K76: =$J$64*K70 -> 60229.70902 | L76: =$J$64*L70 -> 117464.9829 | M76: =$J$64*M70 -> 117464.9829 | N76: 117464.9829 | O76: 117464.9829 | P76: =$J$64*P70 -> 117464.9829 | Q76: 117464.9829 | R76: 117464.9829 | S76: 117464.9829 | T76: 117464.9829 | U76: 117464.9829 | V76: 117464.9829 | W76: 117464.9829 | X76: 117464.9829 | Y76: 117464.9829 | Z76: 117464.9829 | AA76: 117464.9829 | AB76: 117464.9829 | AC76: 117464.9829 | AD76: 117464.9829 | AE76: 117464.9829 | AF76: 117464.9829 | AG76: 117464.9829 | AH76: 117464.9829 | AI76: 117464.9829 | AJ76: 117464.9829 | AK76: 117464.9829 | AL76: 117464.9829 | AM76: 117464.9829 | AN76: 117464.9829 | AO76: 117464.9829 | AP76: 117464.9829 | AQ76: 117464.9829 | AR76: 117464.9829 | AS76: 117464.9829 | AT76: 117464.9829 | AU76: 117464.9829 | AV76: 117464.9829 | AW76: 117464.9829 | AX76: 117464.9829 | AY76: 117464.9829 | AZ76: 117464.9829 | BA76: 117464.9829 | BB76: 117464.9829 | BC76: 117464.9829 | BD76: 117464.9829 | BE76: 117464.9829 | BF76: 117464.9829 | BG76: 117464.9829
B77: =B65 -> Reactive Work | G77: ='1_KMA'!$I$20 -> 2024-06-30 | H77: ='1_KMA'!$I$19 -> $dollars | J77: =$J$65*J71 -> 319908.524 | K77: =$J$65*K71 -> 132242.836 | L77: =$J$65*L71 -> 0 | M77: =$J$65*M71 -> 0 | N77: 0 | O77: 0 | P77: =$J$65*P71 -> 0 | Q77: 0 | R77: 0 | S77: 0 | T77: 0 | U77: 0 | V77: 0 | W77: 0 | X77: 0 | Y77: 0 | Z77: 0 | AA77: 0 | AB77: 0 | AC77: 0 | AD77: 0 | AE77: 0 | AF77: 0 | AG77: 0 | AH77: 0 | AI77: 0 | AJ77: 0 | AK77: 0 | AL77: 0 | AM77: 0 | AN77: 0 | AO77: 0 | AP77: 0 | AQ77: 0 | AR77: 0 | AS77: 0 | AT77: 0 | AU77: 0 | AV77: 0 | AW77: 0 | AX77: 0 | AY77: 0 | AZ77: 0 | BA77: 0 | BB77: 0 | BC77: 0 | BD77: 0 | BE77: 0 | BF77: 0 | BG77: 0
B78: =B66 -> GSLs | G78: ='1_KMA'!$I$20 -> 2024-06-30 | H78: ='1_KMA'!$I$19 -> $dollars | J78: =$J$66*J72 -> 1352733.846 | K78: =$J$66*K72 -> 1108388.513 | L78: =$J$66*L72 -> 1062196.012 | M78: 1062196.012 | N78: =$J$66*N72 -> 1062196.012 | O78: 1062196.012 | P78: 1062196.012 | Q78: 1062196.012 | R78: 1062196.012 | S78: 1062196.012 | T78: 1062196.012 | U78: 1062196.012 | V78: 1062196.012 | W78: 1062196.012 | X78: 1062196.012 | Y78: 1062196.012 | Z78: 1062196.012 | AA78: 1062196.012 | AB78: 1062196.012 | AC78: 1062196.012 | AD78: 1062196.012 | AE78: 1062196.012 | AF78: 1062196.012 | AG78: 1062196.012 | AH78: 1062196.012 | AI78: 1062196.012 | AJ78: 1062196.012 | AK78: 1062196.012 | AL78: 1062196.012 | AM78: 1062196.012 | AN78: 1062196.012 | AO78: 1062196.012 | AP78: 1062196.012 | AQ78: 1062196.012 | AR78: 1062196.012 | AS78: 1062196.012 | AT78: 1062196.012 | AU78: 1062196.012 | AV78: 1062196.012 | AW78: 1062196.012 | AX78: 1062196.012 | AY78: 1062196.012 | AZ78: 1062196.012 | BA78: 1062196.012 | BB78: 1062196.012 | BC78: 1062196.012 | BD78: 1062196.012 | BE78: 1062196.012 | BF78: 1062196.012 | BG78: 1062196.012
G79: ='1_KMA'!$I$20 -> 2024-06-30 | H79: ='1_KMA'!$I$19 -> $dollars | J79: =$J$67*J73 -> 0 | K79: =$J$67*K73 -> 0 | L79: =$J$67*L73 -> 0 | M79: 0 | N79: 0 | O79: =$J$67*O73 -> 0 | P79: 0 | Q79: 0 | R79: 0 | S79: 0 | T79: 0 | U79: 0 | V79: 0 | W79: 0 | X79: 0 | Y79: 0 | Z79: 0 | AA79: 0 | AB79: 0 | AC79: 0 | AD79: 0 | AE79: 0 | AF79: 0 | AG79: 0 | AH79: 0 | AI79: 0 | AJ79: 0 | AK79: 0 | AL79: 0 | AM79: 0 | AN79: 0 | AO79: 0 | AP79: 0 | AQ79: 0 | AR79: 0 | AS79: 0 | AT79: 0 | AU79: 0 | AV79: 0 | AW79: 0 | AX79: 0 | AY79: 0 | AZ79: 0 | BA79: 0 | BB79: 0 | BC79: 0 | BD79: 0 | BE79: 0 | BF79: 0 | BG79: 0
G81: $ Basis Reminder | H81: $ Reminder | J81: Summary table above picks up this total row
B82: Total | G82: ='1_KMA'!$I$20 -> 2024-06-30 | H82: ='1_KMA'!$I$19 -> $dollars | J82: =SUM(J76:J79) -> 1672642.37 | K82: =SUM(K76:K79) -> 1300861.058 | L82: =SUM(L76:L79) -> 1179660.995 | M82: 1179660.995 | N82: 1179660.995 | O82: 1179660.995 | P82: 1179660.995 | Q82: 1179660.995 | R82: 1179660.995 | S82: 1179660.995 | T82: 1179660.995 | U82: 1179660.995 | V82: 1179660.995 | W82: 1179660.995 | X82: 1179660.995 | Y82: 1179660.995 | Z82: 1179660.995 | AA82: 1179660.995 | AB82: 1179660.995 | AC82: 1179660.995 | AD82: 1179660.995 | AE82: 1179660.995 | AF82: 1179660.995 | AG82: 1179660.995 | AH82: 1179660.995 | AI82: 1179660.995 | AJ82: 1179660.995 | AK82: 1179660.995 | AL82: 1179660.995 | AM82: 1179660.995 | AN82: 1179660.995 | AO82: 1179660.995 | AP82: 1179660.995 | AQ82: 1179660.995 | AR82: 1179660.995 | AS82: 1179660.995 | AT82: 1179660.995 | AU82: 1179660.995 | AV82: 1179660.995 | AW82: 1179660.995 | AX82: 1179660.995 | AY82: 1179660.995 | AZ82: 1179660.995 | BA82: 1179660.995 | BB82: 1179660.995 | BC82: 1179660.995 | BD82: 1179660.995 | BE82: 1179660.995 | BF82: 1179660.995 | BG82: =SUM(BG76:BG79) -> 1179660.995
B84: Benefits Inputs
B86: Value of EUE
J88: ="Values - ensure values have been converted to "&'1_KMA'!$I$19 -> Values - ensure values have been converted to $dollars
G89: $ Basis Reminder | H89: $ Reminder | J89: Enter this as a positive value, as the spreadsheet later converts this to a negative benefit
B90: Value of Expected Unserved Energy (EUE) | G90: ='1_KMA'!$I$20 -> 2024-06-30 | H90: ='1_KMA'!$I$19 -> $dollars | J90: =Forecasts!I193 -> 6153761.703 | K90: =Forecasts!J193 -> 4950762.943 | L90: =Forecasts!K193 -> 4960144.108 | M90: =Forecasts!L193 -> 5009745.549 | N90: =Forecasts!M193 -> 5059843.004 | O90: =Forecasts!N193 -> 5110441.434 | P90: =Forecasts!O193 -> 5161545.849 | Q90: =Forecasts!P193 -> 5213161.307 | R90: =Forecasts!Q193 -> 5265292.92 | S90: =Forecasts!R193 -> 5317945.849 | T90: =Forecasts!S193 -> 5371125.308 | U90: =Forecasts!T193 -> 5424836.561 | V90: =Forecasts!U193 -> 5479084.926 | W90: =Forecasts!V193 -> 5533875.776 | X90: =Forecasts!W193 -> 5589214.534 | Y90: =Forecasts!X193 -> 5645106.679 | Z90: =Forecasts!Y193 -> 5701557.746 | AA90: =Forecasts!Z193 -> 5758573.323 | AB90: =Forecasts!AA193 -> 5816159.056 | AC90: =Forecasts!AB193 -> 5874320.647 | AD90: =Forecasts!AC193 -> 5933063.853 | AE90: =Forecasts!AD193 -> 5992394.492 | AF90: =Forecasts!AE193 -> 6052318.437 | AG90: =Forecasts!AF193 -> 6112841.621 | AH90: =Forecasts!AG193 -> 6173970.037 | AI90: =Forecasts!AH193 -> 6235709.738 | AJ90: =Forecasts!AI193 -> 6298066.835 | AK90: =Forecasts!AJ193 -> 6361047.504 | AL90: =Forecasts!AK193 -> 6424657.979 | AM90: =Forecasts!AL193 -> 6488904.558 | AN90: =Forecasts!AM193 -> 0 | AO90: =Forecasts!AN193 -> 0 | AP90: =Forecasts!AO193 -> 0 | AQ90: =Forecasts!AP193 -> 0 | AR90: =Forecasts!AQ193 -> 0 | AS90: =Forecasts!AR193 -> 0 | AT90: =Forecasts!AS193 -> 0 | AU90: =Forecasts!AT193 -> 0 | AV90: =Forecasts!AU193 -> 0 | AW90: =Forecasts!AV193 -> 0 | AX90: =Forecasts!AW193 -> 0 | AY90: =Forecasts!AX193 -> 0 | AZ90: =Forecasts!AY193 -> 0 | BA90: =Forecasts!AZ193 -> 0 | BB90: =Forecasts!BA193 -> 0 | BC90: =Forecasts!BB193 -> 0 | BD90: =Forecasts!BC193 -> 0 | BE90: =Forecasts!BD193 -> 0 | BF90: =Forecasts!BE193 -> 0 | BG90: =Forecasts!BF193 -> 0
G92: $ Basis Reminder | H92: $ Reminder | J92: Summary table above picks up this total row
B93: Total | G93: ='1_KMA'!$I$20 -> 2024-06-30 | H93: ='1_KMA'!$I$19 -> $dollars | J93: =J90 -> 6153761.703 | K93: =K90 -> 4950762.943 | L93: 4960144.108 | M93: 5009745.549 | N93: 5059843.004 | O93: 5110441.434 | P93: 5161545.849 | Q93: 5213161.307 | R93: 5265292.92 | S93: 5317945.849 | T93: 5371125.308 | U93: 5424836.561 | V93: 5479084.926 | W93: 5533875.776 | X93: 5589214.534 | Y93: 5645106.679 | Z93: 5701557.746 | AA93: 5758573.323 | AB93: 5816159.056 | AC93: 5874320.647 | AD93: 5933063.853 | AE93: 5992394.492 | AF93: 6052318.437 | AG93: 6112841.621 | AH93: 6173970.037 | AI93: 6235709.738 | AJ93: 6298066.835 | AK93: 6361047.504 | AL93: 6424657.979 | AM93: 6488904.558 | AN93: 0 | AO93: 0 | AP93: 0 | AQ93: 0 | AR93: 0 | AS93: 0 | AT93: 0 | AU93: 0 | AV93: 0 | AW93: 0 | AX93: 0 | AY93: 0 | AZ93: 0 | BA93: 0 | BB93: 0 | BC93: 0 | BD93: 0 | BE93: 0 | BF93: 0 | BG93: 0
B95: Reliability
B97: QCV research | H97: Unit | J97: Unit Rate
B98: Fewer unplanned outages, less than 12 hours
B99: Fewer unplanned outages in the worst served areas
H102: Unit | J102: Quantities
B103: Fewer unplanned outages, less than 12 hours
B104: Fewer unplanned outages in the worst served areas
G106: $ Basis Reminder | H106: $ Reminder | J106: ="Values - ensure values have been converted to "&'1_KMA'!$I$19 -> Values - ensure values have been converted to $dollars
B107: Fewer unplanned outages, less than 12 hours | G107: ='1_KMA'!$I$20 -> 2024-06-30 | H107: ='1_KMA'!$I$19 -> $dollars | J107: =J103*$J$98 -> 0 | K107: 0 | L107: 0 | M107: 0 | N107: 0 | O107: 0 | P107: 0 | Q107: 0 | R107: 0 | S107: 0 | T107: 0 | U107: 0 | V107: 0 | W107: 0 | X107: 0 | Y107: 0 | Z107: 0 | AA107: 0 | AB107: 0 | AC107: 0 | AD107: 0 | AE107: 0 | AF107: 0 | AG107: 0 | AH107: 0 | AI107: 0 | AJ107: 0 | AK107: 0 | AL107: 0 | AM107: 0 | AN107: 0 | AO107: 0 | AP107: =AP103*$J$98 -> 0 | AQ107: 0 | AR107: 0 | AS107: 0 | AT107: 0 | AU107: 0 | AV107: 0 | AW107: 0 | AX107: 0 | AY107: 0 | AZ107: 0 | BA107: 0 | BB107: 0 | BC107: 0 | BD107: 0 | BE107: 0 | BF107: 0 | BG107: 0
B108: Fewer unplanned outages in the worst served areas | G108: ='1_KMA'!$I$20 -> 2024-06-30 | H108: ='1_KMA'!$I$19 -> $dollars | J108: =J104*$J$99 -> 0 | K108: 0 | L108: 0 | M108: 0 | N108: 0 | O108: 0 | P108: 0 | Q108: 0 | R108: 0 | S108: 0 | T108: 0 | U108: 0 | V108: 0 | W108: 0 | X108: 0 | Y108: 0 | Z108: 0 | AA108: 0 | AB108: 0 | AC108: 0 | AD108: 0 | AE108: 0 | AF108: 0 | AG108: 0 | AH108: 0 | AI108: 0 | AJ108: 0 | AK108: 0 | AL108: 0 | AM108: 0 | AN108: 0 | AO108: 0 | AP108: =AP104*$J$99 -> 0 | AQ108: 0 | AR108: 0 | AS108: 0 | AT108: 0 | AU108: 0 | AV108: 0 | AW108: 0 | AX108: 0 | AY108: 0 | AZ108: 0 | BA108: 0 | BB108: 0 | BC108: 0 | BD108: 0 | BE108: 0 | BF108: 0 | BG108: 0
G110: $ Basis Reminder | H110: $ Reminder | J110: Summary table above picks up this total row
B111: Total | G111: ='1_KMA'!$I$20 -> 2024-06-30 | H111: ='1_KMA'!$I$19 -> $dollars | J111: =SUM(J107:J108) -> 0 | K111: =SUM(K107:K108) -> 0 | L111: 0 | M111: 0 | N111: 0 | O111: 0 | P111: 0 | Q111: 0 | R111: 0 | S111: 0 | T111: 0 | U111: 0 | V111: 0 | W111: 0 | X111: 0 | Y111: 0 | Z111: 0 | AA111: 0 | AB111: 0 | AC111: 0 | AD111: 0 | AE111: 0 | AF111: 0 | AG111: 0 | AH111: 0 | AI111: 0 | AJ111: 0 | AK111: 0 | AL111: 0 | AM111: 0 | AN111: 0 | AO111: 0 | AP111: 0 | AQ111: 0 | AR111: 0 | AS111: 0 | AT111: 0 | AU111: 0 | AV111: 0 | AW111: 0 | AX111: 0 | AY111: 0 | AZ111: 0 | BA111: 0 | BB111: 0 | BC111: 0 | BD111: 0 | BE111: 0 | BF111: 0 | BG111: 0
B113: Resilience
B115: QCV research | H115: Unit | J115: Unit Rate
B116: Fewer unplanned outages, longer than 12 hours
B117: Faster restoration of power when an outage has occurred
B118: Community hub offering essential services during long duration outages
H121: Unit | J121: Quantities
B122: Fewer unplanned outages, longer than 12 hours
B123: Faster restoration of power when an outage has occurred
B124: Community hub offering essential services
G126: $ Basis Reminder | H126: $ Reminder | J126: ="Values - ensure values have been converted to "&'1_KMA'!$I$19 -> Values - ensure values have been converted to $dollars
B127: Fewer unplanned outages, longer than 12 hours | G127: ='1_KMA'!$I$20 -> 2024-06-30 | H127: ='1_KMA'!$I$19 -> $dollars | J127: =J122*'2.1_Op1'!$J$116 -> 0 | K127: =K122*'2.1_Op1'!$J$116 -> 0 | L127: =L122*'2.1_Op1'!$J$116 -> 0 | M127: =M122*'2.1_Op1'!$J$116 -> 0 | N127: =N122*'2.1_Op1'!$J$116 -> 0 | O127: =O122*'2.1_Op1'!$J$116 -> 0 | P127: =P122*'2.1_Op1'!$J$116 -> 0 | Q127: =Q122*'2.1_Op1'!$J$116 -> 0 | R127: =R122*'2.1_Op1'!$J$116 -> 0 | S127: =S122*'2.1_Op1'!$J$116 -> 0 | T127: =T122*'2.1_Op1'!$J$116 -> 0 | U127: =U122*'2.1_Op1'!$J$116 -> 0 | V127: =V122*'2.1_Op1'!$J$116 -> 0 | W127: =W122*'2.1_Op1'!$J$116 -> 0 | X127: =X122*'2.1_Op1'!$J$116 -> 0 | Y127: =Y122*'2.1_Op1'!$J$116 -> 0 | Z127: =Z122*'2.1_Op1'!$J$116 -> 0 | AA127: =AA122*'2.1_Op1'!$J$116 -> 0 | AB127: =AB122*'2.1_Op1'!$J$116 -> 0 | AC127: =AC122*'2.1_Op1'!$J$116 -> 0 | AD127: =AD122*'2.1_Op1'!$J$116 -> 0 | AE127: =AE122*'2.1_Op1'!$J$116 -> 0 | AF127: =AF122*'2.1_Op1'!$J$116 -> 0 | AG127: =AG122*'2.1_Op1'!$J$116 -> 0 | AH127: =AH122*'2.1_Op1'!$J$116 -> 0 | AI127: =AI122*'2.1_Op1'!$J$116 -> 0 | AJ127: =AJ122*'2.1_Op1'!$J$116 -> 0 | AK127: =AK122*'2.1_Op1'!$J$116 -> 0 | AL127: =AL122*'2.1_Op1'!$J$116 -> 0 | AM127: =AM122*'2.1_Op1'!$J$116 -> 0 | AN127: =AN122*'2.1_Op1'!$J$116 -> 0 | AO127: =AO122*'2.1_Op1'!$J$116 -> 0 | AP127: =AP122*'2.1_Op1'!$J$116 -> 0 | AQ127: =AQ122*'2.1_Op1'!$J$116 -> 0 | AR127: =AR122*'2.1_Op1'!$J$116 -> 0 | AS127: =AS122*'2.1_Op1'!$J$116 -> 0 | AT127: =AT122*'2.1_Op1'!$J$116 -> 0 | AU127: =AU122*'2.1_Op1'!$J$116 -> 0 | AV127: =AV122*'2.1_Op1'!$J$116 -> 0 | AW127: =AW122*'2.1_Op1'!$J$116 -> 0 | AX127: =AX122*'2.1_Op1'!$J$116 -> 0 | AY127: =AY122*'2.1_Op1'!$J$116 -> 0 | AZ127: =AZ122*'2.1_Op1'!$J$116 -> 0 | BA127: =BA122*'2.1_Op1'!$J$116 -> 0 | BB127: =BB122*'2.1_Op1'!$J$116 -> 0 | BC127: =BC122*'2.1_Op1'!$J$116 -> 0 | BD127: =BD122*'2.1_Op1'!$J$116 -> 0 | BE127: =BE122*'2.1_Op1'!$J$116 -> 0 | BF127: =BF122*'2.1_Op1'!$J$116 -> 0 | BG127: =BG122*'2.1_Op1'!$J$116 -> 0
B128: Faster restoration of power when an outage has occurred | G128: ='1_KMA'!$I$20 -> 2024-06-30 | H128: ='1_KMA'!$I$19 -> $dollars | J128: =J123*'2.1_Op1'!$J$117 -> 0 | K128: =K123*'2.1_Op1'!$J$117 -> 0 | L128: =L123*'2.1_Op1'!$J$117 -> 0 | M128: =M123*'2.1_Op1'!$J$117 -> 0 | N128: =N123*'2.1_Op1'!$J$117 -> 0 | O128: =O123*'2.1_Op1'!$J$117 -> 0 | P128: =P123*'2.1_Op1'!$J$117 -> 0 | Q128: =Q123*'2.1_Op1'!$J$117 -> 0 | R128: =R123*'2.1_Op1'!$J$117 -> 0 | S128: =S123*'2.1_Op1'!$J$117 -> 0 | T128: =T123*'2.1_Op1'!$J$117 -> 0 | U128: =U123*'2.1_Op1'!$J$117 -> 0 | V128: =V123*'2.1_Op1'!$J$117 -> 0 | W128: =W123*'2.1_Op1'!$J$117 -> 0 | X128: =X123*'2.1_Op1'!$J$117 -> 0 | Y128: =Y123*'2.1_Op1'!$J$117 -> 0 | Z128: =Z123*'2.1_Op1'!$J$117 -> 0 | AA128: =AA123*'2.1_Op1'!$J$117 -> 0 | AB128: =AB123*'2.1_Op1'!$J$117 -> 0 | AC128: =AC123*'2.1_Op1'!$J$117 -> 0 | AD128: =AD123*'2.1_Op1'!$J$117 -> 0 | AE128: =AE123*'2.1_Op1'!$J$117 -> 0 | AF128: =AF123*'2.1_Op1'!$J$117 -> 0 | AG128: =AG123*'2.1_Op1'!$J$117 -> 0 | AH128: =AH123*'2.1_Op1'!$J$117 -> 0 | AI128: =AI123*'2.1_Op1'!$J$117 -> 0 | AJ128: =AJ123*'2.1_Op1'!$J$117 -> 0 | AK128: =AK123*'2.1_Op1'!$J$117 -> 0 | AL128: =AL123*'2.1_Op1'!$J$117 -> 0 | AM128: =AM123*'2.1_Op1'!$J$117 -> 0 | AN128: =AN123*'2.1_Op1'!$J$117 -> 0 | AO128: =AO123*'2.1_Op1'!$J$117 -> 0 | AP128: =AP123*'2.1_Op1'!$J$117 -> 0 | AQ128: =AQ123*'2.1_Op1'!$J$117 -> 0 | AR128: =AR123*'2.1_Op1'!$J$117 -> 0 | AS128: =AS123*'2.1_Op1'!$J$117 -> 0 | AT128: =AT123*'2.1_Op1'!$J$117 -> 0 | AU128: =AU123*'2.1_Op1'!$J$117 -> 0 | AV128: =AV123*'2.1_Op1'!$J$117 -> 0 | AW128: =AW123*'2.1_Op1'!$J$117 -> 0 | AX128: =AX123*'2.1_Op1'!$J$117 -> 0 | AY128: =AY123*'2.1_Op1'!$J$117 -> 0 | AZ128: =AZ123*'2.1_Op1'!$J$117 -> 0 | BA128: =BA123*'2.1_Op1'!$J$117 -> 0 | BB128: =BB123*'2.1_Op1'!$J$117 -> 0 | BC128: =BC123*'2.1_Op1'!$J$117 -> 0 | BD128: =BD123*'2.1_Op1'!$J$117 -> 0 | BE128: =BE123*'2.1_Op1'!$J$117 -> 0 | BF128: =BF123*'2.1_Op1'!$J$117 -> 0 | BG128: =BG123*'2.1_Op1'!$J$117 -> 0
B129: Community hub offering essential services | G129: ='1_KMA'!$I$20 -> 2024-06-30 | H129: ='1_KMA'!$I$19 -> $dollars | J129: =J124*'2.1_Op1'!$J$118 -> 0 | K129: =K124*'2.1_Op1'!$J$118 -> 0 | L129: =L124*'2.1_Op1'!$J$118 -> 0 | M129: =M124*'2.1_Op1'!$J$118 -> 0 | N129: =N124*'2.1_Op1'!$J$118 -> 0 | O129: =O124*'2.1_Op1'!$J$118 -> 0 | P129: =P124*'2.1_Op1'!$J$118 -> 0 | Q129: =Q124*'2.1_Op1'!$J$118 -> 0 | R129: =R124*'2.1_Op1'!$J$118 -> 0 | S129: =S124*'2.1_Op1'!$J$118 -> 0 | T129: =T124*'2.1_Op1'!$J$118 -> 0 | U129: =U124*'2.1_Op1'!$J$118 -> 0 | V129: =V124*'2.1_Op1'!$J$118 -> 0 | W129: =W124*'2.1_Op1'!$J$118 -> 0 | X129: =X124*'2.1_Op1'!$J$118 -> 0 | Y129: =Y124*'2.1_Op1'!$J$118 -> 0 | Z129: =Z124*'2.1_Op1'!$J$118 -> 0 | AA129: =AA124*'2.1_Op1'!$J$118 -> 0 | AB129: =AB124*'2.1_Op1'!$J$118 -> 0 | AC129: =AC124*'2.1_Op1'!$J$118 -> 0 | AD129: =AD124*'2.1_Op1'!$J$118 -> 0 | AE129: =AE124*'2.1_Op1'!$J$118 -> 0 | AF129: =AF124*'2.1_Op1'!$J$118 -> 0 | AG129: =AG124*'2.1_Op1'!$J$118 -> 0 | AH129: =AH124*'2.1_Op1'!$J$118 -> 0 | AI129: =AI124*'2.1_Op1'!$J$118 -> 0 | AJ129: =AJ124*'2.1_Op1'!$J$118 -> 0 | AK129: =AK124*'2.1_Op1'!$J$118 -> 0 | AL129: =AL124*'2.1_Op1'!$J$118 -> 0 | AM129: =AM124*'2.1_Op1'!$J$118 -> 0 | AN129: =AN124*'2.1_Op1'!$J$118 -> 0 | AO129: =AO124*'2.1_Op1'!$J$118 -> 0 | AP129: =AP124*'2.1_Op1'!$J$118 -> 0 | AQ129: =AQ124*'2.1_Op1'!$J$118 -> 0 | AR129: =AR124*'2.1_Op1'!$J$118 -> 0 | AS129: =AS124*'2.1_Op1'!$J$118 -> 0 | AT129: =AT124*'2.1_Op1'!$J$118 -> 0 | AU129: =AU124*'2.1_Op1'!$J$118 -> 0 | AV129: =AV124*'2.1_Op1'!$J$118 -> 0 | AW129: =AW124*'2.1_Op1'!$J$118 -> 0 | AX129: =AX124*'2.1_Op1'!$J$118 -> 0 | AY129: =AY124*'2.1_Op1'!$J$118 -> 0 | AZ129: =AZ124*'2.1_Op1'!$J$118 -> 0 | BA129: =BA124*'2.1_Op1'!$J$118 -> 0 | BB129: =BB124*'2.1_Op1'!$J$118 -> 0 | BC129: =BC124*'2.1_Op1'!$J$118 -> 0 | BD129: =BD124*'2.1_Op1'!$J$118 -> 0 | BE129: =BE124*'2.1_Op1'!$J$118 -> 0 | BF129: =BF124*'2.1_Op1'!$J$118 -> 0 | BG129: =BG124*'2.1_Op1'!$J$118 -> 0
G131: $ Basis Reminder | H131: $ Reminder | J131: Summary table above picks up this total row
B132: Total | G132: ='1_KMA'!$I$20 -> 2024-06-30 | H132: ='1_KMA'!$I$19 -> $dollars | J132: =SUM(J127:J129) -> 0 | K132: =SUM(K127:K129) -> 0 | L132: 0 | M132: 0 | N132: 0 | O132: 0 | P132: 0 | Q132: 0 | R132: 0 | S132: 0 | T132: 0 | U132: 0 | V132: 0 | W132: 0 | X132: 0 | Y132: 0 | Z132: 0 | AA132: 0 | AB132: 0 | AC132: 0 | AD132: 0 | AE132: 0 | AF132: 0 | AG132: 0 | AH132: 0 | AI132: 0 | AJ132: 0 | AK132: 0 | AL132: 0 | AM132: 0 | AN132: 0 | AO132: 0 | AP132: 0 | AQ132: 0 | AR132: 0 | AS132: 0 | AT132: 0 | AU132: 0 | AV132: 0 | AW132: 0 | AX132: 0 | AY132: 0 | AZ132: 0 | BA132: 0 | BB132: 0 | BC132: 0 | BD132: 0 | BE132: 0 | BF132: 0 | BG132: 0
B134: Batteries
B136: AusNet Savings from Wholesale Arbitrage
H137: Unit | J137: Value
B138: Wholesale market price differential | H138: [e.g. $dollars per MWh]
B139: AusNet Share in Wholesale arbitrage | H139: [e.g. %]
B140: Average annual battery derating | H140: [e.g. % p.a.]
H142: Unit | J142: Location 1 | K142: Location 2 | L142: Location 3 | M142: Location 4 | N142: Location 5
B143: Battery Rating (kW) | H143: kW
B144: Battery Rating (hr) | H144: hr
B145: Battery Rating (kWh) | H145: kWh | J145: =J143*J144 -> 0 | K145: =K143*K144 -> 0 | L145: =L143*L144 -> 0 | M145: =M143*M144 -> 0 | N145: =N143*N144 -> 0
B146: Retailer benefit by wholesale arbitrage | H146: [e.g. $millions, $thousands or $dollars per year] | J146: =J145*$J$138*0.8*5*52/1000 -> 0 | K146: =K145*$J$138*0.8*5*52/1000 -> 0 | L146: =L145*$J$138*0.8*5*52/1000 -> 0 | M146: =M145*$J$138*0.8*5*52/1000 -> 0 | N146: =N145*$J$138*0.8*5*52/1000 -> 0
G148: $ Basis Reminder | H148: $ Reminder | J148: ="Values - ensure values have been converted to "&'1_KMA'!$I$19 -> Values - ensure values have been converted to $dollars
B149: AusNet Savings from Wholesale Arbitrage | G149: ='1_KMA'!$I$20 -> 2024-06-30 | H149: ='1_KMA'!$I$19 -> $dollars | J149: =(SUM($J$146:$N$146)*$J$139*(1/(1+$J$140)^(J4-1)))/10^6 -> 0 | K149: =(SUM($J$146:$N$146)*$J$139*(1/(1+$J$140)^(K4-1)))/10^6 -> 0 | L149: =(SUM($J$146:$N$146)*$J$139*(1/(1+$J$140)^(L4-1)))/10^6 -> 0 | M149: 0 | N149: 0 | O149: 0 | P149: 0 | Q149: 0 | R149: 0 | S149: 0 | T149: 0 | U149: 0 | V149: 0 | W149: 0 | X149: 0 | Y149: 0 | Z149: 0 | AA149: 0 | AB149: 0 | AC149: 0 | AD149: 0 | AE149: 0 | AF149: 0 | AG149: 0 | AH149: 0 | AI149: 0 | AJ149: 0 | AK149: 0 | AL149: 0 | AM149: 0 | AN149: 0 | AO149: 0 | AP149: 0 | AQ149: 0 | AR149: 0 | AS149: 0 | AT149: 0 | AU149: 0 | AV149: 0 | AW149: 0 | AX149: 0 | AY149: 0 | AZ149: 0 | BA149: 0 | BB149: 0 | BC149: 0 | BD149: 0 | BE149: 0 | BF149: 0 | BG149: 0
B151: AusNet Revenue from FCAS
H152: Unit | J152: Value
B153: FCAS participation price | H153: [e.g. $ollars per MW per hour]
B154: Average annual participation All batteries | H154: [e.g. MW per hour]
G156: $ Basis Reminder | H156: $ Reminder | J156: ="Values - ensure values have been converted to "&'1_KMA'!$I$19 -> Values - ensure values have been converted to $dollars
B157: AusNet Revenue from FCAS | G157: ='1_KMA'!$I$20 -> 2024-06-30 | H157: ='1_KMA'!$I$19 -> $dollars | J157: =$J$153*$J$154/10^6 -> 0 | K157: =$J$153*$J$154/10^6 -> 0 | L157: 0 | M157: 0 | N157: 0 | O157: 0 | P157: 0 | Q157: 0 | R157: 0 | S157: 0 | T157: 0 | U157: 0 | V157: 0 | W157: 0 | X157: 0 | Y157: 0 | Z157: 0 | AA157: 0 | AB157: 0 | AC157: 0 | AD157: 0 | AE157: 0 | AF157: 0 | AG157: 0 | AH157: 0 | AI157: 0 | AJ157: 0 | AK157: 0 | AL157: 0 | AM157: 0 | AN157: 0 | AO157: 0 | AP157: 0 | AQ157: 0 | AR157: 0 | AS157: 0 | AT157: 0 | AU157: 0 | AV157: 0 | AW157: 0 | AX157: 0 | AY157: 0 | AZ157: 0 | BA157: 0 | BB157: 0 | BC157: 0 | BD157: 0 | BE157: 0 | BF157: 0 | BG157: 0
B159: AusNet Savings from Avoided Penalties
H160: Unit | J160: Location 1 | K160: Location 2 | L160: Location 3 | M160: Location 4 | N160: Location 5
B161: Number of average outage events | H161: [e.g. Events per year]
B162: Average Ausnet penalty for outage | H162: [e.g. $dollars per event]
G164: $ Basis Reminder | H164: $ Reminder | J164: ="Values - ensure values have been converted to "&'1_KMA'!$I$19 -> Values - ensure values have been converted to $dollars
B165: Ausnet Savings from Avoided Penalties | G165: ='1_KMA'!$I$20 -> 2024-06-30 | H165: ='1_KMA'!$I$19 -> $dollars | J165: =SUMPRODUCT($J$161:$N$161,$J$162:$N$162)/10^6 -> 0 | K165: =SUMPRODUCT($J$161:$N$161,$J$162:$N$162)/10^6 -> 0 | L165: 0 | M165: 0 | N165: 0 | O165: 0 | P165: 0 | Q165: 0 | R165: 0 | S165: 0 | T165: 0 | U165: 0 | V165: 0 | W165: 0 | X165: 0 | Y165: 0 | Z165: 0 | AA165: 0 | AB165: 0 | AC165: 0 | AD165: 0 | AE165: 0 | AF165: 0 | AG165: 0 | AH165: 0 | AI165: 0 | AJ165: 0 | AK165: 0 | AL165: 0 | AM165: 0 | AN165: 0 | AO165: 0 | AP165: 0 | AQ165: 0 | AR165: 0 | AS165: 0 | AT165: 0 | AU165: 0 | AV165: 0 | AW165: 0 | AX165: 0 | AY165: 0 | AZ165: 0 | BA165: 0 | BB165: 0 | BC165: 0 | BD165: 0 | BE165: 0 | BF165: 0 | BG165: 0
G167: $ Basis Reminder | H167: $ Reminder | J167: Summary table above picks up this total row
B168: Total | G168: ='1_KMA'!$I$20 -> 2024-06-30 | H168: ='1_KMA'!$I$19 -> $dollars | J168: =J149+J157+J165 -> 0 | K168: =K149+K157+K165 -> 0 | L168: 0 | M168: 0 | N168: 0 | O168: 0 | P168: 0 | Q168: 0 | R168: 0 | S168: 0 | T168: 0 | U168: 0 | V168: 0 | W168: 0 | X168: 0 | Y168: 0 | Z168: 0 | AA168: 0 | AB168: 0 | AC168: 0 | AD168: 0 | AE168: 0 | AF168: 0 | AG168: 0 | AH168: 0 | AI168: 0 | AJ168: 0 | AK168: 0 | AL168: 0 | AM168: 0 | AN168: 0 | AO168: 0 | AP168: 0 | AQ168: 0 | AR168: 0 | AS168: 0 | AT168: 0 | AU168: 0 | AV168: 0 | AW168: 0 | AX168: 0 | AY168: 0 | AZ168: 0 | BA168: 0 | BB168: 0 | BC168: 0 | BD168: 0 | BE168: 0 | BF168: 0 | BG168: 0
B170: Others

Sheet 2.1_Op2 (hidden)
B1: General Inputs: Option 2 | I1: Regulatory Period Indicator | J1: ='1_KMA'!J30 -> 1 | K1: ='1_KMA'!K30 -> 1 | L1: ='1_KMA'!L30 -> 1 | M1: ='1_KMA'!M30 -> 1 | N1: ='1_KMA'!N30 -> 1 | O1: ='1_KMA'!O30 -> 0 | P1: ='1_KMA'!P30 -> 0 | Q1: ='1_KMA'!Q30 -> 0 | R1: ='1_KMA'!R30 -> 0 | S1: ='1_KMA'!S30 -> 0 | T1: ='1_KMA'!T30 -> 0 | U1: ='1_KMA'!U30 -> 0 | V1: ='1_KMA'!V30 -> 0 | W1: ='1_KMA'!W30 -> 0 | X1: ='1_KMA'!X30 -> 0 | Y1: ='1_KMA'!Y30 -> 0 | Z1: ='1_KMA'!Z30 -> 0 | AA1: ='1_KMA'!AA30 -> 0 | AB1: ='1_KMA'!AB30 -> 0 | AC1: ='1_KMA'!AC30 -> 0 | AD1: ='1_KMA'!AD30 -> 0 | AE1: ='1_KMA'!AE30 -> 0 | AF1: ='1_KMA'!AF30 -> 0 | AG1: ='1_KMA'!AG30 -> 0 | AH1: ='1_KMA'!AH30 -> 0 | AI1: ='1_KMA'!AI30 -> 0 | AJ1: ='1_KMA'!AJ30 -> 0 | AK1: ='1_KMA'!AK30 -> 0 | AL1: ='1_KMA'!AL30 -> 0 | AM1: ='1_KMA'!AM30 -> 0 | AN1: ='1_KMA'!AN30 -> 0 | AO1: ='1_KMA'!AO30 -> 0 | AP1: ='1_KMA'!AP30 -> 0 | AQ1: ='1_KMA'!AQ30 -> 0 | AR1: ='1_KMA'!AR30 -> 0 | AS1: ='1_KMA'!AS30 -> 0 | AT1: ='1_KMA'!AT30 -> 0 | AU1: ='1_KMA'!AU30 -> 0 | AV1: ='1_KMA'!AV30 -> 0 | AW1: ='1_KMA'!AW30 -> 0 | AX1: ='1_KMA'!AX30 -> 0 | AY1: ='1_KMA'!AY30 -> 0 | AZ1: ='1_KMA'!AZ30 -> 0 | BA1: ='1_KMA'!BA30 -> 0 | BB1: ='1_KMA'!BB30 -> 0 | BC1: ='1_KMA'!BC30 -> 0 | BD1: ='1_KMA'!BD30 -> 0 | BE1: ='1_KMA'!BE30 -> 0 | BF1: ='1_KMA'!BF30 -> 0 | BG1: ='1_KMA'!BG30 -> 0
B2: =Cover!$C$9 -> AusNet Services | I2: Period Start Date | J2: ='1_KMA'!J31 -> 2026-07-01 | K2: ='1_KMA'!K31 -> 2027-07-01 | L2: ='1_KMA'!L31 -> 2028-07-01 | M2: ='1_KMA'!M31 -> 2029-07-01 | N2: ='1_KMA'!N31 -> 2030-07-01 | O2: ='1_KMA'!O31 -> 2031-07-01 | P2: ='1_KMA'!P31 -> 2032-07-01 | Q2: ='1_KMA'!Q31 -> 2033-07-01 | R2: ='1_KMA'!R31 -> 2034-07-01 | S2: ='1_KMA'!S31 -> 2035-07-01 | T2: ='1_KMA'!T31 -> 2036-07-01 | U2: ='1_KMA'!U31 -> 2037-07-01 | V2: ='1_KMA'!V31 -> 2038-07-01 | W2: ='1_KMA'!W31 -> 2039-07-01 | X2: ='1_KMA'!X31 -> 2040-07-01 | Y2: ='1_KMA'!Y31 -> 2041-07-01 | Z2: ='1_KMA'!Z31 -> 2042-07-01 | AA2: ='1_KMA'!AA31 -> 2043-07-01 | AB2: ='1_KMA'!AB31 -> 2044-07-01 | AC2: ='1_KMA'!AC31 -> 2045-07-01 | AD2: ='1_KMA'!AD31 -> 2046-07-01 | AE2: ='1_KMA'!AE31 -> 2047-07-01 | AF2: ='1_KMA'!AF31 -> 2048-07-01 | AG2: ='1_KMA'!AG31 -> 2049-07-01 | AH2: ='1_KMA'!AH31 -> 2050-07-01 | AI2: ='1_KMA'!AI31 -> 2051-07-01 | AJ2: ='1_KMA'!AJ31 -> 2052-07-01 | AK2: ='1_KMA'!AK31 -> 2053-07-01 | AL2: ='1_KMA'!AL31 -> 2054-07-01 | AM2: ='1_KMA'!AM31 -> 2055-07-01 | AN2: ='1_KMA'!AN31 -> 2056-07-01 | AO2: ='1_KMA'!AO31 -> 2057-07-01 | AP2: ='1_KMA'!AP31 -> 2058-07-01 | AQ2: ='1_KMA'!AQ31 -> 2059-07-01 | AR2: ='1_KMA'!AR31 -> 2060-07-01 | AS2: ='1_KMA'!AS31 -> 2061-07-01 | AT2: ='1_KMA'!AT31 -> 2062-07-01 | AU2: ='1_KMA'!AU31 -> 2063-07-01 | AV2: ='1_KMA'!AV31 -> 2064-07-01 | AW2: ='1_KMA'!AW31 -> 2065-07-01 | AX2: ='1_KMA'!AX31 -> 2066-07-01 | AY2: ='1_KMA'!AY31 -> 2067-07-01 | AZ2: ='1_KMA'!AZ31 -> 2068-07-01 | BA2: ='1_KMA'!BA31 -> 2069-07-01 | BB2: ='1_KMA'!BB31 -> 2070-07-01 | BC2: ='1_KMA'!BC31 -> 2071-07-01 | BD2: ='1_KMA'!BD31 -> 2072-07-01 | BE2: ='1_KMA'!BE31 -> 2073-07-01 | BF2: ='1_KMA'!BF31 -> 2074-07-01 | BG2: ='1_KMA'!BG31 -> 2075-07-01
B3: =Cover!$C$10 -> Business Case Evaluation | I3: Period End Date | J3: ='1_KMA'!J32 -> 2027-06-30 | K3: ='1_KMA'!K32 -> 2028-06-30 | L3: ='1_KMA'!L32 -> 2029-06-30 | M3: ='1_KMA'!M32 -> 2030-06-30 | N3: ='1_KMA'!N32 -> 2031-06-30 | O3: ='1_KMA'!O32 -> 2032-06-30 | P3: ='1_KMA'!P32 -> 2033-06-30 | Q3: ='1_KMA'!Q32 -> 2034-06-30 | R3: ='1_KMA'!R32 -> 2035-06-30 | S3: ='1_KMA'!S32 -> 2036-06-30 | T3: ='1_KMA'!T32 -> 2037-06-30 | U3: ='1_KMA'!U32 -> 2038-06-30 | V3: ='1_KMA'!V32 -> 2039-06-30 | W3: ='1_KMA'!W32 -> 2040-06-30 | X3: ='1_KMA'!X32 -> 2041-06-30 | Y3: ='1_KMA'!Y32 -> 2042-06-30 | Z3: ='1_KMA'!Z32 -> 2043-06-30 | AA3: ='1_KMA'!AA32 -> 2044-06-30 | AB3: ='1_KMA'!AB32 -> 2045-06-30 | AC3: ='1_KMA'!AC32 -> 2046-06-30 | AD3: ='1_KMA'!AD32 -> 2047-06-30 | AE3: ='1_KMA'!AE32 -> 2048-06-30 | AF3: ='1_KMA'!AF32 -> 2049-06-30 | AG3: ='1_KMA'!AG32 -> 2050-06-30 | AH3: ='1_KMA'!AH32 -> 2051-06-30 | AI3: ='1_KMA'!AI32 -> 2052-06-30 | AJ3: ='1_KMA'!AJ32 -> 2053-06-30 | AK3: ='1_KMA'!AK32 -> 2054-06-30 | AL3: ='1_KMA'!AL32 -> 2055-06-30 | AM3: ='1_KMA'!AM32 -> 2056-06-30 | AN3: ='1_KMA'!AN32 -> 2057-06-30 | AO3: ='1_KMA'!AO32 -> 2058-06-30 | AP3: ='1_KMA'!AP32 -> 2059-06-30 | AQ3: ='1_KMA'!AQ32 -> 2060-06-30 | AR3: ='1_KMA'!AR32 -> 2061-06-30 | AS3: ='1_KMA'!AS32 -> 2062-06-30 | AT3: ='1_KMA'!AT32 -> 2063-06-30 | AU3: ='1_KMA'!AU32 -> 2064-06-30 | AV3: ='1_KMA'!AV32 -> 2065-06-30 | AW3: ='1_KMA'!AW32 -> 2066-06-30 | AX3: ='1_KMA'!AX32 -> 2067-06-30 | AY3: ='1_KMA'!AY32 -> 2068-06-30 | AZ3: ='1_KMA'!AZ32 -> 2069-06-30 | BA3: ='1_KMA'!BA32 -> 2070-06-30 | BB3: ='1_KMA'!BB32 -> 2071-06-30 | BC3: ='1_KMA'!BC32 -> 2072-06-30 | BD3: ='1_KMA'!BD32 -> 2073-06-30 | BE3: ='1_KMA'!BE32 -> 2074-06-30 | BF3: ='1_KMA'!BF32 -> 2075-06-30 | BG3: ='1_KMA'!BG32 -> 2076-06-30
B4: =Cover!$C$11 -> HV Feeder Reliability Improvement | I4: Project Year | J4: ='1_KMA'!J33 -> 1 | K4: ='1_KMA'!K33 -> 2 | L4: ='1_KMA'!L33 -> 3 | M4: ='1_KMA'!M33 -> 4 | N4: ='1_KMA'!N33 -> 5 | O4: ='1_KMA'!O33 -> 6 | P4: ='1_KMA'!P33 -> 7 | Q4: ='1_KMA'!Q33 -> 8 | R4: ='1_KMA'!R33 -> 9 | S4: ='1_KMA'!S33 -> 10 | T4: ='1_KMA'!T33 -> 11 | U4: ='1_KMA'!U33 -> 12 | V4: ='1_KMA'!V33 -> 13 | W4: ='1_KMA'!W33 -> 14 | X4: ='1_KMA'!X33 -> 15 | Y4: ='1_KMA'!Y33 -> 16 | Z4: ='1_KMA'!Z33 -> 17 | AA4: ='1_KMA'!AA33 -> 18 | AB4: ='1_KMA'!AB33 -> 19 | AC4: ='1_KMA'!AC33 -> 20 | AD4: ='1_KMA'!AD33 -> 21 | AE4: ='1_KMA'!AE33 -> 22 | AF4: ='1_KMA'!AF33 -> 23 | AG4: ='1_KMA'!AG33 -> 24 | AH4: ='1_KMA'!AH33 -> 25 | AI4: ='1_KMA'!AI33 -> 26 | AJ4: ='1_KMA'!AJ33 -> 27 | AK4: ='1_KMA'!AK33 -> 28 | AL4: ='1_KMA'!AL33 -> 29 | AM4: ='1_KMA'!AM33 -> 30 | AN4: ='1_KMA'!AN33 -> 31 | AO4: ='1_KMA'!AO33 -> 32 | AP4: ='1_KMA'!AP33 -> 33 | AQ4: ='1_KMA'!AQ33 -> 34 | AR4: ='1_KMA'!AR33 -> 35 | AS4: ='1_KMA'!AS33 -> 36 | AT4: ='1_KMA'!AT33 -> 37 | AU4: ='1_KMA'!AU33 -> 38 | AV4: ='1_KMA'!AV33 -> 39 | AW4: ='1_KMA'!AW33 -> 40 | AX4: ='1_KMA'!AX33 -> 41 | AY4: ='1_KMA'!AY33 -> 42 | AZ4: ='1_KMA'!AZ33 -> 43 | BA4: ='1_KMA'!BA33 -> 44 | BB4: ='1_KMA'!BB33 -> 45 | BC4: ='1_KMA'!BC33 -> 46 | BD4: ='1_KMA'!BD33 -> 47 | BE4: ='1_KMA'!BE33 -> 48 | BF4: ='1_KMA'!BF33 -> 49 | BG4: ='1_KMA'!BG33 -> 50
I5: Financial Year | J5: ='1_KMA'!J34 -> 2027 | K5: ='1_KMA'!K34 -> 2028 | L5: ='1_KMA'!L34 -> 2029 | M5: ='1_KMA'!M34 -> 2030 | N5: ='1_KMA'!N34 -> 2031 | O5: ='1_KMA'!O34 -> 2032 | P5: ='1_KMA'!P34 -> 2033 | Q5: ='1_KMA'!Q34 -> 2034 | R5: ='1_KMA'!R34 -> 2035 | S5: ='1_KMA'!S34 -> 2036 | T5: ='1_KMA'!T34 -> 2037 | U5: ='1_KMA'!U34 -> 2038 | V5: ='1_KMA'!V34 -> 2039 | W5: ='1_KMA'!W34 -> 2040 | X5: ='1_KMA'!X34 -> 2041 | Y5: ='1_KMA'!Y34 -> 2042 | Z5: ='1_KMA'!Z34 -> 2043 | AA5: ='1_KMA'!AA34 -> 2044 | AB5: ='1_KMA'!AB34 -> 2045 | AC5: ='1_KMA'!AC34 -> 2046 | AD5: ='1_KMA'!AD34 -> 2047 | AE5: ='1_KMA'!AE34 -> 2048 | AF5: ='1_KMA'!AF34 -> 2049 | AG5: ='1_KMA'!AG34 -> 2050 | AH5: ='1_KMA'!AH34 -> 2051 | AI5: ='1_KMA'!AI34 -> 2052 | AJ5: ='1_KMA'!AJ34 -> 2053 | AK5: ='1_KMA'!AK34 -> 2054 | AL5: ='1_KMA'!AL34 -> 2055 | AM5: ='1_KMA'!AM34 -> 2056 | AN5: ='1_KMA'!AN34 -> 2057 | AO5: ='1_KMA'!AO34 -> 2058 | AP5: ='1_KMA'!AP34 -> 2059 | AQ5: ='1_KMA'!AQ34 -> 2060 | AR5: ='1_KMA'!AR34 -> 2061 | AS5: ='1_KMA'!AS34 -> 2062 | AT5: ='1_KMA'!AT34 -> 2063 | AU5: ='1_KMA'!AU34 -> 2064 | AV5: ='1_KMA'!AV34 -> 2065 | AW5: ='1_KMA'!AW34 -> 2066 | AX5: ='1_KMA'!AX34 -> 2067 | AY5: ='1_KMA'!AY34 -> 2068 | AZ5: ='1_KMA'!AZ34 -> 2069 | BA5: ='1_KMA'!BA34 -> 2070 | BB5: ='1_KMA'!BB34 -> 2071 | BC5: ='1_KMA'!BC34 -> 2072 | BD5: ='1_KMA'!BD34 -> 2073 | BE5: ='1_KMA'!BE34 -> 2074 | BF5: ='1_KMA'!BF34 -> 2075 | BG5: ='1_KMA'!BG34 -> 2076
B7: Summary
B9: Costs | G9: $ Basis Reminder | H9: $ Reminder | J9: ="Ensure this section [Summary] is picking up the relevant rows" -> Ensure this section [Summary] is picking up the relevant rows
B10: Capex | G10: ='1_KMA'!$I$20 -> 2024-06-30 | H10: ='1_KMA'!$I$19 -> $dollars | J10: =J47 -> 0 | K10: =K47 -> 0 | L10: 0 | M10: 0 | N10: 0 | O10: 0 | P10: 0 | Q10: 0 | R10: 0 | S10: 0 | T10: 0 | U10: 0 | V10: 0 | W10: 0 | X10: 0 | Y10: 0 | Z10: 0 | AA10: 0 | AB10: 0 | AC10: 0 | AD10: 0 | AE10: 0 | AF10: 0 | AG10: 0 | AH10: 0 | AI10: 0 | AJ10: 0 | AK10: 0 | AL10: 0 | AM10: 0 | AN10: 0 | AO10: 0 | AP10: 0 | AQ10: 0 | AR10: 0 | AS10: 0 | AT10: 0 | AU10: 0 | AV10: 0 | AW10: 0 | AX10: 0 | AY10: 0 | AZ10: 0 | BA10: 0 | BB10: 0 | BC10: 0 | BD10: 0 | BE10: 0 | BF10: 0 | BG10: 0
B11: Capex offset | G11: ='1_KMA'!$I$20 -> 2024-06-30 | H11: ='1_KMA'!$I$19 -> $dollars | J11: =-J59 -> 0 | K11: =-K59 -> 0 | L11: 0 | M11: 0 | N11: 0 | O11: 0 | P11: 0 | Q11: 0 | R11: 0 | S11: 0 | T11: 0 | U11: 0 | V11: 0 | W11: 0 | X11: 0 | Y11: 0 | Z11: 0 | AA11: 0 | AB11: 0 | AC11: 0 | AD11: 0 | AE11: 0 | AF11: 0 | AG11: 0 | AH11: 0 | AI11: 0 | AJ11: 0 | AK11: 0 | AL11: 0 | AM11: 0 | AN11: 0 | AO11: 0 | AP11: 0 | AQ11: 0 | AR11: 0 | AS11: 0 | AT11: 0 | AU11: 0 | AV11: 0 | AW11: 0 | AX11: 0 | AY11: 0 | AZ11: 0 | BA11: 0 | BB11: 0 | BC11: 0 | BD11: 0 | BE11: 0 | BF11: 0 | BG11: 0
B12: Opex | G12: ='1_KMA'!$I$20 -> 2024-06-30 | H12: ='1_KMA'!$I$19 -> $dollars | J12: =J82 -> 0 | K12: =K82 -> 0 | L12: 0 | M12: 0 | N12: 0 | O12: 0 | P12: 0 | Q12: 0 | R12: 0 | S12: 0 | T12: 0 | U12: 0 | V12: 0 | W12: 0 | X12: 0 | Y12: 0 | Z12: 0 | AA12: 0 | AB12: 0 | AC12: 0 | AD12: 0 | AE12: 0 | AF12: 0 | AG12: 0 | AH12: 0 | AI12: 0 | AJ12: 0 | AK12: 0 | AL12: 0 | AM12: 0 | AN12: 0 | AO12: 0 | AP12: 0 | AQ12: 0 | AR12: 0 | AS12: 0 | AT12: 0 | AU12: 0 | AV12: 0 | AW12: 0 | AX12: 0 | AY12: 0 | AZ12: 0 | BA12: 0 | BB12: 0 | BC12: 0 | BD12: 0 | BE12: 0 | BF12: 0 | BG12: 0
B13: Total | G13: ='1_KMA'!$I$20 -> 2024-06-30 | H13: ='1_KMA'!$I$19 -> $dollars | J13: =SUM(J10:J12) -> 0 | K13: =SUM(K10:K12) -> 0 | L13: 0 | M13: 0 | N13: 0 | O13: 0 | P13: 0 | Q13: 0 | R13: 0 | S13: 0 | T13: 0 | U13: 0 | V13: 0 | W13: 0 | X13: 0 | Y13: 0 | Z13: 0 | AA13: 0 | AB13: 0 | AC13: 0 | AD13: 0 | AE13: 0 | AF13: 0 | AG13: 0 | AH13: 0 | AI13: 0 | AJ13: 0 | AK13: 0 | AL13: 0 | AM13: 0 | AN13: 0 | AO13: 0 | AP13: 0 | AQ13: 0 | AR13: 0 | AS13: 0 | AT13: 0 | AU13: 0 | AV13: 0 | AW13: 0 | AX13: 0 | AY13: 0 | AZ13: 0 | BA13: 0 | BB13: 0 | BC13: 0 | BD13: 0 | BE13: 0 | BF13: 0 | BG13: 0
B15: Benefits | G15: $ Basis Reminder | H15: $ Reminder | J15: ="Ensure this section [Summary] is picking up the relevant rows" -> Ensure this section [Summary] is picking up the relevant rows
B16: Value of EUE | G16: ='1_KMA'!$I$20 -> 2024-06-30 | H16: ='1_KMA'!$I$19 -> $dollars | J16: =-J93 -> 0 | K16: =-K93 -> 0 | L16: 0 | M16: 0 | N16: 0 | O16: 0 | P16: 0 | Q16: 0 | R16: 0 | S16: 0 | T16: 0 | U16: 0 | V16: 0 | W16: 0 | X16: 0 | Y16: 0 | Z16: 0 | AA16: 0 | AB16: 0 | AC16: 0 | AD16: 0 | AE16: 0 | AF16: 0 | AG16: 0 | AH16: 0 | AI16: 0 | AJ16: 0 | AK16: 0 | AL16: 0 | AM16: 0 | AN16: 0 | AO16: 0 | AP16: 0 | AQ16: 0 | AR16: 0 | AS16: 0 | AT16: 0 | AU16: 0 | AV16: 0 | AW16: 0 | AX16: 0 | AY16: 0 | AZ16: 0 | BA16: 0 | BB16: 0 | BC16: 0 | BD16: 0 | BE16: 0 | BF16: 0 | BG16: 0
B17: Reliability | G17: ='1_KMA'!$I$20 -> 2024-06-30 | H17: ='1_KMA'!$I$19 -> $dollars | J17: =J111 -> 0 | K17: =K111 -> 0 | L17: 0 | M17: 0 | N17: 0 | O17: 0 | P17: 0 | Q17: 0 | R17: 0 | S17: 0 | T17: 0 | U17: 0 | V17: 0 | W17: 0 | X17: 0 | Y17: 0 | Z17: 0 | AA17: 0 | AB17: 0 | AC17: 0 | AD17: 0 | AE17: 0 | AF17: 0 | AG17: 0 | AH17: 0 | AI17: 0 | AJ17: 0 | AK17: 0 | AL17: 0 | AM17: 0 | AN17: 0 | AO17: 0 | AP17: 0 | AQ17: 0 | AR17: 0 | AS17: 0 | AT17: 0 | AU17: 0 | AV17: 0 | AW17: 0 | AX17: 0 | AY17: 0 | AZ17: 0 | BA17: 0 | BB17: 0 | BC17: 0 | BD17: 0 | BE17: 0 | BF17: 0 | BG17: 0
B18: Resilience | G18: ='1_KMA'!$I$20 -> 2024-06-30 | H18: ='1_KMA'!$I$19 -> $dollars | J18: =J132 -> 0 | K18: =K132 -> 0 | L18: 0 | M18: 0 | N18: 0 | O18: 0 | P18: 0 | Q18: 0 | R18: 0 | S18: 0 | T18: 0 | U18: 0 | V18: 0 | W18: 0 | X18: 0 | Y18: 0 | Z18: 0 | AA18: 0 | AB18: 0 | AC18: 0 | AD18: 0 | AE18: 0 | AF18: 0 | AG18: 0 | AH18: 0 | AI18: 0 | AJ18: 0 | AK18: 0 | AL18: 0 | AM18: 0 | AN18: 0 | AO18: 0 | AP18: 0 | AQ18: 0 | AR18: 0 | AS18: 0 | AT18: 0 | AU18: 0 | AV18: 0 | AW18: 0 | AX18: 0 | AY18: 0 | AZ18: 0 | BA18: 0 | BB18: 0 | BC18: 0 | BD18: 0 | BE18: 0 | BF18: 0 | BG18: 0
B19: Batteries | G19: ='1_KMA'!$I$20 -> 2024-06-30 | H19: ='1_KMA'!$I$19 -> $dollars | J19: =J168 -> 0 | K19: =K168 -> 0 | L19: 0 | M19: 0 | N19: 0 | O19: 0 | P19: 0 | Q19: 0 | R19: 0 | S19: 0 | T19: 0 | U19: 0 | V19: 0 | W19: 0 | X19: 0 | Y19: 0 | Z19: 0 | AA19: 0 | AB19: 0 | AC19: 0 | AD19: 0 | AE19: 0 | AF19: 0 | AG19: 0 | AH19: 0 | AI19: 0 | AJ19: 0 | AK19: 0 | AL19: 0 | AM19: 0 | AN19: 0 | AO19: 0 | AP19: 0 | AQ19: 0 | AR19: 0 | AS19: 0 | AT19: 0 | AU19: 0 | AV19: 0 | AW19: 0 | AX19: 0 | AY19: 0 | AZ19: 0 | BA19: 0 | BB19: 0 | BC19: 0 | BD19: 0 | BE19: 0 | BF19: 0 | BG19: 0
B20: Others | G20: ='1_KMA'!$I$20 -> 2024-06-30 | H20: ='1_KMA'!$I$19 -> $dollars
B21: Total | G21: ='1_KMA'!$I$20 -> 2024-06-30 | H21: ='1_KMA'!$I$19 -> $dollars | J21: =SUM(J16:J20) -> 0 | K21: =SUM(K16:K20) -> 0 | L21: 0 | M21: 0 | N21: 0 | O21: 0 | P21: 0 | Q21: 0 | R21: 0 | S21: 0 | T21: 0 | U21: 0 | V21: 0 | W21: 0 | X21: 0 | Y21: 0 | Z21: 0 | AA21: 0 | AB21: 0 | AC21: 0 | AD21: 0 | AE21: 0 | AF21: 0 | AG21: 0 | AH21: 0 | AI21: 0 | AJ21: 0 | AK21: 0 | AL21: 0 | AM21: 0 | AN21: 0 | AO21: 0 | AP21: 0 | AQ21: 0 | AR21: 0 | AS21: 0 | AT21: 0 | AU21: 0 | AV21: 0 | AW21: 0 | AX21: 0 | AY21: 0 | AZ21: 0 | BA21: 0 | BB21: 0 | BC21: 0 | BD21: 0 | BE21: 0 | BF21: 0 | BG21: 0
B24: Cost Inputs
B26: Capex Build Up
B28: Name | H28: Unit | J28: Unit Rate
B29: [e.g. New feeder] | H29: [e.g., $million per feeder km]
B30: [e.g. New switchboard] | H30: [e.g., $million per switchboard]
B34: Name | H34: Unit | J34: Quantities
B35: =B29 -> [e.g. New feeder] | H35: [e.g., feeder km]
B36: =B30 -> [e.g. New switchboard] | H36: [e.g., count of switchboards]
B40: Name | G40: $ Basis Reminder | H40: $ Reminder | J40: ="Costs - ensure costs have been converted to "&'1_KMA'!$I$19 -> Costs - ensure costs have been converted to $dollars
B41: =B29 -> [e.g. New feeder] | G41: ='1_KMA'!$I$20 -> 2024-06-30 | H41: ='1_KMA'!$I$19 -> $dollars | J41: =$J$29*J35 -> 0 | K41: =$J$29*K35 -> 0 | L41: =$J$29*L35 -> 0 | M41: 0 | N41: 0 | O41: 0 | P41: 0 | Q41: 0 | R41: 0 | S41: 0 | T41: 0 | U41: 0 | V41: 0 | W41: 0 | X41: 0 | Y41: 0 | Z41: 0 | AA41: 0 | AB41: 0 | AC41: 0 | AD41: 0 | AE41: 0 | AF41: 0 | AG41: 0 | AH41: 0 | AI41: 0 | AJ41: 0 | AK41: 0 | AL41: 0 | AM41: 0 | AN41: 0 | AO41: 0 | AP41: 0 | AQ41: 0 | AR41: 0 | AS41: 0 | AT41: 0 | AU41: 0 | AV41: 0 | AW41: 0 | AX41: 0 | AY41: 0 | AZ41: 0 | BA41: 0 | BB41: 0 | BC41: 0 | BD41: 0 | BE41: 0 | BF41: 0 | BG41: 0
B42: =B30 -> [e.g. New switchboard] | G42: ='1_KMA'!$I$20 -> 2024-06-30 | H42: ='1_KMA'!$I$19 -> $dollars | J42: =$J$30*J36 -> 0 | K42: =$J$30*K36 -> 0 | L42: =$J$30*L36 -> 0 | M42: =$J$30*M36 -> 0 | N42: 0 | O42: 0 | P42: 0 | Q42: 0 | R42: 0 | S42: 0 | T42: 0 | U42: 0 | V42: 0 | W42: 0 | X42: 0 | Y42: 0 | Z42: 0 | AA42: 0 | AB42: 0 | AC42: 0 | AD42: 0 | AE42: 0 | AF42: 0 | AG42: 0 | AH42: 0 | AI42: 0 | AJ42: 0 | AK42: 0 | AL42: 0 | AM42: 0 | AN42: 0 | AO42: 0 | AP42: 0 | AQ42: 0 | AR42: 0 | AS42: 0 | AT42: 0 | AU42: 0 | AV42: 0 | AW42: 0 | AX42: 0 | AY42: 0 | AZ42: 0 | BA42: 0 | BB42: 0 | BC42: 0 | BD42: 0 | BE42: 0 | BF42: 0 | BG42: 0
G43: ='1_KMA'!$I$20 -> 2024-06-30 | H43: ='1_KMA'!$I$19 -> $dollars | J43: =$J$31*J37 -> 0 | K43: =$J$31*K37 -> 0 | L43: =$J$31*L37 -> 0 | M43: =$J$31*M37 -> 0 | N43: 0 | O43: 0 | P43: 0 | Q43: 0 | R43: 0 | S43: 0 | T43: 0 | U43: 0 | V43: 0 | W43: 0 | X43: 0 | Y43: 0 | Z43: 0 | AA43: 0 | AB43: 0 | AC43: 0 | AD43: 0 | AE43: 0 | AF43: 0 | AG43: 0 | AH43: 0 | AI43: 0 | AJ43: 0 | AK43: 0 | AL43: 0 | AM43: 0 | AN43: 0 | AO43: 0 | AP43: 0 | AQ43: 0 | AR43: 0 | AS43: 0 | AT43: 0 | AU43: 0 | AV43: 0 | AW43: 0 | AX43: 0 | AY43: 0 | AZ43: 0 | BA43: 0 | BB43: 0 | BC43: 0 | BD43: 0 | BE43: 0 | BF43: 0 | BG43: 0
G44: ='1_KMA'!$I$20 -> 2024-06-30 | H44: ='1_KMA'!$I$19 -> $dollars | J44: =$J$32*J38 -> 0 | K44: =$J$32*K38 -> 0 | L44: =$J$32*L38 -> 0 | M44: =$J$32*M38 -> 0 | N44: 0 | O44: 0 | P44: 0 | Q44: 0 | R44: 0 | S44: 0 | T44: 0 | U44: 0 | V44: 0 | W44: 0 | X44: 0 | Y44: 0 | Z44: 0 | AA44: 0 | AB44: 0 | AC44: 0 | AD44: 0 | AE44: 0 | AF44: 0 | AG44: 0 | AH44: 0 | AI44: 0 | AJ44: 0 | AK44: 0 | AL44: 0 | AM44: 0 | AN44: 0 | AO44: 0 | AP44: 0 | AQ44: 0 | AR44: 0 | AS44: 0 | AT44: 0 | AU44: 0 | AV44: 0 | AW44: 0 | AX44: 0 | AY44: 0 | AZ44: 0 | BA44: 0 | BB44: 0 | BC44: 0 | BD44: 0 | BE44: 0 | BF44: 0 | BG44: 0
G46: $ Basis Reminder | H46: $ Reminder | J46: Summary table above picks up this total row
B47: Total | G47: ='1_KMA'!$I$20 -> 2024-06-30 | H47: ='1_KMA'!$I$19 -> $dollars | J47: =SUM(J41:J44) -> 0 | K47: =SUM(K41:K44) -> 0 | L47: =SUM(L41:L44) -> 0 | M47: 0 | N47: 0 | O47: 0 | P47: 0 | Q47: 0 | R47: 0 | S47: 0 | T47: 0 | U47: 0 | V47: 0 | W47: 0 | X47: 0 | Y47: 0 | Z47: 0 | AA47: 0 | AB47: 0 | AC47: 0 | AD47: 0 | AE47: 0 | AF47: 0 | AG47: 0 | AH47: 0 | AI47: 0 | AJ47: 0 | AK47: 0 | AL47: 0 | AM47: 0 | AN47: 0 | AO47: 0 | AP47: 0 | AQ47: 0 | AR47: 0 | AS47: 0 | AT47: 0 | AU47: 0 | AV47: 0 | AW47: 0 | AX47: 0 | AY47: 0 | AZ47: 0 | BA47: 0 | BB47: 0 | BC47: 0 | BD47: 0 | BE47: 0 | BF47: 0 | BG47: =SUM(BG41:BG44) -> 0
B49: Capex Offset
J51: ="Capex offsets - ensure capex offsets have been converted to "&'1_KMA'!$I$19 -> Capex offsets - ensure capex offsets have been converted to $dollars
B52: Name | G52: $ Basis Reminder | H52: $ Reminder | J52: Enter capex offsets as positive values as the spreadsheet later nets this off the gross amounts
B53: [e.g. Government subsidy] | G53: ='1_KMA'!$I$20 -> 2024-06-30 | H53: ='1_KMA'!$I$19 -> $dollars
B54: [e.g. Customer contribution] | G54: ='1_KMA'!$I$20 -> 2024-06-30 | H54: ='1_KMA'!$I$19 -> $dollars
G55: ='1_KMA'!$I$20 -> 2024-06-30 | H55: ='1_KMA'!$I$19 -> $dollars
G56: ='1_KMA'!$I$20 -> 2024-06-30 | H56: ='1_KMA'!$I$19 -> $dollars
G58: $ Basis Reminder | H58: $ Reminder | J58: Summary table above picks up this total row
B59: Total | G59: ='1_KMA'!$I$20 -> 2024-06-30 | H59: ='1_KMA'!$I$19 -> $dollars | J59: =SUM(J53:J56) -> 0 | K59: =SUM(K53:K56) -> 0 | L59: =SUM(L53:L56) -> 0 | M59: 0 | N59: 0 | O59: 0 | P59: 0 | Q59: 0 | R59: 0 | S59: 0 | T59: 0 | U59: 0 | V59: 0 | W59: 0 | X59: 0 | Y59: 0 | Z59: 0 | AA59: 0 | AB59: 0 | AC59: 0 | AD59: 0 | AE59: 0 | AF59: 0 | AG59: 0 | AH59: 0 | AI59: 0 | AJ59: 0 | AK59: 0 | AL59: 0 | AM59: 0 | AN59: 0 | AO59: 0 | AP59: 0 | AQ59: 0 | AR59: 0 | AS59: 0 | AT59: 0 | AU59: 0 | AV59: 0 | AW59: 0 | AX59: 0 | AY59: 0 | AZ59: 0 | BA59: 0 | BB59: 0 | BC59: 0 | BD59: 0 | BE59: 0 | BF59: 0 | BG59: 0
B61: Opex Build Up
B63: Name | H63: Unit | J63: Value
B64: [e.g. feeder inspection] | H64: [e.g., $million per feeder km]
B65: [e.g. switchboard testing] | H65: [e.g., $millions per switchboard]
B69: Name | H69: Unit | J69: Quantities
B70: =B64 -> [e.g. feeder inspection] | H70: [e.g., feeder km]
B71: =B65 -> [e.g. switchboard testing] | H71: [e.g., count of switchboards]
B75: Name | G75: $ Basis Reminder | H75: $ Reminder | J75: ="Costs - ensure costs have been converted to "&'1_KMA'!$I$19 -> Costs - ensure costs have been converted to $dollars
B76: =B64 -> [e.g. feeder inspection] | G76: ='1_KMA'!$I$20 -> 2024-06-30 | H76: ='1_KMA'!$I$19 -> $dollars | J76: =$J$64*J70 -> 0 | K76: 0 | L76: 0 | M76: =$J$64*M70 -> 0 | N76: =$J$64*N70 -> 0 | O76: 0 | P76: 0 | Q76: 0 | R76: 0 | S76: 0 | T76: 0 | U76: 0 | V76: 0 | W76: 0 | X76: 0 | Y76: 0 | Z76: 0 | AA76: 0 | AB76: 0 | AC76: 0 | AD76: 0 | AE76: 0 | AF76: 0 | AG76: 0 | AH76: 0 | AI76: 0 | AJ76: 0 | AK76: 0 | AL76: 0 | AM76: 0 | AN76: 0 | AO76: 0 | AP76: 0 | AQ76: 0 | AR76: 0 | AS76: 0 | AT76: 0 | AU76: 0 | AV76: 0 | AW76: 0 | AX76: 0 | AY76: 0 | AZ76: 0 | BA76: 0 | BB76: 0 | BC76: 0 | BD76: 0 | BE76: 0 | BF76: 0 | BG76: 0
B77: =B65 -> [e.g. switchboard testing] | G77: ='1_KMA'!$I$20 -> 2024-06-30 | H77: ='1_KMA'!$I$19 -> $dollars | J77: =$J$65*J71 -> 0 | K77: 0 | L77: 0 | M77: =$J$65*M71 -> 0 | N77: =$J$65*N71 -> 0 | O77: 0 | P77: 0 | Q77: 0 | R77: 0 | S77: 0 | T77: 0 | U77: 0 | V77: 0 | W77: 0 | X77: 0 | Y77: 0 | Z77: 0 | AA77: 0 | AB77: 0 | AC77: 0 | AD77: 0 | AE77: 0 | AF77: 0 | AG77: 0 | AH77: 0 | AI77: 0 | AJ77: 0 | AK77: 0 | AL77: 0 | AM77: 0 | AN77: 0 | AO77: 0 | AP77: 0 | AQ77: 0 | AR77: 0 | AS77: 0 | AT77: 0 | AU77: 0 | AV77: 0 | AW77: 0 | AX77: 0 | AY77: 0 | AZ77: 0 | BA77: 0 | BB77: 0 | BC77: 0 | BD77: 0 | BE77: 0 | BF77: 0 | BG77: 0
G78: ='1_KMA'!$I$20 -> 2024-06-30 | H78: ='1_KMA'!$I$19 -> $dollars | J78: =$J$66*J72 -> 0 | K78: 0 | L78: 0 | M78: =$J$66*M72 -> 0 | N78: =$J$66*N72 -> 0 | O78: 0 | P78: 0 | Q78: 0 | R78: 0 | S78: 0 | T78: 0 | U78: 0 | V78: 0 | W78: 0 | X78: 0 | Y78: 0 | Z78: 0 | AA78: 0 | AB78: 0 | AC78: 0 | AD78: 0 | AE78: 0 | AF78: 0 | AG78: 0 | AH78: 0 | AI78: 0 | AJ78: 0 | AK78: 0 | AL78: 0 | AM78: 0 | AN78: 0 | AO78: 0 | AP78: 0 | AQ78: 0 | AR78: 0 | AS78: 0 | AT78: 0 | AU78: 0 | AV78: 0 | AW78: 0 | AX78: 0 | AY78: 0 | AZ78: 0 | BA78: 0 | BB78: 0 | BC78: 0 | BD78: 0 | BE78: 0 | BF78: 0 | BG78: 0
G79: ='1_KMA'!$I$20 -> 2024-06-30 | H79: ='1_KMA'!$I$19 -> $dollars | J79: =$J$67*J73 -> 0 | K79: 0 | L79: 0 | M79: =$J$67*M73 -> 0 | N79: =$J$67*N73 -> 0 | O79: 0 | P79: 0 | Q79: 0 | R79: 0 | S79: 0 | T79: 0 | U79: 0 | V79: 0 | W79: 0 | X79: 0 | Y79: 0 | Z79: 0 | AA79: 0 | AB79: 0 | AC79: 0 | AD79: 0 | AE79: 0 | AF79: 0 | AG79: 0 | AH79: 0 | AI79: 0 | AJ79: 0 | AK79: 0 | AL79: 0 | AM79: 0 | AN79: 0 | AO79: 0 | AP79: 0 | AQ79: 0 | AR79: 0 | AS79: 0 | AT79: 0 | AU79: 0 | AV79: 0 | AW79: 0 | AX79: 0 | AY79: 0 | AZ79: 0 | BA79: 0 | BB79: 0 | BC79: 0 | BD79: 0 | BE79: 0 | BF79: 0 | BG79: 0
G81: $ Basis Reminder | H81: $ Reminder | J81: Summary table above picks up this total row
B82: Total | G82: ='1_KMA'!$I$20 -> 2024-06-30 | H82: ='1_KMA'!$I$19 -> $dollars | J82: =SUM(J76:J79) -> 0 | K82: =SUM(K76:K79) -> 0 | L82: =SUM(L76:L79) -> 0 | M82: 0 | N82: 0 | O82: 0 | P82: 0 | Q82: 0 | R82: 0 | S82: 0 | T82: 0 | U82: 0 | V82: 0 | W82: 0 | X82: 0 | Y82: 0 | Z82: 0 | AA82: 0 | AB82: 0 | AC82: 0 | AD82: 0 | AE82: 0 | AF82: 0 | AG82: 0 | AH82: 0 | AI82: 0 | AJ82: 0 | AK82: 0 | AL82: 0 | AM82: 0 | AN82: 0 | AO82: 0 | AP82: 0 | AQ82: 0 | AR82: 0 | AS82: 0 | AT82: 0 | AU82: 0 | AV82: 0 | AW82: 0 | AX82: 0 | AY82: 0 | AZ82: 0 | BA82: 0 | BB82: 0 | BC82: 0 | BD82: 0 | BE82: 0 | BF82: 0 | BG82: =SUM(BG76:BG79) -> 0
B84: Benefits Inputs
B86: Value of EUE
J88: ="Values - ensure values have been converted to "&'1_KMA'!$I$19 -> Values - ensure values have been converted to $dollars
G89: $ Basis Reminder | H89: $ Reminder | J89: Enter this as a positive value, as the spreadsheet later converts this to a negative benefit
B90: Value of Expected Unserved Energy (EUE) | G90: ='1_KMA'!$I$20 -> 2024-06-30 | H90: ='1_KMA'!$I$19 -> $dollars
G92: $ Basis Reminder | H92: $ Reminder | J92: Summary table above picks up this total row
B93: Total | G93: ='1_KMA'!$I$20 -> 2024-06-30 | H93: ='1_KMA'!$I$19 -> $dollars | J93: =J90 -> 0 | K93: =K90 -> 0 | L93: 0 | M93: 0 | N93: 0 | O93: 0 | P93: 0 | Q93: 0 | R93: 0 | S93: 0 | T93: 0 | U93: 0 | V93: 0 | W93: 0 | X93: 0 | Y93: 0 | Z93: 0 | AA93: 0 | AB93: 0 | AC93: 0 | AD93: 0 | AE93: 0 | AF93: 0 | AG93: 0 | AH93: 0 | AI93: 0 | AJ93: 0 | AK93: 0 | AL93: 0 | AM93: 0 | AN93: 0 | AO93: 0 | AP93: 0 | AQ93: 0 | AR93: 0 | AS93: 0 | AT93: 0 | AU93: 0 | AV93: 0 | AW93: 0 | AX93: 0 | AY93: 0 | AZ93: 0 | BA93: 0 | BB93: 0 | BC93: 0 | BD93: 0 | BE93: 0 | BF93: 0 | BG93: 0
B95: Reliability
B97: QCV research | H97: Unit | J97: Unit Rate
B98: Fewer unplanned outages, less than 12 hours
B99: Fewer unplanned outages in the worst served areas
H102: Unit | J102: Quantities
B103: Fewer unplanned outages, less than 12 hours
B104: Fewer unplanned outages in the worst served areas
G106: $ Basis Reminder | H106: $ Reminder | J106: ="Values - ensure values have been converted to "&'1_KMA'!$I$19 -> Values - ensure values have been converted to $dollars
B107: Fewer unplanned outages, less than 12 hours | G107: ='1_KMA'!$I$20 -> 2024-06-30 | H107: ='1_KMA'!$I$19 -> $dollars | J107: =J103*$J$98 -> 0 | K107: =K103*$J$98 -> 0 | L107: =L103*$J$98 -> 0 | M107: =M103*$J$98 -> 0 | N107: 0 | O107: =O103*$J$98 -> 0 | P107: 0 | Q107: 0 | R107: 0 | S107: 0 | T107: 0 | U107: 0 | V107: 0 | W107: 0 | X107: 0 | Y107: 0 | Z107: 0 | AA107: 0 | AB107: 0 | AC107: 0 | AD107: 0 | AE107: 0 | AF107: 0 | AG107: 0 | AH107: 0 | AI107: 0 | AJ107: 0 | AK107: 0 | AL107: 0 | AM107: 0 | AN107: 0 | AO107: 0 | AP107: 0 | AQ107: 0 | AR107: 0 | AS107: 0 | AT107: 0 | AU107: 0 | AV107: 0 | AW107: 0 | AX107: 0 | AY107: 0 | AZ107: 0 | BA107: 0 | BB107: 0 | BC107: 0 | BD107: 0 | BE107: 0 | BF107: 0 | BG107: 0
B108: Fewer unplanned outages in the worst served areas | G108: ='1_KMA'!$I$20 -> 2024-06-30 | H108: ='1_KMA'!$I$19 -> $dollars | J108: =J104*$J$99 -> 0 | K108: =K104*$J$99 -> 0 | L108: =L104*$J$99 -> 0 | M108: =M104*$J$99 -> 0 | N108: 0 | O108: =O104*$J$99 -> 0 | P108: 0 | Q108: 0 | R108: 0 | S108: 0 | T108: 0 | U108: 0 | V108: 0 | W108: 0 | X108: 0 | Y108: 0 | Z108: 0 | AA108: 0 | AB108: 0 | AC108: 0 | AD108: 0 | AE108: 0 | AF108: 0 | AG108: 0 | AH108: 0 | AI108: 0 | AJ108: 0 | AK108: 0 | AL108: 0 | AM108: 0 | AN108: 0 | AO108: 0 | AP108: 0 | AQ108: 0 | AR108: 0 | AS108: 0 | AT108: 0 | AU108: 0 | AV108: 0 | AW108: 0 | AX108: 0 | AY108: 0 | AZ108: 0 | BA108: 0 | BB108: 0 | BC108: 0 | BD108: 0 | BE108: 0 | BF108: 0 | BG108: 0
G110: $ Basis Reminder | H110: $ Reminder | J110: Summary table above picks up this total row
B111: Total | G111: ='1_KMA'!$I$20 -> 2024-06-30 | H111: ='1_KMA'!$I$19 -> $dollars | J111: =SUM(J107:J108) -> 0 | K111: =SUM(K107:K108) -> 0 | L111: 0 | M111: 0 | N111: 0 | O111: 0 | P111: 0 | Q111: 0 | R111: 0 | S111: 0 | T111: 0 | U111: 0 | V111: 0 | W111: 0 | X111: 0 | Y111: 0 | Z111: 0 | AA111: 0 | AB111: 0 | AC111: 0 | AD111: 0 | AE111: 0 | AF111: 0 | AG111: 0 | AH111: 0 | AI111: 0 | AJ111: 0 | AK111: 0 | AL111: 0 | AM111: 0 | AN111: 0 | AO111: 0 | AP111: 0 | AQ111: 0 | AR111: 0 | AS111: 0 | AT111: 0 | AU111: 0 | AV111: 0 | AW111: 0 | AX111: 0 | AY111: 0 | AZ111: 0 | BA111: 0 | BB111: 0 | BC111: 0 | BD111: 0 | BE111: 0 | BF111: 0 | BG111: 0
B113: Resilience
B115: QCV research | H115: Unit | J115: Unit Rate
B116: Fewer unplanned outages, longer than 12 hours
B117: Faster restoration of power when an outage has occurred
B118: Community hub offering essential services during long duration outages
H121: Unit | J121: Quantities
B122: Fewer unplanned outages, longer than 12 hours
B123: Faster restoration of power when an outage has occurred
B124: Community hub offering essential services
G126: $ Basis Reminder | H126: $ Reminder | J126: ="Values - ensure values have been converted to "&'1_KMA'!$I$19 -> Values - ensure values have been converted to $dollars
B127: Fewer unplanned outages, longer than 12 hours | G127: ='1_KMA'!$I$20 -> 2024-06-30 | H127: ='1_KMA'!$I$19 -> $dollars | J127: =J122*'2.1_Op2'!$J$116 -> 0 | K127: =K122*'2.1_Op2'!$J$116 -> 0 | L127: =L122*'2.1_Op2'!$J$116 -> 0 | M127: =M122*'2.1_Op2'!$J$116 -> 0 | N127: =N122*'2.1_Op2'!$J$116 -> 0 | O127: =O122*'2.1_Op2'!$J$116 -> 0 | P127: =P122*'2.1_Op2'!$J$116 -> 0 | Q127: =Q122*'2.1_Op2'!$J$116 -> 0 | R127: =R122*'2.1_Op2'!$J$116 -> 0 | S127: =S122*'2.1_Op2'!$J$116 -> 0 | T127: =T122*'2.1_Op2'!$J$116 -> 0 | U127: =U122*'2.1_Op2'!$J$116 -> 0 | V127: =V122*'2.1_Op2'!$J$116 -> 0 | W127: =W122*'2.1_Op2'!$J$116 -> 0 | X127: =X122*'2.1_Op2'!$J$116 -> 0 | Y127: =Y122*'2.1_Op2'!$J$116 -> 0 | Z127: =Z122*'2.1_Op2'!$J$116 -> 0 | AA127: =AA122*'2.1_Op2'!$J$116 -> 0 | AB127: =AB122*'2.1_Op2'!$J$116 -> 0 | AC127: =AC122*'2.1_Op2'!$J$116 -> 0 | AD127: =AD122*'2.1_Op2'!$J$116 -> 0 | AE127: =AE122*'2.1_Op2'!$J$116 -> 0 | AF127: =AF122*'2.1_Op2'!$J$116 -> 0 | AG127: =AG122*'2.1_Op2'!$J$116 -> 0 | AH127: =AH122*'2.1_Op2'!$J$116 -> 0 | AI127: =AI122*'2.1_Op2'!$J$116 -> 0 | AJ127: =AJ122*'2.1_Op2'!$J$116 -> 0 | AK127: =AK122*'2.1_Op2'!$J$116 -> 0 | AL127: =AL122*'2.1_Op2'!$J$116 -> 0 | AM127: =AM122*'2.1_Op2'!$J$116 -> 0 | AN127: =AN122*'2.1_Op2'!$J$116 -> 0 | AO127: =AO122*'2.1_Op2'!$J$116 -> 0 | AP127: =AP122*'2.1_Op2'!$J$116 -> 0 | AQ127: =AQ122*'2.1_Op2'!$J$116 -> 0 | AR127: =AR122*'2.1_Op2'!$J$116 -> 0 | AS127: =AS122*'2.1_Op2'!$J$116 -> 0 | AT127: =AT122*'2.1_Op2'!$J$116 -> 0 | AU127: =AU122*'2.1_Op2'!$J$116 -> 0 | AV127: =AV122*'2.1_Op2'!$J$116 -> 0 | AW127: =AW122*'2.1_Op2'!$J$116 -> 0 | AX127: =AX122*'2.1_Op2'!$J$116 -> 0 | AY127: =AY122*'2.1_Op2'!$J$116 -> 0 | AZ127: =AZ122*'2.1_Op2'!$J$116 -> 0 | BA127: =BA122*'2.1_Op2'!$J$116 -> 0 | BB127: =BB122*'2.1_Op2'!$J$116 -> 0 | BC127: =BC122*'2.1_Op2'!$J$116 -> 0 | BD127: =BD122*'2.1_Op2'!$J$116 -> 0 | BE127: =BE122*'2.1_Op2'!$J$116 -> 0 | BF127: =BF122*'2.1_Op2'!$J$116 -> 0 | BG127: =BG122*'2.1_Op2'!$J$116 -> 0
B128: Faster restoration of power when an outage has occurred | G128: ='1_KMA'!$I$20 -> 2024-06-30 | H128: ='1_KMA'!$I$19 -> $dollars | J128: =J123*'2.1_Op2'!$J$117 -> 0 | K128: =K123*'2.1_Op2'!$J$117 -> 0 | L128: =L123*'2.1_Op2'!$J$117 -> 0 | M128: =M123*'2.1_Op2'!$J$117 -> 0 | N128: =N123*'2.1_Op2'!$J$117 -> 0 | O128: =O123*'2.1_Op2'!$J$117 -> 0 | P128: =P123*'2.1_Op2'!$J$117 -> 0 | Q128: =Q123*'2.1_Op2'!$J$117 -> 0 | R128: =R123*'2.1_Op2'!$J$117 -> 0 | S128: =S123*'2.1_Op2'!$J$117 -> 0 | T128: =T123*'2.1_Op2'!$J$117 -> 0 | U128: =U123*'2.1_Op2'!$J$117 -> 0 | V128: =V123*'2.1_Op2'!$J$117 -> 0 | W128: =W123*'2.1_Op2'!$J$117 -> 0 | X128: =X123*'2.1_Op2'!$J$117 -> 0 | Y128: =Y123*'2.1_Op2'!$J$117 -> 0 | Z128: =Z123*'2.1_Op2'!$J$117 -> 0 | AA128: =AA123*'2.1_Op2'!$J$117 -> 0 | AB128: =AB123*'2.1_Op2'!$J$117 -> 0 | AC128: =AC123*'2.1_Op2'!$J$117 -> 0 | AD128: =AD123*'2.1_Op2'!$J$117 -> 0 | AE128: =AE123*'2.1_Op2'!$J$117 -> 0 | AF128: =AF123*'2.1_Op2'!$J$117 -> 0 | AG128: =AG123*'2.1_Op2'!$J$117 -> 0 | AH128: =AH123*'2.1_Op2'!$J$117 -> 0 | AI128: =AI123*'2.1_Op2'!$J$117 -> 0 | AJ128: =AJ123*'2.1_Op2'!$J$117 -> 0 | AK128: =AK123*'2.1_Op2'!$J$117 -> 0 | AL128: =AL123*'2.1_Op2'!$J$117 -> 0 | AM128: =AM123*'2.1_Op2'!$J$117 -> 0 | AN128: =AN123*'2.1_Op2'!$J$117 -> 0 | AO128: =AO123*'2.1_Op2'!$J$117 -> 0 | AP128: =AP123*'2.1_Op2'!$J$117 -> 0 | AQ128: =AQ123*'2.1_Op2'!$J$117 -> 0 | AR128: =AR123*'2.1_Op2'!$J$117 -> 0 | AS128: =AS123*'2.1_Op2'!$J$117 -> 0 | AT128: =AT123*'2.1_Op2'!$J$117 -> 0 | AU128: =AU123*'2.1_Op2'!$J$117 -> 0 | AV128: =AV123*'2.1_Op2'!$J$117 -> 0 | AW128: =AW123*'2.1_Op2'!$J$117 -> 0 | AX128: =AX123*'2.1_Op2'!$J$117 -> 0 | AY128: =AY123*'2.1_Op2'!$J$117 -> 0 | AZ128: =AZ123*'2.1_Op2'!$J$117 -> 0 | BA128: =BA123*'2.1_Op2'!$J$117 -> 0 | BB128: =BB123*'2.1_Op2'!$J$117 -> 0 | BC128: =BC123*'2.1_Op2'!$J$117 -> 0 | BD128: =BD123*'2.1_Op2'!$J$117 -> 0 | BE128: =BE123*'2.1_Op2'!$J$117 -> 0 | BF128: =BF123*'2.1_Op2'!$J$117 -> 0 | BG128: =BG123*'2.1_Op2'!$J$117 -> 0
B129: Community hub offering essential services | G129: ='1_KMA'!$I$20 -> 2024-06-30 | H129: ='1_KMA'!$I$19 -> $dollars | J129: =J124*'2.1_Op2'!$J$118 -> 0 | K129: =K124*'2.1_Op2'!$J$118 -> 0 | L129: =L124*'2.1_Op2'!$J$118 -> 0 | M129: =M124*'2.1_Op2'!$J$118 -> 0 | N129: =N124*'2.1_Op2'!$J$118 -> 0 | O129: =O124*'2.1_Op2'!$J$118 -> 0 | P129: =P124*'2.1_Op2'!$J$118 -> 0 | Q129: =Q124*'2.1_Op2'!$J$118 -> 0 | R129: =R124*'2.1_Op2'!$J$118 -> 0 | S129: =S124*'2.1_Op2'!$J$118 -> 0 | T129: =T124*'2.1_Op2'!$J$118 -> 0 | U129: =U124*'2.1_Op2'!$J$118 -> 0 | V129: =V124*'2.1_Op2'!$J$118 -> 0 | W129: =W124*'2.1_Op2'!$J$118 -> 0 | X129: =X124*'2.1_Op2'!$J$118 -> 0 | Y129: =Y124*'2.1_Op2'!$J$118 -> 0 | Z129: =Z124*'2.1_Op2'!$J$118 -> 0 | AA129: =AA124*'2.1_Op2'!$J$118 -> 0 | AB129: =AB124*'2.1_Op2'!$J$118 -> 0 | AC129: =AC124*'2.1_Op2'!$J$118 -> 0 | AD129: =AD124*'2.1_Op2'!$J$118 -> 0 | AE129: =AE124*'2.1_Op2'!$J$118 -> 0 | AF129: =AF124*'2.1_Op2'!$J$118 -> 0 | AG129: =AG124*'2.1_Op2'!$J$118 -> 0 | AH129: =AH124*'2.1_Op2'!$J$118 -> 0 | AI129: =AI124*'2.1_Op2'!$J$118 -> 0 | AJ129: =AJ124*'2.1_Op2'!$J$118 -> 0 | AK129: =AK124*'2.1_Op2'!$J$118 -> 0 | AL129: =AL124*'2.1_Op2'!$J$118 -> 0 | AM129: =AM124*'2.1_Op2'!$J$118 -> 0 | AN129: =AN124*'2.1_Op2'!$J$118 -> 0 | AO129: =AO124*'2.1_Op2'!$J$118 -> 0 | AP129: =AP124*'2.1_Op2'!$J$118 -> 0 | AQ129: =AQ124*'2.1_Op2'!$J$118 -> 0 | AR129: =AR124*'2.1_Op2'!$J$118 -> 0 | AS129: =AS124*'2.1_Op2'!$J$118 -> 0 | AT129: =AT124*'2.1_Op2'!$J$118 -> 0 | AU129: =AU124*'2.1_Op2'!$J$118 -> 0 | AV129: =AV124*'2.1_Op2'!$J$118 -> 0 | AW129: =AW124*'2.1_Op2'!$J$118 -> 0 | AX129: =AX124*'2.1_Op2'!$J$118 -> 0 | AY129: =AY124*'2.1_Op2'!$J$118 -> 0 | AZ129: =AZ124*'2.1_Op2'!$J$118 -> 0 | BA129: =BA124*'2.1_Op2'!$J$118 -> 0 | BB129: =BB124*'2.1_Op2'!$J$118 -> 0 | BC129: =BC124*'2.1_Op2'!$J$118 -> 0 | BD129: =BD124*'2.1_Op2'!$J$118 -> 0 | BE129: =BE124*'2.1_Op2'!$J$118 -> 0 | BF129: =BF124*'2.1_Op2'!$J$118 -> 0 | BG129: =BG124*'2.1_Op2'!$J$118 -> 0
G131: $ Basis Reminder | H131: $ Reminder | J131: Summary table above picks up this total row
B132: Total | G132: ='1_KMA'!$I$20 -> 2024-06-30 | H132: ='1_KMA'!$I$19 -> $dollars | J132: =SUM(J127:J129) -> 0 | K132: =SUM(K127:K129) -> 0 | L132: 0 | M132: 0 | N132: 0 | O132: 0 | P132: 0 | Q132: 0 | R132: 0 | S132: 0 | T132: 0 | U132: 0 | V132: 0 | W132: 0 | X132: 0 | Y132: 0 | Z132: 0 | AA132: 0 | AB132: 0 | AC132: 0 | AD132: 0 | AE132: 0 | AF132: 0 | AG132: 0 | AH132: 0 | AI132: 0 | AJ132: 0 | AK132: 0 | AL132: 0 | AM132: 0 | AN132: 0 | AO132: 0 | AP132: 0 | AQ132: 0 | AR132: 0 | AS132: 0 | AT132: 0 | AU132: 0 | AV132: 0 | AW132: 0 | AX132: 0 | AY132: 0 | AZ132: 0 | BA132: 0 | BB132: 0 | BC132: 0 | BD132: 0 | BE132: 0 | BF132: 0 | BG132: 0
B134: Batteries
B136: AusNet Savings from Wholesale Arbitrage
H137: Unit | J137: Value
B138: Wholesale market price differential | H138: [e.g. $dollars per MWh]
B139: AusNet Share in Wholesale arbitrage | H139: [e.g. %]
B140: Average annual battery derating | H140: [e.g. % p.a.]
H142: Unit | J142: Location 1 | K142: Location 2 | L142: Location 3 | M142: Location 4 | N142: Location 5
B143: Battery Rating (kW) | H143: kW
B144: Battery Rating (hr) | H144: hr
B145: Battery Rating (kWh) | H145: kWh | J145: =J143*J144 -> 0 | K145: =K143*K144 -> 0 | L145: =L143*L144 -> 0 | M145: =M143*M144 -> 0 | N145: =N143*N144 -> 0
B146: Retailer benefit by wholesale arbitrage | H146: [e.g. $millions, $thousands or $dollars per year] | J146: =J145*$J$138*0.8*5*52/1000 -> 0 | K146: =K145*$J$138*0.8*5*52/1000 -> 0 | L146: =L145*$J$138*0.8*5*52/1000 -> 0 | M146: =M145*$J$138*0.8*5*52/1000 -> 0 | N146: =N145*$J$138*0.8*5*52/1000 -> 0
G148: $ Basis Reminder | H148: $ Reminder | J148: ="Values - ensure values have been converted to "&'1_KMA'!$I$19 -> Values - ensure values have been converted to $dollars
B149: AusNet Savings from Wholesale Arbitrage | G149: ='1_KMA'!$I$20 -> 2024-06-30 | H149: ='1_KMA'!$I$19 -> $dollars | J149: =(SUM($J$146:$N$146)*$J$139*(1/(1+$J$140)^(J4-1)))/10^6 -> 0 | K149: =(SUM($J$146:$N$146)*$J$139*(1/(1+$J$140)^(K4-1)))/10^6 -> 0 | L149: =(SUM($J$146:$N$146)*$J$139*(1/(1+$J$140)^(L4-1)))/10^6 -> 0 | M149: 0 | N149: 0 | O149: 0 | P149: 0 | Q149: 0 | R149: 0 | S149: 0 | T149: 0 | U149: 0 | V149: 0 | W149: 0 | X149: 0 | Y149: 0 | Z149: 0 | AA149: 0 | AB149: 0 | AC149: 0 | AD149: 0 | AE149: 0 | AF149: 0 | AG149: 0 | AH149: 0 | AI149: 0 | AJ149: 0 | AK149: 0 | AL149: 0 | AM149: 0 | AN149: 0 | AO149: 0 | AP149: 0 | AQ149: 0 | AR149: 0 | AS149: 0 | AT149: 0 | AU149: 0 | AV149: 0 | AW149: 0 | AX149: 0 | AY149: 0 | AZ149: 0 | BA149: 0 | BB149: 0 | BC149: 0 | BD149: 0 | BE149: 0 | BF149: 0 | BG149: 0
B151: AusNet Revenue from FCAS
H152: Unit | J152: Value
B153: FCAS participation price | H153: [e.g. $ollars per MW per hour]
B154: Average annual participation All batteries | H154: [e.g. MW per hour]
G156: $ Basis Reminder | H156: $ Reminder | J156: ="Values - ensure values have been converted to "&'1_KMA'!$I$19 -> Values - ensure values have been converted to $dollars
B157: AusNet Revenue from FCAS | G157: ='1_KMA'!$I$20 -> 2024-06-30 | H157: ='1_KMA'!$I$19 -> $dollars | J157: =$J$153*$J$154/10^6 -> 0 | K157: =$J$153*$J$154/10^6 -> 0 | L157: 0 | M157: 0 | N157: 0 | O157: 0 | P157: 0 | Q157: 0 | R157: 0 | S157: 0 | T157: 0 | U157: 0 | V157: 0 | W157: 0 | X157: 0 | Y157: 0 | Z157: 0 | AA157: 0 | AB157: 0 | AC157: 0 | AD157: 0 | AE157: 0 | AF157: 0 | AG157: 0 | AH157: 0 | AI157: 0 | AJ157: 0 | AK157: 0 | AL157: 0 | AM157: 0 | AN157: 0 | AO157: 0 | AP157: 0 | AQ157: 0 | AR157: 0 | AS157: 0 | AT157: 0 | AU157: 0 | AV157: 0 | AW157: 0 | AX157: 0 | AY157: 0 | AZ157: 0 | BA157: 0 | BB157: 0 | BC157: 0 | BD157: 0 | BE157: 0 | BF157: 0 | BG157: 0
B159: AusNet Savings from Avoided Penalties
H160: Unit | J160: Location 1 | K160: Location 2 | L160: Location 3 | M160: Location 4 | N160: Location 5
B161: Number of average outage events | H161: [e.g. Events per year]
B162: Average Ausnet penalty for outage | H162: [e.g. $dollars per event]
G164: $ Basis Reminder | H164: $ Reminder | J164: ="Values - ensure values have been converted to "&'1_KMA'!$I$19 -> Values - ensure values have been converted to $dollars
B165: Ausnet Savings from Avoided Penalties | G165: ='1_KMA'!$I$20 -> 2024-06-30 | H165: ='1_KMA'!$I$19 -> $dollars | J165: =SUMPRODUCT($J$161:$N$161,$J$162:$N$162)/10^6 -> 0 | K165: =SUMPRODUCT($J$161:$N$161,$J$162:$N$162)/10^6 -> 0 | L165: 0 | M165: =SUMPRODUCT($J$161:$N$161,$J$162:$N$162)/10^6 -> 0 | N165: 0 | O165: 0 | P165: 0 | Q165: 0 | R165: 0 | S165: 0 | T165: 0 | U165: 0 | V165: 0 | W165: 0 | X165: 0 | Y165: 0 | Z165: 0 | AA165: 0 | AB165: 0 | AC165: 0 | AD165: 0 | AE165: 0 | AF165: 0 | AG165: 0 | AH165: 0 | AI165: 0 | AJ165: 0 | AK165: 0 | AL165: 0 | AM165: 0 | AN165: 0 | AO165: 0 | AP165: 0 | AQ165: 0 | AR165: 0 | AS165: 0 | AT165: 0 | AU165: 0 | AV165: 0 | AW165: 0 | AX165: 0 | AY165: 0 | AZ165: 0 | BA165: 0 | BB165: 0 | BC165: 0 | BD165: 0 | BE165: 0 | BF165: 0 | BG165: 0
G167: $ Basis Reminder | H167: $ Reminder | J167: Summary table above picks up this total row
B168: Total | G168: ='1_KMA'!$I$20 -> 2024-06-30 | H168: ='1_KMA'!$I$19 -> $dollars | J168: =J149+J157+J165 -> 0 | K168: =K149+K157+K165 -> 0 | L168: 0 | M168: 0 | N168: 0 | O168: 0 | P168: 0 | Q168: 0 | R168: 0 | S168: 0 | T168: 0 | U168: 0 | V168: 0 | W168: 0 | X168: 0 | Y168: 0 | Z168: 0 | AA168: 0 | AB168: 0 | AC168: 0 | AD168: 0 | AE168: 0 | AF168: 0 | AG168: 0 | AH168: 0 | AI168: 0 | AJ168: 0 | AK168: 0 | AL168: 0 | AM168: 0 | AN168: 0 | AO168: 0 | AP168: 0 | AQ168: 0 | AR168: 0 | AS168: 0 | AT168: 0 | AU168: 0 | AV168: 0 | AW168: 0 | AX168: 0 | AY168: 0 | AZ168: 0 | BA168: 0 | BB168: 0 | BC168: 0 | BD168: 0 | BE168: 0 | BF168: 0 | BG168: 0
B170: Others

Sheet 2.1_Op3 (hidden)
B1: General Inputs: Option 3 | I1: Regulatory Period Indicator | J1: ='1_KMA'!J30 -> 1 | K1: ='1_KMA'!K30 -> 1 | L1: ='1_KMA'!L30 -> 1 | M1: ='1_KMA'!M30 -> 1 | N1: ='1_KMA'!N30 -> 1 | O1: ='1_KMA'!O30 -> 0 | P1: ='1_KMA'!P30 -> 0 | Q1: ='1_KMA'!Q30 -> 0 | R1: ='1_KMA'!R30 -> 0 | S1: ='1_KMA'!S30 -> 0 | T1: ='1_KMA'!T30 -> 0 | U1: ='1_KMA'!U30 -> 0 | V1: ='1_KMA'!V30 -> 0 | W1: ='1_KMA'!W30 -> 0 | X1: ='1_KMA'!X30 -> 0 | Y1: ='1_KMA'!Y30 -> 0 | Z1: ='1_KMA'!Z30 -> 0 | AA1: ='1_KMA'!AA30 -> 0 | AB1: ='1_KMA'!AB30 -> 0 | AC1: ='1_KMA'!AC30 -> 0 | AD1: ='1_KMA'!AD30 -> 0 | AE1: ='1_KMA'!AE30 -> 0 | AF1: ='1_KMA'!AF30 -> 0 | AG1: ='1_KMA'!AG30 -> 0 | AH1: ='1_KMA'!AH30 -> 0 | AI1: ='1_KMA'!AI30 -> 0 | AJ1: ='1_KMA'!AJ30 -> 0 | AK1: ='1_KMA'!AK30 -> 0 | AL1: ='1_KMA'!AL30 -> 0 | AM1: ='1_KMA'!AM30 -> 0 | AN1: ='1_KMA'!AN30 -> 0 | AO1: ='1_KMA'!AO30 -> 0 | AP1: ='1_KMA'!AP30 -> 0 | AQ1: ='1_KMA'!AQ30 -> 0 | AR1: ='1_KMA'!AR30 -> 0 | AS1: ='1_KMA'!AS30 -> 0 | AT1: ='1_KMA'!AT30 -> 0 | AU1: ='1_KMA'!AU30 -> 0 | AV1: ='1_KMA'!AV30 -> 0 | AW1: ='1_KMA'!AW30 -> 0 | AX1: ='1_KMA'!AX30 -> 0 | AY1: ='1_KMA'!AY30 -> 0 | AZ1: ='1_KMA'!AZ30 -> 0 | BA1: ='1_KMA'!BA30 -> 0 | BB1: ='1_KMA'!BB30 -> 0 | BC1: ='1_KMA'!BC30 -> 0 | BD1: ='1_KMA'!BD30 -> 0 | BE1: ='1_KMA'!BE30 -> 0 | BF1: ='1_KMA'!BF30 -> 0 | BG1: ='1_KMA'!BG30 -> 0
B2: =Cover!$C$9 -> AusNet Services | I2: Period Start Date | J2: ='1_KMA'!J31 -> 2026-07-01 | K2: ='1_KMA'!K31 -> 2027-07-01 | L2: ='1_KMA'!L31 -> 2028-07-01 | M2: ='1_KMA'!M31 -> 2029-07-01 | N2: ='1_KMA'!N31 -> 2030-07-01 | O2: ='1_KMA'!O31 -> 2031-07-01 | P2: ='1_KMA'!P31 -> 2032-07-01 | Q2: ='1_KMA'!Q31 -> 2033-07-01 | R2: ='1_KMA'!R31 -> 2034-07-01 | S2: ='1_KMA'!S31 -> 2035-07-01 | T2: ='1_KMA'!T31 -> 2036-07-01 | U2: ='1_KMA'!U31 -> 2037-07-01 | V2: ='1_KMA'!V31 -> 2038-07-01 | W2: ='1_KMA'!W31 -> 2039-07-01 | X2: ='1_KMA'!X31 -> 2040-07-01 | Y2: ='1_KMA'!Y31 -> 2041-07-01 | Z2: ='1_KMA'!Z31 -> 2042-07-01 | AA2: ='1_KMA'!AA31 -> 2043-07-01 | AB2: ='1_KMA'!AB31 -> 2044-07-01 | AC2: ='1_KMA'!AC31 -> 2045-07-01 | AD2: ='1_KMA'!AD31 -> 2046-07-01 | AE2: ='1_KMA'!AE31 -> 2047-07-01 | AF2: ='1_KMA'!AF31 -> 2048-07-01 | AG2: ='1_KMA'!AG31 -> 2049-07-01 | AH2: ='1_KMA'!AH31 -> 2050-07-01 | AI2: ='1_KMA'!AI31 -> 2051-07-01 | AJ2: ='1_KMA'!AJ31 -> 2052-07-01 | AK2: ='1_KMA'!AK31 -> 2053-07-01 | AL2: ='1_KMA'!AL31 -> 2054-07-01 | AM2: ='1_KMA'!AM31 -> 2055-07-01 | AN2: ='1_KMA'!AN31 -> 2056-07-01 | AO2: ='1_KMA'!AO31 -> 2057-07-01 | AP2: ='1_KMA'!AP31 -> 2058-07-01 | AQ2: ='1_KMA'!AQ31 -> 2059-07-01 | AR2: ='1_KMA'!AR31 -> 2060-07-01 | AS2: ='1_KMA'!AS31 -> 2061-07-01 | AT2: ='1_KMA'!AT31 -> 2062-07-01 | AU2: ='1_KMA'!AU31 -> 2063-07-01 | AV2: ='1_KMA'!AV31 -> 2064-07-01 | AW2: ='1_KMA'!AW31 -> 2065-07-01 | AX2: ='1_KMA'!AX31 -> 2066-07-01 | AY2: ='1_KMA'!AY31 -> 2067-07-01 | AZ2: ='1_KMA'!AZ31 -> 2068-07-01 | BA2: ='1_KMA'!BA31 -> 2069-07-01 | BB2: ='1_KMA'!BB31 -> 2070-07-01 | BC2: ='1_KMA'!BC31 -> 2071-07-01 | BD2: ='1_KMA'!BD31 -> 2072-07-01 | BE2: ='1_KMA'!BE31 -> 2073-07-01 | BF2: ='1_KMA'!BF31 -> 2074-07-01 | BG2: ='1_KMA'!BG31 -> 2075-07-01
B3: =Cover!$C$10 -> Business Case Evaluation | I3: Period End Date | J3: ='1_KMA'!J32 -> 2027-06-30 | K3: ='1_KMA'!K32 -> 2028-06-30 | L3: ='1_KMA'!L32 -> 2029-06-30 | M3: ='1_KMA'!M32 -> 2030-06-30 | N3: ='1_KMA'!N32 -> 2031-06-30 | O3: ='1_KMA'!O32 -> 2032-06-30 | P3: ='1_KMA'!P32 -> 2033-06-30 | Q3: ='1_KMA'!Q32 -> 2034-06-30 | R3: ='1_KMA'!R32 -> 2035-06-30 | S3: ='1_KMA'!S32 -> 2036-06-30 | T3: ='1_KMA'!T32 -> 2037-06-30 | U3: ='1_KMA'!U32 -> 2038-06-30 | V3: ='1_KMA'!V32 -> 2039-06-30 | W3: ='1_KMA'!W32 -> 2040-06-30 | X3: ='1_KMA'!X32 -> 2041-06-30 | Y3: ='1_KMA'!Y32 -> 2042-06-30 | Z3: ='1_KMA'!Z32 -> 2043-06-30 | AA3: ='1_KMA'!AA32 -> 2044-06-30 | AB3: ='1_KMA'!AB32 -> 2045-06-30 | AC3: ='1_KMA'!AC32 -> 2046-06-30 | AD3: ='1_KMA'!AD32 -> 2047-06-30 | AE3: ='1_KMA'!AE32 -> 2048-06-30 | AF3: ='1_KMA'!AF32 -> 2049-06-30 | AG3: ='1_KMA'!AG32 -> 2050-06-30 | AH3: ='1_KMA'!AH32 -> 2051-06-30 | AI3: ='1_KMA'!AI32 -> 2052-06-30 | AJ3: ='1_KMA'!AJ32 -> 2053-06-30 | AK3: ='1_KMA'!AK32 -> 2054-06-30 | AL3: ='1_KMA'!AL32 -> 2055-06-30 | AM3: ='1_KMA'!AM32 -> 2056-06-30 | AN3: ='1_KMA'!AN32 -> 2057-06-30 | AO3: ='1_KMA'!AO32 -> 2058-06-30 | AP3: ='1_KMA'!AP32 -> 2059-06-30 | AQ3: ='1_KMA'!AQ32 -> 2060-06-30 | AR3: ='1_KMA'!AR32 -> 2061-06-30 | AS3: ='1_KMA'!AS32 -> 2062-06-30 | AT3: ='1_KMA'!AT32 -> 2063-06-30 | AU3: ='1_KMA'!AU32 -> 2064-06-30 | AV3: ='1_KMA'!AV32 -> 2065-06-30 | AW3: ='1_KMA'!AW32 -> 2066-06-30 | AX3: ='1_KMA'!AX32 -> 2067-06-30 | AY3: ='1_KMA'!AY32 -> 2068-06-30 | AZ3: ='1_KMA'!AZ32 -> 2069-06-30 | BA3: ='1_KMA'!BA32 -> 2070-06-30 | BB3: ='1_KMA'!BB32 -> 2071-06-30 | BC3: ='1_KMA'!BC32 -> 2072-06-30 | BD3: ='1_KMA'!BD32 -> 2073-06-30 | BE3: ='1_KMA'!BE32 -> 2074-06-30 | BF3: ='1_KMA'!BF32 -> 2075-06-30 | BG3: ='1_KMA'!BG32 -> 2076-06-30
B4: =Cover!$C$11 -> HV Feeder Reliability Improvement | I4: Project Year | J4: ='1_KMA'!J33 -> 1 | K4: ='1_KMA'!K33 -> 2 | L4: ='1_KMA'!L33 -> 3 | M4: ='1_KMA'!M33 -> 4 | N4: ='1_KMA'!N33 -> 5 | O4: ='1_KMA'!O33 -> 6 | P4: ='1_KMA'!P33 -> 7 | Q4: ='1_KMA'!Q33 -> 8 | R4: ='1_KMA'!R33 -> 9 | S4: ='1_KMA'!S33 -> 10 | T4: ='1_KMA'!T33 -> 11 | U4: ='1_KMA'!U33 -> 12 | V4: ='1_KMA'!V33 -> 13 | W4: ='1_KMA'!W33 -> 14 | X4: ='1_KMA'!X33 -> 15 | Y4: ='1_KMA'!Y33 -> 16 | Z4: ='1_KMA'!Z33 -> 17 | AA4: ='1_KMA'!AA33 -> 18 | AB4: ='1_KMA'!AB33 -> 19 | AC4: ='1_KMA'!AC33 -> 20 | AD4: ='1_KMA'!AD33 -> 21 | AE4: ='1_KMA'!AE33 -> 22 | AF4: ='1_KMA'!AF33 -> 23 | AG4: ='1_KMA'!AG33 -> 24 | AH4: ='1_KMA'!AH33 -> 25 | AI4: ='1_KMA'!AI33 -> 26 | AJ4: ='1_KMA'!AJ33 -> 27 | AK4: ='1_KMA'!AK33 -> 28 | AL4: ='1_KMA'!AL33 -> 29 | AM4: ='1_KMA'!AM33 -> 30 | AN4: ='1_KMA'!AN33 -> 31 | AO4: ='1_KMA'!AO33 -> 32 | AP4: ='1_KMA'!AP33 -> 33 | AQ4: ='1_KMA'!AQ33 -> 34 | AR4: ='1_KMA'!AR33 -> 35 | AS4: ='1_KMA'!AS33 -> 36 | AT4: ='1_KMA'!AT33 -> 37 | AU4: ='1_KMA'!AU33 -> 38 | AV4: ='1_KMA'!AV33 -> 39 | AW4: ='1_KMA'!AW33 -> 40 | AX4: ='1_KMA'!AX33 -> 41 | AY4: ='1_KMA'!AY33 -> 42 | AZ4: ='1_KMA'!AZ33 -> 43 | BA4: ='1_KMA'!BA33 -> 44 | BB4: ='1_KMA'!BB33 -> 45 | BC4: ='1_KMA'!BC33 -> 46 | BD4: ='1_KMA'!BD33 -> 47 | BE4: ='1_KMA'!BE33 -> 48 | BF4: ='1_KMA'!BF33 -> 49 | BG4: ='1_KMA'!BG33 -> 50
I5: Financial Year | J5: ='1_KMA'!J34 -> 2027 | K5: ='1_KMA'!K34 -> 2028 | L5: ='1_KMA'!L34 -> 2029 | M5: ='1_KMA'!M34 -> 2030 | N5: ='1_KMA'!N34 -> 2031 | O5: ='1_KMA'!O34 -> 2032 | P5: ='1_KMA'!P34 -> 2033 | Q5: ='1_KMA'!Q34 -> 2034 | R5: ='1_KMA'!R34 -> 2035 | S5: ='1_KMA'!S34 -> 2036 | T5: ='1_KMA'!T34 -> 2037 | U5: ='1_KMA'!U34 -> 2038 | V5: ='1_KMA'!V34 -> 2039 | W5: ='1_KMA'!W34 -> 2040 | X5: ='1_KMA'!X34 -> 2041 | Y5: ='1_KMA'!Y34 -> 2042 | Z5: ='1_KMA'!Z34 -> 2043 | AA5: ='1_KMA'!AA34 -> 2044 | AB5: ='1_KMA'!AB34 -> 2045 | AC5: ='1_KMA'!AC34 -> 2046 | AD5: ='1_KMA'!AD34 -> 2047 | AE5: ='1_KMA'!AE34 -> 2048 | AF5: ='1_KMA'!AF34 -> 2049 | AG5: ='1_KMA'!AG34 -> 2050 | AH5: ='1_KMA'!AH34 -> 2051 | AI5: ='1_KMA'!AI34 -> 2052 | AJ5: ='1_KMA'!AJ34 -> 2053 | AK5: ='1_KMA'!AK34 -> 2054 | AL5: ='1_KMA'!AL34 -> 2055 | AM5: ='1_KMA'!AM34 -> 2056 | AN5: ='1_KMA'!AN34 -> 2057 | AO5: ='1_KMA'!AO34 -> 2058 | AP5: ='1_KMA'!AP34 -> 2059 | AQ5: ='1_KMA'!AQ34 -> 2060 | AR5: ='1_KMA'!AR34 -> 2061 | AS5: ='1_KMA'!AS34 -> 2062 | AT5: ='1_KMA'!AT34 -> 2063 | AU5: ='1_KMA'!AU34 -> 2064 | AV5: ='1_KMA'!AV34 -> 2065 | AW5: ='1_KMA'!AW34 -> 2066 | AX5: ='1_KMA'!AX34 -> 2067 | AY5: ='1_KMA'!AY34 -> 2068 | AZ5: ='1_KMA'!AZ34 -> 2069 | BA5: ='1_KMA'!BA34 -> 2070 | BB5: ='1_KMA'!BB34 -> 2071 | BC5: ='1_KMA'!BC34 -> 2072 | BD5: ='1_KMA'!BD34 -> 2073 | BE5: ='1_KMA'!BE34 -> 2074 | BF5: ='1_KMA'!BF34 -> 2075 | BG5: ='1_KMA'!BG34 -> 2076
B7: Summary
B9: Costs | G9: $ Basis Reminder | H9: $ Reminder | J9: ="Ensure this section [Summary] is picking up the relevant rows" -> Ensure this section [Summary] is picking up the relevant rows
B10: Capex | G10: ='1_KMA'!$I$20 -> 2024-06-30 | H10: ='1_KMA'!$I$19 -> $dollars | J10: =J47 -> 0 | K10: =K47 -> 0 | L10: 0 | M10: 0 | N10: 0 | O10: 0 | P10: 0 | Q10: 0 | R10: 0 | S10: 0 | T10: 0 | U10: 0 | V10: 0 | W10: 0 | X10: 0 | Y10: 0 | Z10: 0 | AA10: 0 | AB10: 0 | AC10: 0 | AD10: 0 | AE10: 0 | AF10: 0 | AG10: 0 | AH10: 0 | AI10: 0 | AJ10: 0 | AK10: 0 | AL10: 0 | AM10: 0 | AN10: 0 | AO10: 0 | AP10: 0 | AQ10: 0 | AR10: 0 | AS10: 0 | AT10: 0 | AU10: 0 | AV10: 0 | AW10: 0 | AX10: 0 | AY10: 0 | AZ10: 0 | BA10: 0 | BB10: 0 | BC10: 0 | BD10: 0 | BE10: 0 | BF10: 0 | BG10: 0
B11: Capex offset | G11: ='1_KMA'!$I$20 -> 2024-06-30 | H11: ='1_KMA'!$I$19 -> $dollars | J11: =-J59 -> 0 | K11: =-K59 -> 0 | L11: 0 | M11: 0 | N11: 0 | O11: 0 | P11: 0 | Q11: 0 | R11: 0 | S11: 0 | T11: 0 | U11: 0 | V11: 0 | W11: 0 | X11: 0 | Y11: 0 | Z11: 0 | AA11: 0 | AB11: 0 | AC11: 0 | AD11: 0 | AE11: 0 | AF11: 0 | AG11: 0 | AH11: 0 | AI11: 0 | AJ11: 0 | AK11: 0 | AL11: 0 | AM11: 0 | AN11: 0 | AO11: 0 | AP11: 0 | AQ11: 0 | AR11: 0 | AS11: 0 | AT11: 0 | AU11: 0 | AV11: 0 | AW11: 0 | AX11: 0 | AY11: 0 | AZ11: 0 | BA11: 0 | BB11: 0 | BC11: 0 | BD11: 0 | BE11: 0 | BF11: 0 | BG11: 0
B12: Opex | G12: ='1_KMA'!$I$20 -> 2024-06-30 | H12: ='1_KMA'!$I$19 -> $dollars | J12: =J82 -> 0 | K12: =K82 -> 0 | L12: 0 | M12: 0 | N12: 0 | O12: 0 | P12: 0 | Q12: 0 | R12: 0 | S12: 0 | T12: 0 | U12: 0 | V12: 0 | W12: 0 | X12: 0 | Y12: 0 | Z12: 0 | AA12: 0 | AB12: 0 | AC12: 0 | AD12: 0 | AE12: 0 | AF12: 0 | AG12: 0 | AH12: 0 | AI12: 0 | AJ12: 0 | AK12: 0 | AL12: 0 | AM12: 0 | AN12: 0 | AO12: 0 | AP12: 0 | AQ12: 0 | AR12: 0 | AS12: 0 | AT12: 0 | AU12: 0 | AV12: 0 | AW12: 0 | AX12: 0 | AY12: 0 | AZ12: 0 | BA12: 0 | BB12: 0 | BC12: 0 | BD12: 0 | BE12: 0 | BF12: 0 | BG12: 0
B13: Total | G13: ='1_KMA'!$I$20 -> 2024-06-30 | H13: ='1_KMA'!$I$19 -> $dollars | J13: =SUM(J10:J12) -> 0 | K13: =SUM(K10:K12) -> 0 | L13: 0 | M13: 0 | N13: 0 | O13: 0 | P13: 0 | Q13: 0 | R13: 0 | S13: 0 | T13: 0 | U13: 0 | V13: 0 | W13: 0 | X13: 0 | Y13: 0 | Z13: 0 | AA13: 0 | AB13: 0 | AC13: 0 | AD13: 0 | AE13: 0 | AF13: 0 | AG13: 0 | AH13: 0 | AI13: 0 | AJ13: 0 | AK13: 0 | AL13: 0 | AM13: 0 | AN13: 0 | AO13: 0 | AP13: 0 | AQ13: 0 | AR13: 0 | AS13: 0 | AT13: 0 | AU13: 0 | AV13: 0 | AW13: 0 | AX13: 0 | AY13: 0 | AZ13: 0 | BA13: 0 | BB13: 0 | BC13: 0 | BD13: 0 | BE13: 0 | BF13: 0 | BG13: 0
B15: Benefits | G15: $ Basis Reminder | H15: $ Reminder | J15: ="Ensure this section [Summary] is picking up the relevant rows" -> Ensure this section [Summary] is picking up the relevant rows
B16: Value of EUE | G16: ='1_KMA'!$I$20 -> 2024-06-30 | H16: ='1_KMA'!$I$19 -> $dollars | J16: =-J93 -> 0 | K16: =-K93 -> 0 | L16: 0 | M16: 0 | N16: 0 | O16: 0 | P16: 0 | Q16: 0 | R16: 0 | S16: 0 | T16: 0 | U16: 0 | V16: 0 | W16: 0 | X16: 0 | Y16: 0 | Z16: 0 | AA16: 0 | AB16: 0 | AC16: 0 | AD16: 0 | AE16: 0 | AF16: 0 | AG16: 0 | AH16: 0 | AI16: 0 | AJ16: 0 | AK16: 0 | AL16: 0 | AM16: 0 | AN16: 0 | AO16: 0 | AP16: 0 | AQ16: 0 | AR16: 0 | AS16: 0 | AT16: 0 | AU16: 0 | AV16: 0 | AW16: 0 | AX16: 0 | AY16: 0 | AZ16: 0 | BA16: 0 | BB16: 0 | BC16: 0 | BD16: 0 | BE16: 0 | BF16: 0 | BG16: 0
B17: Reliability | G17: ='1_KMA'!$I$20 -> 2024-06-30 | H17: ='1_KMA'!$I$19 -> $dollars | J17: =J111 -> 0 | K17: =K111 -> 0 | L17: 0 | M17: 0 | N17: 0 | O17: 0 | P17: 0 | Q17: 0 | R17: 0 | S17: 0 | T17: 0 | U17: 0 | V17: 0 | W17: 0 | X17: 0 | Y17: 0 | Z17: 0 | AA17: 0 | AB17: 0 | AC17: 0 | AD17: 0 | AE17: 0 | AF17: 0 | AG17: 0 | AH17: 0 | AI17: 0 | AJ17: 0 | AK17: 0 | AL17: 0 | AM17: 0 | AN17: 0 | AO17: 0 | AP17: 0 | AQ17: 0 | AR17: 0 | AS17: 0 | AT17: 0 | AU17: 0 | AV17: 0 | AW17: 0 | AX17: 0 | AY17: 0 | AZ17: 0 | BA17: 0 | BB17: 0 | BC17: 0 | BD17: 0 | BE17: 0 | BF17: 0 | BG17: 0
B18: Resilience | G18: ='1_KMA'!$I$20 -> 2024-06-30 | H18: ='1_KMA'!$I$19 -> $dollars | J18: =J132 -> 0 | K18: =K132 -> 0 | L18: 0 | M18: 0 | N18: 0 | O18: 0 | P18: 0 | Q18: 0 | R18: 0 | S18: 0 | T18: 0 | U18: 0 | V18: 0 | W18: 0 | X18: 0 | Y18: 0 | Z18: 0 | AA18: 0 | AB18: 0 | AC18: 0 | AD18: 0 | AE18: 0 | AF18: 0 | AG18: 0 | AH18: 0 | AI18: 0 | AJ18: 0 | AK18: 0 | AL18: 0 | AM18: 0 | AN18: 0 | AO18: 0 | AP18: 0 | AQ18: 0 | AR18: 0 | AS18: 0 | AT18: 0 | AU18: 0 | AV18: 0 | AW18: 0 | AX18: 0 | AY18: 0 | AZ18: 0 | BA18: 0 | BB18: 0 | BC18: 0 | BD18: 0 | BE18: 0 | BF18: 0 | BG18: 0
B19: Batteries | G19: ='1_KMA'!$I$20 -> 2024-06-30 | H19: ='1_KMA'!$I$19 -> $dollars | J19: =J168 -> 0 | K19: =K168 -> 0 | L19: 0 | M19: 0 | N19: 0 | O19: 0 | P19: 0 | Q19: 0 | R19: 0 | S19: 0 | T19: 0 | U19: 0 | V19: 0 | W19: 0 | X19: 0 | Y19: 0 | Z19: 0 | AA19: 0 | AB19: 0 | AC19: 0 | AD19: 0 | AE19: 0 | AF19: 0 | AG19: 0 | AH19: 0 | AI19: 0 | AJ19: 0 | AK19: 0 | AL19: 0 | AM19: 0 | AN19: 0 | AO19: 0 | AP19: 0 | AQ19: 0 | AR19: 0 | AS19: 0 | AT19: 0 | AU19: 0 | AV19: 0 | AW19: 0 | AX19: 0 | AY19: 0 | AZ19: 0 | BA19: 0 | BB19: 0 | BC19: 0 | BD19: 0 | BE19: 0 | BF19: 0 | BG19: 0
B20: Others | G20: ='1_KMA'!$I$20 -> 2024-06-30 | H20: ='1_KMA'!$I$19 -> $dollars
B21: Total | G21: ='1_KMA'!$I$20 -> 2024-06-30 | H21: ='1_KMA'!$I$19 -> $dollars | J21: =SUM(J16:J20) -> 0 | K21: =SUM(K16:K20) -> 0 | L21: 0 | M21: 0 | N21: 0 | O21: 0 | P21: 0 | Q21: 0 | R21: 0 | S21: 0 | T21: 0 | U21: 0 | V21: 0 | W21: 0 | X21: 0 | Y21: 0 | Z21: 0 | AA21: 0 | AB21: 0 | AC21: 0 | AD21: 0 | AE21: 0 | AF21: 0 | AG21: 0 | AH21: 0 | AI21: 0 | AJ21: 0 | AK21: 0 | AL21: 0 | AM21: 0 | AN21: 0 | AO21: 0 | AP21: 0 | AQ21: 0 | AR21: 0 | AS21: 0 | AT21: 0 | AU21: 0 | AV21: 0 | AW21: 0 | AX21: 0 | AY21: 0 | AZ21: 0 | BA21: 0 | BB21: 0 | BC21: 0 | BD21: 0 | BE21: 0 | BF21: 0 | BG21: 0
B24: Cost Inputs
B26: Capex Build Up
B28: Name | H28: Unit | J28: Unit Rate
B29: [e.g. New feeder] | H29: [e.g., $million per feeder km]
B30: [e.g. New switchboard] | H30: [e.g., $million per switchboard]
B34: Name | H34: Unit | J34: Quantities
B35: =B29 -> [e.g. New feeder] | H35: [e.g., feeder km]
B36: =B30 -> [e.g. New switchboard] | H36: [e.g., count of switchboards]
B40: Name | G40: $ Basis Reminder | H40: $ Reminder | J40: ="Costs - ensure costs have been converted to "&'1_KMA'!$I$19 -> Costs - ensure costs have been converted to $dollars
B41: =B29 -> [e.g. New feeder] | G41: ='1_KMA'!$I$20 -> 2024-06-30 | H41: ='1_KMA'!$I$19 -> $dollars | J41: =$J$29*J35 -> 0 | K41: =$J$29*K35 -> 0 | L41: =$J$29*L35 -> 0 | M41: =$J$29*M35 -> 0 | N41: 0 | O41: 0 | P41: 0 | Q41: 0 | R41: 0 | S41: 0 | T41: 0 | U41: 0 | V41: 0 | W41: 0 | X41: 0 | Y41: 0 | Z41: 0 | AA41: 0 | AB41: 0 | AC41: 0 | AD41: 0 | AE41: 0 | AF41: 0 | AG41: 0 | AH41: 0 | AI41: 0 | AJ41: 0 | AK41: 0 | AL41: 0 | AM41: 0 | AN41: 0 | AO41: 0 | AP41: 0 | AQ41: 0 | AR41: 0 | AS41: 0 | AT41: 0 | AU41: 0 | AV41: 0 | AW41: 0 | AX41: 0 | AY41: 0 | AZ41: 0 | BA41: 0 | BB41: 0 | BC41: 0 | BD41: 0 | BE41: 0 | BF41: 0 | BG41: 0
B42: =B30 -> [e.g. New switchboard] | G42: ='1_KMA'!$I$20 -> 2024-06-30 | H42: ='1_KMA'!$I$19 -> $dollars | J42: =$J$30*J36 -> 0 | K42: =$J$30*K36 -> 0 | L42: =$J$30*L36 -> 0 | M42: =$J$30*M36 -> 0 | N42: 0 | O42: 0 | P42: 0 | Q42: 0 | R42: 0 | S42: 0 | T42: 0 | U42: 0 | V42: 0 | W42: 0 | X42: 0 | Y42: 0 | Z42: 0 | AA42: 0 | AB42: 0 | AC42: 0 | AD42: 0 | AE42: 0 | AF42: 0 | AG42: 0 | AH42: 0 | AI42: 0 | AJ42: 0 | AK42: 0 | AL42: 0 | AM42: 0 | AN42: 0 | AO42: 0 | AP42: 0 | AQ42: 0 | AR42: 0 | AS42: 0 | AT42: 0 | AU42: 0 | AV42: 0 | AW42: 0 | AX42: 0 | AY42: 0 | AZ42: 0 | BA42: 0 | BB42: 0 | BC42: 0 | BD42: 0 | BE42: 0 | BF42: 0 | BG42: 0
G43: ='1_KMA'!$I$20 -> 2024-06-30 | H43: ='1_KMA'!$I$19 -> $dollars | J43: =$J$31*J37 -> 0 | K43: =$J$31*K37 -> 0 | L43: =$J$31*L37 -> 0 | M43: =$J$31*M37 -> 0 | N43: 0 | O43: 0 | P43: 0 | Q43: 0 | R43: 0 | S43: 0 | T43: 0 | U43: 0 | V43: 0 | W43: 0 | X43: 0 | Y43: 0 | Z43: 0 | AA43: 0 | AB43: 0 | AC43: 0 | AD43: 0 | AE43: 0 | AF43: 0 | AG43: 0 | AH43: 0 | AI43: 0 | AJ43: 0 | AK43: 0 | AL43: 0 | AM43: 0 | AN43: 0 | AO43: 0 | AP43: 0 | AQ43: 0 | AR43: 0 | AS43: 0 | AT43: 0 | AU43: 0 | AV43: 0 | AW43: 0 | AX43: 0 | AY43: 0 | AZ43: 0 | BA43: 0 | BB43: 0 | BC43: 0 | BD43: 0 | BE43: 0 | BF43: 0 | BG43: 0
G44: ='1_KMA'!$I$20 -> 2024-06-30 | H44: ='1_KMA'!$I$19 -> $dollars | J44: =$J$32*J38 -> 0 | K44: =$J$32*K38 -> 0 | L44: =$J$32*L38 -> 0 | M44: 0 | N44: 0 | O44: 0 | P44: 0 | Q44: 0 | R44: 0 | S44: 0 | T44: 0 | U44: 0 | V44: 0 | W44: 0 | X44: 0 | Y44: 0 | Z44: 0 | AA44: 0 | AB44: 0 | AC44: 0 | AD44: 0 | AE44: 0 | AF44: 0 | AG44: 0 | AH44: 0 | AI44: 0 | AJ44: 0 | AK44: 0 | AL44: 0 | AM44: 0 | AN44: 0 | AO44: 0 | AP44: 0 | AQ44: 0 | AR44: 0 | AS44: 0 | AT44: 0 | AU44: 0 | AV44: 0 | AW44: 0 | AX44: 0 | AY44: 0 | AZ44: 0 | BA44: 0 | BB44: 0 | BC44: 0 | BD44: 0 | BE44: 0 | BF44: 0 | BG44: 0
G46: $ Basis Reminder | H46: $ Reminder | J46: Summary table above picks up this total row
B47: Total | G47: ='1_KMA'!$I$20 -> 2024-06-30 | H47: ='1_KMA'!$I$19 -> $dollars | J47: =SUM(J41:J44) -> 0 | K47: =SUM(K41:K44) -> 0 | L47: =SUM(L41:L44) -> 0 | M47: 0 | N47: 0 | O47: 0 | P47: 0 | Q47: 0 | R47: 0 | S47: 0 | T47: 0 | U47: 0 | V47: 0 | W47: 0 | X47: 0 | Y47: 0 | Z47: 0 | AA47: 0 | AB47: 0 | AC47: 0 | AD47: 0 | AE47: 0 | AF47: 0 | AG47: 0 | AH47: 0 | AI47: 0 | AJ47: 0 | AK47: 0 | AL47: 0 | AM47: 0 | AN47: 0 | AO47: 0 | AP47: 0 | AQ47: 0 | AR47: 0 | AS47: 0 | AT47: 0 | AU47: 0 | AV47: 0 | AW47: 0 | AX47: 0 | AY47: 0 | AZ47: 0 | BA47: 0 | BB47: 0 | BC47: 0 | BD47: 0 | BE47: 0 | BF47: 0 | BG47: =SUM(BG41:BG44) -> 0
B49: Capex Offset
J51: ="Capex offsets - ensure capex offsets have been converted to "&'1_KMA'!$I$19 -> Capex offsets - ensure capex offsets have been converted to $dollars
B52: Name | G52: $ Basis Reminder | H52: $ Reminder | J52: Enter capex offsets as positive values as the spreadsheet later nets this off the gross amounts
B53: [e.g. Government subsidy] | G53: ='1_KMA'!$I$20 -> 2024-06-30 | H53: ='1_KMA'!$I$19 -> $dollars
B54: [e.g. Customer contribution] | G54: ='1_KMA'!$I$20 -> 2024-06-30 | H54: ='1_KMA'!$I$19 -> $dollars
G55: ='1_KMA'!$I$20 -> 2024-06-30 | H55: ='1_KMA'!$I$19 -> $dollars
G56: ='1_KMA'!$I$20 -> 2024-06-30 | H56: ='1_KMA'!$I$19 -> $dollars
G58: $ Basis Reminder | H58: $ Reminder | J58: Summary table above picks up this total row
B59: Total | G59: ='1_KMA'!$I$20 -> 2024-06-30 | H59: ='1_KMA'!$I$19 -> $dollars | J59: =SUM(J53:J56) -> 0 | K59: =SUM(K53:K56) -> 0 | L59: =SUM(L53:L56) -> 0 | M59: 0 | N59: 0 | O59: 0 | P59: 0 | Q59: 0 | R59: 0 | S59: 0 | T59: 0 | U59: 0 | V59: 0 | W59: 0 | X59: 0 | Y59: 0 | Z59: 0 | AA59: 0 | AB59: 0 | AC59: 0 | AD59: 0 | AE59: 0 | AF59: 0 | AG59: 0 | AH59: 0 | AI59: 0 | AJ59: 0 | AK59: 0 | AL59: 0 | AM59: 0 | AN59: 0 | AO59: 0 | AP59: 0 | AQ59: 0 | AR59: 0 | AS59: 0 | AT59: 0 | AU59: 0 | AV59: 0 | AW59: 0 | AX59: 0 | AY59: 0 | AZ59: 0 | BA59: 0 | BB59: 0 | BC59: 0 | BD59: 0 | BE59: 0 | BF59: 0 | BG59: 0
B61: Opex Build Up
B63: Name | H63: Unit | J63: Value
B64: [e.g. feeder inspection] | H64: [e.g., $million per feeder km]
B65: [e.g. switchboard testing] | H65: [e.g., $millions per switchboard]
B69: Name | H69: Unit | J69: Quantities
B70: =B64 -> [e.g. feeder inspection] | H70: [e.g., feeder km]
B71: =B65 -> [e.g. switchboard testing] | H71: [e.g., count of switchboards]
B75: Name | G75: $ Basis Reminder | H75: $ Reminder | J75: ="Costs - ensure costs have been converted to "&'1_KMA'!$I$19 -> Costs - ensure costs have been converted to $dollars
B76: =B64 -> [e.g. feeder inspection] | G76: ='1_KMA'!$I$20 -> 2024-06-30 | H76: ='1_KMA'!$I$19 -> $dollars | J76: =$J$64*J70 -> 0 | K76: =$J$64*K70 -> 0 | L76: =$J$64*L70 -> 0 | M76: =$J$64*M70 -> 0 | N76: 0 | O76: 0 | P76: 0 | Q76: 0 | R76: 0 | S76: 0 | T76: 0 | U76: 0 | V76: 0 | W76: 0 | X76: 0 | Y76: 0 | Z76: 0 | AA76: 0 | AB76: 0 | AC76: 0 | AD76: 0 | AE76: 0 | AF76: 0 | AG76: 0 | AH76: 0 | AI76: 0 | AJ76: 0 | AK76: 0 | AL76: 0 | AM76: 0 | AN76: 0 | AO76: 0 | AP76: 0 | AQ76: 0 | AR76: 0 | AS76: 0 | AT76: 0 | AU76: 0 | AV76: 0 | AW76: 0 | AX76: 0 | AY76: 0 | AZ76: 0 | BA76: 0 | BB76: 0 | BC76: 0 | BD76: 0 | BE76: 0 | BF76: 0 | BG76: 0
B77: =B65 -> [e.g. switchboard testing] | G77: ='1_KMA'!$I$20 -> 2024-06-30 | H77: ='1_KMA'!$I$19 -> $dollars | J77: =$J$65*J71 -> 0 | K77: =$J$65*K71 -> 0 | L77: =$J$65*L71 -> 0 | M77: =$J$65*M71 -> 0 | N77: 0 | O77: 0 | P77: 0 | Q77: 0 | R77: 0 | S77: 0 | T77: 0 | U77: 0 | V77: 0 | W77: 0 | X77: 0 | Y77: 0 | Z77: 0 | AA77: 0 | AB77: 0 | AC77: 0 | AD77: 0 | AE77: 0 | AF77: 0 | AG77: 0 | AH77: 0 | AI77: 0 | AJ77: 0 | AK77: 0 | AL77: 0 | AM77: 0 | AN77: 0 | AO77: 0 | AP77: 0 | AQ77: 0 | AR77: 0 | AS77: 0 | AT77: 0 | AU77: 0 | AV77: 0 | AW77: 0 | AX77: 0 | AY77: 0 | AZ77: 0 | BA77: 0 | BB77: 0 | BC77: 0 | BD77: 0 | BE77: 0 | BF77: 0 | BG77: 0
G78: ='1_KMA'!$I$20 -> 2024-06-30 | H78: ='1_KMA'!$I$19 -> $dollars | J78: =$J$66*J72 -> 0 | K78: =$J$66*K72 -> 0 | L78: =$J$66*L72 -> 0 | M78: 0 | N78: 0 | O78: 0 | P78: 0 | Q78: 0 | R78: 0 | S78: 0 | T78: 0 | U78: 0 | V78: 0 | W78: 0 | X78: 0 | Y78: 0 | Z78: 0 | AA78: 0 | AB78: 0 | AC78: 0 | AD78: 0 | AE78: 0 | AF78: 0 | AG78: 0 | AH78: 0 | AI78: 0 | AJ78: 0 | AK78: 0 | AL78: 0 | AM78: 0 | AN78: 0 | AO78: 0 | AP78: 0 | AQ78: 0 | AR78: 0 | AS78: 0 | AT78: 0 | AU78: 0 | AV78: 0 | AW78: 0 | AX78: 0 | AY78: 0 | AZ78: 0 | BA78: 0 | BB78: 0 | BC78: 0 | BD78: 0 | BE78: 0 | BF78: 0 | BG78: 0
G79: ='1_KMA'!$I$20 -> 2024-06-30 | H79: ='1_KMA'!$I$19 -> $dollars | J79: =$J$67*J73 -> 0 | K79: =$J$67*K73 -> 0 | L79: =$J$67*L73 -> 0 | M79: 0 | N79: 0 | O79: 0 | P79: 0 | Q79: 0 | R79: 0 | S79: 0 | T79: 0 | U79: 0 | V79: 0 | W79: 0 | X79: 0 | Y79: 0 | Z79: 0 | AA79: 0 | AB79: 0 | AC79: 0 | AD79: 0 | AE79: 0 | AF79: 0 | AG79: 0 | AH79: 0 | AI79: 0 | AJ79: 0 | AK79: 0 | AL79: 0 | AM79: 0 | AN79: 0 | AO79: 0 | AP79: 0 | AQ79: 0 | AR79: 0 | AS79: 0 | AT79: 0 | AU79: 0 | AV79: 0 | AW79: 0 | AX79: 0 | AY79: 0 | AZ79: 0 | BA79: 0 | BB79: 0 | BC79: 0 | BD79: 0 | BE79: 0 | BF79: 0 | BG79: 0
G81: $ Basis Reminder | H81: $ Reminder | J81: Summary table above picks up this total row
B82: Total | G82: ='1_KMA'!$I$20 -> 2024-06-30 | H82: ='1_KMA'!$I$19 -> $dollars | J82: =SUM(J76:J79) -> 0 | K82: =SUM(K76:K79) -> 0 | L82: =SUM(L76:L79) -> 0 | M82: 0 | N82: 0 | O82: 0 | P82: 0 | Q82: 0 | R82: 0 | S82: 0 | T82: 0 | U82: 0 | V82: 0 | W82: 0 | X82: 0 | Y82: 0 | Z82: 0 | AA82: 0 | AB82: 0 | AC82: 0 | AD82: 0 | AE82: 0 | AF82: 0 | AG82: 0 | AH82: 0 | AI82: 0 | AJ82: 0 | AK82: 0 | AL82: 0 | AM82: 0 | AN82: 0 | AO82: 0 | AP82: 0 | AQ82: 0 | AR82: 0 | AS82: 0 | AT82: 0 | AU82: 0 | AV82: 0 | AW82: 0 | AX82: 0 | AY82: 0 | AZ82: 0 | BA82: 0 | BB82: 0 | BC82: 0 | BD82: 0 | BE82: 0 | BF82: 0 | BG82: =SUM(BG76:BG79) -> 0
B84: Benefits Inputs
B86: Value of EUE
J88: ="Values - ensure values have been converted to "&'1_KMA'!$I$19 -> Values - ensure values have been converted to $dollars
G89: $ Basis Reminder | H89: $ Reminder | J89: Enter this as a positive value, as the spreadsheet later converts this to a negative benefit
B90: Value of Expected Unserved Energy (EUE) | G90: ='1_KMA'!$I$20 -> 2024-06-30 | H90: ='1_KMA'!$I$19 -> $dollars
G92: $ Basis Reminder | H92: $ Reminder | J92: Summary table above picks up this total row
B93: Total | G93: ='1_KMA'!$I$20 -> 2024-06-30 | H93: ='1_KMA'!$I$19 -> $dollars | J93: =J90 -> 0 | K93: =K90 -> 0 | L93: 0 | M93: 0 | N93: 0 | O93: 0 | P93: 0 | Q93: 0 | R93: 0 | S93: 0 | T93: 0 | U93: 0 | V93: 0 | W93: 0 | X93: 0 | Y93: 0 | Z93: 0 | AA93: 0 | AB93: 0 | AC93: 0 | AD93: 0 | AE93: 0 | AF93: 0 | AG93: 0 | AH93: 0 | AI93: 0 | AJ93: 0 | AK93: 0 | AL93: 0 | AM93: 0 | AN93: 0 | AO93: 0 | AP93: 0 | AQ93: 0 | AR93: 0 | AS93: 0 | AT93: 0 | AU93: 0 | AV93: 0 | AW93: 0 | AX93: 0 | AY93: 0 | AZ93: 0 | BA93: 0 | BB93: 0 | BC93: 0 | BD93: 0 | BE93: 0 | BF93: 0 | BG93: 0
B95: Reliability
B97: QCV research | H97: Unit | J97: Unit Rate
B98: Fewer unplanned outages, less than 12 hours
B99: Fewer unplanned outages in the worst served areas
H102: Unit | J102: Quantities
B103: Fewer unplanned outages, less than 12 hours
B104: Fewer unplanned outages in the worst served areas
G106: $ Basis Reminder | H106: $ Reminder | J106: ="Values - ensure values have been converted to "&'1_KMA'!$I$19 -> Values - ensure values have been converted to $dollars
B107: Fewer unplanned outages, less than 12 hours | G107: ='1_KMA'!$I$20 -> 2024-06-30 | H107: ='1_KMA'!$I$19 -> $dollars | J107: =J103*$J$98 -> 0 | K107: =K103*$J$98 -> 0 | L107: =L103*$J$98 -> 0 | M107: =M103*$J$98 -> 0 | N107: 0 | O107: =O103*$J$98 -> 0 | P107: 0 | Q107: 0 | R107: 0 | S107: 0 | T107: 0 | U107: 0 | V107: 0 | W107: 0 | X107: 0 | Y107: 0 | Z107: 0 | AA107: 0 | AB107: 0 | AC107: 0 | AD107: 0 | AE107: 0 | AF107: 0 | AG107: 0 | AH107: 0 | AI107: 0 | AJ107: 0 | AK107: 0 | AL107: 0 | AM107: 0 | AN107: 0 | AO107: 0 | AP107: 0 | AQ107: 0 | AR107: 0 | AS107: 0 | AT107: 0 | AU107: 0 | AV107: 0 | AW107: 0 | AX107: 0 | AY107: 0 | AZ107: 0 | BA107: 0 | BB107: 0 | BC107: 0 | BD107: 0 | BE107: 0 | BF107: 0 | BG107: 0
B108: Fewer unplanned outages in the worst served areas | G108: ='1_KMA'!$I$20 -> 2024-06-30 | H108: ='1_KMA'!$I$19 -> $dollars | J108: =J104*$J$99 -> 0 | K108: =K104*$J$99 -> 0 | L108: =L104*$J$99 -> 0 | M108: =M104*$J$99 -> 0 | N108: 0 | O108: =O104*$J$99 -> 0 | P108: 0 | Q108: 0 | R108: 0 | S108: 0 | T108: 0 | U108: 0 | V108: 0 | W108: 0 | X108: 0 | Y108: 0 | Z108: 0 | AA108: 0 | AB108: 0 | AC108: 0 | AD108: 0 | AE108: 0 | AF108: 0 | AG108: 0 | AH108: 0 | AI108: 0 | AJ108: 0 | AK108: 0 | AL108: 0 | AM108: 0 | AN108: 0 | AO108: 0 | AP108: 0 | AQ108: 0 | AR108: 0 | AS108: 0 | AT108: 0 | AU108: 0 | AV108: 0 | AW108: 0 | AX108: 0 | AY108: 0 | AZ108: 0 | BA108: 0 | BB108: 0 | BC108: 0 | BD108: 0 | BE108: 0 | BF108: 0 | BG108: 0
G110: $ Basis Reminder | H110: $ Reminder | J110: Summary table above picks up this total row
B111: Total | G111: ='1_KMA'!$I$20 -> 2024-06-30 | H111: ='1_KMA'!$I$19 -> $dollars | J111: =SUM(J107:J108) -> 0 | K111: =SUM(K107:K108) -> 0 | L111: 0 | M111: 0 | N111: 0 | O111: 0 | P111: 0 | Q111: 0 | R111: 0 | S111: 0 | T111: 0 | U111: 0 | V111: 0 | W111: 0 | X111: 0 | Y111: 0 | Z111: 0 | AA111: 0 | AB111: 0 | AC111: 0 | AD111: 0 | AE111: 0 | AF111: 0 | AG111: 0 | AH111: 0 | AI111: 0 | AJ111: 0 | AK111: 0 | AL111: 0 | AM111: 0 | AN111: 0 | AO111: 0 | AP111: 0 | AQ111: 0 | AR111: 0 | AS111: 0 | AT111: 0 | AU111: 0 | AV111: 0 | AW111: 0 | AX111: 0 | AY111: 0 | AZ111: 0 | BA111: 0 | BB111: 0 | BC111: 0 | BD111: 0 | BE111: 0 | BF111: 0 | BG111: 0
B113: Resilience
B115: QCV research | H115: Unit | J115: Unit Rate
B116: Fewer unplanned outages, longer than 12 hours
B117: Faster restoration of power when an outage has occurred
B118: Community hub offering essential services during long duration outages
H121: Unit | J121: Quantities
B122: Fewer unplanned outages, longer than 12 hours
B123: Faster restoration of power when an outage has occurred
B124: Community hub offering essential services
G126: $ Basis Reminder | H126: $ Reminder | J126: ="Values - ensure values have been converted to "&'1_KMA'!$I$19 -> Values - ensure values have been converted to $dollars
B127: Fewer unplanned outages, longer than 12 hours | G127: ='1_KMA'!$I$20 -> 2024-06-30 | H127: ='1_KMA'!$I$19 -> $dollars | J127: =J122*'2.1_Op3'!$J$116 -> 0 | K127: =K122*'2.1_Op3'!$J$116 -> 0 | L127: =L122*'2.1_Op3'!$J$116 -> 0 | M127: =M122*'2.1_Op3'!$J$116 -> 0 | N127: =N122*'2.1_Op3'!$J$116 -> 0 | O127: =O122*'2.1_Op3'!$J$116 -> 0 | P127: =P122*'2.1_Op3'!$J$116 -> 0 | Q127: =Q122*'2.1_Op3'!$J$116 -> 0 | R127: =R122*'2.1_Op3'!$J$116 -> 0 | S127: =S122*'2.1_Op3'!$J$116 -> 0 | T127: =T122*'2.1_Op3'!$J$116 -> 0 | U127: =U122*'2.1_Op3'!$J$116 -> 0 | V127: =V122*'2.1_Op3'!$J$116 -> 0 | W127: =W122*'2.1_Op3'!$J$116 -> 0 | X127: =X122*'2.1_Op3'!$J$116 -> 0 | Y127: =Y122*'2.1_Op3'!$J$116 -> 0 | Z127: =Z122*'2.1_Op3'!$J$116 -> 0 | AA127: =AA122*'2.1_Op3'!$J$116 -> 0 | AB127: =AB122*'2.1_Op3'!$J$116 -> 0 | AC127: =AC122*'2.1_Op3'!$J$116 -> 0 | AD127: =AD122*'2.1_Op3'!$J$116 -> 0 | AE127: =AE122*'2.1_Op3'!$J$116 -> 0 | AF127: =AF122*'2.1_Op3'!$J$116 -> 0 | AG127: =AG122*'2.1_Op3'!$J$116 -> 0 | AH127: =AH122*'2.1_Op3'!$J$116 -> 0 | AI127: =AI122*'2.1_Op3'!$J$116 -> 0 | AJ127: =AJ122*'2.1_Op3'!$J$116 -> 0 | AK127: =AK122*'2.1_Op3'!$J$116 -> 0 | AL127: =AL122*'2.1_Op3'!$J$116 -> 0 | AM127: =AM122*'2.1_Op3'!$J$116 -> 0 | AN127: =AN122*'2.1_Op3'!$J$116 -> 0 | AO127: =AO122*'2.1_Op3'!$J$116 -> 0 | AP127: =AP122*'2.1_Op3'!$J$116 -> 0 | AQ127: =AQ122*'2.1_Op3'!$J$116 -> 0 | AR127: =AR122*'2.1_Op3'!$J$116 -> 0 | AS127: =AS122*'2.1_Op3'!$J$116 -> 0 | AT127: =AT122*'2.1_Op3'!$J$116 -> 0 | AU127: =AU122*'2.1_Op3'!$J$116 -> 0 | AV127: =AV122*'2.1_Op3'!$J$116 -> 0 | AW127: =AW122*'2.1_Op3'!$J$116 -> 0 | AX127: =AX122*'2.1_Op3'!$J$116 -> 0 | AY127: =AY122*'2.1_Op3'!$J$116 -> 0 | AZ127: =AZ122*'2.1_Op3'!$J$116 -> 0 | BA127: =BA122*'2.1_Op3'!$J$116 -> 0 | BB127: =BB122*'2.1_Op3'!$J$116 -> 0 | BC127: =BC122*'2.1_Op3'!$J$116 -> 0 | BD127: =BD122*'2.1_Op3'!$J$116 -> 0 | BE127: =BE122*'2.1_Op3'!$J$116 -> 0 | BF127: =BF122*'2.1_Op3'!$J$116 -> 0 | BG127: =BG122*'2.1_Op3'!$J$116 -> 0
B128: Faster restoration of power when an outage has occurred | G128: ='1_KMA'!$I$20 -> 2024-06-30 | H128: ='1_KMA'!$I$19 -> $dollars | J128: =J123*'2.1_Op3'!$J$117 -> 0 | K128: =K123*'2.1_Op3'!$J$117 -> 0 | L128: =L123*'2.1_Op3'!$J$117 -> 0 | M128: =M123*'2.1_Op3'!$J$117 -> 0 | N128: =N123*'2.1_Op3'!$J$117 -> 0 | O128: =O123*'2.1_Op3'!$J$117 -> 0 | P128: =P123*'2.1_Op3'!$J$117 -> 0 | Q128: =Q123*'2.1_Op3'!$J$117 -> 0 | R128: =R123*'2.1_Op3'!$J$117 -> 0 | S128: =S123*'2.1_Op3'!$J$117 -> 0 | T128: =T123*'2.1_Op3'!$J$117 -> 0 | U128: =U123*'2.1_Op3'!$J$117 -> 0 | V128: =V123*'2.1_Op3'!$J$117 -> 0 | W128: =W123*'2.1_Op3'!$J$117 -> 0 | X128: =X123*'2.1_Op3'!$J$117 -> 0 | Y128: =Y123*'2.1_Op3'!$J$117 -> 0 | Z128: =Z123*'2.1_Op3'!$J$117 -> 0 | AA128: =AA123*'2.1_Op3'!$J$117 -> 0 | AB128: =AB123*'2.1_Op3'!$J$117 -> 0 | AC128: =AC123*'2.1_Op3'!$J$117 -> 0 | AD128: =AD123*'2.1_Op3'!$J$117 -> 0 | AE128: =AE123*'2.1_Op3'!$J$117 -> 0 | AF128: =AF123*'2.1_Op3'!$J$117 -> 0 | AG128: =AG123*'2.1_Op3'!$J$117 -> 0 | AH128: =AH123*'2.1_Op3'!$J$117 -> 0 | AI128: =AI123*'2.1_Op3'!$J$117 -> 0 | AJ128: =AJ123*'2.1_Op3'!$J$117 -> 0 | AK128: =AK123*'2.1_Op3'!$J$117 -> 0 | AL128: =AL123*'2.1_Op3'!$J$117 -> 0 | AM128: =AM123*'2.1_Op3'!$J$117 -> 0 | AN128: =AN123*'2.1_Op3'!$J$117 -> 0 | AO128: =AO123*'2.1_Op3'!$J$117 -> 0 | AP128: =AP123*'2.1_Op3'!$J$117 -> 0 | AQ128: =AQ123*'2.1_Op3'!$J$117 -> 0 | AR128: =AR123*'2.1_Op3'!$J$117 -> 0 | AS128: =AS123*'2.1_Op3'!$J$117 -> 0 | AT128: =AT123*'2.1_Op3'!$J$117 -> 0 | AU128: =AU123*'2.1_Op3'!$J$117 -> 0 | AV128: =AV123*'2.1_Op3'!$J$117 -> 0 | AW128: =AW123*'2.1_Op3'!$J$117 -> 0 | AX128: =AX123*'2.1_Op3'!$J$117 -> 0 | AY128: =AY123*'2.1_Op3'!$J$117 -> 0 | AZ128: =AZ123*'2.1_Op3'!$J$117 -> 0 | BA128: =BA123*'2.1_Op3'!$J$117 -> 0 | BB128: =BB123*'2.1_Op3'!$J$117 -> 0 | BC128: =BC123*'2.1_Op3'!$J$117 -> 0 | BD128: =BD123*'2.1_Op3'!$J$117 -> 0 | BE128: =BE123*'2.1_Op3'!$J$117 -> 0 | BF128: =BF123*'2.1_Op3'!$J$117 -> 0 | BG128: =BG123*'2.1_Op3'!$J$117 -> 0
